Workbook

Sheet Intro
G2: Electricity distribution network service provider
I3: RFM - Depreciation tracking module
L4: Version: | M4: 1
L5: Date: | M5: April 2020
B8: Introduction | J8: Electricity distribution module
C14: This attachment to the RFM is used by the AER to determine the forecast regulatory asset base (RAB) and tax asset base (TAB) depreciation for a distribution network service provider.
C15: It also calculates the actual tax depreciation for use in the RFM.
C17: INSTRUCTIONS FOR USE
C18: The RFM handbook, which contains information on this depreciation tracking module, is available on the AER website at http://www.aer.gov.au
C20: a. Fill out input cells on the 'RAB input' and 'TAB input' sheets. These input cells are highlighted blue.
C21: This provides the data for the depreciation tracking calculations.
C22: In general, input expenditure data should be valued in nominal dollar terms of the year indicated.
C23: Units and basis for entry are specified where required for each data table.
C24: Not all input cells require an input - be sure to read and follow the instructions contained within the comments for each section heading.
C25: All relevant inputs are to be filled on an ongoing basis, with the details of past expenditure and asset lives to be preserved.
C27: b. The values in the 'Tracking output' sheet
C28: This sheet summarises the key outputs of the year-by-year tracking approach, which includes forecast RAB and TAB depreciation to be input into the PTRM
C29: as well as actual tax depreciation for the current regulatory period to be input into the RFM.
C31: VERSION RECORD
C33: Version | D33: Date | F33: Description
C34: 1 | D34: April 2020 | F34: Initial module

Sheet RAB input
E2: =IF($F$8='TAB input'!$F$8, $F$8, 'TAB input'!$F$8) & " - RAB input - Elec DNSP "&Intro!$I$3&" - version "& Intro!$M$4 -> AusNet - RAB input - Elec DNSP RFM - Depreciation tracking module - version 1 | J2: Input cells in blue | R2: ASD Amendments
E4: Year | F4: =IF(LEN($H$9)>4, CONCATENATE(LEFT($H$9, 4)-2 & "-" & IF(AND(RIGHT($H$9, 2)<"12", RIGHT($H$9, 2)>"01"), "0", "") & IF(RIGHT($H$9, 2)="00", "98", IF(RIGHT($H$9, 2)="01", "99", RIGHT($H$9, 2)-2))), $H$9-2) -> 2009 | G4: =IF(LEN(F4)>4,CONCATENATE(LEFT(F4,4)+1&"-"&IF(RIGHT(F4, 2)<"09", "0","")&IF(RIGHT(F4, 2)="99", "00", RIGHT(F4,2)+1)),F4+1) -> 2010 | H4: =IF(LEN(G4)>4,CONCATENATE(LEFT(G4,4)+1&"-"&IF(RIGHT(G4, 2)<"09", "0","")&IF(RIGHT(G4, 2)="99", "00", RIGHT(G4,2)+1)),G4+1) -> 2011 | I4: =IF(I$11<>"", IF(INT($G$5+SUM($H$11:H$11))=$G$5+SUM($H$11:H$11), VALUE(LEFT(I$10, 4)), CONCATENATE(LEFT(I$10,4)&"-"&IF(MID(I$10, 3, 2)<"09", "0","")&IF(MID(I$10, 3, 2)="99", "00", MID(I$10, 3, 2)+1))), IF(AND(I$5<>INT(I$5), COUNTA($H$4:H$4)=ROUNDUP(I$5, 0)), IF($G$5+SUM($11:$11)=INT($G$5+SUM($11:$11)), VALUE(CONCATENATE(IF(RIGHT(H$4, 2)="99", LEFT(H$4, 2)+1, LEFT(H$4, 2))&RIGHT(H$4, 2))), CONCATENATE(LEFT(H$4, 2)&RIGHT(H$4, 2)&"-"&IF(RIGHT(H$4, 2)<"09", "0", "")&IF(RIGHT(H$4, 2)="99", "00", RIGHT(H$4, 2)+1))), IF(LEN(H4)>4,CONCATENATE(LEFT(H4,4)+1&"-"&IF(RIGHT(H4, 2)<"09", "0","")&IF(RIGHT(H4, 2)="99", "00", RIGHT(H4,2)+1)),VALUE(H4+1)))) -> 2012 | J4: =IF(J$11<>"", IF(INT($G$5+SUM($H$11:I$11))=$G$5+SUM($H$11:I$11), VALUE(LEFT(J$10, 4)), CONCATENATE(LEFT(J$10,4)&"-"&IF(MID(J$10, 3, 2)<"09", "0","")&IF(MID(J$10, 3, 2)="99", "00", MID(J$10, 3, 2)+1))), IF(AND(J$5<>INT(J$5), COUNTA($H$4:I$4)=ROUNDUP(J$5, 0)), IF($G$5+SUM($11:$11)=INT($G$5+SUM($11:$11)), VALUE(CONCATENATE(IF(RIGHT(I$4, 2)="99", LEFT(I$4, 2)+1, LEFT(I$4, 2))&RIGHT(I$4, 2))), CONCATENATE(LEFT(I$4, 2)&RIGHT(I$4, 2)&"-"&IF(RIGHT(I$4, 2)<"09", "0", "")&IF(RIGHT(I$4, 2)="99", "00", RIGHT(I$4, 2)+1))), IF(LEN(I4)>4,CONCATENATE(LEFT(I4,4)+1&"-"&IF(RIGHT(I4, 2)<"09", "0","")&IF(RIGHT(I4, 2)="99", "00", RIGHT(I4,2)+1)),VALUE(I4+1)))) -> 2013 | K4: =IF(K$11<>"", IF(INT($G$5+SUM($H$11:J$11))=$G$5+SUM($H$11:J$11), VALUE(LEFT(K$10, 4)), CONCATENATE(LEFT(K$10,4)&"-"&IF(MID(K$10, 3, 2)<"09", "0","")&IF(MID(K$10, 3, 2)="99", "00", MID(K$10, 3, 2)+1))), IF(AND(K$5<>INT(K$5), COUNTA($H$4:J$4)=ROUNDUP(K$5, 0)), IF($G$5+SUM($11:$11)=INT($G$5+SUM($11:$11)), VALUE(CONCATENATE(IF(RIGHT(J$4, 2)="99", LEFT(J$4, 2)+1, LEFT(J$4, 2))&RIGHT(J$4, 2))), CONCATENATE(LEFT(J$4, 2)&RIGHT(J$4, 2)&"-"&IF(RIGHT(J$4, 2)<"09", "0", "")&IF(RIGHT(J$4, 2)="99", "00", RIGHT(J$4, 2)+1))), IF(LEN(J4)>4,CONCATENATE(LEFT(J4,4)+1&"-"&IF(RIGHT(J4, 2)<"09", "0","")&IF(RIGHT(J4, 2)="99", "00", RIGHT(J4,2)+1)),VALUE(J4+1)))) -> 2014 | L4: =IF(L$11<>"", IF(INT($G$5+SUM($H$11:K$11))=$G$5+SUM($H$11:K$11), VALUE(LEFT(L$10, 4)), CONCATENATE(LEFT(L$10,4)&"-"&IF(MID(L$10, 3, 2)<"09", "0","")&IF(MID(L$10, 3, 2)="99", "00", MID(L$10, 3, 2)+1))), IF(AND(L$5<>INT(L$5), COUNTA($H$4:K$4)=ROUNDUP(L$5, 0)), IF($G$5+SUM($11:$11)=INT($G$5+SUM($11:$11)), VALUE(CONCATENATE(IF(RIGHT(K$4, 2)="99", LEFT(K$4, 2)+1, LEFT(K$4, 2))&RIGHT(K$4, 2))), CONCATENATE(LEFT(K$4, 2)&RIGHT(K$4, 2)&"-"&IF(RIGHT(K$4, 2)<"09", "0", "")&IF(RIGHT(K$4, 2)="99", "00", RIGHT(K$4, 2)+1))), IF(LEN(K4)>4,CONCATENATE(LEFT(K4,4)+1&"-"&IF(RIGHT(K4, 2)<"09", "0","")&IF(RIGHT(K4, 2)="99", "00", RIGHT(K4,2)+1)),VALUE(K4+1)))) -> 2015 | M4: =IF(M$11<>"", IF(INT($G$5+SUM($H$11:L$11))=$G$5+SUM($H$11:L$11), VALUE(LEFT(M$10, 4)), CONCATENATE(LEFT(M$10,4)&"-"&IF(MID(M$10, 3, 2)<"09", "0","")&IF(MID(M$10, 3, 2)="99", "00", MID(M$10, 3, 2)+1))), IF(AND(M$5<>INT(M$5), COUNTA($H$4:L$4)=ROUNDUP(M$5, 0)), IF($G$5+SUM($11:$11)=INT($G$5+SUM($11:$11)), VALUE(CONCATENATE(IF(RIGHT(L$4, 2)="99", LEFT(L$4, 2)+1, LEFT(L$4, 2))&RIGHT(L$4, 2))), CONCATENATE(LEFT(L$4, 2)&RIGHT(L$4, 2)&"-"&IF(RIGHT(L$4, 2)<"09", "0", "")&IF(RIGHT(L$4, 2)="99", "00", RIGHT(L$4, 2)+1))), IF(LEN(L4)>4,CONCATENATE(LEFT(L4,4)+1&"-"&IF(RIGHT(L4, 2)<"09", "0","")&IF(RIGHT(L4, 2)="99", "00", RIGHT(L4,2)+1)),VALUE(L4+1)))) -> 2016 | N4: =IF(N$11<>"", IF(INT($G$5+SUM($H$11:M$11))=$G$5+SUM($H$11:M$11), VALUE(LEFT(N$10, 4)), CONCATENATE(LEFT(N$10,4)&"-"&IF(MID(N$10, 3, 2)<"09", "0","")&IF(MID(N$10, 3, 2)="99", "00", MID(N$10, 3, 2)+1))), IF(AND(N$5<>INT(N$5), COUNTA($H$4:M$4)=ROUNDUP(N$5, 0)), IF($G$5+SUM($11:$11)=INT($G$5+SUM($11:$11)), VALUE(CONCATENATE(IF(RIGHT(M$4, 2)="99", LEFT(M$4, 2)+1, LEFT(M$4, 2))&RIGHT(M$4, 2))), CONCATENATE(LEFT(M$4, 2)&RIGHT(M$4, 2)&"-"&IF(RIGHT(M$4, 2)<"09", "0", "")&IF(RIGHT(M$4, 2)="99", "00", RIGHT(M$4, 2)+1))), IF(LEN(M4)>4,CONCATENATE(LEFT(M4,4)+1&"-"&IF(RIGHT(M4, 2)<"09", "0","")&IF(RIGHT(M4, 2)="99", "00", RIGHT(M4,2)+1)),VALUE(M4+1)))) -> 2017 | O4: =IF(O$11<>"", IF(INT($G$5+SUM($H$11:N$11))=$G$5+SUM($H$11:N$11), VALUE(LEFT(O$10, 4)), CONCATENATE(LEFT(O$10,4)&"-"&IF(MID(O$10, 3, 2)<"09", "0","")&IF(MID(O$10, 3, 2)="99", "00", MID(O$10, 3, 2)+1))), IF(AND(O$5<>INT(O$5), COUNTA($H$4:N$4)=ROUNDUP(O$5, 0)), IF($G$5+SUM($11:$11)=INT($G$5+SUM($11:$11)), VALUE(CONCATENATE(IF(RIGHT(N$4, 2)="99", LEFT(N$4, 2)+1, LEFT(N$4, 2))&RIGHT(N$4, 2))), CONCATENATE(LEFT(N$4, 2)&RIGHT(N$4, 2)&"-"&IF(RIGHT(N$4, 2)<"09", "0", "")&IF(RIGHT(N$4, 2)="99", "00", RIGHT(N$4, 2)+1))), IF(LEN(N4)>4,CONCATENATE(LEFT(N4,4)+1&"-"&IF(RIGHT(N4, 2)<"09", "0","")&IF(RIGHT(N4, 2)="99", "00", RIGHT(N4,2)+1)),VALUE(N4+1)))) -> 2018 | P4: =IF(P$11<>"", IF(INT($G$5+SUM($H$11:O$11))=$G$5+SUM($H$11:O$11), VALUE(LEFT(P$10, 4)), CONCATENATE(LEFT(P$10,4)&"-"&IF(MID(P$10, 3, 2)<"09", "0","")&IF(MID(P$10, 3, 2)="99", "00", MID(P$10, 3, 2)+1))), IF(AND(P$5<>INT(P$5), COUNTA($H$4:O$4)=ROUNDUP(P$5, 0)), IF($G$5+SUM($11:$11)=INT($G$5+SUM($11:$11)), VALUE(CONCATENATE(IF(RIGHT(O$4, 2)="99", LEFT(O$4, 2)+1, LEFT(O$4, 2))&RIGHT(O$4, 2))), CONCATENATE(LEFT(O$4, 2)&RIGHT(O$4, 2)&"-"&IF(RIGHT(O$4, 2)<"09", "0", "")&IF(RIGHT(O$4, 2)="99", "00", RIGHT(O$4, 2)+1))), IF(LEN(O4)>4,CONCATENATE(LEFT(O4,4)+1&"-"&IF(RIGHT(O4, 2)<"09", "0","")&IF(RIGHT(O4, 2)="99", "00", RIGHT(O4,2)+1)),VALUE(O4+1)))) -> 2019 | Q4: =IF(Q$11<>"", IF(INT($G$5+SUM($H$11:P$11))=$G$5+SUM($H$11:P$11), VALUE(LEFT(Q$10, 4)), CONCATENATE(LEFT(Q$10,4)&"-"&IF(MID(Q$10, 3, 2)<"09", "0","")&IF(MID(Q$10, 3, 2)="99", "00", MID(Q$10, 3, 2)+1))), IF(AND(Q$5<>INT(Q$5), COUNTA($H$4:P$4)=ROUNDUP(Q$5, 0)), IF($G$5+SUM($11:$11)=INT($G$5+SUM($11:$11)), VALUE(CONCATENATE(IF(RIGHT(P$4, 2)="99", LEFT(P$4, 2)+1, LEFT(P$4, 2))&RIGHT(P$4, 2))), CONCATENATE(LEFT(P$4, 2)&RIGHT(P$4, 2)&"-"&IF(RIGHT(P$4, 2)<"09", "0", "")&IF(RIGHT(P$4, 2)="99", "00", RIGHT(P$4, 2)+1))), IF(LEN(P4)>4,CONCATENATE(LEFT(P4,4)+1&"-"&IF(RIGHT(P4, 2)<"09", "0","")&IF(RIGHT(P4, 2)="99", "00", RIGHT(P4,2)+1)),VALUE(P4+1)))) -> 2020 | R4: =IF(R$11<>"", IF(INT($G$5+SUM($H$11:Q$11))=$G$5+SUM($H$11:Q$11), VALUE(LEFT(R$10, 4)), CONCATENATE(LEFT(R$10,4)&"-"&IF(MID(R$10, 3, 2)<"09", "0","")&IF(MID(R$10, 3, 2)="99", "00", MID(R$10, 3, 2)+1))), IF(AND(R$5<>INT(R$5), COUNTA($H$4:Q$4)=ROUNDUP(R$5, 0)), IF($G$5+SUM($11:$11)=INT($G$5+SUM($11:$11)), VALUE(CONCATENATE(IF(RIGHT(Q$4, 2)="99", LEFT(Q$4, 2)+1, LEFT(Q$4, 2))&RIGHT(Q$4, 2))), CONCATENATE(LEFT(Q$4, 2)&RIGHT(Q$4, 2)&"-"&IF(RIGHT(Q$4, 2)<"09", "0", "")&IF(RIGHT(Q$4, 2)="99", "00", RIGHT(Q$4, 2)+1))), IF(LEN(Q4)>4,CONCATENATE(LEFT(Q4,4)+1&"-"&IF(RIGHT(Q4, 2)<"09", "0","")&IF(RIGHT(Q4, 2)="99", "00", RIGHT(Q4,2)+1)),VALUE(Q4+1)))) -> 2021 | S4: =IF(S$11<>"", IF(INT($G$5+SUM($H$11:R$11))=$G$5+SUM($H$11:R$11), VALUE(LEFT(S$10, 4)), CONCATENATE(LEFT(S$10,4)&"-"&IF(MID(S$10, 3, 2)<"09", "0","")&IF(MID(S$10, 3, 2)="99", "00", MID(S$10, 3, 2)+1))), IF(AND(S$5<>INT(S$5), COUNTA($H$4:R$4)=ROUNDUP(S$5, 0)), IF($G$5+SUM($11:$11)=INT($G$5+SUM($11:$11)), VALUE(CONCATENATE(IF(RIGHT(R$4, 2)="99", LEFT(R$4, 2)+1, LEFT(R$4, 2))&RIGHT(R$4, 2))), CONCATENATE(LEFT(R$4, 2)&RIGHT(R$4, 2)&"-"&IF(RIGHT(R$4, 2)<"09", "0", "")&IF(RIGHT(R$4, 2)="99", "00", RIGHT(R$4, 2)+1))), IF(LEN(R4)>4,CONCATENATE(LEFT(R4,4)+1&"-"&IF(RIGHT(R4, 2)<"09", "0","")&IF(RIGHT(R4, 2)="99", "00", RIGHT(R4,2)+1)),VALUE(R4+1)))) -> 2021-22 | T4: =IF(T$11<>"", IF(INT($G$5+SUM($H$11:S$11))=$G$5+SUM($H$11:S$11), VALUE(LEFT(T$10, 4)), CONCATENATE(LEFT(T$10,4)&"-"&IF(MID(T$10, 3, 2)<"09", "0","")&IF(MID(T$10, 3, 2)="99", "00", MID(T$10, 3, 2)+1))), IF(AND(T$5<>INT(T$5), COUNTA($H$4:S$4)=ROUNDUP(T$5, 0)), IF($G$5+SUM($11:$11)=INT($G$5+SUM($11:$11)), VALUE(CONCATENATE(IF(RIGHT(S$4, 2)="99", LEFT(S$4, 2)+1, LEFT(S$4, 2))&RIGHT(S$4, 2))), CONCATENATE(LEFT(S$4, 2)&RIGHT(S$4, 2)&"-"&IF(RIGHT(S$4, 2)<"09", "0", "")&IF(RIGHT(S$4, 2)="99", "00", RIGHT(S$4, 2)+1))), IF(LEN(S4)>4,CONCATENATE(LEFT(S4,4)+1&"-"&IF(RIGHT(S4, 2)<"09", "0","")&IF(RIGHT(S4, 2)="99", "00", RIGHT(S4,2)+1)),VALUE(S4+1)))) -> 2022-23 | U4: =IF(U$11<>"", IF(INT($G$5+SUM($H$11:T$11))=$G$5+SUM($H$11:T$11), VALUE(LEFT(U$10, 4)), CONCATENATE(LEFT(U$10,4)&"-"&IF(MID(U$10, 3, 2)<"09", "0","")&IF(MID(U$10, 3, 2)="99", "00", MID(U$10, 3, 2)+1))), IF(AND(U$5<>INT(U$5), COUNTA($H$4:T$4)=ROUNDUP(U$5, 0)), IF($G$5+SUM($11:$11)=INT($G$5+SUM($11:$11)), VALUE(CONCATENATE(IF(RIGHT(T$4, 2)="99", LEFT(T$4, 2)+1, LEFT(T$4, 2))&RIGHT(T$4, 2))), CONCATENATE(LEFT(T$4, 2)&RIGHT(T$4, 2)&"-"&IF(RIGHT(T$4, 2)<"09", "0", "")&IF(RIGHT(T$4, 2)="99", "00", RIGHT(T$4, 2)+1))), IF(LEN(T4)>4,CONCATENATE(LEFT(T4,4)+1&"-"&IF(RIGHT(T4, 2)<"09", "0","")&IF(RIGHT(T4, 2)="99", "00", RIGHT(T4,2)+1)),VALUE(T4+1)))) -> 2023-24 | V4: =IF(V$11<>"", IF(INT($G$5+SUM($H$11:U$11))=$G$5+SUM($H$11:U$11), VALUE(LEFT(V$10, 4)), CONCATENATE(LEFT(V$10,4)&"-"&IF(MID(V$10, 3, 2)<"09", "0","")&IF(MID(V$10, 3, 2)="99", "00", MID(V$10, 3, 2)+1))), IF(AND(V$5<>INT(V$5), COUNTA($H$4:U$4)=ROUNDUP(V$5, 0)), IF($G$5+SUM($11:$11)=INT($G$5+SUM($11:$11)), VALUE(CONCATENATE(IF(RIGHT(U$4, 2)="99", LEFT(U$4, 2)+1, LEFT(U$4, 2))&RIGHT(U$4, 2))), CONCATENATE(LEFT(U$4, 2)&RIGHT(U$4, 2)&"-"&IF(RIGHT(U$4, 2)<"09", "0", "")&IF(RIGHT(U$4, 2)="99", "00", RIGHT(U$4, 2)+1))), IF(LEN(U4)>4,CONCATENATE(LEFT(U4,4)+1&"-"&IF(RIGHT(U4, 2)<"09", "0","")&IF(RIGHT(U4, 2)="99", "00", RIGHT(U4,2)+1)),VALUE(U4+1)))) -> 2024-25 | W4: =IF(W$11<>"", IF(INT($G$5+SUM($H$11:V$11))=$G$5+SUM($H$11:V$11), VALUE(LEFT(W$10, 4)), CONCATENATE(LEFT(W$10,4)&"-"&IF(MID(W$10, 3, 2)<"09", "0","")&IF(MID(W$10, 3, 2)="99", "00", MID(W$10, 3, 2)+1))), IF(AND(W$5<>INT(W$5), COUNTA($H$4:V$4)=ROUNDUP(W$5, 0)), IF($G$5+SUM($11:$11)=INT($G$5+SUM($11:$11)), VALUE(CONCATENATE(IF(RIGHT(V$4, 2)="99", LEFT(V$4, 2)+1, LEFT(V$4, 2))&RIGHT(V$4, 2))), CONCATENATE(LEFT(V$4, 2)&RIGHT(V$4, 2)&"-"&IF(RIGHT(V$4, 2)<"09", "0", "")&IF(RIGHT(V$4, 2)="99", "00", RIGHT(V$4, 2)+1))), IF(LEN(V4)>4,CONCATENATE(LEFT(V4,4)+1&"-"&IF(RIGHT(V4, 2)<"09", "0","")&IF(RIGHT(V4, 2)="99", "00", RIGHT(V4,2)+1)),VALUE(V4+1)))) -> 2025-26 | X4: =IF(X$11<>"", IF(INT($G$5+SUM($H$11:W$11))=$G$5+SUM($H$11:W$11), VALUE(LEFT(X$10, 4)), CONCATENATE(LEFT(X$10,4)&"-"&IF(MID(X$10, 3, 2)<"09", "0","")&IF(MID(X$10, 3, 2)="99", "00", MID(X$10, 3, 2)+1))), IF(AND(X$5<>INT(X$5), COUNTA($H$4:W$4)=ROUNDUP(X$5, 0)), IF($G$5+SUM($11:$11)=INT($G$5+SUM($11:$11)), VALUE(CONCATENATE(IF(RIGHT(W$4, 2)="99", LEFT(W$4, 2)+1, LEFT(W$4, 2))&RIGHT(W$4, 2))), CONCATENATE(LEFT(W$4, 2)&RIGHT(W$4, 2)&"-"&IF(RIGHT(W$4, 2)<"09", "0", "")&IF(RIGHT(W$4, 2)="99", "00", RIGHT(W$4, 2)+1))), IF(LEN(W4)>4,CONCATENATE(LEFT(W4,4)+1&"-"&IF(RIGHT(W4, 2)<"09", "0","")&IF(RIGHT(W4, 2)="99", "00", RIGHT(W4,2)+1)),VALUE(W4+1)))) -> 2026-27 | Y4: =IF(Y$11<>"", IF(INT($G$5+SUM($H$11:X$11))=$G$5+SUM($H$11:X$11), VALUE(LEFT(Y$10, 4)), CONCATENATE(LEFT(Y$10,4)&"-"&IF(MID(Y$10, 3, 2)<"09", "0","")&IF(MID(Y$10, 3, 2)="99", "00", MID(Y$10, 3, 2)+1))), IF(AND(Y$5<>INT(Y$5), COUNTA($H$4:X$4)=ROUNDUP(Y$5, 0)), IF($G$5+SUM($11:$11)=INT($G$5+SUM($11:$11)), VALUE(CONCATENATE(IF(RIGHT(X$4, 2)="99", LEFT(X$4, 2)+1, LEFT(X$4, 2))&RIGHT(X$4, 2))), CONCATENATE(LEFT(X$4, 2)&RIGHT(X$4, 2)&"-"&IF(RIGHT(X$4, 2)<"09", "0", "")&IF(RIGHT(X$4, 2)="99", "00", RIGHT(X$4, 2)+1))), IF(LEN(X4)>4,CONCATENATE(LEFT(X4,4)+1&"-"&IF(RIGHT(X4, 2)<"09", "0","")&IF(RIGHT(X4, 2)="99", "00", RIGHT(X4,2)+1)),VALUE(X4+1)))) -> 2027-28 | Z4: =IF(Z$11<>"", IF(INT($G$5+SUM($H$11:Y$11))=$G$5+SUM($H$11:Y$11), VALUE(LEFT(Z$10, 4)), CONCATENATE(LEFT(Z$10,4)&"-"&IF(MID(Z$10, 3, 2)<"09", "0","")&IF(MID(Z$10, 3, 2)="99", "00", MID(Z$10, 3, 2)+1))), IF(AND(Z$5<>INT(Z$5), COUNTA($H$4:Y$4)=ROUNDUP(Z$5, 0)), IF($G$5+SUM($11:$11)=INT($G$5+SUM($11:$11)), VALUE(CONCATENATE(IF(RIGHT(Y$4, 2)="99", LEFT(Y$4, 2)+1, LEFT(Y$4, 2))&RIGHT(Y$4, 2))), CONCATENATE(LEFT(Y$4, 2)&RIGHT(Y$4, 2)&"-"&IF(RIGHT(Y$4, 2)<"09", "0", "")&IF(RIGHT(Y$4, 2)="99", "00", RIGHT(Y$4, 2)+1))), IF(LEN(Y4)>4,CONCATENATE(LEFT(Y4,4)+1&"-"&IF(RIGHT(Y4, 2)<"09", "0","")&IF(RIGHT(Y4, 2)="99", "00", RIGHT(Y4,2)+1)),VALUE(Y4+1)))) -> 2028-29 | AA4: =IF(AA$11<>"", IF(INT($G$5+SUM($H$11:Z$11))=$G$5+SUM($H$11:Z$11), VALUE(LEFT(AA$10, 4)), CONCATENATE(LEFT(AA$10,4)&"-"&IF(MID(AA$10, 3, 2)<"09", "0","")&IF(MID(AA$10, 3, 2)="99", "00", MID(AA$10, 3, 2)+1))), IF(AND(AA$5<>INT(AA$5), COUNTA($H$4:Z$4)=ROUNDUP(AA$5, 0)), IF($G$5+SUM($11:$11)=INT($G$5+SUM($11:$11)), VALUE(CONCATENATE(IF(RIGHT(Z$4, 2)="99", LEFT(Z$4, 2)+1, LEFT(Z$4, 2))&RIGHT(Z$4, 2))), CONCATENATE(LEFT(Z$4, 2)&RIGHT(Z$4, 2)&"-"&IF(RIGHT(Z$4, 2)<"09", "0", "")&IF(RIGHT(Z$4, 2)="99", "00", RIGHT(Z$4, 2)+1))), IF(LEN(Z4)>4,CONCATENATE(LEFT(Z4,4)+1&"-"&IF(RIGHT(Z4, 2)<"09", "0","")&IF(RIGHT(Z4, 2)="99", "00", RIGHT(Z4,2)+1)),VALUE(Z4+1)))) -> 2029-30 | AB4: =IF(AB$11<>"", IF(INT($G$5+SUM($H$11:AA$11))=$G$5+SUM($H$11:AA$11), VALUE(LEFT(AB$10, 4)), CONCATENATE(LEFT(AB$10,4)&"-"&IF(MID(AB$10, 3, 2)<"09", "0","")&IF(MID(AB$10, 3, 2)="99", "00", MID(AB$10, 3, 2)+1))), IF(AND(AB$5<>INT(AB$5), COUNTA($H$4:AA$4)=ROUNDUP(AB$5, 0)), IF($G$5+SUM($11:$11)=INT($G$5+SUM($11:$11)), VALUE(CONCATENATE(IF(RIGHT(AA$4, 2)="99", LEFT(AA$4, 2)+1, LEFT(AA$4, 2))&RIGHT(AA$4, 2))), CONCATENATE(LEFT(AA$4, 2)&RIGHT(AA$4, 2)&"-"&IF(RIGHT(AA$4, 2)<"09", "0", "")&IF(RIGHT(AA$4, 2)="99", "00", RIGHT(AA$4, 2)+1))), IF(LEN(AA4)>4,CONCATENATE(LEFT(AA4,4)+1&"-"&IF(RIGHT(AA4, 2)<"09", "0","")&IF(RIGHT(AA4, 2)="99", "00", RIGHT(AA4,2)+1)),VALUE(AA4+1)))) -> 2030-31 | AC4: =IF(AC$11<>"", IF(INT($G$5+SUM($H$11:AB$11))=$G$5+SUM($H$11:AB$11), VALUE(LEFT(AC$10, 4)), CONCATENATE(LEFT(AC$10,4)&"-"&IF(MID(AC$10, 3, 2)<"09", "0","")&IF(MID(AC$10, 3, 2)="99", "00", MID(AC$10, 3, 2)+1))), IF(AND(AC$5<>INT(AC$5), COUNTA($H$4:AB$4)=ROUNDUP(AC$5, 0)), IF($G$5+SUM($11:$11)=INT($G$5+SUM($11:$11)), VALUE(CONCATENATE(IF(RIGHT(AB$4, 2)="99", LEFT(AB$4, 2)+1, LEFT(AB$4, 2))&RIGHT(AB$4, 2))), CONCATENATE(LEFT(AB$4, 2)&RIGHT(AB$4, 2)&"-"&IF(RIGHT(AB$4, 2)<"09", "0", "")&IF(RIGHT(AB$4, 2)="99", "00", RIGHT(AB$4, 2)+1))), IF(LEN(AB4)>4,CONCATENATE(LEFT(AB4,4)+1&"-"&IF(RIGHT(AB4, 2)<"09", "0","")&IF(RIGHT(AB4, 2)="99", "00", RIGHT(AB4,2)+1)),VALUE(AB4+1)))) -> 2031-32 | AD4: =IF(AD$11<>"", IF(INT($G$5+SUM($H$11:AC$11))=$G$5+SUM($H$11:AC$11), VALUE(LEFT(AD$10, 4)), CONCATENATE(LEFT(AD$10,4)&"-"&IF(MID(AD$10, 3, 2)<"09", "0","")&IF(MID(AD$10, 3, 2)="99", "00", MID(AD$10, 3, 2)+1))), IF(AND(AD$5<>INT(AD$5), COUNTA($H$4:AC$4)=ROUNDUP(AD$5, 0)), IF($G$5+SUM($11:$11)=INT($G$5+SUM($11:$11)), VALUE(CONCATENATE(IF(RIGHT(AC$4, 2)="99", LEFT(AC$4, 2)+1, LEFT(AC$4, 2))&RIGHT(AC$4, 2))), CONCATENATE(LEFT(AC$4, 2)&RIGHT(AC$4, 2)&"-"&IF(RIGHT(AC$4, 2)<"09", "0", "")&IF(RIGHT(AC$4, 2)="99", "00", RIGHT(AC$4, 2)+1))), IF(LEN(AC4)>4,CONCATENATE(LEFT(AC4,4)+1&"-"&IF(RIGHT(AC4, 2)<"09", "0","")&IF(RIGHT(AC4, 2)="99", "00", RIGHT(AC4,2)+1)),VALUE(AC4+1)))) -> 2032-33 | AE4: =IF(AE$11<>"", IF(INT($G$5+SUM($H$11:AD$11))=$G$5+SUM($H$11:AD$11), VALUE(LEFT(AE$10, 4)), CONCATENATE(LEFT(AE$10,4)&"-"&IF(MID(AE$10, 3, 2)<"09", "0","")&IF(MID(AE$10, 3, 2)="99", "00", MID(AE$10, 3, 2)+1))), IF(AND(AE$5<>INT(AE$5), COUNTA($H$4:AD$4)=ROUNDUP(AE$5, 0)), IF($G$5+SUM($11:$11)=INT($G$5+SUM($11:$11)), VALUE(CONCATENATE(IF(RIGHT(AD$4, 2)="99", LEFT(AD$4, 2)+1, LEFT(AD$4, 2))&RIGHT(AD$4, 2))), CONCATENATE(LEFT(AD$4, 2)&RIGHT(AD$4, 2)&"-"&IF(RIGHT(AD$4, 2)<"09", "0", "")&IF(RIGHT(AD$4, 2)="99", "00", RIGHT(AD$4, 2)+1))), IF(LEN(AD4)>4,CONCATENATE(LEFT(AD4,4)+1&"-"&IF(RIGHT(AD4, 2)<"09", "0","")&IF(RIGHT(AD4, 2)="99", "00", RIGHT(AD4,2)+1)),VALUE(AD4+1)))) -> 2033-34 | AF4: =IF(AF$11<>"", IF(INT($G$5+SUM($H$11:AE$11))=$G$5+SUM($H$11:AE$11), VALUE(LEFT(AF$10, 4)), CONCATENATE(LEFT(AF$10,4)&"-"&IF(MID(AF$10, 3, 2)<"09", "0","")&IF(MID(AF$10, 3, 2)="99", "00", MID(AF$10, 3, 2)+1))), IF(AND(AF$5<>INT(AF$5), COUNTA($H$4:AE$4)=ROUNDUP(AF$5, 0)), IF($G$5+SUM($11:$11)=INT($G$5+SUM($11:$11)), VALUE(CONCATENATE(IF(RIGHT(AE$4, 2)="99", LEFT(AE$4, 2)+1, LEFT(AE$4, 2))&RIGHT(AE$4, 2))), CONCATENATE(LEFT(AE$4, 2)&RIGHT(AE$4, 2)&"-"&IF(RIGHT(AE$4, 2)<"09", "0", "")&IF(RIGHT(AE$4, 2)="99", "00", RIGHT(AE$4, 2)+1))), IF(LEN(AE4)>4,CONCATENATE(LEFT(AE4,4)+1&"-"&IF(RIGHT(AE4, 2)<"09", "0","")&IF(RIGHT(AE4, 2)="99", "00", RIGHT(AE4,2)+1)),VALUE(AE4+1)))) -> 2034-35 | AG4: =IF(AG$11<>"", IF(INT($G$5+SUM($H$11:AF$11))=$G$5+SUM($H$11:AF$11), VALUE(LEFT(AG$10, 4)), CONCATENATE(LEFT(AG$10,4)&"-"&IF(MID(AG$10, 3, 2)<"09", "0","")&IF(MID(AG$10, 3, 2)="99", "00", MID(AG$10, 3, 2)+1))), IF(AND(AG$5<>INT(AG$5), COUNTA($H$4:AF$4)=ROUNDUP(AG$5, 0)), IF($G$5+SUM($11:$11)=INT($G$5+SUM($11:$11)), VALUE(CONCATENATE(IF(RIGHT(AF$4, 2)="99", LEFT(AF$4, 2)+1, LEFT(AF$4, 2))&RIGHT(AF$4, 2))), CONCATENATE(LEFT(AF$4, 2)&RIGHT(AF$4, 2)&"-"&IF(RIGHT(AF$4, 2)<"09", "0", "")&IF(RIGHT(AF$4, 2)="99", "00", RIGHT(AF$4, 2)+1))), IF(LEN(AF4)>4,CONCATENATE(LEFT(AF4,4)+1&"-"&IF(RIGHT(AF4, 2)<"09", "0","")&IF(RIGHT(AF4, 2)="99", "00", RIGHT(AF4,2)+1)),VALUE(AF4+1)))) -> 2035-36 | AH4: =IF(AH$11<>"", IF(INT($G$5+SUM($H$11:AG$11))=$G$5+SUM($H$11:AG$11), VALUE(LEFT(AH$10, 4)), CONCATENATE(LEFT(AH$10,4)&"-"&IF(MID(AH$10, 3, 2)<"09", "0","")&IF(MID(AH$10, 3, 2)="99", "00", MID(AH$10, 3, 2)+1))), IF(AND(AH$5<>INT(AH$5), COUNTA($H$4:AG$4)=ROUNDUP(AH$5, 0)), IF($G$5+SUM($11:$11)=INT($G$5+SUM($11:$11)), VALUE(CONCATENATE(IF(RIGHT(AG$4, 2)="99", LEFT(AG$4, 2)+1, LEFT(AG$4, 2))&RIGHT(AG$4, 2))), CONCATENATE(LEFT(AG$4, 2)&RIGHT(AG$4, 2)&"-"&IF(RIGHT(AG$4, 2)<"09", "0", "")&IF(RIGHT(AG$4, 2)="99", "00", RIGHT(AG$4, 2)+1))), IF(LEN(AG4)>4,CONCATENATE(LEFT(AG4,4)+1&"-"&IF(RIGHT(AG4, 2)<"09", "0","")&IF(RIGHT(AG4, 2)="99", "00", RIGHT(AG4,2)+1)),VALUE(AG4+1)))) -> 2036-37 | AI4: =IF(AI$11<>"", IF(INT($G$5+SUM($H$11:AH$11))=$G$5+SUM($H$11:AH$11), VALUE(LEFT(AI$10, 4)), CONCATENATE(LEFT(AI$10,4)&"-"&IF(MID(AI$10, 3, 2)<"09", "0","")&IF(MID(AI$10, 3, 2)="99", "00", MID(AI$10, 3, 2)+1))), IF(AND(AI$5<>INT(AI$5), COUNTA($H$4:AH$4)=ROUNDUP(AI$5, 0)), IF($G$5+SUM($11:$11)=INT($G$5+SUM($11:$11)), VALUE(CONCATENATE(IF(RIGHT(AH$4, 2)="99", LEFT(AH$4, 2)+1, LEFT(AH$4, 2))&RIGHT(AH$4, 2))), CONCATENATE(LEFT(AH$4, 2)&RIGHT(AH$4, 2)&"-"&IF(RIGHT(AH$4, 2)<"09", "0", "")&IF(RIGHT(AH$4, 2)="99", "00", RIGHT(AH$4, 2)+1))), IF(LEN(AH4)>4,CONCATENATE(LEFT(AH4,4)+1&"-"&IF(RIGHT(AH4, 2)<"09", "0","")&IF(RIGHT(AH4, 2)="99", "00", RIGHT(AH4,2)+1)),VALUE(AH4+1)))) -> 2037-38 | AJ4: =IF(AJ$11<>"", IF(INT($G$5+SUM($H$11:AI$11))=$G$5+SUM($H$11:AI$11), VALUE(LEFT(AJ$10, 4)), CONCATENATE(LEFT(AJ$10,4)&"-"&IF(MID(AJ$10, 3, 2)<"09", "0","")&IF(MID(AJ$10, 3, 2)="99", "00", MID(AJ$10, 3, 2)+1))), IF(AND(AJ$5<>INT(AJ$5), COUNTA($H$4:AI$4)=ROUNDUP(AJ$5, 0)), IF($G$5+SUM($11:$11)=INT($G$5+SUM($11:$11)), VALUE(CONCATENATE(IF(RIGHT(AI$4, 2)="99", LEFT(AI$4, 2)+1, LEFT(AI$4, 2))&RIGHT(AI$4, 2))), CONCATENATE(LEFT(AI$4, 2)&RIGHT(AI$4, 2)&"-"&IF(RIGHT(AI$4, 2)<"09", "0", "")&IF(RIGHT(AI$4, 2)="99", "00", RIGHT(AI$4, 2)+1))), IF(LEN(AI4)>4,CONCATENATE(LEFT(AI4,4)+1&"-"&IF(RIGHT(AI4, 2)<"09", "0","")&IF(RIGHT(AI4, 2)="99", "00", RIGHT(AI4,2)+1)),VALUE(AI4+1)))) -> 2038-39 | AK4: =IF(AK$11<>"", IF(INT($G$5+SUM($H$11:AJ$11))=$G$5+SUM($H$11:AJ$11), VALUE(LEFT(AK$10, 4)), CONCATENATE(LEFT(AK$10,4)&"-"&IF(MID(AK$10, 3, 2)<"09", "0","")&IF(MID(AK$10, 3, 2)="99", "00", MID(AK$10, 3, 2)+1))), IF(AND(AK$5<>INT(AK$5), COUNTA($H$4:AJ$4)=ROUNDUP(AK$5, 0)), IF($G$5+SUM($11:$11)=INT($G$5+SUM($11:$11)), VALUE(CONCATENATE(IF(RIGHT(AJ$4, 2)="99", LEFT(AJ$4, 2)+1, LEFT(AJ$4, 2))&RIGHT(AJ$4, 2))), CONCATENATE(LEFT(AJ$4, 2)&RIGHT(AJ$4, 2)&"-"&IF(RIGHT(AJ$4, 2)<"09", "0", "")&IF(RIGHT(AJ$4, 2)="99", "00", RIGHT(AJ$4, 2)+1))), IF(LEN(AJ4)>4,CONCATENATE(LEFT(AJ4,4)+1&"-"&IF(RIGHT(AJ4, 2)<"09", "0","")&IF(RIGHT(AJ4, 2)="99", "00", RIGHT(AJ4,2)+1)),VALUE(AJ4+1)))) -> 2039-40 | AL4: =IF(AL$11<>"", IF(INT($G$5+SUM($H$11:AK$11))=$G$5+SUM($H$11:AK$11), VALUE(LEFT(AL$10, 4)), CONCATENATE(LEFT(AL$10,4)&"-"&IF(MID(AL$10, 3, 2)<"09", "0","")&IF(MID(AL$10, 3, 2)="99", "00", MID(AL$10, 3, 2)+1))), IF(AND(AL$5<>INT(AL$5), COUNTA($H$4:AK$4)=ROUNDUP(AL$5, 0)), IF($G$5+SUM($11:$11)=INT($G$5+SUM($11:$11)), VALUE(CONCATENATE(IF(RIGHT(AK$4, 2)="99", LEFT(AK$4, 2)+1, LEFT(AK$4, 2))&RIGHT(AK$4, 2))), CONCATENATE(LEFT(AK$4, 2)&RIGHT(AK$4, 2)&"-"&IF(RIGHT(AK$4, 2)<"09", "0", "")&IF(RIGHT(AK$4, 2)="99", "00", RIGHT(AK$4, 2)+1))), IF(LEN(AK4)>4,CONCATENATE(LEFT(AK4,4)+1&"-"&IF(RIGHT(AK4, 2)<"09", "0","")&IF(RIGHT(AK4, 2)="99", "00", RIGHT(AK4,2)+1)),VALUE(AK4+1)))) -> 2040-41 | AM4: =IF(AM$11<>"", IF(INT($G$5+SUM($H$11:AL$11))=$G$5+SUM($H$11:AL$11), VALUE(LEFT(AM$10, 4)), CONCATENATE(LEFT(AM$10,4)&"-"&IF(MID(AM$10, 3, 2)<"09", "0","")&IF(MID(AM$10, 3, 2)="99", "00", MID(AM$10, 3, 2)+1))), IF(AND(AM$5<>INT(AM$5), COUNTA($H$4:AL$4)=ROUNDUP(AM$5, 0)), IF($G$5+SUM($11:$11)=INT($G$5+SUM($11:$11)), VALUE(CONCATENATE(IF(RIGHT(AL$4, 2)="99", LEFT(AL$4, 2)+1, LEFT(AL$4, 2))&RIGHT(AL$4, 2))), CONCATENATE(LEFT(AL$4, 2)&RIGHT(AL$4, 2)&"-"&IF(RIGHT(AL$4, 2)<"09", "0", "")&IF(RIGHT(AL$4, 2)="99", "00", RIGHT(AL$4, 2)+1))), IF(LEN(AL4)>4,CONCATENATE(LEFT(AL4,4)+1&"-"&IF(RIGHT(AL4, 2)<"09", "0","")&IF(RIGHT(AL4, 2)="99", "00", RIGHT(AL4,2)+1)),VALUE(AL4+1)))) -> 2041-42 | AN4: =IF(AN$11<>"", IF(INT($G$5+SUM($H$11:AM$11))=$G$5+SUM($H$11:AM$11), VALUE(LEFT(AN$10, 4)), CONCATENATE(LEFT(AN$10,4)&"-"&IF(MID(AN$10, 3, 2)<"09", "0","")&IF(MID(AN$10, 3, 2)="99", "00", MID(AN$10, 3, 2)+1))), IF(AND(AN$5<>INT(AN$5), COUNTA($H$4:AM$4)=ROUNDUP(AN$5, 0)), IF($G$5+SUM($11:$11)=INT($G$5+SUM($11:$11)), VALUE(CONCATENATE(IF(RIGHT(AM$4, 2)="99", LEFT(AM$4, 2)+1, LEFT(AM$4, 2))&RIGHT(AM$4, 2))), CONCATENATE(LEFT(AM$4, 2)&RIGHT(AM$4, 2)&"-"&IF(RIGHT(AM$4, 2)<"09", "0", "")&IF(RIGHT(AM$4, 2)="99", "00", RIGHT(AM$4, 2)+1))), IF(LEN(AM4)>4,CONCATENATE(LEFT(AM4,4)+1&"-"&IF(RIGHT(AM4, 2)<"09", "0","")&IF(RIGHT(AM4, 2)="99", "00", RIGHT(AM4,2)+1)),VALUE(AM4+1)))) -> 2042-43 | AO4: =IF(AO$11<>"", IF(INT($G$5+SUM($H$11:AN$11))=$G$5+SUM($H$11:AN$11), VALUE(LEFT(AO$10, 4)), CONCATENATE(LEFT(AO$10,4)&"-"&IF(MID(AO$10, 3, 2)<"09", "0","")&IF(MID(AO$10, 3, 2)="99", "00", MID(AO$10, 3, 2)+1))), IF(AND(AO$5<>INT(AO$5), COUNTA($H$4:AN$4)=ROUNDUP(AO$5, 0)), IF($G$5+SUM($11:$11)=INT($G$5+SUM($11:$11)), VALUE(CONCATENATE(IF(RIGHT(AN$4, 2)="99", LEFT(AN$4, 2)+1, LEFT(AN$4, 2))&RIGHT(AN$4, 2))), CONCATENATE(LEFT(AN$4, 2)&RIGHT(AN$4, 2)&"-"&IF(RIGHT(AN$4, 2)<"09", "0", "")&IF(RIGHT(AN$4, 2)="99", "00", RIGHT(AN$4, 2)+1))), IF(LEN(AN4)>4,CONCATENATE(LEFT(AN4,4)+1&"-"&IF(RIGHT(AN4, 2)<"09", "0","")&IF(RIGHT(AN4, 2)="99", "00", RIGHT(AN4,2)+1)),VALUE(AN4+1)))) -> 2043-44 | AP4: =IF(AP$11<>"", IF(INT($G$5+SUM($H$11:AO$11))=$G$5+SUM($H$11:AO$11), VALUE(LEFT(AP$10, 4)), CONCATENATE(LEFT(AP$10,4)&"-"&IF(MID(AP$10, 3, 2)<"09", "0","")&IF(MID(AP$10, 3, 2)="99", "00", MID(AP$10, 3, 2)+1))), IF(AND(AP$5<>INT(AP$5), COUNTA($H$4:AO$4)=ROUNDUP(AP$5, 0)), IF($G$5+SUM($11:$11)=INT($G$5+SUM($11:$11)), VALUE(CONCATENATE(IF(RIGHT(AO$4, 2)="99", LEFT(AO$4, 2)+1, LEFT(AO$4, 2))&RIGHT(AO$4, 2))), CONCATENATE(LEFT(AO$4, 2)&RIGHT(AO$4, 2)&"-"&IF(RIGHT(AO$4, 2)<"09", "0", "")&IF(RIGHT(AO$4, 2)="99", "00", RIGHT(AO$4, 2)+1))), IF(LEN(AO4)>4,CONCATENATE(LEFT(AO4,4)+1&"-"&IF(RIGHT(AO4, 2)<"09", "0","")&IF(RIGHT(AO4, 2)="99", "00", RIGHT(AO4,2)+1)),VALUE(AO4+1)))) -> 2044-45 | AQ4: =IF(AQ$11<>"", IF(INT($G$5+SUM($H$11:AP$11))=$G$5+SUM($H$11:AP$11), VALUE(LEFT(AQ$10, 4)), CONCATENATE(LEFT(AQ$10,4)&"-"&IF(MID(AQ$10, 3, 2)<"09", "0","")&IF(MID(AQ$10, 3, 2)="99", "00", MID(AQ$10, 3, 2)+1))), IF(AND(AQ$5<>INT(AQ$5), COUNTA($H$4:AP$4)=ROUNDUP(AQ$5, 0)), IF($G$5+SUM($11:$11)=INT($G$5+SUM($11:$11)), VALUE(CONCATENATE(IF(RIGHT(AP$4, 2)="99", LEFT(AP$4, 2)+1, LEFT(AP$4, 2))&RIGHT(AP$4, 2))), CONCATENATE(LEFT(AP$4, 2)&RIGHT(AP$4, 2)&"-"&IF(RIGHT(AP$4, 2)<"09", "0", "")&IF(RIGHT(AP$4, 2)="99", "00", RIGHT(AP$4, 2)+1))), IF(LEN(AP4)>4,CONCATENATE(LEFT(AP4,4)+1&"-"&IF(RIGHT(AP4, 2)<"09", "0","")&IF(RIGHT(AP4, 2)="99", "00", RIGHT(AP4,2)+1)),VALUE(AP4+1)))) -> 2045-46 | AR4: =IF(AR$11<>"", IF(INT($G$5+SUM($H$11:AQ$11))=$G$5+SUM($H$11:AQ$11), VALUE(LEFT(AR$10, 4)), CONCATENATE(LEFT(AR$10,4)&"-"&IF(MID(AR$10, 3, 2)<"09", "0","")&IF(MID(AR$10, 3, 2)="99", "00", MID(AR$10, 3, 2)+1))), IF(AND(AR$5<>INT(AR$5), COUNTA($H$4:AQ$4)=ROUNDUP(AR$5, 0)), IF($G$5+SUM($11:$11)=INT($G$5+SUM($11:$11)), VALUE(CONCATENATE(IF(RIGHT(AQ$4, 2)="99", LEFT(AQ$4, 2)+1, LEFT(AQ$4, 2))&RIGHT(AQ$4, 2))), CONCATENATE(LEFT(AQ$4, 2)&RIGHT(AQ$4, 2)&"-"&IF(RIGHT(AQ$4, 2)<"09", "0", "")&IF(RIGHT(AQ$4, 2)="99", "00", RIGHT(AQ$4, 2)+1))), IF(LEN(AQ4)>4,CONCATENATE(LEFT(AQ4,4)+1&"-"&IF(RIGHT(AQ4, 2)<"09", "0","")&IF(RIGHT(AQ4, 2)="99", "00", RIGHT(AQ4,2)+1)),VALUE(AQ4+1)))) -> 2046-47 | AS4: =IF(AS$11<>"", IF(INT($G$5+SUM($H$11:AR$11))=$G$5+SUM($H$11:AR$11), VALUE(LEFT(AS$10, 4)), CONCATENATE(LEFT(AS$10,4)&"-"&IF(MID(AS$10, 3, 2)<"09", "0","")&IF(MID(AS$10, 3, 2)="99", "00", MID(AS$10, 3, 2)+1))), IF(AND(AS$5<>INT(AS$5), COUNTA($H$4:AR$4)=ROUNDUP(AS$5, 0)), IF($G$5+SUM($11:$11)=INT($G$5+SUM($11:$11)), VALUE(CONCATENATE(IF(RIGHT(AR$4, 2)="99", LEFT(AR$4, 2)+1, LEFT(AR$4, 2))&RIGHT(AR$4, 2))), CONCATENATE(LEFT(AR$4, 2)&RIGHT(AR$4, 2)&"-"&IF(RIGHT(AR$4, 2)<"09", "0", "")&IF(RIGHT(AR$4, 2)="99", "00", RIGHT(AR$4, 2)+1))), IF(LEN(AR4)>4,CONCATENATE(LEFT(AR4,4)+1&"-"&IF(RIGHT(AR4, 2)<"09", "0","")&IF(RIGHT(AR4, 2)="99", "00", RIGHT(AR4,2)+1)),VALUE(AR4+1)))) -> 2047-48 | AT4: =IF(AT$11<>"", IF(INT($G$5+SUM($H$11:AS$11))=$G$5+SUM($H$11:AS$11), VALUE(LEFT(AT$10, 4)), CONCATENATE(LEFT(AT$10,4)&"-"&IF(MID(AT$10, 3, 2)<"09", "0","")&IF(MID(AT$10, 3, 2)="99", "00", MID(AT$10, 3, 2)+1))), IF(AND(AT$5<>INT(AT$5), COUNTA($H$4:AS$4)=ROUNDUP(AT$5, 0)), IF($G$5+SUM($11:$11)=INT($G$5+SUM($11:$11)), VALUE(CONCATENATE(IF(RIGHT(AS$4, 2)="99", LEFT(AS$4, 2)+1, LEFT(AS$4, 2))&RIGHT(AS$4, 2))), CONCATENATE(LEFT(AS$4, 2)&RIGHT(AS$4, 2)&"-"&IF(RIGHT(AS$4, 2)<"09", "0", "")&IF(RIGHT(AS$4, 2)="99", "00", RIGHT(AS$4, 2)+1))), IF(LEN(AS4)>4,CONCATENATE(LEFT(AS4,4)+1&"-"&IF(RIGHT(AS4, 2)<"09", "0","")&IF(RIGHT(AS4, 2)="99", "00", RIGHT(AS4,2)+1)),VALUE(AS4+1)))) -> 2048-49 | AU4: =IF(AU$11<>"", IF(INT($G$5+SUM($H$11:AT$11))=$G$5+SUM($H$11:AT$11), VALUE(LEFT(AU$10, 4)), CONCATENATE(LEFT(AU$10,4)&"-"&IF(MID(AU$10, 3, 2)<"09", "0","")&IF(MID(AU$10, 3, 2)="99", "00", MID(AU$10, 3, 2)+1))), IF(AND(AU$5<>INT(AU$5), COUNTA($H$4:AT$4)=ROUNDUP(AU$5, 0)), IF($G$5+SUM($11:$11)=INT($G$5+SUM($11:$11)), VALUE(CONCATENATE(IF(RIGHT(AT$4, 2)="99", LEFT(AT$4, 2)+1, LEFT(AT$4, 2))&RIGHT(AT$4, 2))), CONCATENATE(LEFT(AT$4, 2)&RIGHT(AT$4, 2)&"-"&IF(RIGHT(AT$4, 2)<"09", "0", "")&IF(RIGHT(AT$4, 2)="99", "00", RIGHT(AT$4, 2)+1))), IF(LEN(AT4)>4,CONCATENATE(LEFT(AT4,4)+1&"-"&IF(RIGHT(AT4, 2)<"09", "0","")&IF(RIGHT(AT4, 2)="99", "00", RIGHT(AT4,2)+1)),VALUE(AT4+1)))) -> 2049-50 | AV4: =IF(AV$11<>"", IF(INT($G$5+SUM($H$11:AU$11))=$G$5+SUM($H$11:AU$11), VALUE(LEFT(AV$10, 4)), CONCATENATE(LEFT(AV$10,4)&"-"&IF(MID(AV$10, 3, 2)<"09", "0","")&IF(MID(AV$10, 3, 2)="99", "00", MID(AV$10, 3, 2)+1))), IF(AND(AV$5<>INT(AV$5), COUNTA($H$4:AU$4)=ROUNDUP(AV$5, 0)), IF($G$5+SUM($11:$11)=INT($G$5+SUM($11:$11)), VALUE(CONCATENATE(IF(RIGHT(AU$4, 2)="99", LEFT(AU$4, 2)+1, LEFT(AU$4, 2))&RIGHT(AU$4, 2))), CONCATENATE(LEFT(AU$4, 2)&RIGHT(AU$4, 2)&"-"&IF(RIGHT(AU$4, 2)<"09", "0", "")&IF(RIGHT(AU$4, 2)="99", "00", RIGHT(AU$4, 2)+1))), IF(LEN(AU4)>4,CONCATENATE(LEFT(AU4,4)+1&"-"&IF(RIGHT(AU4, 2)<"09", "0","")&IF(RIGHT(AU4, 2)="99", "00", RIGHT(AU4,2)+1)),VALUE(AU4+1)))) -> 2050-51 | AW4: =IF(AW$11<>"", IF(INT($G$5+SUM($H$11:AV$11))=$G$5+SUM($H$11:AV$11), VALUE(LEFT(AW$10, 4)), CONCATENATE(LEFT(AW$10,4)&"-"&IF(MID(AW$10, 3, 2)<"09", "0","")&IF(MID(AW$10, 3, 2)="99", "00", MID(AW$10, 3, 2)+1))), IF(AND(AW$5<>INT(AW$5), COUNTA($H$4:AV$4)=ROUNDUP(AW$5, 0)), IF($G$5+SUM($11:$11)=INT($G$5+SUM($11:$11)), VALUE(CONCATENATE(IF(RIGHT(AV$4, 2)="99", LEFT(AV$4, 2)+1, LEFT(AV$4, 2))&RIGHT(AV$4, 2))), CONCATENATE(LEFT(AV$4, 2)&RIGHT(AV$4, 2)&"-"&IF(RIGHT(AV$4, 2)<"09", "0", "")&IF(RIGHT(AV$4, 2)="99", "00", RIGHT(AV$4, 2)+1))), IF(LEN(AV4)>4,CONCATENATE(LEFT(AV4,4)+1&"-"&IF(RIGHT(AV4, 2)<"09", "0","")&IF(RIGHT(AV4, 2)="99", "00", RIGHT(AV4,2)+1)),VALUE(AV4+1)))) -> 2051-52 | AX4: =IF(AX$11<>"", IF(INT($G$5+SUM($H$11:AW$11))=$G$5+SUM($H$11:AW$11), VALUE(LEFT(AX$10, 4)), CONCATENATE(LEFT(AX$10,4)&"-"&IF(MID(AX$10, 3, 2)<"09", "0","")&IF(MID(AX$10, 3, 2)="99", "00", MID(AX$10, 3, 2)+1))), IF(AND(AX$5<>INT(AX$5), COUNTA($H$4:AW$4)=ROUNDUP(AX$5, 0)), IF($G$5+SUM($11:$11)=INT($G$5+SUM($11:$11)), VALUE(CONCATENATE(IF(RIGHT(AW$4, 2)="99", LEFT(AW$4, 2)+1, LEFT(AW$4, 2))&RIGHT(AW$4, 2))), CONCATENATE(LEFT(AW$4, 2)&RIGHT(AW$4, 2)&"-"&IF(RIGHT(AW$4, 2)<"09", "0", "")&IF(RIGHT(AW$4, 2)="99", "00", RIGHT(AW$4, 2)+1))), IF(LEN(AW4)>4,CONCATENATE(LEFT(AW4,4)+1&"-"&IF(RIGHT(AW4, 2)<"09", "0","")&IF(RIGHT(AW4, 2)="99", "00", RIGHT(AW4,2)+1)),VALUE(AW4+1)))) -> 2052-53 | AY4: =IF(AY$11<>"", IF(INT($G$5+SUM($H$11:AX$11))=$G$5+SUM($H$11:AX$11), VALUE(LEFT(AY$10, 4)), CONCATENATE(LEFT(AY$10,4)&"-"&IF(MID(AY$10, 3, 2)<"09", "0","")&IF(MID(AY$10, 3, 2)="99", "00", MID(AY$10, 3, 2)+1))), IF(AND(AY$5<>INT(AY$5), COUNTA($H$4:AX$4)=ROUNDUP(AY$5, 0)), IF($G$5+SUM($11:$11)=INT($G$5+SUM($11:$11)), VALUE(CONCATENATE(IF(RIGHT(AX$4, 2)="99", LEFT(AX$4, 2)+1, LEFT(AX$4, 2))&RIGHT(AX$4, 2))), CONCATENATE(LEFT(AX$4, 2)&RIGHT(AX$4, 2)&"-"&IF(RIGHT(AX$4, 2)<"09", "0", "")&IF(RIGHT(AX$4, 2)="99", "00", RIGHT(AX$4, 2)+1))), IF(LEN(AX4)>4,CONCATENATE(LEFT(AX4,4)+1&"-"&IF(RIGHT(AX4, 2)<"09", "0","")&IF(RIGHT(AX4, 2)="99", "00", RIGHT(AX4,2)+1)),VALUE(AX4+1)))) -> 2053-54 | AZ4: =IF(AZ$11<>"", IF(INT($G$5+SUM($H$11:AY$11))=$G$5+SUM($H$11:AY$11), VALUE(LEFT(AZ$10, 4)), CONCATENATE(LEFT(AZ$10,4)&"-"&IF(MID(AZ$10, 3, 2)<"09", "0","")&IF(MID(AZ$10, 3, 2)="99", "00", MID(AZ$10, 3, 2)+1))), IF(AND(AZ$5<>INT(AZ$5), COUNTA($H$4:AY$4)=ROUNDUP(AZ$5, 0)), IF($G$5+SUM($11:$11)=INT($G$5+SUM($11:$11)), VALUE(CONCATENATE(IF(RIGHT(AY$4, 2)="99", LEFT(AY$4, 2)+1, LEFT(AY$4, 2))&RIGHT(AY$4, 2))), CONCATENATE(LEFT(AY$4, 2)&RIGHT(AY$4, 2)&"-"&IF(RIGHT(AY$4, 2)<"09", "0", "")&IF(RIGHT(AY$4, 2)="99", "00", RIGHT(AY$4, 2)+1))), IF(LEN(AY4)>4,CONCATENATE(LEFT(AY4,4)+1&"-"&IF(RIGHT(AY4, 2)<"09", "0","")&IF(RIGHT(AY4, 2)="99", "00", RIGHT(AY4,2)+1)),VALUE(AY4+1)))) -> 2054-55 | BA4: =IF(BA$11<>"", IF(INT($G$5+SUM($H$11:AZ$11))=$G$5+SUM($H$11:AZ$11), VALUE(LEFT(BA$10, 4)), CONCATENATE(LEFT(BA$10,4)&"-"&IF(MID(BA$10, 3, 2)<"09", "0","")&IF(MID(BA$10, 3, 2)="99", "00", MID(BA$10, 3, 2)+1))), IF(AND(BA$5<>INT(BA$5), COUNTA($H$4:AZ$4)=ROUNDUP(BA$5, 0)), IF($G$5+SUM($11:$11)=INT($G$5+SUM($11:$11)), VALUE(CONCATENATE(IF(RIGHT(AZ$4, 2)="99", LEFT(AZ$4, 2)+1, LEFT(AZ$4, 2))&RIGHT(AZ$4, 2))), CONCATENATE(LEFT(AZ$4, 2)&RIGHT(AZ$4, 2)&"-"&IF(RIGHT(AZ$4, 2)<"09", "0", "")&IF(RIGHT(AZ$4, 2)="99", "00", RIGHT(AZ$4, 2)+1))), IF(LEN(AZ4)>4,CONCATENATE(LEFT(AZ4,4)+1&"-"&IF(RIGHT(AZ4, 2)<"09", "0","")&IF(RIGHT(AZ4, 2)="99", "00", RIGHT(AZ4,2)+1)),VALUE(AZ4+1)))) -> 2055-56 | BB4: =IF(BB$11<>"", IF(INT($G$5+SUM($H$11:BA$11))=$G$5+SUM($H$11:BA$11), VALUE(LEFT(BB$10, 4)), CONCATENATE(LEFT(BB$10,4)&"-"&IF(MID(BB$10, 3, 2)<"09", "0","")&IF(MID(BB$10, 3, 2)="99", "00", MID(BB$10, 3, 2)+1))), IF(AND(BB$5<>INT(BB$5), COUNTA($H$4:BA$4)=ROUNDUP(BB$5, 0)), IF($G$5+SUM($11:$11)=INT($G$5+SUM($11:$11)), VALUE(CONCATENATE(IF(RIGHT(BA$4, 2)="99", LEFT(BA$4, 2)+1, LEFT(BA$4, 2))&RIGHT(BA$4, 2))), CONCATENATE(LEFT(BA$4, 2)&RIGHT(BA$4, 2)&"-"&IF(RIGHT(BA$4, 2)<"09", "0", "")&IF(RIGHT(BA$4, 2)="99", "00", RIGHT(BA$4, 2)+1))), IF(LEN(BA4)>4,CONCATENATE(LEFT(BA4,4)+1&"-"&IF(RIGHT(BA4, 2)<"09", "0","")&IF(RIGHT(BA4, 2)="99", "00", RIGHT(BA4,2)+1)),VALUE(BA4+1)))) -> 2056-57 | BC4: =IF(BC$11<>"", IF(INT($G$5+SUM($H$11:BB$11))=$G$5+SUM($H$11:BB$11), VALUE(LEFT(BC$10, 4)), CONCATENATE(LEFT(BC$10,4)&"-"&IF(MID(BC$10, 3, 2)<"09", "0","")&IF(MID(BC$10, 3, 2)="99", "00", MID(BC$10, 3, 2)+1))), IF(AND(BC$5<>INT(BC$5), COUNTA($H$4:BB$4)=ROUNDUP(BC$5, 0)), IF($G$5+SUM($11:$11)=INT($G$5+SUM($11:$11)), VALUE(CONCATENATE(IF(RIGHT(BB$4, 2)="99", LEFT(BB$4, 2)+1, LEFT(BB$4, 2))&RIGHT(BB$4, 2))), CONCATENATE(LEFT(BB$4, 2)&RIGHT(BB$4, 2)&"-"&IF(RIGHT(BB$4, 2)<"09", "0", "")&IF(RIGHT(BB$4, 2)="99", "00", RIGHT(BB$4, 2)+1))), IF(LEN(BB4)>4,CONCATENATE(LEFT(BB4,4)+1&"-"&IF(RIGHT(BB4, 2)<"09", "0","")&IF(RIGHT(BB4, 2)="99", "00", RIGHT(BB4,2)+1)),VALUE(BB4+1)))) -> 2057-58 | BD4: =IF(BD$11<>"", IF(INT($G$5+SUM($H$11:BC$11))=$G$5+SUM($H$11:BC$11), VALUE(LEFT(BD$10, 4)), CONCATENATE(LEFT(BD$10,4)&"-"&IF(MID(BD$10, 3, 2)<"09", "0","")&IF(MID(BD$10, 3, 2)="99", "00", MID(BD$10, 3, 2)+1))), IF(AND(BD$5<>INT(BD$5), COUNTA($H$4:BC$4)=ROUNDUP(BD$5, 0)), IF($G$5+SUM($11:$11)=INT($G$5+SUM($11:$11)), VALUE(CONCATENATE(IF(RIGHT(BC$4, 2)="99", LEFT(BC$4, 2)+1, LEFT(BC$4, 2))&RIGHT(BC$4, 2))), CONCATENATE(LEFT(BC$4, 2)&RIGHT(BC$4, 2)&"-"&IF(RIGHT(BC$4, 2)<"09", "0", "")&IF(RIGHT(BC$4, 2)="99", "00", RIGHT(BC$4, 2)+1))), IF(LEN(BC4)>4,CONCATENATE(LEFT(BC4,4)+1&"-"&IF(RIGHT(BC4, 2)<"09", "0","")&IF(RIGHT(BC4, 2)="99", "00", RIGHT(BC4,2)+1)),VALUE(BC4+1)))) -> 2058-59 | BE4: =IF(BE$11<>"", IF(INT($G$5+SUM($H$11:BD$11))=$G$5+SUM($H$11:BD$11), VALUE(LEFT(BE$10, 4)), CONCATENATE(LEFT(BE$10,4)&"-"&IF(MID(BE$10, 3, 2)<"09", "0","")&IF(MID(BE$10, 3, 2)="99", "00", MID(BE$10, 3, 2)+1))), IF(AND(BE$5<>INT(BE$5), COUNTA($H$4:BD$4)=ROUNDUP(BE$5, 0)), IF($G$5+SUM($11:$11)=INT($G$5+SUM($11:$11)), VALUE(CONCATENATE(IF(RIGHT(BD$4, 2)="99", LEFT(BD$4, 2)+1, LEFT(BD$4, 2))&RIGHT(BD$4, 2))), CONCATENATE(LEFT(BD$4, 2)&RIGHT(BD$4, 2)&"-"&IF(RIGHT(BD$4, 2)<"09", "0", "")&IF(RIGHT(BD$4, 2)="99", "00", RIGHT(BD$4, 2)+1))), IF(LEN(BD4)>4,CONCATENATE(LEFT(BD4,4)+1&"-"&IF(RIGHT(BD4, 2)<"09", "0","")&IF(RIGHT(BD4, 2)="99", "00", RIGHT(BD4,2)+1)),VALUE(BD4+1)))) -> 2059-60 | BF4: =IF(BF$11<>"", IF(INT($G$5+SUM($H$11:BE$11))=$G$5+SUM($H$11:BE$11), VALUE(LEFT(BF$10, 4)), CONCATENATE(LEFT(BF$10,4)&"-"&IF(MID(BF$10, 3, 2)<"09", "0","")&IF(MID(BF$10, 3, 2)="99", "00", MID(BF$10, 3, 2)+1))), IF(AND(BF$5<>INT(BF$5), COUNTA($H$4:BE$4)=ROUNDUP(BF$5, 0)), IF($G$5+SUM($11:$11)=INT($G$5+SUM($11:$11)), VALUE(CONCATENATE(IF(RIGHT(BE$4, 2)="99", LEFT(BE$4, 2)+1, LEFT(BE$4, 2))&RIGHT(BE$4, 2))), CONCATENATE(LEFT(BE$4, 2)&RIGHT(BE$4, 2)&"-"&IF(RIGHT(BE$4, 2)<"09", "0", "")&IF(RIGHT(BE$4, 2)="99", "00", RIGHT(BE$4, 2)+1))), IF(LEN(BE4)>4,CONCATENATE(LEFT(BE4,4)+1&"-"&IF(RIGHT(BE4, 2)<"09", "0","")&IF(RIGHT(BE4, 2)="99", "00", RIGHT(BE4,2)+1)),VALUE(BE4+1)))) -> 2060-61 | BG4: =IF(BG$11<>"", IF(INT($G$5+SUM($H$11:BF$11))=$G$5+SUM($H$11:BF$11), VALUE(LEFT(BG$10, 4)), CONCATENATE(LEFT(BG$10,4)&"-"&IF(MID(BG$10, 3, 2)<"09", "0","")&IF(MID(BG$10, 3, 2)="99", "00", MID(BG$10, 3, 2)+1))), IF(AND(BG$5<>INT(BG$5), COUNTA($H$4:BF$4)=ROUNDUP(BG$5, 0)), IF($G$5+SUM($11:$11)=INT($G$5+SUM($11:$11)), VALUE(CONCATENATE(IF(RIGHT(BF$4, 2)="99", LEFT(BF$4, 2)+1, LEFT(BF$4, 2))&RIGHT(BF$4, 2))), CONCATENATE(LEFT(BF$4, 2)&RIGHT(BF$4, 2)&"-"&IF(RIGHT(BF$4, 2)<"09", "0", "")&IF(RIGHT(BF$4, 2)="99", "00", RIGHT(BF$4, 2)+1))), IF(LEN(BF4)>4,CONCATENATE(LEFT(BF4,4)+1&"-"&IF(RIGHT(BF4, 2)<"09", "0","")&IF(RIGHT(BF4, 2)="99", "00", RIGHT(BF4,2)+1)),VALUE(BF4+1)))) -> 2061-62 | BH4: =IF(BH$11<>"", IF(INT($G$5+SUM($H$11:BG$11))=$G$5+SUM($H$11:BG$11), VALUE(LEFT(BH$10, 4)), CONCATENATE(LEFT(BH$10,4)&"-"&IF(MID(BH$10, 3, 2)<"09", "0","")&IF(MID(BH$10, 3, 2)="99", "00", MID(BH$10, 3, 2)+1))), IF(AND(BH$5<>INT(BH$5), COUNTA($H$4:BG$4)=ROUNDUP(BH$5, 0)), IF($G$5+SUM($11:$11)=INT($G$5+SUM($11:$11)), VALUE(CONCATENATE(IF(RIGHT(BG$4, 2)="99", LEFT(BG$4, 2)+1, LEFT(BG$4, 2))&RIGHT(BG$4, 2))), CONCATENATE(LEFT(BG$4, 2)&RIGHT(BG$4, 2)&"-"&IF(RIGHT(BG$4, 2)<"09", "0", "")&IF(RIGHT(BG$4, 2)="99", "00", RIGHT(BG$4, 2)+1))), IF(LEN(BG4)>4,CONCATENATE(LEFT(BG4,4)+1&"-"&IF(RIGHT(BG4, 2)<"09", "0","")&IF(RIGHT(BG4, 2)="99", "00", RIGHT(BG4,2)+1)),VALUE(BG4+1)))) -> 2062-63 | BI4: =IF(BI$11<>"", IF(INT($G$5+SUM($H$11:BH$11))=$G$5+SUM($H$11:BH$11), VALUE(LEFT(BI$10, 4)), CONCATENATE(LEFT(BI$10,4)&"-"&IF(MID(BI$10, 3, 2)<"09", "0","")&IF(MID(BI$10, 3, 2)="99", "00", MID(BI$10, 3, 2)+1))), IF(AND(BI$5<>INT(BI$5), COUNTA($H$4:BH$4)=ROUNDUP(BI$5, 0)), IF($G$5+SUM($11:$11)=INT($G$5+SUM($11:$11)), VALUE(CONCATENATE(IF(RIGHT(BH$4, 2)="99", LEFT(BH$4, 2)+1, LEFT(BH$4, 2))&RIGHT(BH$4, 2))), CONCATENATE(LEFT(BH$4, 2)&RIGHT(BH$4, 2)&"-"&IF(RIGHT(BH$4, 2)<"09", "0", "")&IF(RIGHT(BH$4, 2)="99", "00", RIGHT(BH$4, 2)+1))), IF(LEN(BH4)>4,CONCATENATE(LEFT(BH4,4)+1&"-"&IF(RIGHT(BH4, 2)<"09", "0","")&IF(RIGHT(BH4, 2)="99", "00", RIGHT(BH4,2)+1)),VALUE(BH4+1)))) -> 2063-64 | BJ4: =IF(BJ$11<>"", IF(INT($G$5+SUM($H$11:BI$11))=$G$5+SUM($H$11:BI$11), VALUE(LEFT(BJ$10, 4)), CONCATENATE(LEFT(BJ$10,4)&"-"&IF(MID(BJ$10, 3, 2)<"09", "0","")&IF(MID(BJ$10, 3, 2)="99", "00", MID(BJ$10, 3, 2)+1))), IF(AND(BJ$5<>INT(BJ$5), COUNTA($H$4:BI$4)=ROUNDUP(BJ$5, 0)), IF($G$5+SUM($11:$11)=INT($G$5+SUM($11:$11)), VALUE(CONCATENATE(IF(RIGHT(BI$4, 2)="99", LEFT(BI$4, 2)+1, LEFT(BI$4, 2))&RIGHT(BI$4, 2))), CONCATENATE(LEFT(BI$4, 2)&RIGHT(BI$4, 2)&"-"&IF(RIGHT(BI$4, 2)<"09", "0", "")&IF(RIGHT(BI$4, 2)="99", "00", RIGHT(BI$4, 2)+1))), IF(LEN(BI4)>4,CONCATENATE(LEFT(BI4,4)+1&"-"&IF(RIGHT(BI4, 2)<"09", "0","")&IF(RIGHT(BI4, 2)="99", "00", RIGHT(BI4,2)+1)),VALUE(BI4+1)))) -> 2064-65 | BK4: =IF(BK$11<>"", IF(INT($G$5+SUM($H$11:BJ$11))=$G$5+SUM($H$11:BJ$11), VALUE(LEFT(BK$10, 4)), CONCATENATE(LEFT(BK$10,4)&"-"&IF(MID(BK$10, 3, 2)<"09", "0","")&IF(MID(BK$10, 3, 2)="99", "00", MID(BK$10, 3, 2)+1))), IF(AND(BK$5<>INT(BK$5), COUNTA($H$4:BJ$4)=ROUNDUP(BK$5, 0)), IF($G$5+SUM($11:$11)=INT($G$5+SUM($11:$11)), VALUE(CONCATENATE(IF(RIGHT(BJ$4, 2)="99", LEFT(BJ$4, 2)+1, LEFT(BJ$4, 2))&RIGHT(BJ$4, 2))), CONCATENATE(LEFT(BJ$4, 2)&RIGHT(BJ$4, 2)&"-"&IF(RIGHT(BJ$4, 2)<"09", "0", "")&IF(RIGHT(BJ$4, 2)="99", "00", RIGHT(BJ$4, 2)+1))), IF(LEN(BJ4)>4,CONCATENATE(LEFT(BJ4,4)+1&"-"&IF(RIGHT(BJ4, 2)<"09", "0","")&IF(RIGHT(BJ4, 2)="99", "00", RIGHT(BJ4,2)+1)),VALUE(BJ4+1)))) -> 2065-66 | BL4: =IF(BL$11<>"", IF(INT($G$5+SUM($H$11:BK$11))=$G$5+SUM($H$11:BK$11), VALUE(LEFT(BL$10, 4)), CONCATENATE(LEFT(BL$10,4)&"-"&IF(MID(BL$10, 3, 2)<"09", "0","")&IF(MID(BL$10, 3, 2)="99", "00", MID(BL$10, 3, 2)+1))), IF(AND(BL$5<>INT(BL$5), COUNTA($H$4:BK$4)=ROUNDUP(BL$5, 0)), IF($G$5+SUM($11:$11)=INT($G$5+SUM($11:$11)), VALUE(CONCATENATE(IF(RIGHT(BK$4, 2)="99", LEFT(BK$4, 2)+1, LEFT(BK$4, 2))&RIGHT(BK$4, 2))), CONCATENATE(LEFT(BK$4, 2)&RIGHT(BK$4, 2)&"-"&IF(RIGHT(BK$4, 2)<"09", "0", "")&IF(RIGHT(BK$4, 2)="99", "00", RIGHT(BK$4, 2)+1))), IF(LEN(BK4)>4,CONCATENATE(LEFT(BK4,4)+1&"-"&IF(RIGHT(BK4, 2)<"09", "0","")&IF(RIGHT(BK4, 2)="99", "00", RIGHT(BK4,2)+1)),VALUE(BK4+1)))) -> 2066-67 | BM4: =IF(BM$11<>"", IF(INT($G$5+SUM($H$11:BL$11))=$G$5+SUM($H$11:BL$11), VALUE(LEFT(BM$10, 4)), CONCATENATE(LEFT(BM$10,4)&"-"&IF(MID(BM$10, 3, 2)<"09", "0","")&IF(MID(BM$10, 3, 2)="99", "00", MID(BM$10, 3, 2)+1))), IF(AND(BM$5<>INT(BM$5), COUNTA($H$4:BL$4)=ROUNDUP(BM$5, 0)), IF($G$5+SUM($11:$11)=INT($G$5+SUM($11:$11)), VALUE(CONCATENATE(IF(RIGHT(BL$4, 2)="99", LEFT(BL$4, 2)+1, LEFT(BL$4, 2))&RIGHT(BL$4, 2))), CONCATENATE(LEFT(BL$4, 2)&RIGHT(BL$4, 2)&"-"&IF(RIGHT(BL$4, 2)<"09", "0", "")&IF(RIGHT(BL$4, 2)="99", "00", RIGHT(BL$4, 2)+1))), IF(LEN(BL4)>4,CONCATENATE(LEFT(BL4,4)+1&"-"&IF(RIGHT(BL4, 2)<"09", "0","")&IF(RIGHT(BL4, 2)="99", "00", RIGHT(BL4,2)+1)),VALUE(BL4+1)))) -> 2067-68 | BN4: =IF(BN$11<>"", IF(INT($G$5+SUM($H$11:BM$11))=$G$5+SUM($H$11:BM$11), VALUE(LEFT(BN$10, 4)), CONCATENATE(LEFT(BN$10,4)&"-"&IF(MID(BN$10, 3, 2)<"09", "0","")&IF(MID(BN$10, 3, 2)="99", "00", MID(BN$10, 3, 2)+1))), IF(AND(BN$5<>INT(BN$5), COUNTA($H$4:BM$4)=ROUNDUP(BN$5, 0)), IF($G$5+SUM($11:$11)=INT($G$5+SUM($11:$11)), VALUE(CONCATENATE(IF(RIGHT(BM$4, 2)="99", LEFT(BM$4, 2)+1, LEFT(BM$4, 2))&RIGHT(BM$4, 2))), CONCATENATE(LEFT(BM$4, 2)&RIGHT(BM$4, 2)&"-"&IF(RIGHT(BM$4, 2)<"09", "0", "")&IF(RIGHT(BM$4, 2)="99", "00", RIGHT(BM$4, 2)+1))), IF(LEN(BM4)>4,CONCATENATE(LEFT(BM4,4)+1&"-"&IF(RIGHT(BM4, 2)<"09", "0","")&IF(RIGHT(BM4, 2)="99", "00", RIGHT(BM4,2)+1)),VALUE(BM4+1)))) -> 2068-69 | BO4: =IF(BO$11<>"", IF(INT($G$5+SUM($H$11:BN$11))=$G$5+SUM($H$11:BN$11), VALUE(LEFT(BO$10, 4)), CONCATENATE(LEFT(BO$10,4)&"-"&IF(MID(BO$10, 3, 2)<"09", "0","")&IF(MID(BO$10, 3, 2)="99", "00", MID(BO$10, 3, 2)+1))), IF(AND(BO$5<>INT(BO$5), COUNTA($H$4:BN$4)=ROUNDUP(BO$5, 0)), IF($G$5+SUM($11:$11)=INT($G$5+SUM($11:$11)), VALUE(CONCATENATE(IF(RIGHT(BN$4, 2)="99", LEFT(BN$4, 2)+1, LEFT(BN$4, 2))&RIGHT(BN$4, 2))), CONCATENATE(LEFT(BN$4, 2)&RIGHT(BN$4, 2)&"-"&IF(RIGHT(BN$4, 2)<"09", "0", "")&IF(RIGHT(BN$4, 2)="99", "00", RIGHT(BN$4, 2)+1))), IF(LEN(BN4)>4,CONCATENATE(LEFT(BN4,4)+1&"-"&IF(RIGHT(BN4, 2)<"09", "0","")&IF(RIGHT(BN4, 2)="99", "00", RIGHT(BN4,2)+1)),VALUE(BN4+1)))) -> 2069-70 | BP4: =IF(BP$11<>"", IF(INT($G$5+SUM($H$11:BO$11))=$G$5+SUM($H$11:BO$11), VALUE(LEFT(BP$10, 4)), CONCATENATE(LEFT(BP$10,4)&"-"&IF(MID(BP$10, 3, 2)<"09", "0","")&IF(MID(BP$10, 3, 2)="99", "00", MID(BP$10, 3, 2)+1))), IF(AND(BP$5<>INT(BP$5), COUNTA($H$4:BO$4)=ROUNDUP(BP$5, 0)), IF($G$5+SUM($11:$11)=INT($G$5+SUM($11:$11)), VALUE(CONCATENATE(IF(RIGHT(BO$4, 2)="99", LEFT(BO$4, 2)+1, LEFT(BO$4, 2))&RIGHT(BO$4, 2))), CONCATENATE(LEFT(BO$4, 2)&RIGHT(BO$4, 2)&"-"&IF(RIGHT(BO$4, 2)<"09", "0", "")&IF(RIGHT(BO$4, 2)="99", "00", RIGHT(BO$4, 2)+1))), IF(LEN(BO4)>4,CONCATENATE(LEFT(BO4,4)+1&"-"&IF(RIGHT(BO4, 2)<"09", "0","")&IF(RIGHT(BO4, 2)="99", "00", RIGHT(BO4,2)+1)),VALUE(BO4+1)))) -> 2070-71 | BQ4: =IF(BQ$11<>"", IF(INT($G$5+SUM($H$11:BP$11))=$G$5+SUM($H$11:BP$11), VALUE(LEFT(BQ$10, 4)), CONCATENATE(LEFT(BQ$10,4)&"-"&IF(MID(BQ$10, 3, 2)<"09", "0","")&IF(MID(BQ$10, 3, 2)="99", "00", MID(BQ$10, 3, 2)+1))), IF(AND(BQ$5<>INT(BQ$5), COUNTA($H$4:BP$4)=ROUNDUP(BQ$5, 0)), IF($G$5+SUM($11:$11)=INT($G$5+SUM($11:$11)), VALUE(CONCATENATE(IF(RIGHT(BP$4, 2)="99", LEFT(BP$4, 2)+1, LEFT(BP$4, 2))&RIGHT(BP$4, 2))), CONCATENATE(LEFT(BP$4, 2)&RIGHT(BP$4, 2)&"-"&IF(RIGHT(BP$4, 2)<"09", "0", "")&IF(RIGHT(BP$4, 2)="99", "00", RIGHT(BP$4, 2)+1))), IF(LEN(BP4)>4,CONCATENATE(LEFT(BP4,4)+1&"-"&IF(RIGHT(BP4, 2)<"09", "0","")&IF(RIGHT(BP4, 2)="99", "00", RIGHT(BP4,2)+1)),VALUE(BP4+1)))) -> 2071-72 | BR4: =IF(BR$11<>"", IF(INT($G$5+SUM($H$11:BQ$11))=$G$5+SUM($H$11:BQ$11), VALUE(LEFT(BR$10, 4)), CONCATENATE(LEFT(BR$10,4)&"-"&IF(MID(BR$10, 3, 2)<"09", "0","")&IF(MID(BR$10, 3, 2)="99", "00", MID(BR$10, 3, 2)+1))), IF(AND(BR$5<>INT(BR$5), COUNTA($H$4:BQ$4)=ROUNDUP(BR$5, 0)), IF($G$5+SUM($11:$11)=INT($G$5+SUM($11:$11)), VALUE(CONCATENATE(IF(RIGHT(BQ$4, 2)="99", LEFT(BQ$4, 2)+1, LEFT(BQ$4, 2))&RIGHT(BQ$4, 2))), CONCATENATE(LEFT(BQ$4, 2)&RIGHT(BQ$4, 2)&"-"&IF(RIGHT(BQ$4, 2)<"09", "0", "")&IF(RIGHT(BQ$4, 2)="99", "00", RIGHT(BQ$4, 2)+1))), IF(LEN(BQ4)>4,CONCATENATE(LEFT(BQ4,4)+1&"-"&IF(RIGHT(BQ4, 2)<"09", "0","")&IF(RIGHT(BQ4, 2)="99", "00", RIGHT(BQ4,2)+1)),VALUE(BQ4+1)))) -> 2072-73 | BS4: =IF(BS$11<>"", IF(INT($G$5+SUM($H$11:BR$11))=$G$5+SUM($H$11:BR$11), VALUE(LEFT(BS$10, 4)), CONCATENATE(LEFT(BS$10,4)&"-"&IF(MID(BS$10, 3, 2)<"09", "0","")&IF(MID(BS$10, 3, 2)="99", "00", MID(BS$10, 3, 2)+1))), IF(AND(BS$5<>INT(BS$5), COUNTA($H$4:BR$4)=ROUNDUP(BS$5, 0)), IF($G$5+SUM($11:$11)=INT($G$5+SUM($11:$11)), VALUE(CONCATENATE(IF(RIGHT(BR$4, 2)="99", LEFT(BR$4, 2)+1, LEFT(BR$4, 2))&RIGHT(BR$4, 2))), CONCATENATE(LEFT(BR$4, 2)&RIGHT(BR$4, 2)&"-"&IF(RIGHT(BR$4, 2)<"09", "0", "")&IF(RIGHT(BR$4, 2)="99", "00", RIGHT(BR$4, 2)+1))), IF(LEN(BR4)>4,CONCATENATE(LEFT(BR4,4)+1&"-"&IF(RIGHT(BR4, 2)<"09", "0","")&IF(RIGHT(BR4, 2)="99", "00", RIGHT(BR4,2)+1)),VALUE(BR4+1)))) -> 2073-74 | BT4: =IF(BT$11<>"", IF(INT($G$5+SUM($H$11:BS$11))=$G$5+SUM($H$11:BS$11), VALUE(LEFT(BT$10, 4)), CONCATENATE(LEFT(BT$10,4)&"-"&IF(MID(BT$10, 3, 2)<"09", "0","")&IF(MID(BT$10, 3, 2)="99", "00", MID(BT$10, 3, 2)+1))), IF(AND(BT$5<>INT(BT$5), COUNTA($H$4:BS$4)=ROUNDUP(BT$5, 0)), IF($G$5+SUM($11:$11)=INT($G$5+SUM($11:$11)), VALUE(CONCATENATE(IF(RIGHT(BS$4, 2)="99", LEFT(BS$4, 2)+1, LEFT(BS$4, 2))&RIGHT(BS$4, 2))), CONCATENATE(LEFT(BS$4, 2)&RIGHT(BS$4, 2)&"-"&IF(RIGHT(BS$4, 2)<"09", "0", "")&IF(RIGHT(BS$4, 2)="99", "00", RIGHT(BS$4, 2)+1))), IF(LEN(BS4)>4,CONCATENATE(LEFT(BS4,4)+1&"-"&IF(RIGHT(BS4, 2)<"09", "0","")&IF(RIGHT(BS4, 2)="99", "00", RIGHT(BS4,2)+1)),VALUE(BS4+1)))) -> 2074-75 | BU4: =IF(BU$11<>"", IF(INT($G$5+SUM($H$11:BT$11))=$G$5+SUM($H$11:BT$11), VALUE(LEFT(BU$10, 4)), CONCATENATE(LEFT(BU$10,4)&"-"&IF(MID(BU$10, 3, 2)<"09", "0","")&IF(MID(BU$10, 3, 2)="99", "00", MID(BU$10, 3, 2)+1))), IF(AND(BU$5<>INT(BU$5), COUNTA($H$4:BT$4)=ROUNDUP(BU$5, 0)), IF($G$5+SUM($11:$11)=INT($G$5+SUM($11:$11)), VALUE(CONCATENATE(IF(RIGHT(BT$4, 2)="99", LEFT(BT$4, 2)+1, LEFT(BT$4, 2))&RIGHT(BT$4, 2))), CONCATENATE(LEFT(BT$4, 2)&RIGHT(BT$4, 2)&"-"&IF(RIGHT(BT$4, 2)<"09", "0", "")&IF(RIGHT(BT$4, 2)="99", "00", RIGHT(BT$4, 2)+1))), IF(LEN(BT4)>4,CONCATENATE(LEFT(BT4,4)+1&"-"&IF(RIGHT(BT4, 2)<"09", "0","")&IF(RIGHT(BT4, 2)="99", "00", RIGHT(BT4,2)+1)),VALUE(BT4+1)))) -> 2075-76
G5: =IF(LEN($H$9)=4, 0, IF(AND(ISNUMBER(SEARCH("Ausnet", $F$8)), Intro!$J$8="Electricity transmission module"), 0.25, 0.5)) -> 0 | H5: =H$11 -> 5 | I5: =IF(I$11<>"",SUM(ROUNDUP(H$5,0),I$11),H$5) -> 5 | J5: =IF(J$11<>"",SUM(ROUNDUP(I$5,0),J$11),I$5) -> 5 | K5: 5 | L5: 5 | M5: 10.5 | N5: 10.5 | O5: 10.5 | P5: 10.5 | Q5: 10.5 | R5: 10.5 | S5: 16 | T5: 16 | U5: 16 | V5: 16 | W5: 16 | X5: 16 | Y5: 16 | Z5: 16 | AA5: 16 | AB5: 16 | AC5: 16 | AD5: 16 | AE5: 16 | AF5: 16 | AG5: 16 | AH5: 16 | AI5: 16 | AJ5: 16 | AK5: 16 | AL5: 16 | AM5: 16 | AN5: 16 | AO5: 16 | AP5: 16 | AQ5: 16 | AR5: 16 | AS5: 16 | AT5: 16 | AU5: 16 | AV5: 16 | AW5: 16 | AX5: 16 | AY5: 16 | AZ5: 16 | BA5: 16 | BB5: 16 | BC5: 16 | BD5: 16 | BE5: 16 | BF5: 16 | BG5: 16 | BH5: 16 | BI5: 16 | BJ5: 16 | BK5: 16 | BL5: 16 | BM5: 16 | BN5: 16 | BO5: 16 | BP5: 16 | BQ5: 16 | BR5: 16 | BS5: 16 | BT5: 16 | BU5: 16
D6: General information
E8: Business name | F8: AusNet
E9: First regulatory year for tracking | H9: 2011 | I9: =IF(ROUNDUP(J$5, 0)=COUNTA($H$9:H$9), "Input for next period", "") ->  | J9: =IF(ROUNDUP(K$5, 0)=COUNTA($H$9:I$9), "Input for next period", "") ->  | K9: =IF(ROUNDUP(L$5, 0)=COUNTA($H$9:J$9), "Input for next period", "") ->  | L9: =IF(ROUNDUP(M$5, 0)=COUNTA($H$9:K$9), "Input for next period", "") ->  | M9: =IF(ROUNDUP(N$5, 0)=COUNTA($H$9:L$9), "Input for next period", "") ->  | N9: =IF(ROUNDUP(O$5, 0)=COUNTA($H$9:M$9), "Input for next period", "") ->  | O9: =IF(ROUNDUP(P$5, 0)=COUNTA($H$9:N$9), "Input for next period", "") ->  | P9: =IF(ROUNDUP(Q$5, 0)=COUNTA($H$9:O$9), "Input for next period", "") ->  | Q9: =IF(ROUNDUP(R$5, 0)=COUNTA($H$9:P$9), "Input for next period", "") ->  | R9: =IF(ROUNDUP(S$5, 0)=COUNTA($H$9:Q$9), "Input for next period", "") ->  | S9: =IF(ROUNDUP(T$5, 0)=COUNTA($H$9:R$9), "Input for next period", "") ->  | T9: =IF(ROUNDUP(U$5, 0)=COUNTA($H$9:S$9), "Input for next period", "") ->  | U9: =IF(ROUNDUP(V$5, 0)=COUNTA($H$9:T$9), "Input for next period", "") ->  | V9: =IF(ROUNDUP(W$5, 0)=COUNTA($H$9:U$9), "Input for next period", "") ->  | W9: =IF(ROUNDUP(X$5, 0)=COUNTA($H$9:V$9), "Input for next period", "") ->  | X9: =IF(ROUNDUP(Y$5, 0)=COUNTA($H$9:W$9), "Input for next period", "") -> Input for next period | Y9: =IF(ROUNDUP(Z$5, 0)=COUNTA($H$9:X$9), "Input for next period", "") ->  | Z9: =IF(ROUNDUP(AA$5, 0)=COUNTA($H$9:Y$9), "Input for next period", "") ->  | AA9: =IF(ROUNDUP(AB$5, 0)=COUNTA($H$9:Z$9), "Input for next period", "") ->  | AB9: =IF(ROUNDUP(AC$5, 0)=COUNTA($H$9:AA$9), "Input for next period", "") ->  | AC9: =IF(ROUNDUP(AD$5, 0)=COUNTA($H$9:AB$9), "Input for next period", "") ->  | AD9: =IF(ROUNDUP(AE$5, 0)=COUNTA($H$9:AC$9), "Input for next period", "") ->  | AE9: =IF(ROUNDUP(AF$5, 0)=COUNTA($H$9:AD$9), "Input for next period", "") ->  | AF9: =IF(ROUNDUP(AG$5, 0)=COUNTA($H$9:AE$9), "Input for next period", "") ->  | AG9: =IF(ROUNDUP(AH$5, 0)=COUNTA($H$9:AF$9), "Input for next period", "") ->  | AH9: =IF(ROUNDUP(AI$5, 0)=COUNTA($H$9:AG$9), "Input for next period", "") ->  | AI9: =IF(ROUNDUP(AJ$5, 0)=COUNTA($H$9:AH$9), "Input for next period", "") ->  | AJ9: =IF(ROUNDUP(AK$5, 0)=COUNTA($H$9:AI$9), "Input for next period", "") ->  | AK9: =IF(ROUNDUP(AL$5, 0)=COUNTA($H$9:AJ$9), "Input for next period", "") ->  | AL9: =IF(ROUNDUP(AM$5, 0)=COUNTA($H$9:AK$9), "Input for next period", "") ->  | AM9: =IF(ROUNDUP(AN$5, 0)=COUNTA($H$9:AL$9), "Input for next period", "") ->  | AN9: =IF(ROUNDUP(AO$5, 0)=COUNTA($H$9:AM$9), "Input for next period", "") ->  | AO9: =IF(ROUNDUP(AP$5, 0)=COUNTA($H$9:AN$9), "Input for next period", "") ->  | AP9: =IF(ROUNDUP(AQ$5, 0)=COUNTA($H$9:AO$9), "Input for next period", "") ->  | AQ9: =IF(ROUNDUP(AR$5, 0)=COUNTA($H$9:AP$9), "Input for next period", "") ->  | AR9: =IF(ROUNDUP(AS$5, 0)=COUNTA($H$9:AQ$9), "Input for next period", "") ->  | AS9: =IF(ROUNDUP(AT$5, 0)=COUNTA($H$9:AR$9), "Input for next period", "") ->  | AT9: =IF(ROUNDUP(AU$5, 0)=COUNTA($H$9:AS$9), "Input for next period", "") ->  | AU9: =IF(ROUNDUP(AV$5, 0)=COUNTA($H$9:AT$9), "Input for next period", "") ->  | AV9: =IF(ROUNDUP(AW$5, 0)=COUNTA($H$9:AU$9), "Input for next period", "") ->  | AW9: =IF(ROUNDUP(AX$5, 0)=COUNTA($H$9:AV$9), "Input for next period", "") ->  | AX9: =IF(ROUNDUP(AY$5, 0)=COUNTA($H$9:AW$9), "Input for next period", "") ->  | AY9: =IF(ROUNDUP(AZ$5, 0)=COUNTA($H$9:AX$9), "Input for next period", "") ->  | AZ9: =IF(ROUNDUP(BA$5, 0)=COUNTA($H$9:AY$9), "Input for next period", "") ->  | BA9: =IF(ROUNDUP(BB$5, 0)=COUNTA($H$9:AZ$9), "Input for next period", "") ->  | BB9: =IF(ROUNDUP(BC$5, 0)=COUNTA($H$9:BA$9), "Input for next period", "") ->  | BC9: =IF(ROUNDUP(BD$5, 0)=COUNTA($H$9:BB$9), "Input for next period", "") ->  | BD9: =IF(ROUNDUP(BE$5, 0)=COUNTA($H$9:BC$9), "Input for next period", "") ->  | BE9: =IF(ROUNDUP(BF$5, 0)=COUNTA($H$9:BD$9), "Input for next period", "") ->  | BF9: =IF(ROUNDUP(BG$5, 0)=COUNTA($H$9:BE$9), "Input for next period", "") ->  | BG9: =IF(ROUNDUP(BH$5, 0)=COUNTA($H$9:BF$9), "Input for next period", "") ->  | BH9: =IF(ROUNDUP(BI$5, 0)=COUNTA($H$9:BG$9), "Input for next period", "") ->  | BI9: =IF(ROUNDUP(BJ$5, 0)=COUNTA($H$9:BH$9), "Input for next period", "") ->  | BJ9: =IF(ROUNDUP(BK$5, 0)=COUNTA($H$9:BI$9), "Input for next period", "") ->  | BK9: =IF(ROUNDUP(BL$5, 0)=COUNTA($H$9:BJ$9), "Input for next period", "") ->  | BL9: =IF(ROUNDUP(BM$5, 0)=COUNTA($H$9:BK$9), "Input for next period", "") ->  | BM9: =IF(ROUNDUP(BN$5, 0)=COUNTA($H$9:BL$9), "Input for next period", "") ->  | BN9: =IF(ROUNDUP(BO$5, 0)=COUNTA($H$9:BM$9), "Input for next period", "") ->  | BO9: =IF(ROUNDUP(BP$5, 0)=COUNTA($H$9:BN$9), "Input for next period", "") ->  | BP9: =IF(ROUNDUP(BQ$5, 0)=COUNTA($H$9:BO$9), "Input for next period", "") ->  | BQ9: =IF(ROUNDUP(BR$5, 0)=COUNTA($H$9:BP$9), "Input for next period", "") ->  | BR9: =IF(ROUNDUP(BS$5, 0)=COUNTA($H$9:BQ$9), "Input for next period", "") ->  | BS9: =IF(ROUNDUP(BT$5, 0)=COUNTA($H$9:BR$9), "Input for next period", "") ->  | BT9: =IF(ROUNDUP(BU$5, 0)=COUNTA($H$9:BS$9), "Input for next period", "") ->  | BU9: =IF(ROUNDUP(BV$5, 0)=COUNTA($H$9:BT$9), "Input for next period", "") -> 
E10: Regulatory period | H10: =CONCATENATE(LEFT(H9,4)&"-"&IF(RIGHT(H9, 2)<"06", "0","")&RIGHT(H9,2)-1+H11) -> 2011-15 | M10: 2016-21 | S10: 2021-26
E11: Years in regulatory period | H11: 5 | M11: 5.5 | S11: 5
E13: Lagged inflation approach | F13: All-lagged
E14: =IF($F$13="All-lagged", "Lagged actual", "Actual")& " CPI inflation rate" -> Lagged actual CPI inflation rate | G14: 0.01261261261 | H14: 0.02787663108 | I14: 0.03519907675 | J14: 0.02004008016 | K14: 0.02161100196 | L14: 0.02307692308 | M14: 0.01510859301 | N14: 0.01023255814 | O14: 0.01933701657 | P14: 0.02077687444 | Q14: ='[6]RFM input'!F282 -> 0.01592920354 | R14: ='[6]RFM input'!G282 -> 0.01219512195 | S14: ='[6]RFM input'!H282 -> 0.008605851979 | T14: ='[6]RFM input'!I282 -> 0.03498293515 | U14: ='[6]RFM input'!J282 -> 0.07831821929 | V14: ='[6]RFM input'!K282 -> 0.04051987768 | W14: ='[6]RFM input'!L282 -> 0.03
E15: Actual CPI (one year lagged) | F15: =G15/IF($F$13="Partially-lagged", (1+F14), (1+G14)) -> 0.987544484 | G15: 1 | H15: =G15*(1+IF($F$13="Partially-lagged",G14,H14)) -> 1.027876631 | I15: 1.06405694 | J15: 1.085380726 | K15: 1.108836891 | L15: 1.134425434 | M15: 1.151565007 | N15: 1.163348463 | O15: 1.185844151 | P15: =O15*(1+IF($F$13="Partially-lagged",O14,P14)) -> 1.210482286 | Q15: 1.229764305 | R15: 1.24476143 | S15: 1.255473663 | T15: 1.299393817 | U15: 1.401160027 | V15: 1.45793486 | W15: 1.501672905 | X15: 1.501672905 | Y15: 1.501672905 | Z15: 1.501672905 | AA15: 1.501672905 | AB15: 1.501672905 | AC15: 1.501672905 | AD15: 1.501672905 | AE15: 1.501672905 | AF15: 1.501672905 | AG15: 1.501672905 | AH15: 1.501672905 | AI15: 1.501672905 | AJ15: 1.501672905 | AK15: 1.501672905 | AL15: 1.501672905 | AM15: 1.501672905 | AN15: =AM15*(1+IF($F$13="Partially-lagged",AM14,AN14)) -> 1.501672905 | AO15: 1.501672905 | AP15: 1.501672905 | AQ15: 1.501672905 | AR15: 1.501672905 | AS15: 1.501672905 | AT15: 1.501672905 | AU15: 1.501672905 | AV15: 1.501672905 | AW15: 1.501672905 | AX15: 1.501672905 | AY15: 1.501672905 | AZ15: 1.501672905 | BA15: 1.501672905 | BB15: 1.501672905 | BC15: 1.501672905 | BD15: 1.501672905 | BE15: 1.501672905 | BF15: 1.501672905 | BG15: 1.501672905 | BH15: 1.501672905 | BI15: 1.501672905 | BJ15: 1.501672905 | BK15: 1.501672905 | BL15: 1.501672905 | BM15: 1.501672905 | BN15: 1.501672905 | BO15: 1.501672905 | BP15: 1.501672905 | BQ15: 1.501672905 | BR15: 1.501672905 | BS15: 1.501672905 | BT15: =BS15*(1+IF($F$13="Partially-lagged",BS14,BT14)) -> 1.501672905 | BU15: =BT15*(1+IF($F$13="Partially-lagged",BT14,BU14)) -> 1.501672905
E17: Nominal vanilla WACC (fixed real time varying) | H17: 0.09977388475 | I17: 0.1076085161 | J17: 0.0913891878 | K17: 0.09306999144 | L17: 0.09463844986 | M17: 0.0544103442 | N17: 0.04888641591 | O17: 0.05808536478 | P17: 0.05900425222 | Q17: 0.05276536977 | R17: 0.02428654141 | S17: ='[6]RFM input'!H289 -> 0.03662410607 | T17: ='[6]RFM input'!I289 -> 0.0628776369 | U17: ='[6]RFM input'!J289 -> 0.1079514421 | V17: ='[6]RFM input'!K289 -> 0.06968597346 | W17: ='[6]RFM input'!L289 -> 0.05110790073
E18: Nominal vanilla WACC index | F18: =G18/(1+G17) -> 1 | G18: 1 | H18: =G18*(1+H17) -> 1.099773885 | I18: 1.218118921 | J18: 1.329441819 | K18: 1.453172958 | L18: 1.590698994 | M18: 1.677249474 | N18: 1.759244189 | O18: 1.86143053 | P18: 1.971262846 | Q18: 2.075277259
E19: Real vanilla WACC | H19: 0.069947357 | I19: 0.069947357 | J19: 0.069947357 | K19: 0.069947357 | L19: 0.069947357 | M19: 0.03871679489 | N19: 0.03826233619 | O19: 0.03801328469 | P19: 0.03744929841 | Q19: 0.03625859568 | R19: 0.01194573971 | S19: ='[6]RFM input'!H288 -> 0.02777919049 | T19: ='[6]RFM input'!I288 -> 0.02695184703 | U19: ='[6]RFM input'!J288 -> 0.02748096276 | V19: ='[6]RFM input'!K288 -> 0.02803031101 | W19: ='[6]RFM input'!L288 -> 0.02049310751
E20: Real vanilla WACC index | F20: =G20/(1+G19) -> 1 | G20: 1 | H20: =G20*(1+H19) -> 1.069947357 | I20: 1.144787347 | J20: 1.224862196 | K20: 1.310538069 | L20: 1.402206743 | M20: 1.456495694 | N20: 1.512224622 | O20: 1.569709247 | P20: 1.628493757 | Q20: 1.687540654 | R20: 1.707699576 | S20: 1.755138087 | T20: 1.802442301 | U20: 1.85197515 | V20: 1.90388659 | W20: 1.942903142 | X20: 1.942903142 | Y20: 1.942903142 | Z20: 1.942903142 | AA20: 1.942903142 | AB20: 1.942903142 | AC20: 1.942903142 | AD20: 1.942903142 | AE20: 1.942903142 | AF20: 1.942903142 | AG20: 1.942903142 | AH20: 1.942903142 | AI20: 1.942903142 | AJ20: 1.942903142 | AK20: 1.942903142 | AL20: 1.942903142 | AM20: 1.942903142 | AN20: 1.942903142 | AO20: 1.942903142 | AP20: 1.942903142 | AQ20: 1.942903142 | AR20: 1.942903142 | AS20: 1.942903142 | AT20: 1.942903142 | AU20: 1.942903142 | AV20: 1.942903142 | AW20: 1.942903142 | AX20: 1.942903142 | AY20: 1.942903142 | AZ20: 1.942903142 | BA20: 1.942903142 | BB20: 1.942903142 | BC20: 1.942903142 | BD20: 1.942903142 | BE20: 1.942903142 | BF20: 1.942903142 | BG20: 1.942903142 | BH20: 1.942903142 | BI20: 1.942903142 | BJ20: 1.942903142 | BK20: 1.942903142 | BL20: 1.942903142 | BM20: 1.942903142 | BN20: 1.942903142 | BO20: 1.942903142 | BP20: 1.942903142 | BQ20: 1.942903142 | BR20: 1.942903142 | BS20: 1.942903142 | BT20: =BS20*(1+BT19) -> 1.942903142 | BU20: =BT20*(1+BU19) -> 1.942903142
E22: Partial year extension? | F22: No
D24: Starting RAB and actual gross capex - As incurred ($m, nominal)
E25: Asset class | G25: ="RAB (closing as at "&$G$4&")" -> RAB (closing as at 2010) | H25: ="Actual gross capex ("&H4&")" -> Actual gross capex (2011) | I25: =IF(COUNTA($H$25:H$25)<IF($F$22="Yes", INT(I$5), I$5), "Actual gross capex ("&I4&")", "") -> Actual gross capex (2012) | J25: =IF(COUNTA($H$25:I$25)<IF($F$22="Yes", INT(J$5), J$5), "Actual gross capex ("&J4&")", "") -> Actual gross capex (2013) | K25: =IF(COUNTA($H$25:J$25)<IF($F$22="Yes", INT(K$5), K$5), "Actual gross capex ("&K4&")", "") -> Actual gross capex (2014) | L25: =IF(COUNTA($H$25:K$25)<IF($F$22="Yes", INT(L$5), L$5), "Actual gross capex ("&L4&")", "") -> Actual gross capex (2015) | M25: =IF(COUNTA($H$25:L$25)<IF($F$22="Yes", INT(M$5), M$5), "Actual gross capex ("&M4&")", "") -> Actual gross capex (2016) | N25: =IF(COUNTA($H$25:M$25)<IF($F$22="Yes", INT(N$5), N$5), "Actual gross capex ("&N4&")", "") -> Actual gross capex (2017) | O25: =IF(COUNTA($H$25:N$25)<IF($F$22="Yes", INT(O$5), O$5), "Actual gross capex ("&O4&")", "") -> Actual gross capex (2018) | P25: =IF(COUNTA($H$25:O$25)<IF($F$22="Yes", INT(P$5), P$5), "Actual gross capex ("&P4&")", "") -> Actual gross capex (2019) | Q25: =IF(COUNTA($H$25:P$25)<IF($F$22="Yes", INT(Q$5), Q$5), "Actual gross capex ("&Q4&")", "") -> Actual gross capex (2020) | R25: =IF(COUNTA($H$25:Q$25)<IF($F$22="Yes", INT(R$5), R$5), "Actual gross capex ("&R4&")", "") -> Actual gross capex (2021) | S25: =IF(COUNTA($H$25:R$25)<IF($F$22="Yes", INT(S$5), S$5), "Actual gross capex ("&S4&")", "") -> Actual gross capex (2021-22) | T25: =IF(COUNTA($H$25:S$25)<IF($F$22="Yes", INT(T$5), T$5), "Actual gross capex ("&T4&")", "") -> Actual gross capex (2022-23) | U25: =IF(COUNTA($H$25:T$25)<IF($F$22="Yes", INT(U$5), U$5), "Actual gross capex ("&U4&")", "") -> Actual gross capex (2023-24) | V25: =IF(COUNTA($H$25:U$25)<IF($F$22="Yes", INT(V$5), V$5), "Actual gross capex ("&V4&")", "") -> Actual gross capex (2024-25) | W25: =IF(COUNTA($H$25:V$25)<IF($F$22="Yes", INT(W$5), W$5), "Actual gross capex ("&W4&")", "") -> Actual gross capex (2025-26) | X25: =IF(COUNTA($H$25:W$25)<IF($F$22="Yes", INT(X$5), X$5), "Actual gross capex ("&X4&")", "") ->  | Y25: =IF(COUNTA($H$25:X$25)<IF($F$22="Yes", INT(Y$5), Y$5), "Actual gross capex ("&Y4&")", "") ->  | Z25: =IF(COUNTA($H$25:Y$25)<IF($F$22="Yes", INT(Z$5), Z$5), "Actual gross capex ("&Z4&")", "") ->  | AA25: =IF(COUNTA($H$25:Z$25)<IF($F$22="Yes", INT(AA$5), AA$5), "Actual gross capex ("&AA4&")", "") ->  | AB25: =IF(COUNTA($H$25:AA$25)<IF($F$22="Yes", INT(AB$5), AB$5), "Actual gross capex ("&AB4&")", "") ->  | AC25: =IF(COUNTA($H$25:AB$25)<IF($F$22="Yes", INT(AC$5), AC$5), "Actual gross capex ("&AC4&")", "") ->  | AD25: =IF(COUNTA($H$25:AC$25)<IF($F$22="Yes", INT(AD$5), AD$5), "Actual gross capex ("&AD4&")", "") ->  | AE25: =IF(COUNTA($H$25:AD$25)<IF($F$22="Yes", INT(AE$5), AE$5), "Actual gross capex ("&AE4&")", "") ->  | AF25: =IF(COUNTA($H$25:AE$25)<IF($F$22="Yes", INT(AF$5), AF$5), "Actual gross capex ("&AF4&")", "") ->  | AG25: =IF(COUNTA($H$25:AF$25)<IF($F$22="Yes", INT(AG$5), AG$5), "Actual gross capex ("&AG4&")", "") ->  | AH25: =IF(COUNTA($H$25:AG$25)<IF($F$22="Yes", INT(AH$5), AH$5), "Actual gross capex ("&AH4&")", "") ->  | AI25: =IF(COUNTA($H$25:AH$25)<IF($F$22="Yes", INT(AI$5), AI$5), "Actual gross capex ("&AI4&")", "") ->  | AJ25: =IF(COUNTA($H$25:AI$25)<IF($F$22="Yes", INT(AJ$5), AJ$5), "Actual gross capex ("&AJ4&")", "") ->  | AK25: =IF(COUNTA($H$25:AJ$25)<IF($F$22="Yes", INT(AK$5), AK$5), "Actual gross capex ("&AK4&")", "") ->  | AL25: =IF(COUNTA($H$25:AK$25)<IF($F$22="Yes", INT(AL$5), AL$5), "Actual gross capex ("&AL4&")", "") ->  | AM25: =IF(COUNTA($H$25:AL$25)<IF($F$22="Yes", INT(AM$5), AM$5), "Actual gross capex ("&AM4&")", "") ->  | AN25: =IF(COUNTA($H$25:AM$25)<IF($F$22="Yes", INT(AN$5), AN$5), "Actual gross capex ("&AN4&")", "") ->  | AO25: =IF(COUNTA($H$25:AN$25)<IF($F$22="Yes", INT(AO$5), AO$5), "Actual gross capex ("&AO4&")", "") ->  | AP25: =IF(COUNTA($H$25:AO$25)<IF($F$22="Yes", INT(AP$5), AP$5), "Actual gross capex ("&AP4&")", "") ->  | AQ25: =IF(COUNTA($H$25:AP$25)<IF($F$22="Yes", INT(AQ$5), AQ$5), "Actual gross capex ("&AQ4&")", "") ->  | AR25: =IF(COUNTA($H$25:AQ$25)<IF($F$22="Yes", INT(AR$5), AR$5), "Actual gross capex ("&AR4&")", "") ->  | AS25: =IF(COUNTA($H$25:AR$25)<IF($F$22="Yes", INT(AS$5), AS$5), "Actual gross capex ("&AS4&")", "") ->  | AT25: =IF(COUNTA($H$25:AS$25)<IF($F$22="Yes", INT(AT$5), AT$5), "Actual gross capex ("&AT4&")", "") ->  | AU25: =IF(COUNTA($H$25:AT$25)<IF($F$22="Yes", INT(AU$5), AU$5), "Actual gross capex ("&AU4&")", "") ->  | AV25: =IF(COUNTA($H$25:AU$25)<IF($F$22="Yes", INT(AV$5), AV$5), "Actual gross capex ("&AV4&")", "") ->  | AW25: =IF(COUNTA($H$25:AV$25)<IF($F$22="Yes", INT(AW$5), AW$5), "Actual gross capex ("&AW4&")", "") ->  | AX25: =IF(COUNTA($H$25:AW$25)<IF($F$22="Yes", INT(AX$5), AX$5), "Actual gross capex ("&AX4&")", "") ->  | AY25: =IF(COUNTA($H$25:AX$25)<IF($F$22="Yes", INT(AY$5), AY$5), "Actual gross capex ("&AY4&")", "") ->  | AZ25: =IF(COUNTA($H$25:AY$25)<IF($F$22="Yes", INT(AZ$5), AZ$5), "Actual gross capex ("&AZ4&")", "") ->  | BA25: =IF(COUNTA($H$25:AZ$25)<IF($F$22="Yes", INT(BA$5), BA$5), "Actual gross capex ("&BA4&")", "") ->  | BB25: =IF(COUNTA($H$25:BA$25)<IF($F$22="Yes", INT(BB$5), BB$5), "Actual gross capex ("&BB4&")", "") ->  | BC25: =IF(COUNTA($H$25:BB$25)<IF($F$22="Yes", INT(BC$5), BC$5), "Actual gross capex ("&BC4&")", "") ->  | BD25: =IF(COUNTA($H$25:BC$25)<IF($F$22="Yes", INT(BD$5), BD$5), "Actual gross capex ("&BD4&")", "") ->  | BE25: =IF(COUNTA($H$25:BD$25)<IF($F$22="Yes", INT(BE$5), BE$5), "Actual gross capex ("&BE4&")", "") ->  | BF25: =IF(COUNTA($H$25:BE$25)<IF($F$22="Yes", INT(BF$5), BF$5), "Actual gross capex ("&BF4&")", "") ->  | BG25: =IF(COUNTA($H$25:BF$25)<IF($F$22="Yes", INT(BG$5), BG$5), "Actual gross capex ("&BG4&")", "") ->  | BH25: =IF(COUNTA($H$25:BG$25)<IF($F$22="Yes", INT(BH$5), BH$5), "Actual gross capex ("&BH4&")", "") ->  | BI25: =IF(COUNTA($H$25:BH$25)<IF($F$22="Yes", INT(BI$5), BI$5), "Actual gross capex ("&BI4&")", "") ->  | BJ25: =IF(COUNTA($H$25:BI$25)<IF($F$22="Yes", INT(BJ$5), BJ$5), "Actual gross capex ("&BJ4&")", "") ->  | BK25: =IF(COUNTA($H$25:BJ$25)<IF($F$22="Yes", INT(BK$5), BK$5), "Actual gross capex ("&BK4&")", "") ->  | BL25: =IF(COUNTA($H$25:BK$25)<IF($F$22="Yes", INT(BL$5), BL$5), "Actual gross capex ("&BL4&")", "") ->  | BM25: =IF(COUNTA($H$25:BL$25)<IF($F$22="Yes", INT(BM$5), BM$5), "Actual gross capex ("&BM4&")", "") ->  | BN25: =IF(COUNTA($H$25:BM$25)<IF($F$22="Yes", INT(BN$5), BN$5), "Actual gross capex ("&BN4&")", "") ->  | BO25: =IF(COUNTA($H$25:BN$25)<IF($F$22="Yes", INT(BO$5), BO$5), "Actual gross capex ("&BO4&")", "") ->  | BP25: =IF(COUNTA($H$25:BO$25)<IF($F$22="Yes", INT(BP$5), BP$5), "Actual gross capex ("&BP4&")", "") ->  | BQ25: =IF(COUNTA($H$25:BP$25)<IF($F$22="Yes", INT(BQ$5), BQ$5), "Actual gross capex ("&BQ4&")", "") ->  | BR25: =IF(COUNTA($H$25:BQ$25)<IF($F$22="Yes", INT(BR$5), BR$5), "Actual gross capex ("&BR4&")", "") ->  | BS25: =IF(COUNTA($H$25:BR$25)<IF($F$22="Yes", INT(BS$5), BS$5), "Actual gross capex ("&BS4&")", "") ->  | BT25: =IF(COUNTA($H$25:BS$25)<IF($F$22="Yes", INT(BT$5), BT$5), "Actual gross capex ("&BT4&")", "") ->  | BU25: =IF(COUNTA($H$25:BT$25)<IF($F$22="Yes", INT(BU$5), BU$5), "Actual gross capex ("&BU4&")", "") -> 
D27: 1 | E27: Subtransmission | G27: 201.8623299 | H27: 22.22141697 | I27: 44.0682691 | J27: 63.80349995 | K27: 63.1168207 | L27: 35.8697122 | M27: 30.40094799 | N27: 31.04905167 | O27: 47.89411248 | P27: 64.3323496 | Q27: =INDEX('[6]RFM input'!$F$61:$L$110,MATCH($E27,'[6]RFM input'!$E$61:$E$110,0),MATCH(Q$4,'[6]RFM input'!$F$60:$L$60,0)) -> 97.46415532 | R27: =INDEX('[6]RFM input'!$G$61:$G$110,MATCH($E27,'[6]RFM input'!$E$61:$E$110,0),1) -> 42.56067921 | S27: =INDEX('[6]RFM input'!$F$61:$L$110,MATCH($E27,'[6]RFM input'!$E$61:$E$110,0),MATCH(S$4,'[6]RFM input'!$F$60:$L$60,0)) -> 84.04094654 | T27: =INDEX('[6]RFM input'!$F$61:$L$110,MATCH($E27,'[6]RFM input'!$E$61:$E$110,0),MATCH(T$4,'[6]RFM input'!$F$60:$L$60,0)) -> 86.72233883 | U27: =INDEX('[6]RFM input'!$F$61:$L$110,MATCH($E27,'[6]RFM input'!$E$61:$E$110,0),MATCH(U$4,'[6]RFM input'!$F$60:$L$60,0)) -> 56.54142454 | V27: =INDEX('[6]RFM input'!$F$61:$L$110,MATCH($E27,'[6]RFM input'!$E$61:$E$110,0),MATCH(V$4,'[6]RFM input'!$F$60:$L$60,0)) -> 74.62311529 | W27: =INDEX('[6]RFM input'!$F$61:$L$110,MATCH($E27,'[6]RFM input'!$E$61:$E$110,0),MATCH(W$4,'[6]RFM input'!$F$60:$L$60,0)) -> 83.95114857
D28: 2 | E28: Distribution system assets | G28: 1751.8018 | H28: 214.2189208 | I28: 229.0560217 | J28: 264.2052245 | K28: 326.3935893 | L28: 285.792775 | M28: 245.8649248 | N28: 261.7750486 | O28: 294.4598854 | P28: 284.9927707 | Q28: =INDEX('[6]RFM input'!$F$61:$L$110,MATCH($E28,'[6]RFM input'!$E$61:$E$110,0),MATCH(Q$4,'[6]RFM input'!$F$60:$L$60,0)) -> 220.0181772 | R28: =INDEX('[6]RFM input'!$G$61:$G$110,MATCH($E28,'[6]RFM input'!$E$61:$E$110,0),1) -> 95.92843312 | S28: =INDEX('[6]RFM input'!$F$61:$L$110,MATCH($E28,'[6]RFM input'!$E$61:$E$110,0),MATCH(S$4,'[6]RFM input'!$F$60:$L$60,0)) -> 165.7081229 | T28: =INDEX('[6]RFM input'!$F$61:$L$110,MATCH($E28,'[6]RFM input'!$E$61:$E$110,0),MATCH(T$4,'[6]RFM input'!$F$60:$L$60,0)) -> 184.3472806 | U28: =INDEX('[6]RFM input'!$F$61:$L$110,MATCH($E28,'[6]RFM input'!$E$61:$E$110,0),MATCH(U$4,'[6]RFM input'!$F$60:$L$60,0)) -> 240.0972294 | V28: =INDEX('[6]RFM input'!$F$61:$L$110,MATCH($E28,'[6]RFM input'!$E$61:$E$110,0),MATCH(V$4,'[6]RFM input'!$F$60:$L$60,0)) -> 284.4481571 | W28: =INDEX('[6]RFM input'!$F$61:$L$110,MATCH($E28,'[6]RFM input'!$E$61:$E$110,0),MATCH(W$4,'[6]RFM input'!$F$60:$L$60,0)) -> 289.0447234
D29: 3 | E29: SCADA/Network control | G29: 1.665334537e-15 | H29: 1.268945127 | I29: 5.913493067 | J29: 1.925073195 | K29: 0.7359103181 | L29: 0.1793276472 | M29: 7.69671397 | N29: 19.79875687 | O29: 23.1073677 | P29: 33.03917802 | Q29: =INDEX('[6]RFM input'!$F$61:$L$110,MATCH($E29,'[6]RFM input'!$E$61:$E$110,0),MATCH(Q$4,'[6]RFM input'!$F$60:$L$60,0)) -> 16.9824132 | R29: =INDEX('[6]RFM input'!$G$61:$G$110,MATCH($E29,'[6]RFM input'!$E$61:$E$110,0),1) -> 5.30994281 | S29: =INDEX('[6]RFM input'!$F$61:$L$110,MATCH($E29,'[6]RFM input'!$E$61:$E$110,0),MATCH(S$4,'[6]RFM input'!$F$60:$L$60,0)) -> 16.61829471 | T29: =INDEX('[6]RFM input'!$F$61:$L$110,MATCH($E29,'[6]RFM input'!$E$61:$E$110,0),MATCH(T$4,'[6]RFM input'!$F$60:$L$60,0)) -> 17.15070353 | U29: =INDEX('[6]RFM input'!$F$61:$L$110,MATCH($E29,'[6]RFM input'!$E$61:$E$110,0),MATCH(U$4,'[6]RFM input'!$F$60:$L$60,0)) -> 26.12255491 | V29: =INDEX('[6]RFM input'!$F$61:$L$110,MATCH($E29,'[6]RFM input'!$E$61:$E$110,0),MATCH(V$4,'[6]RFM input'!$F$60:$L$60,0)) -> 28.38630405 | W29: =INDEX('[6]RFM input'!$F$61:$L$110,MATCH($E29,'[6]RFM input'!$E$61:$E$110,0),MATCH(W$4,'[6]RFM input'!$F$60:$L$60,0)) -> 27.41856053
D30: 4 | E30: Non-network general assets - IT | G30: 89.31941782 | H30: 46.61922544 | I30: 45.51615693 | J30: 50.20865082 | K30: 33.02607863 | L30: 32.02186213 | M30: 14.36809506 | N30: 40.48956073 | O30: 29.73710687 | P30: 44.82016246 | Q30: =INDEX('[6]RFM input'!$F$61:$L$110,MATCH($E30,'[6]RFM input'!$E$61:$E$110,0),MATCH(Q$4,'[6]RFM input'!$F$60:$L$60,0)) -> 57.71406353 | R30: =INDEX('[6]RFM input'!$G$61:$G$110,MATCH($E30,'[6]RFM input'!$E$61:$E$110,0),1) -> 32.77384726 | S30: =INDEX('[6]RFM input'!$F$61:$L$110,MATCH($E30,'[6]RFM input'!$E$61:$E$110,0),MATCH(S$4,'[6]RFM input'!$F$60:$L$60,0)) -> 4.030748168 | T30: =INDEX('[6]RFM input'!$F$61:$L$110,MATCH($E30,'[6]RFM input'!$E$61:$E$110,0),MATCH(T$4,'[6]RFM input'!$F$60:$L$60,0)) -> 7.513717211 | U30: =INDEX('[6]RFM input'!$F$61:$L$110,MATCH($E30,'[6]RFM input'!$E$61:$E$110,0),MATCH(U$4,'[6]RFM input'!$F$60:$L$60,0)) -> 15.11641645 | V30: =INDEX('[6]RFM input'!$F$61:$L$110,MATCH($E30,'[6]RFM input'!$E$61:$E$110,0),MATCH(V$4,'[6]RFM input'!$F$60:$L$60,0)) -> 13.13719541 | W30: =INDEX('[6]RFM input'!$F$61:$L$110,MATCH($E30,'[6]RFM input'!$E$61:$E$110,0),MATCH(W$4,'[6]RFM input'!$F$60:$L$60,0)) -> 13.12493488
D31: 5 | E31: Non-network general assets - Other | G31: 34.2756444 | H31: 5.026567095 | I31: 6.55480713 | J31: 6.160782975 | K31: 4.960397171 | L31: 6.055866463 | M31: 6.327389631 | N31: 5.422110521 | O31: 17.16112888 | P31: 5.018415724 | Q31: =INDEX('[6]RFM input'!$F$61:$L$110,MATCH($E31,'[6]RFM input'!$E$61:$E$110,0),MATCH(Q$4,'[6]RFM input'!$F$60:$L$60,0)) -> 4.653779429 | R31: =INDEX('[6]RFM input'!$G$61:$G$110,MATCH($E31,'[6]RFM input'!$E$61:$E$110,0),1) -> 1.971420416 | S31: =INDEX('[6]RFM input'!$F$61:$L$110,MATCH($E31,'[6]RFM input'!$E$61:$E$110,0),MATCH(S$4,'[6]RFM input'!$F$60:$L$60,0)) -> 0.5454286934 | T31: =INDEX('[6]RFM input'!$F$61:$L$110,MATCH($E31,'[6]RFM input'!$E$61:$E$110,0),MATCH(T$4,'[6]RFM input'!$F$60:$L$60,0)) -> 2.215016195 | U31: =INDEX('[6]RFM input'!$F$61:$L$110,MATCH($E31,'[6]RFM input'!$E$61:$E$110,0),MATCH(U$4,'[6]RFM input'!$F$60:$L$60,0)) -> 2.964332989 | V31: =INDEX('[6]RFM input'!$F$61:$L$110,MATCH($E31,'[6]RFM input'!$E$61:$E$110,0),MATCH(V$4,'[6]RFM input'!$F$60:$L$60,0)) -> 2.52487077 | W31: =INDEX('[6]RFM input'!$F$61:$L$110,MATCH($E31,'[6]RFM input'!$E$61:$E$110,0),MATCH(W$4,'[6]RFM input'!$F$60:$L$60,0)) -> 12.41164224
D32: 6 | E32: Land | G32: 0 | H32: 0 | I32: 0 | J32: 0 | K32: 0 | L32: 0 | M32: 0 | N32: 0.05416926297 | O32: 0 | P32: 0 | Q32: =INDEX('[6]RFM input'!$F$61:$L$110,MATCH($E32,'[6]RFM input'!$E$61:$E$110,0),MATCH(Q$4,'[6]RFM input'!$F$60:$L$60,0)) -> 0 | R32: =INDEX('[6]RFM input'!$G$61:$G$110,MATCH($E32,'[6]RFM input'!$E$61:$E$110,0),1) -> 0 | S32: =INDEX('[6]RFM input'!$F$61:$L$110,MATCH($E32,'[6]RFM input'!$E$61:$E$110,0),MATCH(S$4,'[6]RFM input'!$F$60:$L$60,0)) -> 15.86627141 | T32: =INDEX('[6]RFM input'!$F$61:$L$110,MATCH($E32,'[6]RFM input'!$E$61:$E$110,0),MATCH(T$4,'[6]RFM input'!$F$60:$L$60,0)) -> 3.02404255 | U32: =INDEX('[6]RFM input'!$F$61:$L$110,MATCH($E32,'[6]RFM input'!$E$61:$E$110,0),MATCH(U$4,'[6]RFM input'!$F$60:$L$60,0)) -> 0.11191513 | V32: =INDEX('[6]RFM input'!$F$61:$L$110,MATCH($E32,'[6]RFM input'!$E$61:$E$110,0),MATCH(V$4,'[6]RFM input'!$F$60:$L$60,0)) -> 8.352048155 | W32: =INDEX('[6]RFM input'!$F$61:$L$110,MATCH($E32,'[6]RFM input'!$E$61:$E$110,0),MATCH(W$4,'[6]RFM input'!$F$60:$L$60,0)) -> 3
D33: 7 | E33: Secondary systems (pre 2016) | G33: 0 | H33: 0 | I33: 0 | J33: 0 | K33: 0 | L33: 0 | M33: 0 | N33: 0 | O33: 0 | P33: 0 | Q33: =INDEX('[6]RFM input'!$F$61:$L$110,MATCH($E33,'[6]RFM input'!$E$61:$E$110,0),MATCH(Q$4,'[6]RFM input'!$F$60:$L$60,0)) -> 0 | R33: =INDEX('[6]RFM input'!$G$61:$G$110,MATCH($E33,'[6]RFM input'!$E$61:$E$110,0),1) -> 0 | S33: =INDEX('[6]RFM input'!$F$61:$L$110,MATCH($E33,'[6]RFM input'!$E$61:$E$110,0),MATCH(S$4,'[6]RFM input'!$F$60:$L$60,0)) -> 0 | T33: =INDEX('[6]RFM input'!$F$61:$L$110,MATCH($E33,'[6]RFM input'!$E$61:$E$110,0),MATCH(T$4,'[6]RFM input'!$F$60:$L$60,0)) -> 0 | U33: =INDEX('[6]RFM input'!$F$61:$L$110,MATCH($E33,'[6]RFM input'!$E$61:$E$110,0),MATCH(U$4,'[6]RFM input'!$F$60:$L$60,0)) -> 0 | V33: =INDEX('[6]RFM input'!$F$61:$L$110,MATCH($E33,'[6]RFM input'!$E$61:$E$110,0),MATCH(V$4,'[6]RFM input'!$F$60:$L$60,0)) -> 0 | W33: =INDEX('[6]RFM input'!$F$61:$L$110,MATCH($E33,'[6]RFM input'!$E$61:$E$110,0),MATCH(W$4,'[6]RFM input'!$F$60:$L$60,0)) -> 0
D34: 8 | E34: Accelerated Depr - Distr assets (Contingent Project 1) | G34: 0 | H34: 0 | I34: 0 | J34: 0 | K34: 0 | L34: 0 | M34: 0 | N34: 0 | O34: 0 | P34: 0 | Q34: =INDEX('[6]RFM input'!$F$61:$L$110,MATCH($E34,'[6]RFM input'!$E$61:$E$110,0),MATCH(Q$4,'[6]RFM input'!$F$60:$L$60,0)) -> 0 | R34: =INDEX('[6]RFM input'!$G$61:$G$110,MATCH($E34,'[6]RFM input'!$E$61:$E$110,0),1) -> 0 | S34: =INDEX('[6]RFM input'!$F$61:$L$110,MATCH($E34,'[6]RFM input'!$E$61:$E$110,0),MATCH(S$4,'[6]RFM input'!$F$60:$L$60,0)) -> 0 | T34: =INDEX('[6]RFM input'!$F$61:$L$110,MATCH($E34,'[6]RFM input'!$E$61:$E$110,0),MATCH(T$4,'[6]RFM input'!$F$60:$L$60,0)) -> 0 | U34: =INDEX('[6]RFM input'!$F$61:$L$110,MATCH($E34,'[6]RFM input'!$E$61:$E$110,0),MATCH(U$4,'[6]RFM input'!$F$60:$L$60,0)) -> 0 | V34: =INDEX('[6]RFM input'!$F$61:$L$110,MATCH($E34,'[6]RFM input'!$E$61:$E$110,0),MATCH(V$4,'[6]RFM input'!$F$60:$L$60,0)) -> 0 | W34: =INDEX('[6]RFM input'!$F$61:$L$110,MATCH($E34,'[6]RFM input'!$E$61:$E$110,0),MATCH(W$4,'[6]RFM input'!$F$60:$L$60,0)) -> 0
D35: 9 | E35: Accelerated Depr - Distr assets (Contingent Project 2) | G35: 0 | H35: 0 | I35: 0 | J35: 0 | K35: 0 | L35: 0 | M35: 0 | N35: 0 | O35: 0 | P35: 0 | Q35: =INDEX('[6]RFM input'!$F$61:$L$110,MATCH($E35,'[6]RFM input'!$E$61:$E$110,0),MATCH(Q$4,'[6]RFM input'!$F$60:$L$60,0)) -> 0 | R35: =INDEX('[6]RFM input'!$G$61:$G$110,MATCH($E35,'[6]RFM input'!$E$61:$E$110,0),1) -> 0 | S35: =INDEX('[6]RFM input'!$F$61:$L$110,MATCH($E35,'[6]RFM input'!$E$61:$E$110,0),MATCH(S$4,'[6]RFM input'!$F$60:$L$60,0)) -> 0 | T35: =INDEX('[6]RFM input'!$F$61:$L$110,MATCH($E35,'[6]RFM input'!$E$61:$E$110,0),MATCH(T$4,'[6]RFM input'!$F$60:$L$60,0)) -> 0 | U35: =INDEX('[6]RFM input'!$F$61:$L$110,MATCH($E35,'[6]RFM input'!$E$61:$E$110,0),MATCH(U$4,'[6]RFM input'!$F$60:$L$60,0)) -> 0 | V35: =INDEX('[6]RFM input'!$F$61:$L$110,MATCH($E35,'[6]RFM input'!$E$61:$E$110,0),MATCH(V$4,'[6]RFM input'!$F$60:$L$60,0)) -> 0 | W35: =INDEX('[6]RFM input'!$F$61:$L$110,MATCH($E35,'[6]RFM input'!$E$61:$E$110,0),MATCH(W$4,'[6]RFM input'!$F$60:$L$60,0)) -> 0
D36: 10 | E36: Accelerated Depr - Distr assets (Contingent Project 3) | G36: 0 | H36: 0 | I36: 0 | J36: 0 | K36: 0 | L36: 0 | M36: 0 | N36: 0 | O36: 0 | P36: 0 | Q36: =INDEX('[6]RFM input'!$F$61:$L$110,MATCH($E36,'[6]RFM input'!$E$61:$E$110,0),MATCH(Q$4,'[6]RFM input'!$F$60:$L$60,0)) -> 0 | R36: =INDEX('[6]RFM input'!$G$61:$G$110,MATCH($E36,'[6]RFM input'!$E$61:$E$110,0),1) -> 0 | S36: =INDEX('[6]RFM input'!$F$61:$L$110,MATCH($E36,'[6]RFM input'!$E$61:$E$110,0),MATCH(S$4,'[6]RFM input'!$F$60:$L$60,0)) -> 0 | T36: =INDEX('[6]RFM input'!$F$61:$L$110,MATCH($E36,'[6]RFM input'!$E$61:$E$110,0),MATCH(T$4,'[6]RFM input'!$F$60:$L$60,0)) -> 0 | U36: =INDEX('[6]RFM input'!$F$61:$L$110,MATCH($E36,'[6]RFM input'!$E$61:$E$110,0),MATCH(U$4,'[6]RFM input'!$F$60:$L$60,0)) -> 0 | V36: =INDEX('[6]RFM input'!$F$61:$L$110,MATCH($E36,'[6]RFM input'!$E$61:$E$110,0),MATCH(V$4,'[6]RFM input'!$F$60:$L$60,0)) -> 0 | W36: =INDEX('[6]RFM input'!$F$61:$L$110,MATCH($E36,'[6]RFM input'!$E$61:$E$110,0),MATCH(W$4,'[6]RFM input'!$F$60:$L$60,0)) -> 0
D37: 11 | E37: Accelerated Depr - Distr assets (Other) | G37: 0 | H37: 0 | I37: 0 | J37: 0 | K37: 0 | L37: 0 | M37: 0 | N37: 0 | O37: 0 | P37: 0 | Q37: =INDEX('[6]RFM input'!$F$61:$L$110,MATCH($E37,'[6]RFM input'!$E$61:$E$110,0),MATCH(Q$4,'[6]RFM input'!$F$60:$L$60,0)) -> 0 | R37: =INDEX('[6]RFM input'!$G$61:$G$110,MATCH($E37,'[6]RFM input'!$E$61:$E$110,0),1) -> 0 | S37: =INDEX('[6]RFM input'!$F$61:$L$110,MATCH($E37,'[6]RFM input'!$E$61:$E$110,0),MATCH(S$4,'[6]RFM input'!$F$60:$L$60,0)) -> 0 | T37: =INDEX('[6]RFM input'!$F$61:$L$110,MATCH($E37,'[6]RFM input'!$E$61:$E$110,0),MATCH(T$4,'[6]RFM input'!$F$60:$L$60,0)) -> 0 | U37: =INDEX('[6]RFM input'!$F$61:$L$110,MATCH($E37,'[6]RFM input'!$E$61:$E$110,0),MATCH(U$4,'[6]RFM input'!$F$60:$L$60,0)) -> 0 | V37: =INDEX('[6]RFM input'!$F$61:$L$110,MATCH($E37,'[6]RFM input'!$E$61:$E$110,0),MATCH(V$4,'[6]RFM input'!$F$60:$L$60,0)) -> 0 | W37: =INDEX('[6]RFM input'!$F$61:$L$110,MATCH($E37,'[6]RFM input'!$E$61:$E$110,0),MATCH(W$4,'[6]RFM input'!$F$60:$L$60,0)) -> 0
D38: 12 | E38: Non-network leasehold land & buildings - 1 July 2021 | G38: 0 | H38: 0 | I38: 0 | J38: 0 | K38: 0 | L38: 0 | M38: 0 | N38: 0 | O38: 0 | P38: 0 | Q38: =INDEX('[6]RFM input'!$F$61:$L$110,MATCH($E38,'[6]RFM input'!$E$61:$E$110,0),MATCH(Q$4,'[6]RFM input'!$F$60:$L$60,0)) -> 0 | R38: =INDEX('[6]RFM input'!$G$61:$G$110,MATCH($E38,'[6]RFM input'!$E$61:$E$110,0),1) -> 0 | S38: =INDEX('[6]RFM input'!$F$61:$L$110,MATCH($E38,'[6]RFM input'!$E$61:$E$110,0),MATCH(S$4,'[6]RFM input'!$F$60:$L$60,0)) -> 0 | T38: =INDEX('[6]RFM input'!$F$61:$L$110,MATCH($E38,'[6]RFM input'!$E$61:$E$110,0),MATCH(T$4,'[6]RFM input'!$F$60:$L$60,0)) -> 0 | U38: =INDEX('[6]RFM input'!$F$61:$L$110,MATCH($E38,'[6]RFM input'!$E$61:$E$110,0),MATCH(U$4,'[6]RFM input'!$F$60:$L$60,0)) -> 0 | V38: =INDEX('[6]RFM input'!$F$61:$L$110,MATCH($E38,'[6]RFM input'!$E$61:$E$110,0),MATCH(V$4,'[6]RFM input'!$F$60:$L$60,0)) -> 0 | W38: =INDEX('[6]RFM input'!$F$61:$L$110,MATCH($E38,'[6]RFM input'!$E$61:$E$110,0),MATCH(W$4,'[6]RFM input'!$F$60:$L$60,0)) -> 0
D39: 13 | E39: Non- Network Leasehold Land & Buildings - 2021-22 | G39: 0 | H39: 0 | I39: 0 | J39: 0 | K39: 0 | L39: 0 | M39: 0 | N39: 0 | O39: 0 | P39: 0 | Q39: =INDEX('[6]RFM input'!$F$61:$L$110,MATCH($E39,'[6]RFM input'!$E$61:$E$110,0),MATCH(Q$4,'[6]RFM input'!$F$60:$L$60,0)) -> 0 | R39: =INDEX('[6]RFM input'!$G$61:$G$110,MATCH($E39,'[6]RFM input'!$E$61:$E$110,0),1) -> 0 | S39: =INDEX('[6]RFM input'!$F$61:$L$110,MATCH($E39,'[6]RFM input'!$E$61:$E$110,0),MATCH(S$4,'[6]RFM input'!$F$60:$L$60,0)) -> 0 | T39: =INDEX('[6]RFM input'!$F$61:$L$110,MATCH($E39,'[6]RFM input'!$E$61:$E$110,0),MATCH(T$4,'[6]RFM input'!$F$60:$L$60,0)) -> 0 | U39: =INDEX('[6]RFM input'!$F$61:$L$110,MATCH($E39,'[6]RFM input'!$E$61:$E$110,0),MATCH(U$4,'[6]RFM input'!$F$60:$L$60,0)) -> 0.2429223966 | V39: =INDEX('[6]RFM input'!$F$61:$L$110,MATCH($E39,'[6]RFM input'!$E$61:$E$110,0),MATCH(V$4,'[6]RFM input'!$F$60:$L$60,0)) -> 0 | W39: =INDEX('[6]RFM input'!$F$61:$L$110,MATCH($E39,'[6]RFM input'!$E$61:$E$110,0),MATCH(W$4,'[6]RFM input'!$F$60:$L$60,0)) -> 0
D40: 14 | E40: Non- Network Leasehold Land & Buildings - 2025-26 | G40: 0 | H40: 0 | I40: 0 | J40: 0 | K40: 0 | L40: 0 | M40: 0 | N40: 0 | O40: 0 | P40: 0 | Q40: =INDEX('[6]RFM input'!$F$61:$L$110,MATCH($E40,'[6]RFM input'!$E$61:$E$110,0),MATCH(Q$4,'[6]RFM input'!$F$60:$L$60,0)) -> 0 | R40: =INDEX('[6]RFM input'!$G$61:$G$110,MATCH($E40,'[6]RFM input'!$E$61:$E$110,0),1) -> 0 | S40: =INDEX('[6]RFM input'!$F$61:$L$110,MATCH($E40,'[6]RFM input'!$E$61:$E$110,0),MATCH(S$4,'[6]RFM input'!$F$60:$L$60,0)) -> 0 | T40: =INDEX('[6]RFM input'!$F$61:$L$110,MATCH($E40,'[6]RFM input'!$E$61:$E$110,0),MATCH(T$4,'[6]RFM input'!$F$60:$L$60,0)) -> 0.170220025 | U40: =INDEX('[6]RFM input'!$F$61:$L$110,MATCH($E40,'[6]RFM input'!$E$61:$E$110,0),MATCH(U$4,'[6]RFM input'!$F$60:$L$60,0)) -> 0 | V40: =INDEX('[6]RFM input'!$F$61:$L$110,MATCH($E40,'[6]RFM input'!$E$61:$E$110,0),MATCH(V$4,'[6]RFM input'!$F$60:$L$60,0)) -> 0.9464742137 | W40: =INDEX('[6]RFM input'!$F$61:$L$110,MATCH($E40,'[6]RFM input'!$E$61:$E$110,0),MATCH(W$4,'[6]RFM input'!$F$60:$L$60,0)) -> 0.07445985859
D41: 15
D42: 16 | E42: Critical spares - network assets
D43: 17
D44: 18
D45: 19
D46: 20
D47: 21
D48: 22
D49: 23
D50: 24
D51: 25
D52: 26
D53: 27
D54: 28
D55: 29
D56: 30
D57: 31
D58: 32
D59: 33
D60: 34
D61: 35
D62: 36
D63: 37
D64: 38
D65: 39
D66: 40
D67: 41
D68: 42
D69: 43
D70: 44
D71: 45
D72: 46
D73: 47
D74: 48 | E74: Buildings - capital works | G74: 0 | H74: 0 | I74: 0 | J74: 0 | K74: 0 | L74: 0 | M74: 0 | N74: 0 | O74: 0 | P74: 0 | Q74: =INDEX('[6]RFM input'!$F$61:$L$110,MATCH($E74,'[6]RFM input'!$E$61:$E$110,0),MATCH(Q$4,'[6]RFM input'!$F$60:$L$60,0)) -> 0 | R74: =INDEX('[6]RFM input'!$G$61:$G$110,MATCH($E74,'[6]RFM input'!$E$61:$E$110,0),1) -> 0 | S74: =INDEX('[6]RFM input'!$F$61:$L$110,MATCH($E74,'[6]RFM input'!$E$61:$E$110,0),MATCH(S$4,'[6]RFM input'!$F$60:$L$60,0)) -> 15.91732257 | T74: =INDEX('[6]RFM input'!$F$61:$L$110,MATCH($E74,'[6]RFM input'!$E$61:$E$110,0),MATCH(T$4,'[6]RFM input'!$F$60:$L$60,0)) -> 1.655039853 | U74: =INDEX('[6]RFM input'!$F$61:$L$110,MATCH($E74,'[6]RFM input'!$E$61:$E$110,0),MATCH(U$4,'[6]RFM input'!$F$60:$L$60,0)) -> 0.008900863102 | V74: =INDEX('[6]RFM input'!$F$61:$L$110,MATCH($E74,'[6]RFM input'!$E$61:$E$110,0),MATCH(V$4,'[6]RFM input'!$F$60:$L$60,0)) -> 0 | W74: =INDEX('[6]RFM input'!$F$61:$L$110,MATCH($E74,'[6]RFM input'!$E$61:$E$110,0),MATCH(W$4,'[6]RFM input'!$F$60:$L$60,0)) -> 0
D75: 49 | E75: ='[6]RFM input'!F55 -> in-house software | G75: 0 | H75: 0 | I75: 0 | J75: 0 | K75: 0 | L75: 0 | M75: 0 | N75: 0 | O75: 0 | P75: 0 | Q75: =INDEX('[6]RFM input'!$F$61:$L$110,MATCH($E75,'[6]RFM input'!$E$61:$E$110,0),MATCH(Q$4,'[6]RFM input'!$F$60:$L$60,0)) -> 0 | R75: =INDEX('[6]RFM input'!$G$61:$G$110,MATCH($E75,'[6]RFM input'!$E$61:$E$110,0),1) -> 0 | S75: =INDEX('[6]RFM input'!$F$61:$L$110,MATCH($E75,'[6]RFM input'!$E$61:$E$110,0),MATCH(S$4,'[6]RFM input'!$F$60:$L$60,0)) -> 57.09158779 | T75: =INDEX('[6]RFM input'!$F$61:$L$110,MATCH($E75,'[6]RFM input'!$E$61:$E$110,0),MATCH(T$4,'[6]RFM input'!$F$60:$L$60,0)) -> 45.12378867 | U75: =INDEX('[6]RFM input'!$F$61:$L$110,MATCH($E75,'[6]RFM input'!$E$61:$E$110,0),MATCH(U$4,'[6]RFM input'!$F$60:$L$60,0)) -> 50.26062435 | V75: =INDEX('[6]RFM input'!$F$61:$L$110,MATCH($E75,'[6]RFM input'!$E$61:$E$110,0),MATCH(V$4,'[6]RFM input'!$F$60:$L$60,0)) -> 72.03462431 | W75: =INDEX('[6]RFM input'!$F$61:$L$110,MATCH($E75,'[6]RFM input'!$E$61:$E$110,0),MATCH(W$4,'[6]RFM input'!$F$60:$L$60,0)) -> 60.59275277
D76: 50 | E76: ='[6]RFM input'!F56 -> Equity raising costs | G76: 0 | H76: 1.483114918 | I76: 0 | J76: 0 | K76: 0 | L76: 0 | M76: 10.60264634 | N76: 0 | O76: 0 | P76: 0 | Q76: =INDEX('[6]RFM input'!$F$61:$L$110,MATCH($E76,'[6]RFM input'!$E$61:$E$110,0),MATCH(Q$4,'[6]RFM input'!$F$60:$L$60,0)) -> 0 | R76: =INDEX('[6]RFM input'!$G$61:$G$110,MATCH($E76,'[6]RFM input'!$E$61:$E$110,0),1) -> 1.455202368 | S76: =INDEX('[6]RFM input'!$F$61:$L$110,MATCH($E76,'[6]RFM input'!$E$61:$E$110,0),MATCH(S$4,'[6]RFM input'!$F$60:$L$60,0)) -> 0 | T76: =INDEX('[6]RFM input'!$F$61:$L$110,MATCH($E76,'[6]RFM input'!$E$61:$E$110,0),MATCH(T$4,'[6]RFM input'!$F$60:$L$60,0)) -> 0 | U76: =INDEX('[6]RFM input'!$F$61:$L$110,MATCH($E76,'[6]RFM input'!$E$61:$E$110,0),MATCH(U$4,'[6]RFM input'!$F$60:$L$60,0)) -> 0 | V76: =INDEX('[6]RFM input'!$F$61:$L$110,MATCH($E76,'[6]RFM input'!$E$61:$E$110,0),MATCH(V$4,'[6]RFM input'!$F$60:$L$60,0)) -> 0 | W76: =INDEX('[6]RFM input'!$F$61:$L$110,MATCH($E76,'[6]RFM input'!$E$61:$E$110,0),MATCH(W$4,'[6]RFM input'!$F$60:$L$60,0)) -> 0
E77: Total | G77: =SUM(G27:G76) -> 2077.259192 | H77: =SUM(H27:H76) -> 290.8381904 | I77: 331.108748 | J77: 386.3032315 | K77: 428.2327961 | L77: 359.9195434 | M77: 315.2607178 | N77: 358.5886977 | O77: 412.3596013 | P77: 432.2028765 | Q77: 396.8325887 | R77: 179.9995252 | S77: 359.8187228 | T77: 347.9221474 | U77: 391.4663211 | V77: 484.4527893 | W77: 489.6182223 | X77: 0 | Y77: 0 | Z77: 0 | AA77: 0 | AB77: 0 | AC77: 0 | AD77: 0 | AE77: 0 | AF77: 0 | AG77: 0 | AH77: 0 | AI77: 0 | AJ77: 0 | AK77: 0 | AL77: 0 | AM77: 0 | AN77: 0 | AO77: 0 | AP77: 0 | AQ77: 0 | AR77: 0 | AS77: 0 | AT77: 0 | AU77: 0 | AV77: 0 | AW77: 0 | AX77: 0 | AY77: 0 | AZ77: 0 | BA77: 0 | BB77: 0 | BC77: 0 | BD77: 0 | BE77: 0 | BF77: 0 | BG77: 0 | BH77: 0 | BI77: 0 | BJ77: 0 | BK77: 0 | BL77: 0 | BM77: 0 | BN77: 0 | BO77: 0 | BP77: 0 | BQ77: 0 | BR77: 0 | BS77: 0 | BT77: =SUM(BT27:BT76) -> 0 | BU77: =SUM(BU27:BU76) -> 0
D79: Actual asset disposals - As incurred ($m, nominal)
E80: =$E$25 -> Asset class | H80: =IF(H$25="", "", "Actual asset disposals ("&H$4&")") -> Actual asset disposals (2011) | I80: =IF(I$25="", "", "Actual asset disposals ("&I$4&")") -> Actual asset disposals (2012) | J80: Actual asset disposals (2013) | K80: Actual asset disposals (2014) | L80: Actual asset disposals (2015) | M80: Actual asset disposals (2016) | N80: Actual asset disposals (2017) | O80: Actual asset disposals (2018) | P80: Actual asset disposals (2019) | Q80: Actual asset disposals (2020) | R80: Actual asset disposals (2021) | S80: Actual asset disposals (2021-22) | T80: Actual asset disposals (2022-23) | U80: Actual asset disposals (2023-24) | V80: Actual asset disposals (2024-25) | W80: Actual asset disposals (2025-26) | BU80: =IF(BU$25="", "", "Actual asset disposals ("&BU$4&")") -> 
E81: =E27 -> Subtransmission | H81: 0 | I81: 0 | J81: 0 | K81: 0 | L81: 0 | M81: 0 | N81: 0 | O81: 0 | P81: 0 | Q81: =INDEX('[6]RFM input'!$E$115:$L$164,MATCH($E81,'[6]RFM input'!$E$115:$E$164,0),MATCH(Q$4,'[6]RFM input'!$E$114:$L$114,0)) -> 0 | R81: =INDEX('[6]RFM input'!$G$115:$G$164,MATCH($E81,'[6]RFM input'!$E$115:$E$164,0),1) -> 0 | S81: =INDEX('[6]RFM input'!$E$115:$L$164,MATCH($E81,'[6]RFM input'!$E$115:$E$164,0),MATCH(S$4,'[6]RFM input'!$E$114:$L$114,0)) -> 0 | T81: =INDEX('[6]RFM input'!$E$115:$L$164,MATCH($E81,'[6]RFM input'!$E$115:$E$164,0),MATCH(T$4,'[6]RFM input'!$E$114:$L$114,0)) -> 0 | U81: =INDEX('[6]RFM input'!$E$115:$L$164,MATCH($E81,'[6]RFM input'!$E$115:$E$164,0),MATCH(U$4,'[6]RFM input'!$E$114:$L$114,0)) -> 0 | V81: =INDEX('[6]RFM input'!$E$115:$L$164,MATCH($E81,'[6]RFM input'!$E$115:$E$164,0),MATCH(V$4,'[6]RFM input'!$E$114:$L$114,0)) -> 0 | W81: =INDEX('[6]RFM input'!$E$115:$L$164,MATCH($E81,'[6]RFM input'!$E$115:$E$164,0),MATCH(W$4,'[6]RFM input'!$E$114:$L$114,0)) -> 0
E82: Distribution system assets | H82: 0 | I82: 0 | J82: 0 | K82: 0 | L82: 0 | M82: 0 | N82: 0 | O82: 0 | P82: 0 | Q82: =INDEX('[6]RFM input'!$E$115:$L$164,MATCH($E82,'[6]RFM input'!$E$115:$E$164,0),MATCH(Q$4,'[6]RFM input'!$E$114:$L$114,0)) -> 0 | R82: =INDEX('[6]RFM input'!$G$115:$G$164,MATCH($E82,'[6]RFM input'!$E$115:$E$164,0),1) -> 0 | S82: =INDEX('[6]RFM input'!$E$115:$L$164,MATCH($E82,'[6]RFM input'!$E$115:$E$164,0),MATCH(S$4,'[6]RFM input'!$E$114:$L$114,0)) -> 0 | T82: =INDEX('[6]RFM input'!$E$115:$L$164,MATCH($E82,'[6]RFM input'!$E$115:$E$164,0),MATCH(T$4,'[6]RFM input'!$E$114:$L$114,0)) -> 0 | U82: =INDEX('[6]RFM input'!$E$115:$L$164,MATCH($E82,'[6]RFM input'!$E$115:$E$164,0),MATCH(U$4,'[6]RFM input'!$E$114:$L$114,0)) -> 0 | V82: =INDEX('[6]RFM input'!$E$115:$L$164,MATCH($E82,'[6]RFM input'!$E$115:$E$164,0),MATCH(V$4,'[6]RFM input'!$E$114:$L$114,0)) -> 0 | W82: =INDEX('[6]RFM input'!$E$115:$L$164,MATCH($E82,'[6]RFM input'!$E$115:$E$164,0),MATCH(W$4,'[6]RFM input'!$E$114:$L$114,0)) -> 0
E83: SCADA/Network control | H83: 0 | I83: 0 | J83: 0 | K83: 0 | L83: 0 | M83: 0 | N83: 0 | O83: 0 | P83: 0 | Q83: =INDEX('[6]RFM input'!$E$115:$L$164,MATCH($E83,'[6]RFM input'!$E$115:$E$164,0),MATCH(Q$4,'[6]RFM input'!$E$114:$L$114,0)) -> 0 | R83: =INDEX('[6]RFM input'!$G$115:$G$164,MATCH($E83,'[6]RFM input'!$E$115:$E$164,0),1) -> 0 | S83: =INDEX('[6]RFM input'!$E$115:$L$164,MATCH($E83,'[6]RFM input'!$E$115:$E$164,0),MATCH(S$4,'[6]RFM input'!$E$114:$L$114,0)) -> 0 | T83: =INDEX('[6]RFM input'!$E$115:$L$164,MATCH($E83,'[6]RFM input'!$E$115:$E$164,0),MATCH(T$4,'[6]RFM input'!$E$114:$L$114,0)) -> 0 | U83: =INDEX('[6]RFM input'!$E$115:$L$164,MATCH($E83,'[6]RFM input'!$E$115:$E$164,0),MATCH(U$4,'[6]RFM input'!$E$114:$L$114,0)) -> 0 | V83: =INDEX('[6]RFM input'!$E$115:$L$164,MATCH($E83,'[6]RFM input'!$E$115:$E$164,0),MATCH(V$4,'[6]RFM input'!$E$114:$L$114,0)) -> 0 | W83: =INDEX('[6]RFM input'!$E$115:$L$164,MATCH($E83,'[6]RFM input'!$E$115:$E$164,0),MATCH(W$4,'[6]RFM input'!$E$114:$L$114,0)) -> 0
E84: Non-network general assets - IT | H84: 0 | I84: 0 | J84: 0 | K84: 0.004128959812 | L84: 0 | M84: 0 | N84: 0 | O84: 0 | P84: 0 | Q84: =INDEX('[6]RFM input'!$E$115:$L$164,MATCH($E84,'[6]RFM input'!$E$115:$E$164,0),MATCH(Q$4,'[6]RFM input'!$E$114:$L$114,0)) -> 0 | R84: =INDEX('[6]RFM input'!$G$115:$G$164,MATCH($E84,'[6]RFM input'!$E$115:$E$164,0),1) -> 0 | S84: =INDEX('[6]RFM input'!$E$115:$L$164,MATCH($E84,'[6]RFM input'!$E$115:$E$164,0),MATCH(S$4,'[6]RFM input'!$E$114:$L$114,0)) -> 0 | T84: =INDEX('[6]RFM input'!$E$115:$L$164,MATCH($E84,'[6]RFM input'!$E$115:$E$164,0),MATCH(T$4,'[6]RFM input'!$E$114:$L$114,0)) -> 0 | U84: =INDEX('[6]RFM input'!$E$115:$L$164,MATCH($E84,'[6]RFM input'!$E$115:$E$164,0),MATCH(U$4,'[6]RFM input'!$E$114:$L$114,0)) -> 0 | V84: =INDEX('[6]RFM input'!$E$115:$L$164,MATCH($E84,'[6]RFM input'!$E$115:$E$164,0),MATCH(V$4,'[6]RFM input'!$E$114:$L$114,0)) -> 0.00956552213 | W84: =INDEX('[6]RFM input'!$E$115:$L$164,MATCH($E84,'[6]RFM input'!$E$115:$E$164,0),MATCH(W$4,'[6]RFM input'!$E$114:$L$114,0)) -> 0.009852487794
E85: Non-network general assets - Other | H85: 0.301 | I85: 3.843 | J85: 0.369 | K85: 0.402 | L85: 0.09917796023 | M85: 3.606491 | N85: 0.37779513 | O85: 0.48757914 | P85: 13.48252469 | Q85: =INDEX('[6]RFM input'!$E$115:$L$164,MATCH($E85,'[6]RFM input'!$E$115:$E$164,0),MATCH(Q$4,'[6]RFM input'!$E$114:$L$114,0)) -> 0.56387384 | R85: =INDEX('[6]RFM input'!$G$115:$G$164,MATCH($E85,'[6]RFM input'!$E$115:$E$164,0),1) -> 0.20044384 | S85: =INDEX('[6]RFM input'!$E$115:$L$164,MATCH($E85,'[6]RFM input'!$E$115:$E$164,0),MATCH(S$4,'[6]RFM input'!$E$114:$L$114,0)) -> 0.19891502 | T85: =INDEX('[6]RFM input'!$E$115:$L$164,MATCH($E85,'[6]RFM input'!$E$115:$E$164,0),MATCH(T$4,'[6]RFM input'!$E$114:$L$114,0)) -> 1.06238977 | U85: =INDEX('[6]RFM input'!$E$115:$L$164,MATCH($E85,'[6]RFM input'!$E$115:$E$164,0),MATCH(U$4,'[6]RFM input'!$E$114:$L$114,0)) -> 0.08203511 | V85: =INDEX('[6]RFM input'!$E$115:$L$164,MATCH($E85,'[6]RFM input'!$E$115:$E$164,0),MATCH(V$4,'[6]RFM input'!$E$114:$L$114,0)) -> 1.569934683 | W85: =INDEX('[6]RFM input'!$E$115:$L$164,MATCH($E85,'[6]RFM input'!$E$115:$E$164,0),MATCH(W$4,'[6]RFM input'!$E$114:$L$114,0)) -> 1.617032724
E86: Land | H86: 0 | I86: 0 | J86: 0 | K86: 0 | L86: 0 | M86: 0 | N86: 0 | O86: 0 | P86: 0 | Q86: =INDEX('[6]RFM input'!$E$115:$L$164,MATCH($E86,'[6]RFM input'!$E$115:$E$164,0),MATCH(Q$4,'[6]RFM input'!$E$114:$L$114,0)) -> 0 | R86: =INDEX('[6]RFM input'!$G$115:$G$164,MATCH($E86,'[6]RFM input'!$E$115:$E$164,0),1) -> 0 | S86: =INDEX('[6]RFM input'!$E$115:$L$164,MATCH($E86,'[6]RFM input'!$E$115:$E$164,0),MATCH(S$4,'[6]RFM input'!$E$114:$L$114,0)) -> 0 | T86: =INDEX('[6]RFM input'!$E$115:$L$164,MATCH($E86,'[6]RFM input'!$E$115:$E$164,0),MATCH(T$4,'[6]RFM input'!$E$114:$L$114,0)) -> 0 | U86: =INDEX('[6]RFM input'!$E$115:$L$164,MATCH($E86,'[6]RFM input'!$E$115:$E$164,0),MATCH(U$4,'[6]RFM input'!$E$114:$L$114,0)) -> 0 | V86: =INDEX('[6]RFM input'!$E$115:$L$164,MATCH($E86,'[6]RFM input'!$E$115:$E$164,0),MATCH(V$4,'[6]RFM input'!$E$114:$L$114,0)) -> 0 | W86: =INDEX('[6]RFM input'!$E$115:$L$164,MATCH($E86,'[6]RFM input'!$E$115:$E$164,0),MATCH(W$4,'[6]RFM input'!$E$114:$L$114,0)) -> 0
E87: Secondary systems (pre 2016) | H87: 0 | I87: 0 | J87: 0 | K87: 0 | L87: 0 | M87: 0 | N87: 0 | O87: 0 | P87: 0 | Q87: =INDEX('[6]RFM input'!$E$115:$L$164,MATCH($E87,'[6]RFM input'!$E$115:$E$164,0),MATCH(Q$4,'[6]RFM input'!$E$114:$L$114,0)) -> 0 | R87: =INDEX('[6]RFM input'!$G$115:$G$164,MATCH($E87,'[6]RFM input'!$E$115:$E$164,0),1) -> 0 | S87: =INDEX('[6]RFM input'!$E$115:$L$164,MATCH($E87,'[6]RFM input'!$E$115:$E$164,0),MATCH(S$4,'[6]RFM input'!$E$114:$L$114,0)) -> 0 | T87: =INDEX('[6]RFM input'!$E$115:$L$164,MATCH($E87,'[6]RFM input'!$E$115:$E$164,0),MATCH(T$4,'[6]RFM input'!$E$114:$L$114,0)) -> 0 | U87: =INDEX('[6]RFM input'!$E$115:$L$164,MATCH($E87,'[6]RFM input'!$E$115:$E$164,0),MATCH(U$4,'[6]RFM input'!$E$114:$L$114,0)) -> 0 | V87: =INDEX('[6]RFM input'!$E$115:$L$164,MATCH($E87,'[6]RFM input'!$E$115:$E$164,0),MATCH(V$4,'[6]RFM input'!$E$114:$L$114,0)) -> 0 | W87: =INDEX('[6]RFM input'!$E$115:$L$164,MATCH($E87,'[6]RFM input'!$E$115:$E$164,0),MATCH(W$4,'[6]RFM input'!$E$114:$L$114,0)) -> 0
E88: Accelerated Depr - Distr assets (Contingent Project 1) | H88: 0 | I88: 0 | J88: 0 | K88: 0 | L88: 0 | M88: 0 | N88: 0 | O88: 0 | P88: 0 | Q88: =INDEX('[6]RFM input'!$E$115:$L$164,MATCH($E88,'[6]RFM input'!$E$115:$E$164,0),MATCH(Q$4,'[6]RFM input'!$E$114:$L$114,0)) -> 0 | R88: =INDEX('[6]RFM input'!$G$115:$G$164,MATCH($E88,'[6]RFM input'!$E$115:$E$164,0),1) -> 0 | S88: =INDEX('[6]RFM input'!$E$115:$L$164,MATCH($E88,'[6]RFM input'!$E$115:$E$164,0),MATCH(S$4,'[6]RFM input'!$E$114:$L$114,0)) -> 0 | T88: =INDEX('[6]RFM input'!$E$115:$L$164,MATCH($E88,'[6]RFM input'!$E$115:$E$164,0),MATCH(T$4,'[6]RFM input'!$E$114:$L$114,0)) -> 0 | U88: =INDEX('[6]RFM input'!$E$115:$L$164,MATCH($E88,'[6]RFM input'!$E$115:$E$164,0),MATCH(U$4,'[6]RFM input'!$E$114:$L$114,0)) -> 0 | V88: =INDEX('[6]RFM input'!$E$115:$L$164,MATCH($E88,'[6]RFM input'!$E$115:$E$164,0),MATCH(V$4,'[6]RFM input'!$E$114:$L$114,0)) -> 0 | W88: =INDEX('[6]RFM input'!$E$115:$L$164,MATCH($E88,'[6]RFM input'!$E$115:$E$164,0),MATCH(W$4,'[6]RFM input'!$E$114:$L$114,0)) -> 0
E89: Accelerated Depr - Distr assets (Contingent Project 2) | H89: 0 | I89: 0 | J89: 0 | K89: 0 | L89: 0 | M89: 0 | N89: 0 | O89: 0 | P89: 0 | Q89: =INDEX('[6]RFM input'!$E$115:$L$164,MATCH($E89,'[6]RFM input'!$E$115:$E$164,0),MATCH(Q$4,'[6]RFM input'!$E$114:$L$114,0)) -> 0 | R89: =INDEX('[6]RFM input'!$G$115:$G$164,MATCH($E89,'[6]RFM input'!$E$115:$E$164,0),1) -> 0 | S89: =INDEX('[6]RFM input'!$E$115:$L$164,MATCH($E89,'[6]RFM input'!$E$115:$E$164,0),MATCH(S$4,'[6]RFM input'!$E$114:$L$114,0)) -> 0 | T89: =INDEX('[6]RFM input'!$E$115:$L$164,MATCH($E89,'[6]RFM input'!$E$115:$E$164,0),MATCH(T$4,'[6]RFM input'!$E$114:$L$114,0)) -> 0 | U89: =INDEX('[6]RFM input'!$E$115:$L$164,MATCH($E89,'[6]RFM input'!$E$115:$E$164,0),MATCH(U$4,'[6]RFM input'!$E$114:$L$114,0)) -> 0 | V89: =INDEX('[6]RFM input'!$E$115:$L$164,MATCH($E89,'[6]RFM input'!$E$115:$E$164,0),MATCH(V$4,'[6]RFM input'!$E$114:$L$114,0)) -> 0 | W89: =INDEX('[6]RFM input'!$E$115:$L$164,MATCH($E89,'[6]RFM input'!$E$115:$E$164,0),MATCH(W$4,'[6]RFM input'!$E$114:$L$114,0)) -> 0
E90: Accelerated Depr - Distr assets (Contingent Project 3) | H90: 0 | I90: 0 | J90: 0 | K90: 0 | L90: 0 | M90: 0 | N90: 0 | O90: 0 | P90: 0 | Q90: =INDEX('[6]RFM input'!$E$115:$L$164,MATCH($E90,'[6]RFM input'!$E$115:$E$164,0),MATCH(Q$4,'[6]RFM input'!$E$114:$L$114,0)) -> 0 | R90: =INDEX('[6]RFM input'!$G$115:$G$164,MATCH($E90,'[6]RFM input'!$E$115:$E$164,0),1) -> 0 | S90: =INDEX('[6]RFM input'!$E$115:$L$164,MATCH($E90,'[6]RFM input'!$E$115:$E$164,0),MATCH(S$4,'[6]RFM input'!$E$114:$L$114,0)) -> 0 | T90: =INDEX('[6]RFM input'!$E$115:$L$164,MATCH($E90,'[6]RFM input'!$E$115:$E$164,0),MATCH(T$4,'[6]RFM input'!$E$114:$L$114,0)) -> 0 | U90: =INDEX('[6]RFM input'!$E$115:$L$164,MATCH($E90,'[6]RFM input'!$E$115:$E$164,0),MATCH(U$4,'[6]RFM input'!$E$114:$L$114,0)) -> 0 | V90: =INDEX('[6]RFM input'!$E$115:$L$164,MATCH($E90,'[6]RFM input'!$E$115:$E$164,0),MATCH(V$4,'[6]RFM input'!$E$114:$L$114,0)) -> 0 | W90: =INDEX('[6]RFM input'!$E$115:$L$164,MATCH($E90,'[6]RFM input'!$E$115:$E$164,0),MATCH(W$4,'[6]RFM input'!$E$114:$L$114,0)) -> 0
E91: Accelerated Depr - Distr assets (Other) | H91: 0 | I91: 0 | J91: 0 | K91: 0 | L91: 0 | M91: 0 | N91: 0 | O91: 0 | P91: 0 | Q91: =INDEX('[6]RFM input'!$E$115:$L$164,MATCH($E91,'[6]RFM input'!$E$115:$E$164,0),MATCH(Q$4,'[6]RFM input'!$E$114:$L$114,0)) -> 0 | R91: =INDEX('[6]RFM input'!$G$115:$G$164,MATCH($E91,'[6]RFM input'!$E$115:$E$164,0),1) -> 0 | S91: =INDEX('[6]RFM input'!$E$115:$L$164,MATCH($E91,'[6]RFM input'!$E$115:$E$164,0),MATCH(S$4,'[6]RFM input'!$E$114:$L$114,0)) -> 0 | T91: =INDEX('[6]RFM input'!$E$115:$L$164,MATCH($E91,'[6]RFM input'!$E$115:$E$164,0),MATCH(T$4,'[6]RFM input'!$E$114:$L$114,0)) -> 0 | U91: =INDEX('[6]RFM input'!$E$115:$L$164,MATCH($E91,'[6]RFM input'!$E$115:$E$164,0),MATCH(U$4,'[6]RFM input'!$E$114:$L$114,0)) -> 0 | V91: =INDEX('[6]RFM input'!$E$115:$L$164,MATCH($E91,'[6]RFM input'!$E$115:$E$164,0),MATCH(V$4,'[6]RFM input'!$E$114:$L$114,0)) -> 0 | W91: =INDEX('[6]RFM input'!$E$115:$L$164,MATCH($E91,'[6]RFM input'!$E$115:$E$164,0),MATCH(W$4,'[6]RFM input'!$E$114:$L$114,0)) -> 0
E92: Non-network leasehold land & buildings - 1 July 2021 | H92: 0 | I92: 0 | J92: 0 | K92: 0 | L92: 0 | M92: 0 | N92: 0 | O92: 0 | P92: 0 | Q92: =INDEX('[6]RFM input'!$E$115:$L$164,MATCH($E92,'[6]RFM input'!$E$115:$E$164,0),MATCH(Q$4,'[6]RFM input'!$E$114:$L$114,0)) -> 0 | R92: =INDEX('[6]RFM input'!$G$115:$G$164,MATCH($E92,'[6]RFM input'!$E$115:$E$164,0),1) -> 0 | S92: =INDEX('[6]RFM input'!$E$115:$L$164,MATCH($E92,'[6]RFM input'!$E$115:$E$164,0),MATCH(S$4,'[6]RFM input'!$E$114:$L$114,0)) -> 0 | T92: =INDEX('[6]RFM input'!$E$115:$L$164,MATCH($E92,'[6]RFM input'!$E$115:$E$164,0),MATCH(T$4,'[6]RFM input'!$E$114:$L$114,0)) -> 0 | U92: =INDEX('[6]RFM input'!$E$115:$L$164,MATCH($E92,'[6]RFM input'!$E$115:$E$164,0),MATCH(U$4,'[6]RFM input'!$E$114:$L$114,0)) -> 0 | V92: =INDEX('[6]RFM input'!$E$115:$L$164,MATCH($E92,'[6]RFM input'!$E$115:$E$164,0),MATCH(V$4,'[6]RFM input'!$E$114:$L$114,0)) -> 0 | W92: =INDEX('[6]RFM input'!$E$115:$L$164,MATCH($E92,'[6]RFM input'!$E$115:$E$164,0),MATCH(W$4,'[6]RFM input'!$E$114:$L$114,0)) -> 0
E93: Non- Network Leasehold Land & Buildings - 2021-22 | H93: 0 | I93: 0 | J93: 0 | K93: 0 | L93: 0 | M93: 0 | N93: 0 | O93: 0 | P93: 0 | Q93: =INDEX('[6]RFM input'!$E$115:$L$164,MATCH($E93,'[6]RFM input'!$E$115:$E$164,0),MATCH(Q$4,'[6]RFM input'!$E$114:$L$114,0)) -> 0 | R93: =INDEX('[6]RFM input'!$G$115:$G$164,MATCH($E93,'[6]RFM input'!$E$115:$E$164,0),1) -> 0 | S93: =INDEX('[6]RFM input'!$E$115:$L$164,MATCH($E93,'[6]RFM input'!$E$115:$E$164,0),MATCH(S$4,'[6]RFM input'!$E$114:$L$114,0)) -> 0 | T93: =INDEX('[6]RFM input'!$E$115:$L$164,MATCH($E93,'[6]RFM input'!$E$115:$E$164,0),MATCH(T$4,'[6]RFM input'!$E$114:$L$114,0)) -> 0 | U93: =INDEX('[6]RFM input'!$E$115:$L$164,MATCH($E93,'[6]RFM input'!$E$115:$E$164,0),MATCH(U$4,'[6]RFM input'!$E$114:$L$114,0)) -> 0 | V93: =INDEX('[6]RFM input'!$E$115:$L$164,MATCH($E93,'[6]RFM input'!$E$115:$E$164,0),MATCH(V$4,'[6]RFM input'!$E$114:$L$114,0)) -> 0 | W93: =INDEX('[6]RFM input'!$E$115:$L$164,MATCH($E93,'[6]RFM input'!$E$115:$E$164,0),MATCH(W$4,'[6]RFM input'!$E$114:$L$114,0)) -> 0
E94: Non- Network Leasehold Land & Buildings - 2025-26 | H94: 0 | I94: 0 | J94: 0 | K94: 0 | L94: 0 | M94: 0 | N94: 0 | O94: 0 | P94: 0 | Q94: =INDEX('[6]RFM input'!$E$115:$L$164,MATCH($E94,'[6]RFM input'!$E$115:$E$164,0),MATCH(Q$4,'[6]RFM input'!$E$114:$L$114,0)) -> 0 | R94: =INDEX('[6]RFM input'!$G$115:$G$164,MATCH($E94,'[6]RFM input'!$E$115:$E$164,0),1) -> 0 | S94: =INDEX('[6]RFM input'!$E$115:$L$164,MATCH($E94,'[6]RFM input'!$E$115:$E$164,0),MATCH(S$4,'[6]RFM input'!$E$114:$L$114,0)) -> 0 | T94: =INDEX('[6]RFM input'!$E$115:$L$164,MATCH($E94,'[6]RFM input'!$E$115:$E$164,0),MATCH(T$4,'[6]RFM input'!$E$114:$L$114,0)) -> 0 | U94: =INDEX('[6]RFM input'!$E$115:$L$164,MATCH($E94,'[6]RFM input'!$E$115:$E$164,0),MATCH(U$4,'[6]RFM input'!$E$114:$L$114,0)) -> 0 | V94: =INDEX('[6]RFM input'!$E$115:$L$164,MATCH($E94,'[6]RFM input'!$E$115:$E$164,0),MATCH(V$4,'[6]RFM input'!$E$114:$L$114,0)) -> 0 | W94: =INDEX('[6]RFM input'!$E$115:$L$164,MATCH($E94,'[6]RFM input'!$E$115:$E$164,0),MATCH(W$4,'[6]RFM input'!$E$114:$L$114,0)) -> 0
E95: 0
E96: Critical spares - network assets
E97: 0
E98: 0
E99: 0
E100: 0
E101: 0
E102: 0
E103: 0
E104: 0
E105: 0
E106: 0
E107: 0
E108: 0
E109: 0
E110: 0
E111: 0
E112: 0
E113: =E59 -> 0
E114: 0
E115: 0
E116: 0
E117: 0
E118: 0
E119: 0
E120: 0
E121: 0
E122: 0
E123: 0
E124: 0
E125: 0
... 154 more rows

Sheet TAB input
E2: =IF('RAB input'!$F$8=$F$8, 'RAB input'!$F$8, $F$8) & " - TAB input - Elec DNSP "&Intro!$I$3&" - version "&Intro!$M$4 -> AusNet - TAB input - Elec DNSP RFM - Depreciation tracking module - version 1 | J2: Input cells in blue | R2: ASD Amendments
E4: Year | F4: =IF(LEN($H$9)>4, CONCATENATE(LEFT($H$9, 4)-2 & "-" & IF(AND(RIGHT($H$9, 2)<"12", RIGHT($H$9, 2)>"01"), "0", "") & IF(RIGHT($H$9, 2)="00", "98", IF(RIGHT($H$9, 2)="01", "99", RIGHT($H$9, 2)-2))), $H$9-2) -> 2019-20 | G4: =IF(LEN(F4)>4,CONCATENATE(LEFT(F4,4)+1&"-"&IF(RIGHT(F4, 2)<"09", "0","")&IF(RIGHT(F4, 2)="99", "00", RIGHT(F4,2)+1)),F4+1) -> 2020-21 | H4: =IF(LEN(G4)>4,CONCATENATE(LEFT(G4,4)+1&"-"&IF(RIGHT(G4, 2)<"09", "0","")&IF(RIGHT(G4, 2)="99", "00", RIGHT(G4,2)+1)),G4+1) -> 2021-22 | I4: =IF(I$11<>"", IF(INT($G$5+SUM($H$11:H$11))=$G$5+SUM($H$11:H$11), VALUE(LEFT(I$10, 4)), CONCATENATE(LEFT(I$10,4)&"-"&IF(MID(I$10, 3, 2)<"09", "0","")&IF(MID(I$10, 3, 2)="99", "00", MID(I$10, 3, 2)+1))), IF(AND(I$5<>INT(I$5), COUNTA($H$4:H$4)=ROUNDUP(I$5, 0)), IF($G$5+SUM($11:$11)=INT($G$5+SUM($11:$11)), VALUE(CONCATENATE(IF(RIGHT(H$4, 2)="99", LEFT(H$4, 2)+1, LEFT(H$4, 2))&RIGHT(H$4, 2))), CONCATENATE(LEFT(H$4, 2)&RIGHT(H$4, 2)&"-"&IF(RIGHT(H$4, 2)<"09", "0", "")&IF(RIGHT(H$4, 2)="99", "00", RIGHT(H$4, 2)+1))), IF(LEN(H4)>4,CONCATENATE(LEFT(H4,4)+1&"-"&IF(RIGHT(H4, 2)<"09", "0","")&IF(RIGHT(H4, 2)="99", "00", RIGHT(H4,2)+1)),VALUE(H4+1)))) -> 2022-23 | J4: =IF(J$11<>"", IF(INT($G$5+SUM($H$11:I$11))=$G$5+SUM($H$11:I$11), VALUE(LEFT(J$10, 4)), CONCATENATE(LEFT(J$10,4)&"-"&IF(MID(J$10, 3, 2)<"09", "0","")&IF(MID(J$10, 3, 2)="99", "00", MID(J$10, 3, 2)+1))), IF(AND(J$5<>INT(J$5), COUNTA($H$4:I$4)=ROUNDUP(J$5, 0)), IF($G$5+SUM($11:$11)=INT($G$5+SUM($11:$11)), VALUE(CONCATENATE(IF(RIGHT(I$4, 2)="99", LEFT(I$4, 2)+1, LEFT(I$4, 2))&RIGHT(I$4, 2))), CONCATENATE(LEFT(I$4, 2)&RIGHT(I$4, 2)&"-"&IF(RIGHT(I$4, 2)<"09", "0", "")&IF(RIGHT(I$4, 2)="99", "00", RIGHT(I$4, 2)+1))), IF(LEN(I4)>4,CONCATENATE(LEFT(I4,4)+1&"-"&IF(RIGHT(I4, 2)<"09", "0","")&IF(RIGHT(I4, 2)="99", "00", RIGHT(I4,2)+1)),VALUE(I4+1)))) -> 2023-24 | K4: =IF(K$11<>"", IF(INT($G$5+SUM($H$11:J$11))=$G$5+SUM($H$11:J$11), VALUE(LEFT(K$10, 4)), CONCATENATE(LEFT(K$10,4)&"-"&IF(MID(K$10, 3, 2)<"09", "0","")&IF(MID(K$10, 3, 2)="99", "00", MID(K$10, 3, 2)+1))), IF(AND(K$5<>INT(K$5), COUNTA($H$4:J$4)=ROUNDUP(K$5, 0)), IF($G$5+SUM($11:$11)=INT($G$5+SUM($11:$11)), VALUE(CONCATENATE(IF(RIGHT(J$4, 2)="99", LEFT(J$4, 2)+1, LEFT(J$4, 2))&RIGHT(J$4, 2))), CONCATENATE(LEFT(J$4, 2)&RIGHT(J$4, 2)&"-"&IF(RIGHT(J$4, 2)<"09", "0", "")&IF(RIGHT(J$4, 2)="99", "00", RIGHT(J$4, 2)+1))), IF(LEN(J4)>4,CONCATENATE(LEFT(J4,4)+1&"-"&IF(RIGHT(J4, 2)<"09", "0","")&IF(RIGHT(J4, 2)="99", "00", RIGHT(J4,2)+1)),VALUE(J4+1)))) -> 2024-25 | L4: =IF(L$11<>"", IF(INT($G$5+SUM($H$11:K$11))=$G$5+SUM($H$11:K$11), VALUE(LEFT(L$10, 4)), CONCATENATE(LEFT(L$10,4)&"-"&IF(MID(L$10, 3, 2)<"09", "0","")&IF(MID(L$10, 3, 2)="99", "00", MID(L$10, 3, 2)+1))), IF(AND(L$5<>INT(L$5), COUNTA($H$4:K$4)=ROUNDUP(L$5, 0)), IF($G$5+SUM($11:$11)=INT($G$5+SUM($11:$11)), VALUE(CONCATENATE(IF(RIGHT(K$4, 2)="99", LEFT(K$4, 2)+1, LEFT(K$4, 2))&RIGHT(K$4, 2))), CONCATENATE(LEFT(K$4, 2)&RIGHT(K$4, 2)&"-"&IF(RIGHT(K$4, 2)<"09", "0", "")&IF(RIGHT(K$4, 2)="99", "00", RIGHT(K$4, 2)+1))), IF(LEN(K4)>4,CONCATENATE(LEFT(K4,4)+1&"-"&IF(RIGHT(K4, 2)<"09", "0","")&IF(RIGHT(K4, 2)="99", "00", RIGHT(K4,2)+1)),VALUE(K4+1)))) -> 2025-26 | M4: =IF(M$11<>"", IF(INT($G$5+SUM($H$11:L$11))=$G$5+SUM($H$11:L$11), VALUE(LEFT(M$10, 4)), CONCATENATE(LEFT(M$10,4)&"-"&IF(MID(M$10, 3, 2)<"09", "0","")&IF(MID(M$10, 3, 2)="99", "00", MID(M$10, 3, 2)+1))), IF(AND(M$5<>INT(M$5), COUNTA($H$4:L$4)=ROUNDUP(M$5, 0)), IF($G$5+SUM($11:$11)=INT($G$5+SUM($11:$11)), VALUE(CONCATENATE(IF(RIGHT(L$4, 2)="99", LEFT(L$4, 2)+1, LEFT(L$4, 2))&RIGHT(L$4, 2))), CONCATENATE(LEFT(L$4, 2)&RIGHT(L$4, 2)&"-"&IF(RIGHT(L$4, 2)<"09", "0", "")&IF(RIGHT(L$4, 2)="99", "00", RIGHT(L$4, 2)+1))), IF(LEN(L4)>4,CONCATENATE(LEFT(L4,4)+1&"-"&IF(RIGHT(L4, 2)<"09", "0","")&IF(RIGHT(L4, 2)="99", "00", RIGHT(L4,2)+1)),VALUE(L4+1)))) -> 2026-27 | N4: =IF(N$11<>"", IF(INT($G$5+SUM($H$11:M$11))=$G$5+SUM($H$11:M$11), VALUE(LEFT(N$10, 4)), CONCATENATE(LEFT(N$10,4)&"-"&IF(MID(N$10, 3, 2)<"09", "0","")&IF(MID(N$10, 3, 2)="99", "00", MID(N$10, 3, 2)+1))), IF(AND(N$5<>INT(N$5), COUNTA($H$4:M$4)=ROUNDUP(N$5, 0)), IF($G$5+SUM($11:$11)=INT($G$5+SUM($11:$11)), VALUE(CONCATENATE(IF(RIGHT(M$4, 2)="99", LEFT(M$4, 2)+1, LEFT(M$4, 2))&RIGHT(M$4, 2))), CONCATENATE(LEFT(M$4, 2)&RIGHT(M$4, 2)&"-"&IF(RIGHT(M$4, 2)<"09", "0", "")&IF(RIGHT(M$4, 2)="99", "00", RIGHT(M$4, 2)+1))), IF(LEN(M4)>4,CONCATENATE(LEFT(M4,4)+1&"-"&IF(RIGHT(M4, 2)<"09", "0","")&IF(RIGHT(M4, 2)="99", "00", RIGHT(M4,2)+1)),VALUE(M4+1)))) -> 2027-28 | O4: =IF(O$11<>"", IF(INT($G$5+SUM($H$11:N$11))=$G$5+SUM($H$11:N$11), VALUE(LEFT(O$10, 4)), CONCATENATE(LEFT(O$10,4)&"-"&IF(MID(O$10, 3, 2)<"09", "0","")&IF(MID(O$10, 3, 2)="99", "00", MID(O$10, 3, 2)+1))), IF(AND(O$5<>INT(O$5), COUNTA($H$4:N$4)=ROUNDUP(O$5, 0)), IF($G$5+SUM($11:$11)=INT($G$5+SUM($11:$11)), VALUE(CONCATENATE(IF(RIGHT(N$4, 2)="99", LEFT(N$4, 2)+1, LEFT(N$4, 2))&RIGHT(N$4, 2))), CONCATENATE(LEFT(N$4, 2)&RIGHT(N$4, 2)&"-"&IF(RIGHT(N$4, 2)<"09", "0", "")&IF(RIGHT(N$4, 2)="99", "00", RIGHT(N$4, 2)+1))), IF(LEN(N4)>4,CONCATENATE(LEFT(N4,4)+1&"-"&IF(RIGHT(N4, 2)<"09", "0","")&IF(RIGHT(N4, 2)="99", "00", RIGHT(N4,2)+1)),VALUE(N4+1)))) -> 2028-29 | P4: =IF(P$11<>"", IF(INT($G$5+SUM($H$11:O$11))=$G$5+SUM($H$11:O$11), VALUE(LEFT(P$10, 4)), CONCATENATE(LEFT(P$10,4)&"-"&IF(MID(P$10, 3, 2)<"09", "0","")&IF(MID(P$10, 3, 2)="99", "00", MID(P$10, 3, 2)+1))), IF(AND(P$5<>INT(P$5), COUNTA($H$4:O$4)=ROUNDUP(P$5, 0)), IF($G$5+SUM($11:$11)=INT($G$5+SUM($11:$11)), VALUE(CONCATENATE(IF(RIGHT(O$4, 2)="99", LEFT(O$4, 2)+1, LEFT(O$4, 2))&RIGHT(O$4, 2))), CONCATENATE(LEFT(O$4, 2)&RIGHT(O$4, 2)&"-"&IF(RIGHT(O$4, 2)<"09", "0", "")&IF(RIGHT(O$4, 2)="99", "00", RIGHT(O$4, 2)+1))), IF(LEN(O4)>4,CONCATENATE(LEFT(O4,4)+1&"-"&IF(RIGHT(O4, 2)<"09", "0","")&IF(RIGHT(O4, 2)="99", "00", RIGHT(O4,2)+1)),VALUE(O4+1)))) -> 2029-30 | Q4: =IF(Q$11<>"", IF(INT($G$5+SUM($H$11:P$11))=$G$5+SUM($H$11:P$11), VALUE(LEFT(Q$10, 4)), CONCATENATE(LEFT(Q$10,4)&"-"&IF(MID(Q$10, 3, 2)<"09", "0","")&IF(MID(Q$10, 3, 2)="99", "00", MID(Q$10, 3, 2)+1))), IF(AND(Q$5<>INT(Q$5), COUNTA($H$4:P$4)=ROUNDUP(Q$5, 0)), IF($G$5+SUM($11:$11)=INT($G$5+SUM($11:$11)), VALUE(CONCATENATE(IF(RIGHT(P$4, 2)="99", LEFT(P$4, 2)+1, LEFT(P$4, 2))&RIGHT(P$4, 2))), CONCATENATE(LEFT(P$4, 2)&RIGHT(P$4, 2)&"-"&IF(RIGHT(P$4, 2)<"09", "0", "")&IF(RIGHT(P$4, 2)="99", "00", RIGHT(P$4, 2)+1))), IF(LEN(P4)>4,CONCATENATE(LEFT(P4,4)+1&"-"&IF(RIGHT(P4, 2)<"09", "0","")&IF(RIGHT(P4, 2)="99", "00", RIGHT(P4,2)+1)),VALUE(P4+1)))) -> 2030-31 | R4: =IF(R$11<>"", IF(INT($G$5+SUM($H$11:Q$11))=$G$5+SUM($H$11:Q$11), VALUE(LEFT(R$10, 4)), CONCATENATE(LEFT(R$10,4)&"-"&IF(MID(R$10, 3, 2)<"09", "0","")&IF(MID(R$10, 3, 2)="99", "00", MID(R$10, 3, 2)+1))), IF(AND(R$5<>INT(R$5), COUNTA($H$4:Q$4)=ROUNDUP(R$5, 0)), IF($G$5+SUM($11:$11)=INT($G$5+SUM($11:$11)), VALUE(CONCATENATE(IF(RIGHT(Q$4, 2)="99", LEFT(Q$4, 2)+1, LEFT(Q$4, 2))&RIGHT(Q$4, 2))), CONCATENATE(LEFT(Q$4, 2)&RIGHT(Q$4, 2)&"-"&IF(RIGHT(Q$4, 2)<"09", "0", "")&IF(RIGHT(Q$4, 2)="99", "00", RIGHT(Q$4, 2)+1))), IF(LEN(Q4)>4,CONCATENATE(LEFT(Q4,4)+1&"-"&IF(RIGHT(Q4, 2)<"09", "0","")&IF(RIGHT(Q4, 2)="99", "00", RIGHT(Q4,2)+1)),VALUE(Q4+1)))) -> 2031-32 | S4: =IF(S$11<>"", IF(INT($G$5+SUM($H$11:R$11))=$G$5+SUM($H$11:R$11), VALUE(LEFT(S$10, 4)), CONCATENATE(LEFT(S$10,4)&"-"&IF(MID(S$10, 3, 2)<"09", "0","")&IF(MID(S$10, 3, 2)="99", "00", MID(S$10, 3, 2)+1))), IF(AND(S$5<>INT(S$5), COUNTA($H$4:R$4)=ROUNDUP(S$5, 0)), IF($G$5+SUM($11:$11)=INT($G$5+SUM($11:$11)), VALUE(CONCATENATE(IF(RIGHT(R$4, 2)="99", LEFT(R$4, 2)+1, LEFT(R$4, 2))&RIGHT(R$4, 2))), CONCATENATE(LEFT(R$4, 2)&RIGHT(R$4, 2)&"-"&IF(RIGHT(R$4, 2)<"09", "0", "")&IF(RIGHT(R$4, 2)="99", "00", RIGHT(R$4, 2)+1))), IF(LEN(R4)>4,CONCATENATE(LEFT(R4,4)+1&"-"&IF(RIGHT(R4, 2)<"09", "0","")&IF(RIGHT(R4, 2)="99", "00", RIGHT(R4,2)+1)),VALUE(R4+1)))) -> 2032-33 | T4: =IF(T$11<>"", IF(INT($G$5+SUM($H$11:S$11))=$G$5+SUM($H$11:S$11), VALUE(LEFT(T$10, 4)), CONCATENATE(LEFT(T$10,4)&"-"&IF(MID(T$10, 3, 2)<"09", "0","")&IF(MID(T$10, 3, 2)="99", "00", MID(T$10, 3, 2)+1))), IF(AND(T$5<>INT(T$5), COUNTA($H$4:S$4)=ROUNDUP(T$5, 0)), IF($G$5+SUM($11:$11)=INT($G$5+SUM($11:$11)), VALUE(CONCATENATE(IF(RIGHT(S$4, 2)="99", LEFT(S$4, 2)+1, LEFT(S$4, 2))&RIGHT(S$4, 2))), CONCATENATE(LEFT(S$4, 2)&RIGHT(S$4, 2)&"-"&IF(RIGHT(S$4, 2)<"09", "0", "")&IF(RIGHT(S$4, 2)="99", "00", RIGHT(S$4, 2)+1))), IF(LEN(S4)>4,CONCATENATE(LEFT(S4,4)+1&"-"&IF(RIGHT(S4, 2)<"09", "0","")&IF(RIGHT(S4, 2)="99", "00", RIGHT(S4,2)+1)),VALUE(S4+1)))) -> 2033-34 | U4: =IF(U$11<>"", IF(INT($G$5+SUM($H$11:T$11))=$G$5+SUM($H$11:T$11), VALUE(LEFT(U$10, 4)), CONCATENATE(LEFT(U$10,4)&"-"&IF(MID(U$10, 3, 2)<"09", "0","")&IF(MID(U$10, 3, 2)="99", "00", MID(U$10, 3, 2)+1))), IF(AND(U$5<>INT(U$5), COUNTA($H$4:T$4)=ROUNDUP(U$5, 0)), IF($G$5+SUM($11:$11)=INT($G$5+SUM($11:$11)), VALUE(CONCATENATE(IF(RIGHT(T$4, 2)="99", LEFT(T$4, 2)+1, LEFT(T$4, 2))&RIGHT(T$4, 2))), CONCATENATE(LEFT(T$4, 2)&RIGHT(T$4, 2)&"-"&IF(RIGHT(T$4, 2)<"09", "0", "")&IF(RIGHT(T$4, 2)="99", "00", RIGHT(T$4, 2)+1))), IF(LEN(T4)>4,CONCATENATE(LEFT(T4,4)+1&"-"&IF(RIGHT(T4, 2)<"09", "0","")&IF(RIGHT(T4, 2)="99", "00", RIGHT(T4,2)+1)),VALUE(T4+1)))) -> 2034-35 | V4: =IF(V$11<>"", IF(INT($G$5+SUM($H$11:U$11))=$G$5+SUM($H$11:U$11), VALUE(LEFT(V$10, 4)), CONCATENATE(LEFT(V$10,4)&"-"&IF(MID(V$10, 3, 2)<"09", "0","")&IF(MID(V$10, 3, 2)="99", "00", MID(V$10, 3, 2)+1))), IF(AND(V$5<>INT(V$5), COUNTA($H$4:U$4)=ROUNDUP(V$5, 0)), IF($G$5+SUM($11:$11)=INT($G$5+SUM($11:$11)), VALUE(CONCATENATE(IF(RIGHT(U$4, 2)="99", LEFT(U$4, 2)+1, LEFT(U$4, 2))&RIGHT(U$4, 2))), CONCATENATE(LEFT(U$4, 2)&RIGHT(U$4, 2)&"-"&IF(RIGHT(U$4, 2)<"09", "0", "")&IF(RIGHT(U$4, 2)="99", "00", RIGHT(U$4, 2)+1))), IF(LEN(U4)>4,CONCATENATE(LEFT(U4,4)+1&"-"&IF(RIGHT(U4, 2)<"09", "0","")&IF(RIGHT(U4, 2)="99", "00", RIGHT(U4,2)+1)),VALUE(U4+1)))) -> 2035-36 | W4: =IF(W$11<>"", IF(INT($G$5+SUM($H$11:V$11))=$G$5+SUM($H$11:V$11), VALUE(LEFT(W$10, 4)), CONCATENATE(LEFT(W$10,4)&"-"&IF(MID(W$10, 3, 2)<"09", "0","")&IF(MID(W$10, 3, 2)="99", "00", MID(W$10, 3, 2)+1))), IF(AND(W$5<>INT(W$5), COUNTA($H$4:V$4)=ROUNDUP(W$5, 0)), IF($G$5+SUM($11:$11)=INT($G$5+SUM($11:$11)), VALUE(CONCATENATE(IF(RIGHT(V$4, 2)="99", LEFT(V$4, 2)+1, LEFT(V$4, 2))&RIGHT(V$4, 2))), CONCATENATE(LEFT(V$4, 2)&RIGHT(V$4, 2)&"-"&IF(RIGHT(V$4, 2)<"09", "0", "")&IF(RIGHT(V$4, 2)="99", "00", RIGHT(V$4, 2)+1))), IF(LEN(V4)>4,CONCATENATE(LEFT(V4,4)+1&"-"&IF(RIGHT(V4, 2)<"09", "0","")&IF(RIGHT(V4, 2)="99", "00", RIGHT(V4,2)+1)),VALUE(V4+1)))) -> 2036-37 | X4: =IF(X$11<>"", IF(INT($G$5+SUM($H$11:W$11))=$G$5+SUM($H$11:W$11), VALUE(LEFT(X$10, 4)), CONCATENATE(LEFT(X$10,4)&"-"&IF(MID(X$10, 3, 2)<"09", "0","")&IF(MID(X$10, 3, 2)="99", "00", MID(X$10, 3, 2)+1))), IF(AND(X$5<>INT(X$5), COUNTA($H$4:W$4)=ROUNDUP(X$5, 0)), IF($G$5+SUM($11:$11)=INT($G$5+SUM($11:$11)), VALUE(CONCATENATE(IF(RIGHT(W$4, 2)="99", LEFT(W$4, 2)+1, LEFT(W$4, 2))&RIGHT(W$4, 2))), CONCATENATE(LEFT(W$4, 2)&RIGHT(W$4, 2)&"-"&IF(RIGHT(W$4, 2)<"09", "0", "")&IF(RIGHT(W$4, 2)="99", "00", RIGHT(W$4, 2)+1))), IF(LEN(W4)>4,CONCATENATE(LEFT(W4,4)+1&"-"&IF(RIGHT(W4, 2)<"09", "0","")&IF(RIGHT(W4, 2)="99", "00", RIGHT(W4,2)+1)),VALUE(W4+1)))) -> 2037-38 | Y4: =IF(Y$11<>"", IF(INT($G$5+SUM($H$11:X$11))=$G$5+SUM($H$11:X$11), VALUE(LEFT(Y$10, 4)), CONCATENATE(LEFT(Y$10,4)&"-"&IF(MID(Y$10, 3, 2)<"09", "0","")&IF(MID(Y$10, 3, 2)="99", "00", MID(Y$10, 3, 2)+1))), IF(AND(Y$5<>INT(Y$5), COUNTA($H$4:X$4)=ROUNDUP(Y$5, 0)), IF($G$5+SUM($11:$11)=INT($G$5+SUM($11:$11)), VALUE(CONCATENATE(IF(RIGHT(X$4, 2)="99", LEFT(X$4, 2)+1, LEFT(X$4, 2))&RIGHT(X$4, 2))), CONCATENATE(LEFT(X$4, 2)&RIGHT(X$4, 2)&"-"&IF(RIGHT(X$4, 2)<"09", "0", "")&IF(RIGHT(X$4, 2)="99", "00", RIGHT(X$4, 2)+1))), IF(LEN(X4)>4,CONCATENATE(LEFT(X4,4)+1&"-"&IF(RIGHT(X4, 2)<"09", "0","")&IF(RIGHT(X4, 2)="99", "00", RIGHT(X4,2)+1)),VALUE(X4+1)))) -> 2038-39 | Z4: =IF(Z$11<>"", IF(INT($G$5+SUM($H$11:Y$11))=$G$5+SUM($H$11:Y$11), VALUE(LEFT(Z$10, 4)), CONCATENATE(LEFT(Z$10,4)&"-"&IF(MID(Z$10, 3, 2)<"09", "0","")&IF(MID(Z$10, 3, 2)="99", "00", MID(Z$10, 3, 2)+1))), IF(AND(Z$5<>INT(Z$5), COUNTA($H$4:Y$4)=ROUNDUP(Z$5, 0)), IF($G$5+SUM($11:$11)=INT($G$5+SUM($11:$11)), VALUE(CONCATENATE(IF(RIGHT(Y$4, 2)="99", LEFT(Y$4, 2)+1, LEFT(Y$4, 2))&RIGHT(Y$4, 2))), CONCATENATE(LEFT(Y$4, 2)&RIGHT(Y$4, 2)&"-"&IF(RIGHT(Y$4, 2)<"09", "0", "")&IF(RIGHT(Y$4, 2)="99", "00", RIGHT(Y$4, 2)+1))), IF(LEN(Y4)>4,CONCATENATE(LEFT(Y4,4)+1&"-"&IF(RIGHT(Y4, 2)<"09", "0","")&IF(RIGHT(Y4, 2)="99", "00", RIGHT(Y4,2)+1)),VALUE(Y4+1)))) -> 2039-40 | AA4: =IF(AA$11<>"", IF(INT($G$5+SUM($H$11:Z$11))=$G$5+SUM($H$11:Z$11), VALUE(LEFT(AA$10, 4)), CONCATENATE(LEFT(AA$10,4)&"-"&IF(MID(AA$10, 3, 2)<"09", "0","")&IF(MID(AA$10, 3, 2)="99", "00", MID(AA$10, 3, 2)+1))), IF(AND(AA$5<>INT(AA$5), COUNTA($H$4:Z$4)=ROUNDUP(AA$5, 0)), IF($G$5+SUM($11:$11)=INT($G$5+SUM($11:$11)), VALUE(CONCATENATE(IF(RIGHT(Z$4, 2)="99", LEFT(Z$4, 2)+1, LEFT(Z$4, 2))&RIGHT(Z$4, 2))), CONCATENATE(LEFT(Z$4, 2)&RIGHT(Z$4, 2)&"-"&IF(RIGHT(Z$4, 2)<"09", "0", "")&IF(RIGHT(Z$4, 2)="99", "00", RIGHT(Z$4, 2)+1))), IF(LEN(Z4)>4,CONCATENATE(LEFT(Z4,4)+1&"-"&IF(RIGHT(Z4, 2)<"09", "0","")&IF(RIGHT(Z4, 2)="99", "00", RIGHT(Z4,2)+1)),VALUE(Z4+1)))) -> 2040-41 | AB4: =IF(AB$11<>"", IF(INT($G$5+SUM($H$11:AA$11))=$G$5+SUM($H$11:AA$11), VALUE(LEFT(AB$10, 4)), CONCATENATE(LEFT(AB$10,4)&"-"&IF(MID(AB$10, 3, 2)<"09", "0","")&IF(MID(AB$10, 3, 2)="99", "00", MID(AB$10, 3, 2)+1))), IF(AND(AB$5<>INT(AB$5), COUNTA($H$4:AA$4)=ROUNDUP(AB$5, 0)), IF($G$5+SUM($11:$11)=INT($G$5+SUM($11:$11)), VALUE(CONCATENATE(IF(RIGHT(AA$4, 2)="99", LEFT(AA$4, 2)+1, LEFT(AA$4, 2))&RIGHT(AA$4, 2))), CONCATENATE(LEFT(AA$4, 2)&RIGHT(AA$4, 2)&"-"&IF(RIGHT(AA$4, 2)<"09", "0", "")&IF(RIGHT(AA$4, 2)="99", "00", RIGHT(AA$4, 2)+1))), IF(LEN(AA4)>4,CONCATENATE(LEFT(AA4,4)+1&"-"&IF(RIGHT(AA4, 2)<"09", "0","")&IF(RIGHT(AA4, 2)="99", "00", RIGHT(AA4,2)+1)),VALUE(AA4+1)))) -> 2041-42 | AC4: =IF(AC$11<>"", IF(INT($G$5+SUM($H$11:AB$11))=$G$5+SUM($H$11:AB$11), VALUE(LEFT(AC$10, 4)), CONCATENATE(LEFT(AC$10,4)&"-"&IF(MID(AC$10, 3, 2)<"09", "0","")&IF(MID(AC$10, 3, 2)="99", "00", MID(AC$10, 3, 2)+1))), IF(AND(AC$5<>INT(AC$5), COUNTA($H$4:AB$4)=ROUNDUP(AC$5, 0)), IF($G$5+SUM($11:$11)=INT($G$5+SUM($11:$11)), VALUE(CONCATENATE(IF(RIGHT(AB$4, 2)="99", LEFT(AB$4, 2)+1, LEFT(AB$4, 2))&RIGHT(AB$4, 2))), CONCATENATE(LEFT(AB$4, 2)&RIGHT(AB$4, 2)&"-"&IF(RIGHT(AB$4, 2)<"09", "0", "")&IF(RIGHT(AB$4, 2)="99", "00", RIGHT(AB$4, 2)+1))), IF(LEN(AB4)>4,CONCATENATE(LEFT(AB4,4)+1&"-"&IF(RIGHT(AB4, 2)<"09", "0","")&IF(RIGHT(AB4, 2)="99", "00", RIGHT(AB4,2)+1)),VALUE(AB4+1)))) -> 2042-43 | AD4: =IF(AD$11<>"", IF(INT($G$5+SUM($H$11:AC$11))=$G$5+SUM($H$11:AC$11), VALUE(LEFT(AD$10, 4)), CONCATENATE(LEFT(AD$10,4)&"-"&IF(MID(AD$10, 3, 2)<"09", "0","")&IF(MID(AD$10, 3, 2)="99", "00", MID(AD$10, 3, 2)+1))), IF(AND(AD$5<>INT(AD$5), COUNTA($H$4:AC$4)=ROUNDUP(AD$5, 0)), IF($G$5+SUM($11:$11)=INT($G$5+SUM($11:$11)), VALUE(CONCATENATE(IF(RIGHT(AC$4, 2)="99", LEFT(AC$4, 2)+1, LEFT(AC$4, 2))&RIGHT(AC$4, 2))), CONCATENATE(LEFT(AC$4, 2)&RIGHT(AC$4, 2)&"-"&IF(RIGHT(AC$4, 2)<"09", "0", "")&IF(RIGHT(AC$4, 2)="99", "00", RIGHT(AC$4, 2)+1))), IF(LEN(AC4)>4,CONCATENATE(LEFT(AC4,4)+1&"-"&IF(RIGHT(AC4, 2)<"09", "0","")&IF(RIGHT(AC4, 2)="99", "00", RIGHT(AC4,2)+1)),VALUE(AC4+1)))) -> 2043-44 | AE4: =IF(AE$11<>"", IF(INT($G$5+SUM($H$11:AD$11))=$G$5+SUM($H$11:AD$11), VALUE(LEFT(AE$10, 4)), CONCATENATE(LEFT(AE$10,4)&"-"&IF(MID(AE$10, 3, 2)<"09", "0","")&IF(MID(AE$10, 3, 2)="99", "00", MID(AE$10, 3, 2)+1))), IF(AND(AE$5<>INT(AE$5), COUNTA($H$4:AD$4)=ROUNDUP(AE$5, 0)), IF($G$5+SUM($11:$11)=INT($G$5+SUM($11:$11)), VALUE(CONCATENATE(IF(RIGHT(AD$4, 2)="99", LEFT(AD$4, 2)+1, LEFT(AD$4, 2))&RIGHT(AD$4, 2))), CONCATENATE(LEFT(AD$4, 2)&RIGHT(AD$4, 2)&"-"&IF(RIGHT(AD$4, 2)<"09", "0", "")&IF(RIGHT(AD$4, 2)="99", "00", RIGHT(AD$4, 2)+1))), IF(LEN(AD4)>4,CONCATENATE(LEFT(AD4,4)+1&"-"&IF(RIGHT(AD4, 2)<"09", "0","")&IF(RIGHT(AD4, 2)="99", "00", RIGHT(AD4,2)+1)),VALUE(AD4+1)))) -> 2044-45 | AF4: =IF(AF$11<>"", IF(INT($G$5+SUM($H$11:AE$11))=$G$5+SUM($H$11:AE$11), VALUE(LEFT(AF$10, 4)), CONCATENATE(LEFT(AF$10,4)&"-"&IF(MID(AF$10, 3, 2)<"09", "0","")&IF(MID(AF$10, 3, 2)="99", "00", MID(AF$10, 3, 2)+1))), IF(AND(AF$5<>INT(AF$5), COUNTA($H$4:AE$4)=ROUNDUP(AF$5, 0)), IF($G$5+SUM($11:$11)=INT($G$5+SUM($11:$11)), VALUE(CONCATENATE(IF(RIGHT(AE$4, 2)="99", LEFT(AE$4, 2)+1, LEFT(AE$4, 2))&RIGHT(AE$4, 2))), CONCATENATE(LEFT(AE$4, 2)&RIGHT(AE$4, 2)&"-"&IF(RIGHT(AE$4, 2)<"09", "0", "")&IF(RIGHT(AE$4, 2)="99", "00", RIGHT(AE$4, 2)+1))), IF(LEN(AE4)>4,CONCATENATE(LEFT(AE4,4)+1&"-"&IF(RIGHT(AE4, 2)<"09", "0","")&IF(RIGHT(AE4, 2)="99", "00", RIGHT(AE4,2)+1)),VALUE(AE4+1)))) -> 2045-46 | AG4: =IF(AG$11<>"", IF(INT($G$5+SUM($H$11:AF$11))=$G$5+SUM($H$11:AF$11), VALUE(LEFT(AG$10, 4)), CONCATENATE(LEFT(AG$10,4)&"-"&IF(MID(AG$10, 3, 2)<"09", "0","")&IF(MID(AG$10, 3, 2)="99", "00", MID(AG$10, 3, 2)+1))), IF(AND(AG$5<>INT(AG$5), COUNTA($H$4:AF$4)=ROUNDUP(AG$5, 0)), IF($G$5+SUM($11:$11)=INT($G$5+SUM($11:$11)), VALUE(CONCATENATE(IF(RIGHT(AF$4, 2)="99", LEFT(AF$4, 2)+1, LEFT(AF$4, 2))&RIGHT(AF$4, 2))), CONCATENATE(LEFT(AF$4, 2)&RIGHT(AF$4, 2)&"-"&IF(RIGHT(AF$4, 2)<"09", "0", "")&IF(RIGHT(AF$4, 2)="99", "00", RIGHT(AF$4, 2)+1))), IF(LEN(AF4)>4,CONCATENATE(LEFT(AF4,4)+1&"-"&IF(RIGHT(AF4, 2)<"09", "0","")&IF(RIGHT(AF4, 2)="99", "00", RIGHT(AF4,2)+1)),VALUE(AF4+1)))) -> 2046-47 | AH4: =IF(AH$11<>"", IF(INT($G$5+SUM($H$11:AG$11))=$G$5+SUM($H$11:AG$11), VALUE(LEFT(AH$10, 4)), CONCATENATE(LEFT(AH$10,4)&"-"&IF(MID(AH$10, 3, 2)<"09", "0","")&IF(MID(AH$10, 3, 2)="99", "00", MID(AH$10, 3, 2)+1))), IF(AND(AH$5<>INT(AH$5), COUNTA($H$4:AG$4)=ROUNDUP(AH$5, 0)), IF($G$5+SUM($11:$11)=INT($G$5+SUM($11:$11)), VALUE(CONCATENATE(IF(RIGHT(AG$4, 2)="99", LEFT(AG$4, 2)+1, LEFT(AG$4, 2))&RIGHT(AG$4, 2))), CONCATENATE(LEFT(AG$4, 2)&RIGHT(AG$4, 2)&"-"&IF(RIGHT(AG$4, 2)<"09", "0", "")&IF(RIGHT(AG$4, 2)="99", "00", RIGHT(AG$4, 2)+1))), IF(LEN(AG4)>4,CONCATENATE(LEFT(AG4,4)+1&"-"&IF(RIGHT(AG4, 2)<"09", "0","")&IF(RIGHT(AG4, 2)="99", "00", RIGHT(AG4,2)+1)),VALUE(AG4+1)))) -> 2047-48 | AI4: =IF(AI$11<>"", IF(INT($G$5+SUM($H$11:AH$11))=$G$5+SUM($H$11:AH$11), VALUE(LEFT(AI$10, 4)), CONCATENATE(LEFT(AI$10,4)&"-"&IF(MID(AI$10, 3, 2)<"09", "0","")&IF(MID(AI$10, 3, 2)="99", "00", MID(AI$10, 3, 2)+1))), IF(AND(AI$5<>INT(AI$5), COUNTA($H$4:AH$4)=ROUNDUP(AI$5, 0)), IF($G$5+SUM($11:$11)=INT($G$5+SUM($11:$11)), VALUE(CONCATENATE(IF(RIGHT(AH$4, 2)="99", LEFT(AH$4, 2)+1, LEFT(AH$4, 2))&RIGHT(AH$4, 2))), CONCATENATE(LEFT(AH$4, 2)&RIGHT(AH$4, 2)&"-"&IF(RIGHT(AH$4, 2)<"09", "0", "")&IF(RIGHT(AH$4, 2)="99", "00", RIGHT(AH$4, 2)+1))), IF(LEN(AH4)>4,CONCATENATE(LEFT(AH4,4)+1&"-"&IF(RIGHT(AH4, 2)<"09", "0","")&IF(RIGHT(AH4, 2)="99", "00", RIGHT(AH4,2)+1)),VALUE(AH4+1)))) -> 2048-49 | AJ4: =IF(AJ$11<>"", IF(INT($G$5+SUM($H$11:AI$11))=$G$5+SUM($H$11:AI$11), VALUE(LEFT(AJ$10, 4)), CONCATENATE(LEFT(AJ$10,4)&"-"&IF(MID(AJ$10, 3, 2)<"09", "0","")&IF(MID(AJ$10, 3, 2)="99", "00", MID(AJ$10, 3, 2)+1))), IF(AND(AJ$5<>INT(AJ$5), COUNTA($H$4:AI$4)=ROUNDUP(AJ$5, 0)), IF($G$5+SUM($11:$11)=INT($G$5+SUM($11:$11)), VALUE(CONCATENATE(IF(RIGHT(AI$4, 2)="99", LEFT(AI$4, 2)+1, LEFT(AI$4, 2))&RIGHT(AI$4, 2))), CONCATENATE(LEFT(AI$4, 2)&RIGHT(AI$4, 2)&"-"&IF(RIGHT(AI$4, 2)<"09", "0", "")&IF(RIGHT(AI$4, 2)="99", "00", RIGHT(AI$4, 2)+1))), IF(LEN(AI4)>4,CONCATENATE(LEFT(AI4,4)+1&"-"&IF(RIGHT(AI4, 2)<"09", "0","")&IF(RIGHT(AI4, 2)="99", "00", RIGHT(AI4,2)+1)),VALUE(AI4+1)))) -> 2049-50 | AK4: =IF(AK$11<>"", IF(INT($G$5+SUM($H$11:AJ$11))=$G$5+SUM($H$11:AJ$11), VALUE(LEFT(AK$10, 4)), CONCATENATE(LEFT(AK$10,4)&"-"&IF(MID(AK$10, 3, 2)<"09", "0","")&IF(MID(AK$10, 3, 2)="99", "00", MID(AK$10, 3, 2)+1))), IF(AND(AK$5<>INT(AK$5), COUNTA($H$4:AJ$4)=ROUNDUP(AK$5, 0)), IF($G$5+SUM($11:$11)=INT($G$5+SUM($11:$11)), VALUE(CONCATENATE(IF(RIGHT(AJ$4, 2)="99", LEFT(AJ$4, 2)+1, LEFT(AJ$4, 2))&RIGHT(AJ$4, 2))), CONCATENATE(LEFT(AJ$4, 2)&RIGHT(AJ$4, 2)&"-"&IF(RIGHT(AJ$4, 2)<"09", "0", "")&IF(RIGHT(AJ$4, 2)="99", "00", RIGHT(AJ$4, 2)+1))), IF(LEN(AJ4)>4,CONCATENATE(LEFT(AJ4,4)+1&"-"&IF(RIGHT(AJ4, 2)<"09", "0","")&IF(RIGHT(AJ4, 2)="99", "00", RIGHT(AJ4,2)+1)),VALUE(AJ4+1)))) -> 2050-51 | AL4: =IF(AL$11<>"", IF(INT($G$5+SUM($H$11:AK$11))=$G$5+SUM($H$11:AK$11), VALUE(LEFT(AL$10, 4)), CONCATENATE(LEFT(AL$10,4)&"-"&IF(MID(AL$10, 3, 2)<"09", "0","")&IF(MID(AL$10, 3, 2)="99", "00", MID(AL$10, 3, 2)+1))), IF(AND(AL$5<>INT(AL$5), COUNTA($H$4:AK$4)=ROUNDUP(AL$5, 0)), IF($G$5+SUM($11:$11)=INT($G$5+SUM($11:$11)), VALUE(CONCATENATE(IF(RIGHT(AK$4, 2)="99", LEFT(AK$4, 2)+1, LEFT(AK$4, 2))&RIGHT(AK$4, 2))), CONCATENATE(LEFT(AK$4, 2)&RIGHT(AK$4, 2)&"-"&IF(RIGHT(AK$4, 2)<"09", "0", "")&IF(RIGHT(AK$4, 2)="99", "00", RIGHT(AK$4, 2)+1))), IF(LEN(AK4)>4,CONCATENATE(LEFT(AK4,4)+1&"-"&IF(RIGHT(AK4, 2)<"09", "0","")&IF(RIGHT(AK4, 2)="99", "00", RIGHT(AK4,2)+1)),VALUE(AK4+1)))) -> 2051-52 | AM4: =IF(AM$11<>"", IF(INT($G$5+SUM($H$11:AL$11))=$G$5+SUM($H$11:AL$11), VALUE(LEFT(AM$10, 4)), CONCATENATE(LEFT(AM$10,4)&"-"&IF(MID(AM$10, 3, 2)<"09", "0","")&IF(MID(AM$10, 3, 2)="99", "00", MID(AM$10, 3, 2)+1))), IF(AND(AM$5<>INT(AM$5), COUNTA($H$4:AL$4)=ROUNDUP(AM$5, 0)), IF($G$5+SUM($11:$11)=INT($G$5+SUM($11:$11)), VALUE(CONCATENATE(IF(RIGHT(AL$4, 2)="99", LEFT(AL$4, 2)+1, LEFT(AL$4, 2))&RIGHT(AL$4, 2))), CONCATENATE(LEFT(AL$4, 2)&RIGHT(AL$4, 2)&"-"&IF(RIGHT(AL$4, 2)<"09", "0", "")&IF(RIGHT(AL$4, 2)="99", "00", RIGHT(AL$4, 2)+1))), IF(LEN(AL4)>4,CONCATENATE(LEFT(AL4,4)+1&"-"&IF(RIGHT(AL4, 2)<"09", "0","")&IF(RIGHT(AL4, 2)="99", "00", RIGHT(AL4,2)+1)),VALUE(AL4+1)))) -> 2052-53 | AN4: =IF(AN$11<>"", IF(INT($G$5+SUM($H$11:AM$11))=$G$5+SUM($H$11:AM$11), VALUE(LEFT(AN$10, 4)), CONCATENATE(LEFT(AN$10,4)&"-"&IF(MID(AN$10, 3, 2)<"09", "0","")&IF(MID(AN$10, 3, 2)="99", "00", MID(AN$10, 3, 2)+1))), IF(AND(AN$5<>INT(AN$5), COUNTA($H$4:AM$4)=ROUNDUP(AN$5, 0)), IF($G$5+SUM($11:$11)=INT($G$5+SUM($11:$11)), VALUE(CONCATENATE(IF(RIGHT(AM$4, 2)="99", LEFT(AM$4, 2)+1, LEFT(AM$4, 2))&RIGHT(AM$4, 2))), CONCATENATE(LEFT(AM$4, 2)&RIGHT(AM$4, 2)&"-"&IF(RIGHT(AM$4, 2)<"09", "0", "")&IF(RIGHT(AM$4, 2)="99", "00", RIGHT(AM$4, 2)+1))), IF(LEN(AM4)>4,CONCATENATE(LEFT(AM4,4)+1&"-"&IF(RIGHT(AM4, 2)<"09", "0","")&IF(RIGHT(AM4, 2)="99", "00", RIGHT(AM4,2)+1)),VALUE(AM4+1)))) -> 2053-54 | AO4: =IF(AO$11<>"", IF(INT($G$5+SUM($H$11:AN$11))=$G$5+SUM($H$11:AN$11), VALUE(LEFT(AO$10, 4)), CONCATENATE(LEFT(AO$10,4)&"-"&IF(MID(AO$10, 3, 2)<"09", "0","")&IF(MID(AO$10, 3, 2)="99", "00", MID(AO$10, 3, 2)+1))), IF(AND(AO$5<>INT(AO$5), COUNTA($H$4:AN$4)=ROUNDUP(AO$5, 0)), IF($G$5+SUM($11:$11)=INT($G$5+SUM($11:$11)), VALUE(CONCATENATE(IF(RIGHT(AN$4, 2)="99", LEFT(AN$4, 2)+1, LEFT(AN$4, 2))&RIGHT(AN$4, 2))), CONCATENATE(LEFT(AN$4, 2)&RIGHT(AN$4, 2)&"-"&IF(RIGHT(AN$4, 2)<"09", "0", "")&IF(RIGHT(AN$4, 2)="99", "00", RIGHT(AN$4, 2)+1))), IF(LEN(AN4)>4,CONCATENATE(LEFT(AN4,4)+1&"-"&IF(RIGHT(AN4, 2)<"09", "0","")&IF(RIGHT(AN4, 2)="99", "00", RIGHT(AN4,2)+1)),VALUE(AN4+1)))) -> 2054-55 | AP4: =IF(AP$11<>"", IF(INT($G$5+SUM($H$11:AO$11))=$G$5+SUM($H$11:AO$11), VALUE(LEFT(AP$10, 4)), CONCATENATE(LEFT(AP$10,4)&"-"&IF(MID(AP$10, 3, 2)<"09", "0","")&IF(MID(AP$10, 3, 2)="99", "00", MID(AP$10, 3, 2)+1))), IF(AND(AP$5<>INT(AP$5), COUNTA($H$4:AO$4)=ROUNDUP(AP$5, 0)), IF($G$5+SUM($11:$11)=INT($G$5+SUM($11:$11)), VALUE(CONCATENATE(IF(RIGHT(AO$4, 2)="99", LEFT(AO$4, 2)+1, LEFT(AO$4, 2))&RIGHT(AO$4, 2))), CONCATENATE(LEFT(AO$4, 2)&RIGHT(AO$4, 2)&"-"&IF(RIGHT(AO$4, 2)<"09", "0", "")&IF(RIGHT(AO$4, 2)="99", "00", RIGHT(AO$4, 2)+1))), IF(LEN(AO4)>4,CONCATENATE(LEFT(AO4,4)+1&"-"&IF(RIGHT(AO4, 2)<"09", "0","")&IF(RIGHT(AO4, 2)="99", "00", RIGHT(AO4,2)+1)),VALUE(AO4+1)))) -> 2055-56 | AQ4: =IF(AQ$11<>"", IF(INT($G$5+SUM($H$11:AP$11))=$G$5+SUM($H$11:AP$11), VALUE(LEFT(AQ$10, 4)), CONCATENATE(LEFT(AQ$10,4)&"-"&IF(MID(AQ$10, 3, 2)<"09", "0","")&IF(MID(AQ$10, 3, 2)="99", "00", MID(AQ$10, 3, 2)+1))), IF(AND(AQ$5<>INT(AQ$5), COUNTA($H$4:AP$4)=ROUNDUP(AQ$5, 0)), IF($G$5+SUM($11:$11)=INT($G$5+SUM($11:$11)), VALUE(CONCATENATE(IF(RIGHT(AP$4, 2)="99", LEFT(AP$4, 2)+1, LEFT(AP$4, 2))&RIGHT(AP$4, 2))), CONCATENATE(LEFT(AP$4, 2)&RIGHT(AP$4, 2)&"-"&IF(RIGHT(AP$4, 2)<"09", "0", "")&IF(RIGHT(AP$4, 2)="99", "00", RIGHT(AP$4, 2)+1))), IF(LEN(AP4)>4,CONCATENATE(LEFT(AP4,4)+1&"-"&IF(RIGHT(AP4, 2)<"09", "0","")&IF(RIGHT(AP4, 2)="99", "00", RIGHT(AP4,2)+1)),VALUE(AP4+1)))) -> 2056-57 | AR4: =IF(AR$11<>"", IF(INT($G$5+SUM($H$11:AQ$11))=$G$5+SUM($H$11:AQ$11), VALUE(LEFT(AR$10, 4)), CONCATENATE(LEFT(AR$10,4)&"-"&IF(MID(AR$10, 3, 2)<"09", "0","")&IF(MID(AR$10, 3, 2)="99", "00", MID(AR$10, 3, 2)+1))), IF(AND(AR$5<>INT(AR$5), COUNTA($H$4:AQ$4)=ROUNDUP(AR$5, 0)), IF($G$5+SUM($11:$11)=INT($G$5+SUM($11:$11)), VALUE(CONCATENATE(IF(RIGHT(AQ$4, 2)="99", LEFT(AQ$4, 2)+1, LEFT(AQ$4, 2))&RIGHT(AQ$4, 2))), CONCATENATE(LEFT(AQ$4, 2)&RIGHT(AQ$4, 2)&"-"&IF(RIGHT(AQ$4, 2)<"09", "0", "")&IF(RIGHT(AQ$4, 2)="99", "00", RIGHT(AQ$4, 2)+1))), IF(LEN(AQ4)>4,CONCATENATE(LEFT(AQ4,4)+1&"-"&IF(RIGHT(AQ4, 2)<"09", "0","")&IF(RIGHT(AQ4, 2)="99", "00", RIGHT(AQ4,2)+1)),VALUE(AQ4+1)))) -> 2057-58 | AS4: =IF(AS$11<>"", IF(INT($G$5+SUM($H$11:AR$11))=$G$5+SUM($H$11:AR$11), VALUE(LEFT(AS$10, 4)), CONCATENATE(LEFT(AS$10,4)&"-"&IF(MID(AS$10, 3, 2)<"09", "0","")&IF(MID(AS$10, 3, 2)="99", "00", MID(AS$10, 3, 2)+1))), IF(AND(AS$5<>INT(AS$5), COUNTA($H$4:AR$4)=ROUNDUP(AS$5, 0)), IF($G$5+SUM($11:$11)=INT($G$5+SUM($11:$11)), VALUE(CONCATENATE(IF(RIGHT(AR$4, 2)="99", LEFT(AR$4, 2)+1, LEFT(AR$4, 2))&RIGHT(AR$4, 2))), CONCATENATE(LEFT(AR$4, 2)&RIGHT(AR$4, 2)&"-"&IF(RIGHT(AR$4, 2)<"09", "0", "")&IF(RIGHT(AR$4, 2)="99", "00", RIGHT(AR$4, 2)+1))), IF(LEN(AR4)>4,CONCATENATE(LEFT(AR4,4)+1&"-"&IF(RIGHT(AR4, 2)<"09", "0","")&IF(RIGHT(AR4, 2)="99", "00", RIGHT(AR4,2)+1)),VALUE(AR4+1)))) -> 2058-59 | AT4: =IF(AT$11<>"", IF(INT($G$5+SUM($H$11:AS$11))=$G$5+SUM($H$11:AS$11), VALUE(LEFT(AT$10, 4)), CONCATENATE(LEFT(AT$10,4)&"-"&IF(MID(AT$10, 3, 2)<"09", "0","")&IF(MID(AT$10, 3, 2)="99", "00", MID(AT$10, 3, 2)+1))), IF(AND(AT$5<>INT(AT$5), COUNTA($H$4:AS$4)=ROUNDUP(AT$5, 0)), IF($G$5+SUM($11:$11)=INT($G$5+SUM($11:$11)), VALUE(CONCATENATE(IF(RIGHT(AS$4, 2)="99", LEFT(AS$4, 2)+1, LEFT(AS$4, 2))&RIGHT(AS$4, 2))), CONCATENATE(LEFT(AS$4, 2)&RIGHT(AS$4, 2)&"-"&IF(RIGHT(AS$4, 2)<"09", "0", "")&IF(RIGHT(AS$4, 2)="99", "00", RIGHT(AS$4, 2)+1))), IF(LEN(AS4)>4,CONCATENATE(LEFT(AS4,4)+1&"-"&IF(RIGHT(AS4, 2)<"09", "0","")&IF(RIGHT(AS4, 2)="99", "00", RIGHT(AS4,2)+1)),VALUE(AS4+1)))) -> 2059-60 | AU4: =IF(AU$11<>"", IF(INT($G$5+SUM($H$11:AT$11))=$G$5+SUM($H$11:AT$11), VALUE(LEFT(AU$10, 4)), CONCATENATE(LEFT(AU$10,4)&"-"&IF(MID(AU$10, 3, 2)<"09", "0","")&IF(MID(AU$10, 3, 2)="99", "00", MID(AU$10, 3, 2)+1))), IF(AND(AU$5<>INT(AU$5), COUNTA($H$4:AT$4)=ROUNDUP(AU$5, 0)), IF($G$5+SUM($11:$11)=INT($G$5+SUM($11:$11)), VALUE(CONCATENATE(IF(RIGHT(AT$4, 2)="99", LEFT(AT$4, 2)+1, LEFT(AT$4, 2))&RIGHT(AT$4, 2))), CONCATENATE(LEFT(AT$4, 2)&RIGHT(AT$4, 2)&"-"&IF(RIGHT(AT$4, 2)<"09", "0", "")&IF(RIGHT(AT$4, 2)="99", "00", RIGHT(AT$4, 2)+1))), IF(LEN(AT4)>4,CONCATENATE(LEFT(AT4,4)+1&"-"&IF(RIGHT(AT4, 2)<"09", "0","")&IF(RIGHT(AT4, 2)="99", "00", RIGHT(AT4,2)+1)),VALUE(AT4+1)))) -> 2060-61 | AV4: =IF(AV$11<>"", IF(INT($G$5+SUM($H$11:AU$11))=$G$5+SUM($H$11:AU$11), VALUE(LEFT(AV$10, 4)), CONCATENATE(LEFT(AV$10,4)&"-"&IF(MID(AV$10, 3, 2)<"09", "0","")&IF(MID(AV$10, 3, 2)="99", "00", MID(AV$10, 3, 2)+1))), IF(AND(AV$5<>INT(AV$5), COUNTA($H$4:AU$4)=ROUNDUP(AV$5, 0)), IF($G$5+SUM($11:$11)=INT($G$5+SUM($11:$11)), VALUE(CONCATENATE(IF(RIGHT(AU$4, 2)="99", LEFT(AU$4, 2)+1, LEFT(AU$4, 2))&RIGHT(AU$4, 2))), CONCATENATE(LEFT(AU$4, 2)&RIGHT(AU$4, 2)&"-"&IF(RIGHT(AU$4, 2)<"09", "0", "")&IF(RIGHT(AU$4, 2)="99", "00", RIGHT(AU$4, 2)+1))), IF(LEN(AU4)>4,CONCATENATE(LEFT(AU4,4)+1&"-"&IF(RIGHT(AU4, 2)<"09", "0","")&IF(RIGHT(AU4, 2)="99", "00", RIGHT(AU4,2)+1)),VALUE(AU4+1)))) -> 2061-62 | AW4: =IF(AW$11<>"", IF(INT($G$5+SUM($H$11:AV$11))=$G$5+SUM($H$11:AV$11), VALUE(LEFT(AW$10, 4)), CONCATENATE(LEFT(AW$10,4)&"-"&IF(MID(AW$10, 3, 2)<"09", "0","")&IF(MID(AW$10, 3, 2)="99", "00", MID(AW$10, 3, 2)+1))), IF(AND(AW$5<>INT(AW$5), COUNTA($H$4:AV$4)=ROUNDUP(AW$5, 0)), IF($G$5+SUM($11:$11)=INT($G$5+SUM($11:$11)), VALUE(CONCATENATE(IF(RIGHT(AV$4, 2)="99", LEFT(AV$4, 2)+1, LEFT(AV$4, 2))&RIGHT(AV$4, 2))), CONCATENATE(LEFT(AV$4, 2)&RIGHT(AV$4, 2)&"-"&IF(RIGHT(AV$4, 2)<"09", "0", "")&IF(RIGHT(AV$4, 2)="99", "00", RIGHT(AV$4, 2)+1))), IF(LEN(AV4)>4,CONCATENATE(LEFT(AV4,4)+1&"-"&IF(RIGHT(AV4, 2)<"09", "0","")&IF(RIGHT(AV4, 2)="99", "00", RIGHT(AV4,2)+1)),VALUE(AV4+1)))) -> 2062-63 | AX4: =IF(AX$11<>"", IF(INT($G$5+SUM($H$11:AW$11))=$G$5+SUM($H$11:AW$11), VALUE(LEFT(AX$10, 4)), CONCATENATE(LEFT(AX$10,4)&"-"&IF(MID(AX$10, 3, 2)<"09", "0","")&IF(MID(AX$10, 3, 2)="99", "00", MID(AX$10, 3, 2)+1))), IF(AND(AX$5<>INT(AX$5), COUNTA($H$4:AW$4)=ROUNDUP(AX$5, 0)), IF($G$5+SUM($11:$11)=INT($G$5+SUM($11:$11)), VALUE(CONCATENATE(IF(RIGHT(AW$4, 2)="99", LEFT(AW$4, 2)+1, LEFT(AW$4, 2))&RIGHT(AW$4, 2))), CONCATENATE(LEFT(AW$4, 2)&RIGHT(AW$4, 2)&"-"&IF(RIGHT(AW$4, 2)<"09", "0", "")&IF(RIGHT(AW$4, 2)="99", "00", RIGHT(AW$4, 2)+1))), IF(LEN(AW4)>4,CONCATENATE(LEFT(AW4,4)+1&"-"&IF(RIGHT(AW4, 2)<"09", "0","")&IF(RIGHT(AW4, 2)="99", "00", RIGHT(AW4,2)+1)),VALUE(AW4+1)))) -> 2063-64 | AY4: =IF(AY$11<>"", IF(INT($G$5+SUM($H$11:AX$11))=$G$5+SUM($H$11:AX$11), VALUE(LEFT(AY$10, 4)), CONCATENATE(LEFT(AY$10,4)&"-"&IF(MID(AY$10, 3, 2)<"09", "0","")&IF(MID(AY$10, 3, 2)="99", "00", MID(AY$10, 3, 2)+1))), IF(AND(AY$5<>INT(AY$5), COUNTA($H$4:AX$4)=ROUNDUP(AY$5, 0)), IF($G$5+SUM($11:$11)=INT($G$5+SUM($11:$11)), VALUE(CONCATENATE(IF(RIGHT(AX$4, 2)="99", LEFT(AX$4, 2)+1, LEFT(AX$4, 2))&RIGHT(AX$4, 2))), CONCATENATE(LEFT(AX$4, 2)&RIGHT(AX$4, 2)&"-"&IF(RIGHT(AX$4, 2)<"09", "0", "")&IF(RIGHT(AX$4, 2)="99", "00", RIGHT(AX$4, 2)+1))), IF(LEN(AX4)>4,CONCATENATE(LEFT(AX4,4)+1&"-"&IF(RIGHT(AX4, 2)<"09", "0","")&IF(RIGHT(AX4, 2)="99", "00", RIGHT(AX4,2)+1)),VALUE(AX4+1)))) -> 2064-65 | AZ4: =IF(AZ$11<>"", IF(INT($G$5+SUM($H$11:AY$11))=$G$5+SUM($H$11:AY$11), VALUE(LEFT(AZ$10, 4)), CONCATENATE(LEFT(AZ$10,4)&"-"&IF(MID(AZ$10, 3, 2)<"09", "0","")&IF(MID(AZ$10, 3, 2)="99", "00", MID(AZ$10, 3, 2)+1))), IF(AND(AZ$5<>INT(AZ$5), COUNTA($H$4:AY$4)=ROUNDUP(AZ$5, 0)), IF($G$5+SUM($11:$11)=INT($G$5+SUM($11:$11)), VALUE(CONCATENATE(IF(RIGHT(AY$4, 2)="99", LEFT(AY$4, 2)+1, LEFT(AY$4, 2))&RIGHT(AY$4, 2))), CONCATENATE(LEFT(AY$4, 2)&RIGHT(AY$4, 2)&"-"&IF(RIGHT(AY$4, 2)<"09", "0", "")&IF(RIGHT(AY$4, 2)="99", "00", RIGHT(AY$4, 2)+1))), IF(LEN(AY4)>4,CONCATENATE(LEFT(AY4,4)+1&"-"&IF(RIGHT(AY4, 2)<"09", "0","")&IF(RIGHT(AY4, 2)="99", "00", RIGHT(AY4,2)+1)),VALUE(AY4+1)))) -> 2065-66 | BA4: =IF(BA$11<>"", IF(INT($G$5+SUM($H$11:AZ$11))=$G$5+SUM($H$11:AZ$11), VALUE(LEFT(BA$10, 4)), CONCATENATE(LEFT(BA$10,4)&"-"&IF(MID(BA$10, 3, 2)<"09", "0","")&IF(MID(BA$10, 3, 2)="99", "00", MID(BA$10, 3, 2)+1))), IF(AND(BA$5<>INT(BA$5), COUNTA($H$4:AZ$4)=ROUNDUP(BA$5, 0)), IF($G$5+SUM($11:$11)=INT($G$5+SUM($11:$11)), VALUE(CONCATENATE(IF(RIGHT(AZ$4, 2)="99", LEFT(AZ$4, 2)+1, LEFT(AZ$4, 2))&RIGHT(AZ$4, 2))), CONCATENATE(LEFT(AZ$4, 2)&RIGHT(AZ$4, 2)&"-"&IF(RIGHT(AZ$4, 2)<"09", "0", "")&IF(RIGHT(AZ$4, 2)="99", "00", RIGHT(AZ$4, 2)+1))), IF(LEN(AZ4)>4,CONCATENATE(LEFT(AZ4,4)+1&"-"&IF(RIGHT(AZ4, 2)<"09", "0","")&IF(RIGHT(AZ4, 2)="99", "00", RIGHT(AZ4,2)+1)),VALUE(AZ4+1)))) -> 2066-67 | BB4: =IF(BB$11<>"", IF(INT($G$5+SUM($H$11:BA$11))=$G$5+SUM($H$11:BA$11), VALUE(LEFT(BB$10, 4)), CONCATENATE(LEFT(BB$10,4)&"-"&IF(MID(BB$10, 3, 2)<"09", "0","")&IF(MID(BB$10, 3, 2)="99", "00", MID(BB$10, 3, 2)+1))), IF(AND(BB$5<>INT(BB$5), COUNTA($H$4:BA$4)=ROUNDUP(BB$5, 0)), IF($G$5+SUM($11:$11)=INT($G$5+SUM($11:$11)), VALUE(CONCATENATE(IF(RIGHT(BA$4, 2)="99", LEFT(BA$4, 2)+1, LEFT(BA$4, 2))&RIGHT(BA$4, 2))), CONCATENATE(LEFT(BA$4, 2)&RIGHT(BA$4, 2)&"-"&IF(RIGHT(BA$4, 2)<"09", "0", "")&IF(RIGHT(BA$4, 2)="99", "00", RIGHT(BA$4, 2)+1))), IF(LEN(BA4)>4,CONCATENATE(LEFT(BA4,4)+1&"-"&IF(RIGHT(BA4, 2)<"09", "0","")&IF(RIGHT(BA4, 2)="99", "00", RIGHT(BA4,2)+1)),VALUE(BA4+1)))) -> 2067-68 | BC4: =IF(BC$11<>"", IF(INT($G$5+SUM($H$11:BB$11))=$G$5+SUM($H$11:BB$11), VALUE(LEFT(BC$10, 4)), CONCATENATE(LEFT(BC$10,4)&"-"&IF(MID(BC$10, 3, 2)<"09", "0","")&IF(MID(BC$10, 3, 2)="99", "00", MID(BC$10, 3, 2)+1))), IF(AND(BC$5<>INT(BC$5), COUNTA($H$4:BB$4)=ROUNDUP(BC$5, 0)), IF($G$5+SUM($11:$11)=INT($G$5+SUM($11:$11)), VALUE(CONCATENATE(IF(RIGHT(BB$4, 2)="99", LEFT(BB$4, 2)+1, LEFT(BB$4, 2))&RIGHT(BB$4, 2))), CONCATENATE(LEFT(BB$4, 2)&RIGHT(BB$4, 2)&"-"&IF(RIGHT(BB$4, 2)<"09", "0", "")&IF(RIGHT(BB$4, 2)="99", "00", RIGHT(BB$4, 2)+1))), IF(LEN(BB4)>4,CONCATENATE(LEFT(BB4,4)+1&"-"&IF(RIGHT(BB4, 2)<"09", "0","")&IF(RIGHT(BB4, 2)="99", "00", RIGHT(BB4,2)+1)),VALUE(BB4+1)))) -> 2068-69 | BD4: =IF(BD$11<>"", IF(INT($G$5+SUM($H$11:BC$11))=$G$5+SUM($H$11:BC$11), VALUE(LEFT(BD$10, 4)), CONCATENATE(LEFT(BD$10,4)&"-"&IF(MID(BD$10, 3, 2)<"09", "0","")&IF(MID(BD$10, 3, 2)="99", "00", MID(BD$10, 3, 2)+1))), IF(AND(BD$5<>INT(BD$5), COUNTA($H$4:BC$4)=ROUNDUP(BD$5, 0)), IF($G$5+SUM($11:$11)=INT($G$5+SUM($11:$11)), VALUE(CONCATENATE(IF(RIGHT(BC$4, 2)="99", LEFT(BC$4, 2)+1, LEFT(BC$4, 2))&RIGHT(BC$4, 2))), CONCATENATE(LEFT(BC$4, 2)&RIGHT(BC$4, 2)&"-"&IF(RIGHT(BC$4, 2)<"09", "0", "")&IF(RIGHT(BC$4, 2)="99", "00", RIGHT(BC$4, 2)+1))), IF(LEN(BC4)>4,CONCATENATE(LEFT(BC4,4)+1&"-"&IF(RIGHT(BC4, 2)<"09", "0","")&IF(RIGHT(BC4, 2)="99", "00", RIGHT(BC4,2)+1)),VALUE(BC4+1)))) -> 2069-70 | BE4: =IF(BE$11<>"", IF(INT($G$5+SUM($H$11:BD$11))=$G$5+SUM($H$11:BD$11), VALUE(LEFT(BE$10, 4)), CONCATENATE(LEFT(BE$10,4)&"-"&IF(MID(BE$10, 3, 2)<"09", "0","")&IF(MID(BE$10, 3, 2)="99", "00", MID(BE$10, 3, 2)+1))), IF(AND(BE$5<>INT(BE$5), COUNTA($H$4:BD$4)=ROUNDUP(BE$5, 0)), IF($G$5+SUM($11:$11)=INT($G$5+SUM($11:$11)), VALUE(CONCATENATE(IF(RIGHT(BD$4, 2)="99", LEFT(BD$4, 2)+1, LEFT(BD$4, 2))&RIGHT(BD$4, 2))), CONCATENATE(LEFT(BD$4, 2)&RIGHT(BD$4, 2)&"-"&IF(RIGHT(BD$4, 2)<"09", "0", "")&IF(RIGHT(BD$4, 2)="99", "00", RIGHT(BD$4, 2)+1))), IF(LEN(BD4)>4,CONCATENATE(LEFT(BD4,4)+1&"-"&IF(RIGHT(BD4, 2)<"09", "0","")&IF(RIGHT(BD4, 2)="99", "00", RIGHT(BD4,2)+1)),VALUE(BD4+1)))) -> 2070-71 | BF4: =IF(BF$11<>"", IF(INT($G$5+SUM($H$11:BE$11))=$G$5+SUM($H$11:BE$11), VALUE(LEFT(BF$10, 4)), CONCATENATE(LEFT(BF$10,4)&"-"&IF(MID(BF$10, 3, 2)<"09", "0","")&IF(MID(BF$10, 3, 2)="99", "00", MID(BF$10, 3, 2)+1))), IF(AND(BF$5<>INT(BF$5), COUNTA($H$4:BE$4)=ROUNDUP(BF$5, 0)), IF($G$5+SUM($11:$11)=INT($G$5+SUM($11:$11)), VALUE(CONCATENATE(IF(RIGHT(BE$4, 2)="99", LEFT(BE$4, 2)+1, LEFT(BE$4, 2))&RIGHT(BE$4, 2))), CONCATENATE(LEFT(BE$4, 2)&RIGHT(BE$4, 2)&"-"&IF(RIGHT(BE$4, 2)<"09", "0", "")&IF(RIGHT(BE$4, 2)="99", "00", RIGHT(BE$4, 2)+1))), IF(LEN(BE4)>4,CONCATENATE(LEFT(BE4,4)+1&"-"&IF(RIGHT(BE4, 2)<"09", "0","")&IF(RIGHT(BE4, 2)="99", "00", RIGHT(BE4,2)+1)),VALUE(BE4+1)))) -> 2071-72 | BG4: =IF(BG$11<>"", IF(INT($G$5+SUM($H$11:BF$11))=$G$5+SUM($H$11:BF$11), VALUE(LEFT(BG$10, 4)), CONCATENATE(LEFT(BG$10,4)&"-"&IF(MID(BG$10, 3, 2)<"09", "0","")&IF(MID(BG$10, 3, 2)="99", "00", MID(BG$10, 3, 2)+1))), IF(AND(BG$5<>INT(BG$5), COUNTA($H$4:BF$4)=ROUNDUP(BG$5, 0)), IF($G$5+SUM($11:$11)=INT($G$5+SUM($11:$11)), VALUE(CONCATENATE(IF(RIGHT(BF$4, 2)="99", LEFT(BF$4, 2)+1, LEFT(BF$4, 2))&RIGHT(BF$4, 2))), CONCATENATE(LEFT(BF$4, 2)&RIGHT(BF$4, 2)&"-"&IF(RIGHT(BF$4, 2)<"09", "0", "")&IF(RIGHT(BF$4, 2)="99", "00", RIGHT(BF$4, 2)+1))), IF(LEN(BF4)>4,CONCATENATE(LEFT(BF4,4)+1&"-"&IF(RIGHT(BF4, 2)<"09", "0","")&IF(RIGHT(BF4, 2)="99", "00", RIGHT(BF4,2)+1)),VALUE(BF4+1)))) -> 2072-73 | BH4: =IF(BH$11<>"", IF(INT($G$5+SUM($H$11:BG$11))=$G$5+SUM($H$11:BG$11), VALUE(LEFT(BH$10, 4)), CONCATENATE(LEFT(BH$10,4)&"-"&IF(MID(BH$10, 3, 2)<"09", "0","")&IF(MID(BH$10, 3, 2)="99", "00", MID(BH$10, 3, 2)+1))), IF(AND(BH$5<>INT(BH$5), COUNTA($H$4:BG$4)=ROUNDUP(BH$5, 0)), IF($G$5+SUM($11:$11)=INT($G$5+SUM($11:$11)), VALUE(CONCATENATE(IF(RIGHT(BG$4, 2)="99", LEFT(BG$4, 2)+1, LEFT(BG$4, 2))&RIGHT(BG$4, 2))), CONCATENATE(LEFT(BG$4, 2)&RIGHT(BG$4, 2)&"-"&IF(RIGHT(BG$4, 2)<"09", "0", "")&IF(RIGHT(BG$4, 2)="99", "00", RIGHT(BG$4, 2)+1))), IF(LEN(BG4)>4,CONCATENATE(LEFT(BG4,4)+1&"-"&IF(RIGHT(BG4, 2)<"09", "0","")&IF(RIGHT(BG4, 2)="99", "00", RIGHT(BG4,2)+1)),VALUE(BG4+1)))) -> 2073-74 | BI4: =IF(BI$11<>"", IF(INT($G$5+SUM($H$11:BH$11))=$G$5+SUM($H$11:BH$11), VALUE(LEFT(BI$10, 4)), CONCATENATE(LEFT(BI$10,4)&"-"&IF(MID(BI$10, 3, 2)<"09", "0","")&IF(MID(BI$10, 3, 2)="99", "00", MID(BI$10, 3, 2)+1))), IF(AND(BI$5<>INT(BI$5), COUNTA($H$4:BH$4)=ROUNDUP(BI$5, 0)), IF($G$5+SUM($11:$11)=INT($G$5+SUM($11:$11)), VALUE(CONCATENATE(IF(RIGHT(BH$4, 2)="99", LEFT(BH$4, 2)+1, LEFT(BH$4, 2))&RIGHT(BH$4, 2))), CONCATENATE(LEFT(BH$4, 2)&RIGHT(BH$4, 2)&"-"&IF(RIGHT(BH$4, 2)<"09", "0", "")&IF(RIGHT(BH$4, 2)="99", "00", RIGHT(BH$4, 2)+1))), IF(LEN(BH4)>4,CONCATENATE(LEFT(BH4,4)+1&"-"&IF(RIGHT(BH4, 2)<"09", "0","")&IF(RIGHT(BH4, 2)="99", "00", RIGHT(BH4,2)+1)),VALUE(BH4+1)))) -> 2074-75 | BJ4: =IF(BJ$11<>"", IF(INT($G$5+SUM($H$11:BI$11))=$G$5+SUM($H$11:BI$11), VALUE(LEFT(BJ$10, 4)), CONCATENATE(LEFT(BJ$10,4)&"-"&IF(MID(BJ$10, 3, 2)<"09", "0","")&IF(MID(BJ$10, 3, 2)="99", "00", MID(BJ$10, 3, 2)+1))), IF(AND(BJ$5<>INT(BJ$5), COUNTA($H$4:BI$4)=ROUNDUP(BJ$5, 0)), IF($G$5+SUM($11:$11)=INT($G$5+SUM($11:$11)), VALUE(CONCATENATE(IF(RIGHT(BI$4, 2)="99", LEFT(BI$4, 2)+1, LEFT(BI$4, 2))&RIGHT(BI$4, 2))), CONCATENATE(LEFT(BI$4, 2)&RIGHT(BI$4, 2)&"-"&IF(RIGHT(BI$4, 2)<"09", "0", "")&IF(RIGHT(BI$4, 2)="99", "00", RIGHT(BI$4, 2)+1))), IF(LEN(BI4)>4,CONCATENATE(LEFT(BI4,4)+1&"-"&IF(RIGHT(BI4, 2)<"09", "0","")&IF(RIGHT(BI4, 2)="99", "00", RIGHT(BI4,2)+1)),VALUE(BI4+1)))) -> 2075-76 | BK4: =IF(BK$11<>"", IF(INT($G$5+SUM($H$11:BJ$11))=$G$5+SUM($H$11:BJ$11), VALUE(LEFT(BK$10, 4)), CONCATENATE(LEFT(BK$10,4)&"-"&IF(MID(BK$10, 3, 2)<"09", "0","")&IF(MID(BK$10, 3, 2)="99", "00", MID(BK$10, 3, 2)+1))), IF(AND(BK$5<>INT(BK$5), COUNTA($H$4:BJ$4)=ROUNDUP(BK$5, 0)), IF($G$5+SUM($11:$11)=INT($G$5+SUM($11:$11)), VALUE(CONCATENATE(IF(RIGHT(BJ$4, 2)="99", LEFT(BJ$4, 2)+1, LEFT(BJ$4, 2))&RIGHT(BJ$4, 2))), CONCATENATE(LEFT(BJ$4, 2)&RIGHT(BJ$4, 2)&"-"&IF(RIGHT(BJ$4, 2)<"09", "0", "")&IF(RIGHT(BJ$4, 2)="99", "00", RIGHT(BJ$4, 2)+1))), IF(LEN(BJ4)>4,CONCATENATE(LEFT(BJ4,4)+1&"-"&IF(RIGHT(BJ4, 2)<"09", "0","")&IF(RIGHT(BJ4, 2)="99", "00", RIGHT(BJ4,2)+1)),VALUE(BJ4+1)))) -> 2076-77 | BL4: =IF(BL$11<>"", IF(INT($G$5+SUM($H$11:BK$11))=$G$5+SUM($H$11:BK$11), VALUE(LEFT(BL$10, 4)), CONCATENATE(LEFT(BL$10,4)&"-"&IF(MID(BL$10, 3, 2)<"09", "0","")&IF(MID(BL$10, 3, 2)="99", "00", MID(BL$10, 3, 2)+1))), IF(AND(BL$5<>INT(BL$5), COUNTA($H$4:BK$4)=ROUNDUP(BL$5, 0)), IF($G$5+SUM($11:$11)=INT($G$5+SUM($11:$11)), VALUE(CONCATENATE(IF(RIGHT(BK$4, 2)="99", LEFT(BK$4, 2)+1, LEFT(BK$4, 2))&RIGHT(BK$4, 2))), CONCATENATE(LEFT(BK$4, 2)&RIGHT(BK$4, 2)&"-"&IF(RIGHT(BK$4, 2)<"09", "0", "")&IF(RIGHT(BK$4, 2)="99", "00", RIGHT(BK$4, 2)+1))), IF(LEN(BK4)>4,CONCATENATE(LEFT(BK4,4)+1&"-"&IF(RIGHT(BK4, 2)<"09", "0","")&IF(RIGHT(BK4, 2)="99", "00", RIGHT(BK4,2)+1)),VALUE(BK4+1)))) -> 2077-78 | BM4: =IF(BM$11<>"", IF(INT($G$5+SUM($H$11:BL$11))=$G$5+SUM($H$11:BL$11), VALUE(LEFT(BM$10, 4)), CONCATENATE(LEFT(BM$10,4)&"-"&IF(MID(BM$10, 3, 2)<"09", "0","")&IF(MID(BM$10, 3, 2)="99", "00", MID(BM$10, 3, 2)+1))), IF(AND(BM$5<>INT(BM$5), COUNTA($H$4:BL$4)=ROUNDUP(BM$5, 0)), IF($G$5+SUM($11:$11)=INT($G$5+SUM($11:$11)), VALUE(CONCATENATE(IF(RIGHT(BL$4, 2)="99", LEFT(BL$4, 2)+1, LEFT(BL$4, 2))&RIGHT(BL$4, 2))), CONCATENATE(LEFT(BL$4, 2)&RIGHT(BL$4, 2)&"-"&IF(RIGHT(BL$4, 2)<"09", "0", "")&IF(RIGHT(BL$4, 2)="99", "00", RIGHT(BL$4, 2)+1))), IF(LEN(BL4)>4,CONCATENATE(LEFT(BL4,4)+1&"-"&IF(RIGHT(BL4, 2)<"09", "0","")&IF(RIGHT(BL4, 2)="99", "00", RIGHT(BL4,2)+1)),VALUE(BL4+1)))) -> 2078-79 | BN4: =IF(BN$11<>"", IF(INT($G$5+SUM($H$11:BM$11))=$G$5+SUM($H$11:BM$11), VALUE(LEFT(BN$10, 4)), CONCATENATE(LEFT(BN$10,4)&"-"&IF(MID(BN$10, 3, 2)<"09", "0","")&IF(MID(BN$10, 3, 2)="99", "00", MID(BN$10, 3, 2)+1))), IF(AND(BN$5<>INT(BN$5), COUNTA($H$4:BM$4)=ROUNDUP(BN$5, 0)), IF($G$5+SUM($11:$11)=INT($G$5+SUM($11:$11)), VALUE(CONCATENATE(IF(RIGHT(BM$4, 2)="99", LEFT(BM$4, 2)+1, LEFT(BM$4, 2))&RIGHT(BM$4, 2))), CONCATENATE(LEFT(BM$4, 2)&RIGHT(BM$4, 2)&"-"&IF(RIGHT(BM$4, 2)<"09", "0", "")&IF(RIGHT(BM$4, 2)="99", "00", RIGHT(BM$4, 2)+1))), IF(LEN(BM4)>4,CONCATENATE(LEFT(BM4,4)+1&"-"&IF(RIGHT(BM4, 2)<"09", "0","")&IF(RIGHT(BM4, 2)="99", "00", RIGHT(BM4,2)+1)),VALUE(BM4+1)))) -> 2079-80 | BO4: =IF(BO$11<>"", IF(INT($G$5+SUM($H$11:BN$11))=$G$5+SUM($H$11:BN$11), VALUE(LEFT(BO$10, 4)), CONCATENATE(LEFT(BO$10,4)&"-"&IF(MID(BO$10, 3, 2)<"09", "0","")&IF(MID(BO$10, 3, 2)="99", "00", MID(BO$10, 3, 2)+1))), IF(AND(BO$5<>INT(BO$5), COUNTA($H$4:BN$4)=ROUNDUP(BO$5, 0)), IF($G$5+SUM($11:$11)=INT($G$5+SUM($11:$11)), VALUE(CONCATENATE(IF(RIGHT(BN$4, 2)="99", LEFT(BN$4, 2)+1, LEFT(BN$4, 2))&RIGHT(BN$4, 2))), CONCATENATE(LEFT(BN$4, 2)&RIGHT(BN$4, 2)&"-"&IF(RIGHT(BN$4, 2)<"09", "0", "")&IF(RIGHT(BN$4, 2)="99", "00", RIGHT(BN$4, 2)+1))), IF(LEN(BN4)>4,CONCATENATE(LEFT(BN4,4)+1&"-"&IF(RIGHT(BN4, 2)<"09", "0","")&IF(RIGHT(BN4, 2)="99", "00", RIGHT(BN4,2)+1)),VALUE(BN4+1)))) -> 2080-81 | BP4: =IF(BP$11<>"", IF(INT($G$5+SUM($H$11:BO$11))=$G$5+SUM($H$11:BO$11), VALUE(LEFT(BP$10, 4)), CONCATENATE(LEFT(BP$10,4)&"-"&IF(MID(BP$10, 3, 2)<"09", "0","")&IF(MID(BP$10, 3, 2)="99", "00", MID(BP$10, 3, 2)+1))), IF(AND(BP$5<>INT(BP$5), COUNTA($H$4:BO$4)=ROUNDUP(BP$5, 0)), IF($G$5+SUM($11:$11)=INT($G$5+SUM($11:$11)), VALUE(CONCATENATE(IF(RIGHT(BO$4, 2)="99", LEFT(BO$4, 2)+1, LEFT(BO$4, 2))&RIGHT(BO$4, 2))), CONCATENATE(LEFT(BO$4, 2)&RIGHT(BO$4, 2)&"-"&IF(RIGHT(BO$4, 2)<"09", "0", "")&IF(RIGHT(BO$4, 2)="99", "00", RIGHT(BO$4, 2)+1))), IF(LEN(BO4)>4,CONCATENATE(LEFT(BO4,4)+1&"-"&IF(RIGHT(BO4, 2)<"09", "0","")&IF(RIGHT(BO4, 2)="99", "00", RIGHT(BO4,2)+1)),VALUE(BO4+1)))) -> 2081-82 | BQ4: =IF(BQ$11<>"", IF(INT($G$5+SUM($H$11:BP$11))=$G$5+SUM($H$11:BP$11), VALUE(LEFT(BQ$10, 4)), CONCATENATE(LEFT(BQ$10,4)&"-"&IF(MID(BQ$10, 3, 2)<"09", "0","")&IF(MID(BQ$10, 3, 2)="99", "00", MID(BQ$10, 3, 2)+1))), IF(AND(BQ$5<>INT(BQ$5), COUNTA($H$4:BP$4)=ROUNDUP(BQ$5, 0)), IF($G$5+SUM($11:$11)=INT($G$5+SUM($11:$11)), VALUE(CONCATENATE(IF(RIGHT(BP$4, 2)="99", LEFT(BP$4, 2)+1, LEFT(BP$4, 2))&RIGHT(BP$4, 2))), CONCATENATE(LEFT(BP$4, 2)&RIGHT(BP$4, 2)&"-"&IF(RIGHT(BP$4, 2)<"09", "0", "")&IF(RIGHT(BP$4, 2)="99", "00", RIGHT(BP$4, 2)+1))), IF(LEN(BP4)>4,CONCATENATE(LEFT(BP4,4)+1&"-"&IF(RIGHT(BP4, 2)<"09", "0","")&IF(RIGHT(BP4, 2)="99", "00", RIGHT(BP4,2)+1)),VALUE(BP4+1)))) -> 2082-83 | BR4: =IF(BR$11<>"", IF(INT($G$5+SUM($H$11:BQ$11))=$G$5+SUM($H$11:BQ$11), VALUE(LEFT(BR$10, 4)), CONCATENATE(LEFT(BR$10,4)&"-"&IF(MID(BR$10, 3, 2)<"09", "0","")&IF(MID(BR$10, 3, 2)="99", "00", MID(BR$10, 3, 2)+1))), IF(AND(BR$5<>INT(BR$5), COUNTA($H$4:BQ$4)=ROUNDUP(BR$5, 0)), IF($G$5+SUM($11:$11)=INT($G$5+SUM($11:$11)), VALUE(CONCATENATE(IF(RIGHT(BQ$4, 2)="99", LEFT(BQ$4, 2)+1, LEFT(BQ$4, 2))&RIGHT(BQ$4, 2))), CONCATENATE(LEFT(BQ$4, 2)&RIGHT(BQ$4, 2)&"-"&IF(RIGHT(BQ$4, 2)<"09", "0", "")&IF(RIGHT(BQ$4, 2)="99", "00", RIGHT(BQ$4, 2)+1))), IF(LEN(BQ4)>4,CONCATENATE(LEFT(BQ4,4)+1&"-"&IF(RIGHT(BQ4, 2)<"09", "0","")&IF(RIGHT(BQ4, 2)="99", "00", RIGHT(BQ4,2)+1)),VALUE(BQ4+1)))) -> 2083-84 | BS4: =IF(BS$11<>"", IF(INT($G$5+SUM($H$11:BR$11))=$G$5+SUM($H$11:BR$11), VALUE(LEFT(BS$10, 4)), CONCATENATE(LEFT(BS$10,4)&"-"&IF(MID(BS$10, 3, 2)<"09", "0","")&IF(MID(BS$10, 3, 2)="99", "00", MID(BS$10, 3, 2)+1))), IF(AND(BS$5<>INT(BS$5), COUNTA($H$4:BR$4)=ROUNDUP(BS$5, 0)), IF($G$5+SUM($11:$11)=INT($G$5+SUM($11:$11)), VALUE(CONCATENATE(IF(RIGHT(BR$4, 2)="99", LEFT(BR$4, 2)+1, LEFT(BR$4, 2))&RIGHT(BR$4, 2))), CONCATENATE(LEFT(BR$4, 2)&RIGHT(BR$4, 2)&"-"&IF(RIGHT(BR$4, 2)<"09", "0", "")&IF(RIGHT(BR$4, 2)="99", "00", RIGHT(BR$4, 2)+1))), IF(LEN(BR4)>4,CONCATENATE(LEFT(BR4,4)+1&"-"&IF(RIGHT(BR4, 2)<"09", "0","")&IF(RIGHT(BR4, 2)="99", "00", RIGHT(BR4,2)+1)),VALUE(BR4+1)))) -> 2084-85 | BT4: =IF(BT$11<>"", IF(INT($G$5+SUM($H$11:BS$11))=$G$5+SUM($H$11:BS$11), VALUE(LEFT(BT$10, 4)), CONCATENATE(LEFT(BT$10,4)&"-"&IF(MID(BT$10, 3, 2)<"09", "0","")&IF(MID(BT$10, 3, 2)="99", "00", MID(BT$10, 3, 2)+1))), IF(AND(BT$5<>INT(BT$5), COUNTA($H$4:BS$4)=ROUNDUP(BT$5, 0)), IF($G$5+SUM($11:$11)=INT($G$5+SUM($11:$11)), VALUE(CONCATENATE(IF(RIGHT(BS$4, 2)="99", LEFT(BS$4, 2)+1, LEFT(BS$4, 2))&RIGHT(BS$4, 2))), CONCATENATE(LEFT(BS$4, 2)&RIGHT(BS$4, 2)&"-"&IF(RIGHT(BS$4, 2)<"09", "0", "")&IF(RIGHT(BS$4, 2)="99", "00", RIGHT(BS$4, 2)+1))), IF(LEN(BS4)>4,CONCATENATE(LEFT(BS4,4)+1&"-"&IF(RIGHT(BS4, 2)<"09", "0","")&IF(RIGHT(BS4, 2)="99", "00", RIGHT(BS4,2)+1)),VALUE(BS4+1)))) -> 2085-86 | BU4: =IF(BU$11<>"", IF(INT($G$5+SUM($H$11:BT$11))=$G$5+SUM($H$11:BT$11), VALUE(LEFT(BU$10, 4)), CONCATENATE(LEFT(BU$10,4)&"-"&IF(MID(BU$10, 3, 2)<"09", "0","")&IF(MID(BU$10, 3, 2)="99", "00", MID(BU$10, 3, 2)+1))), IF(AND(BU$5<>INT(BU$5), COUNTA($H$4:BT$4)=ROUNDUP(BU$5, 0)), IF($G$5+SUM($11:$11)=INT($G$5+SUM($11:$11)), VALUE(CONCATENATE(IF(RIGHT(BT$4, 2)="99", LEFT(BT$4, 2)+1, LEFT(BT$4, 2))&RIGHT(BT$4, 2))), CONCATENATE(LEFT(BT$4, 2)&RIGHT(BT$4, 2)&"-"&IF(RIGHT(BT$4, 2)<"09", "0", "")&IF(RIGHT(BT$4, 2)="99", "00", RIGHT(BT$4, 2)+1))), IF(LEN(BT4)>4,CONCATENATE(LEFT(BT4,4)+1&"-"&IF(RIGHT(BT4, 2)<"09", "0","")&IF(RIGHT(BT4, 2)="99", "00", RIGHT(BT4,2)+1)),VALUE(BT4+1)))) -> 2086-87
G5: =IF(LEN($H$9)=4, 0, IF(AND(ISNUMBER(SEARCH("Ausnet", $F$8)), Intro!$J$8="Electricity transmission module"), 0.25, 0.5)) -> 0.5 | H5: =H$11 -> 5 | I5: =IF(I$11<>"",SUM(ROUNDUP(H$5,0),I$11),H$5) -> 5 | J5: =IF(J$11<>"",SUM(ROUNDUP(I$5,0),J$11),I$5) -> 5 | K5: 5 | L5: 5 | M5: 5 | N5: 5 | O5: 5 | P5: 5 | Q5: 5 | R5: 5 | S5: 5 | T5: 5 | U5: 5 | V5: 5 | W5: 5 | X5: 5 | Y5: 5 | Z5: 5 | AA5: 5 | AB5: 5 | AC5: 5 | AD5: 5 | AE5: 5 | AF5: 5 | AG5: 5 | AH5: 5 | AI5: 5 | AJ5: 5 | AK5: 5 | AL5: 5 | AM5: 5 | AN5: 5 | AO5: 5 | AP5: 5 | AQ5: 5 | AR5: 5 | AS5: 5 | AT5: 5 | AU5: 5 | AV5: 5 | AW5: 5 | AX5: 5 | AY5: 5 | AZ5: 5 | BA5: 5 | BB5: 5 | BC5: 5 | BD5: 5 | BE5: 5 | BF5: 5 | BG5: 5 | BH5: 5 | BI5: 5 | BJ5: 5 | BK5: 5 | BL5: 5 | BM5: 5 | BN5: 5 | BO5: 5 | BP5: 5 | BQ5: 5 | BR5: 5 | BS5: 5 | BT5: 5 | BU5: 5
D6: General information
E8: Business name | F8: ='RAB input'!$F$8 -> AusNet
E9: First regulatory year for tracking | H9: 2021-22 | I9: =IF(ROUNDUP(J$5, 0)=COUNTA($H$9:H$9), "Input for next period", "") ->  | J9: =IF(ROUNDUP(K$5, 0)=COUNTA($H$9:I$9), "Input for next period", "") ->  | K9: =IF(ROUNDUP(L$5, 0)=COUNTA($H$9:J$9), "Input for next period", "") ->  | L9: =IF(ROUNDUP(M$5, 0)=COUNTA($H$9:K$9), "Input for next period", "") ->  | M9: =IF(ROUNDUP(N$5, 0)=COUNTA($H$9:L$9), "Input for next period", "") -> Input for next period | N9: =IF(ROUNDUP(O$5, 0)=COUNTA($H$9:M$9), "Input for next period", "") ->  | O9: =IF(ROUNDUP(P$5, 0)=COUNTA($H$9:N$9), "Input for next period", "") ->  | P9: =IF(ROUNDUP(Q$5, 0)=COUNTA($H$9:O$9), "Input for next period", "") ->  | Q9: =IF(ROUNDUP(R$5, 0)=COUNTA($H$9:P$9), "Input for next period", "") ->  | R9: =IF(ROUNDUP(S$5, 0)=COUNTA($H$9:Q$9), "Input for next period", "") ->  | S9: =IF(ROUNDUP(T$5, 0)=COUNTA($H$9:R$9), "Input for next period", "") ->  | T9: =IF(ROUNDUP(U$5, 0)=COUNTA($H$9:S$9), "Input for next period", "") ->  | U9: =IF(ROUNDUP(V$5, 0)=COUNTA($H$9:T$9), "Input for next period", "") ->  | V9: =IF(ROUNDUP(W$5, 0)=COUNTA($H$9:U$9), "Input for next period", "") ->  | W9: =IF(ROUNDUP(X$5, 0)=COUNTA($H$9:V$9), "Input for next period", "") ->  | X9: =IF(ROUNDUP(Y$5, 0)=COUNTA($H$9:W$9), "Input for next period", "") ->  | Y9: =IF(ROUNDUP(Z$5, 0)=COUNTA($H$9:X$9), "Input for next period", "") ->  | Z9: =IF(ROUNDUP(AA$5, 0)=COUNTA($H$9:Y$9), "Input for next period", "") ->  | AA9: =IF(ROUNDUP(AB$5, 0)=COUNTA($H$9:Z$9), "Input for next period", "") ->  | AB9: =IF(ROUNDUP(AC$5, 0)=COUNTA($H$9:AA$9), "Input for next period", "") ->  | AC9: =IF(ROUNDUP(AD$5, 0)=COUNTA($H$9:AB$9), "Input for next period", "") ->  | AD9: =IF(ROUNDUP(AE$5, 0)=COUNTA($H$9:AC$9), "Input for next period", "") ->  | AE9: =IF(ROUNDUP(AF$5, 0)=COUNTA($H$9:AD$9), "Input for next period", "") ->  | AF9: =IF(ROUNDUP(AG$5, 0)=COUNTA($H$9:AE$9), "Input for next period", "") ->  | AG9: =IF(ROUNDUP(AH$5, 0)=COUNTA($H$9:AF$9), "Input for next period", "") ->  | AH9: =IF(ROUNDUP(AI$5, 0)=COUNTA($H$9:AG$9), "Input for next period", "") ->  | AI9: =IF(ROUNDUP(AJ$5, 0)=COUNTA($H$9:AH$9), "Input for next period", "") ->  | AJ9: =IF(ROUNDUP(AK$5, 0)=COUNTA($H$9:AI$9), "Input for next period", "") ->  | AK9: =IF(ROUNDUP(AL$5, 0)=COUNTA($H$9:AJ$9), "Input for next period", "") ->  | AL9: =IF(ROUNDUP(AM$5, 0)=COUNTA($H$9:AK$9), "Input for next period", "") ->  | AM9: =IF(ROUNDUP(AN$5, 0)=COUNTA($H$9:AL$9), "Input for next period", "") ->  | AN9: =IF(ROUNDUP(AO$5, 0)=COUNTA($H$9:AM$9), "Input for next period", "") ->  | AO9: =IF(ROUNDUP(AP$5, 0)=COUNTA($H$9:AN$9), "Input for next period", "") ->  | AP9: =IF(ROUNDUP(AQ$5, 0)=COUNTA($H$9:AO$9), "Input for next period", "") ->  | AQ9: =IF(ROUNDUP(AR$5, 0)=COUNTA($H$9:AP$9), "Input for next period", "") ->  | AR9: =IF(ROUNDUP(AS$5, 0)=COUNTA($H$9:AQ$9), "Input for next period", "") ->  | AS9: =IF(ROUNDUP(AT$5, 0)=COUNTA($H$9:AR$9), "Input for next period", "") ->  | AT9: =IF(ROUNDUP(AU$5, 0)=COUNTA($H$9:AS$9), "Input for next period", "") ->  | AU9: =IF(ROUNDUP(AV$5, 0)=COUNTA($H$9:AT$9), "Input for next period", "") ->  | AV9: =IF(ROUNDUP(AW$5, 0)=COUNTA($H$9:AU$9), "Input for next period", "") ->  | AW9: =IF(ROUNDUP(AX$5, 0)=COUNTA($H$9:AV$9), "Input for next period", "") ->  | AX9: =IF(ROUNDUP(AY$5, 0)=COUNTA($H$9:AW$9), "Input for next period", "") ->  | AY9: =IF(ROUNDUP(AZ$5, 0)=COUNTA($H$9:AX$9), "Input for next period", "") ->  | AZ9: =IF(ROUNDUP(BA$5, 0)=COUNTA($H$9:AY$9), "Input for next period", "") ->  | BA9: =IF(ROUNDUP(BB$5, 0)=COUNTA($H$9:AZ$9), "Input for next period", "") ->  | BB9: =IF(ROUNDUP(BC$5, 0)=COUNTA($H$9:BA$9), "Input for next period", "") ->  | BC9: =IF(ROUNDUP(BD$5, 0)=COUNTA($H$9:BB$9), "Input for next period", "") ->  | BD9: =IF(ROUNDUP(BE$5, 0)=COUNTA($H$9:BC$9), "Input for next period", "") ->  | BE9: =IF(ROUNDUP(BF$5, 0)=COUNTA($H$9:BD$9), "Input for next period", "") ->  | BF9: =IF(ROUNDUP(BG$5, 0)=COUNTA($H$9:BE$9), "Input for next period", "") ->  | BG9: =IF(ROUNDUP(BH$5, 0)=COUNTA($H$9:BF$9), "Input for next period", "") ->  | BH9: =IF(ROUNDUP(BI$5, 0)=COUNTA($H$9:BG$9), "Input for next period", "") ->  | BI9: =IF(ROUNDUP(BJ$5, 0)=COUNTA($H$9:BH$9), "Input for next period", "") ->  | BJ9: =IF(ROUNDUP(BK$5, 0)=COUNTA($H$9:BI$9), "Input for next period", "") ->  | BK9: =IF(ROUNDUP(BL$5, 0)=COUNTA($H$9:BJ$9), "Input for next period", "") ->  | BL9: =IF(ROUNDUP(BM$5, 0)=COUNTA($H$9:BK$9), "Input for next period", "") ->  | BM9: =IF(ROUNDUP(BN$5, 0)=COUNTA($H$9:BL$9), "Input for next period", "") ->  | BN9: =IF(ROUNDUP(BO$5, 0)=COUNTA($H$9:BM$9), "Input for next period", "") ->  | BO9: =IF(ROUNDUP(BP$5, 0)=COUNTA($H$9:BN$9), "Input for next period", "") ->  | BP9: =IF(ROUNDUP(BQ$5, 0)=COUNTA($H$9:BO$9), "Input for next period", "") ->  | BQ9: =IF(ROUNDUP(BR$5, 0)=COUNTA($H$9:BP$9), "Input for next period", "") ->  | BR9: =IF(ROUNDUP(BS$5, 0)=COUNTA($H$9:BQ$9), "Input for next period", "") ->  | BS9: =IF(ROUNDUP(BT$5, 0)=COUNTA($H$9:BR$9), "Input for next period", "") ->  | BT9: =IF(ROUNDUP(BU$5, 0)=COUNTA($H$9:BS$9), "Input for next period", "") ->  | BU9: =IF(ROUNDUP(BV$5, 0)=COUNTA($H$9:BT$9), "Input for next period", "") -> 
E10: Regulatory period | H10: 2021-26
E11: Years in regulatory period | H11: 5
G12: =IF(OR(G$446:G$495="DV"), "DV input required", "") ->  | H12: =IF(AND(OR(H$446:H$495="DV"), H$13=""), "DV input required", "") ->  | I12: =IF(COUNTA($H$12:H$12)<ROUNDUP(I$5, 0), IF(AND(I$446:I$495=""), IF(AND(H$13<>"", I$13=""), "DV input required", H$12), IF(AND(OR(I$446:I$495="DV"), I$13=""), "DV input required", "")), "") ->  | J12: =IF(COUNTA($H$12:I$12)<ROUNDUP(J$5, 0), IF(AND(J$446:J$495=""), IF(AND(I$13<>"", J$13=""), "DV input required", I$12), IF(AND(OR(J$446:J$495="DV"), J$13=""), "DV input required", "")), "") ->  | K12: =IF(COUNTA($H$12:J$12)<ROUNDUP(K$5, 0), IF(AND(K$446:K$495=""), IF(AND(J$13<>"", K$13=""), "DV input required", J$12), IF(AND(OR(K$446:K$495="DV"), K$13=""), "DV input required", "")), "") ->  | L12: =IF(COUNTA($H$12:K$12)<ROUNDUP(L$5, 0), IF(AND(L$446:L$495=""), IF(AND(K$13<>"", L$13=""), "DV input required", K$12), IF(AND(OR(L$446:L$495="DV"), L$13=""), "DV input required", "")), "") ->  | M12: =IF(COUNTA($H$12:L$12)<ROUNDUP(M$5, 0), IF(AND(M$446:M$495=""), IF(AND(L$13<>"", M$13=""), "DV input required", L$12), IF(AND(OR(M$446:M$495="DV"), M$13=""), "DV input required", "")), "") ->  | N12: =IF(COUNTA($H$12:M$12)<ROUNDUP(N$5, 0), IF(AND(N$446:N$495=""), IF(AND(M$13<>"", N$13=""), "DV input required", M$12), IF(AND(OR(N$446:N$495="DV"), N$13=""), "DV input required", "")), "") ->  | O12: =IF(COUNTA($H$12:N$12)<ROUNDUP(O$5, 0), IF(AND(O$446:O$495=""), IF(AND(N$13<>"", O$13=""), "DV input required", N$12), IF(AND(OR(O$446:O$495="DV"), O$13=""), "DV input required", "")), "") ->  | P12: =IF(COUNTA($H$12:O$12)<ROUNDUP(P$5, 0), IF(AND(P$446:P$495=""), IF(AND(O$13<>"", P$13=""), "DV input required", O$12), IF(AND(OR(P$446:P$495="DV"), P$13=""), "DV input required", "")), "") ->  | Q12: =IF(COUNTA($H$12:P$12)<ROUNDUP(Q$5, 0), IF(AND(Q$446:Q$495=""), IF(AND(P$13<>"", Q$13=""), "DV input required", P$12), IF(AND(OR(Q$446:Q$495="DV"), Q$13=""), "DV input required", "")), "") ->  | R12: =IF(COUNTA($H$12:Q$12)<ROUNDUP(R$5, 0), IF(AND(R$446:R$495=""), IF(AND(Q$13<>"", R$13=""), "DV input required", Q$12), IF(AND(OR(R$446:R$495="DV"), R$13=""), "DV input required", "")), "") ->  | S12: =IF(COUNTA($H$12:R$12)<ROUNDUP(S$5, 0), IF(AND(S$446:S$495=""), IF(AND(R$13<>"", S$13=""), "DV input required", R$12), IF(AND(OR(S$446:S$495="DV"), S$13=""), "DV input required", "")), "") ->  | T12: =IF(COUNTA($H$12:S$12)<ROUNDUP(T$5, 0), IF(AND(T$446:T$495=""), IF(AND(S$13<>"", T$13=""), "DV input required", S$12), IF(AND(OR(T$446:T$495="DV"), T$13=""), "DV input required", "")), "") ->  | U12: =IF(COUNTA($H$12:T$12)<ROUNDUP(U$5, 0), IF(AND(U$446:U$495=""), IF(AND(T$13<>"", U$13=""), "DV input required", T$12), IF(AND(OR(U$446:U$495="DV"), U$13=""), "DV input required", "")), "") ->  | V12: =IF(COUNTA($H$12:U$12)<ROUNDUP(V$5, 0), IF(AND(V$446:V$495=""), IF(AND(U$13<>"", V$13=""), "DV input required", U$12), IF(AND(OR(V$446:V$495="DV"), V$13=""), "DV input required", "")), "") ->  | W12: =IF(COUNTA($H$12:V$12)<ROUNDUP(W$5, 0), IF(AND(W$446:W$495=""), IF(AND(V$13<>"", W$13=""), "DV input required", V$12), IF(AND(OR(W$446:W$495="DV"), W$13=""), "DV input required", "")), "") ->  | X12: =IF(COUNTA($H$12:W$12)<ROUNDUP(X$5, 0), IF(AND(X$446:X$495=""), IF(AND(W$13<>"", X$13=""), "DV input required", W$12), IF(AND(OR(X$446:X$495="DV"), X$13=""), "DV input required", "")), "") ->  | Y12: =IF(COUNTA($H$12:X$12)<ROUNDUP(Y$5, 0), IF(AND(Y$446:Y$495=""), IF(AND(X$13<>"", Y$13=""), "DV input required", X$12), IF(AND(OR(Y$446:Y$495="DV"), Y$13=""), "DV input required", "")), "") ->  | Z12: =IF(COUNTA($H$12:Y$12)<ROUNDUP(Z$5, 0), IF(AND(Z$446:Z$495=""), IF(AND(Y$13<>"", Z$13=""), "DV input required", Y$12), IF(AND(OR(Z$446:Z$495="DV"), Z$13=""), "DV input required", "")), "") ->  | AA12: =IF(COUNTA($H$12:Z$12)<ROUNDUP(AA$5, 0), IF(AND(AA$446:AA$495=""), IF(AND(Z$13<>"", AA$13=""), "DV input required", Z$12), IF(AND(OR(AA$446:AA$495="DV"), AA$13=""), "DV input required", "")), "") ->  | AB12: =IF(COUNTA($H$12:AA$12)<ROUNDUP(AB$5, 0), IF(AND(AB$446:AB$495=""), IF(AND(AA$13<>"", AB$13=""), "DV input required", AA$12), IF(AND(OR(AB$446:AB$495="DV"), AB$13=""), "DV input required", "")), "") ->  | AC12: =IF(COUNTA($H$12:AB$12)<ROUNDUP(AC$5, 0), IF(AND(AC$446:AC$495=""), IF(AND(AB$13<>"", AC$13=""), "DV input required", AB$12), IF(AND(OR(AC$446:AC$495="DV"), AC$13=""), "DV input required", "")), "") ->  | AD12: =IF(COUNTA($H$12:AC$12)<ROUNDUP(AD$5, 0), IF(AND(AD$446:AD$495=""), IF(AND(AC$13<>"", AD$13=""), "DV input required", AC$12), IF(AND(OR(AD$446:AD$495="DV"), AD$13=""), "DV input required", "")), "") ->  | AE12: =IF(COUNTA($H$12:AD$12)<ROUNDUP(AE$5, 0), IF(AND(AE$446:AE$495=""), IF(AND(AD$13<>"", AE$13=""), "DV input required", AD$12), IF(AND(OR(AE$446:AE$495="DV"), AE$13=""), "DV input required", "")), "") ->  | AF12: =IF(COUNTA($H$12:AE$12)<ROUNDUP(AF$5, 0), IF(AND(AF$446:AF$495=""), IF(AND(AE$13<>"", AF$13=""), "DV input required", AE$12), IF(AND(OR(AF$446:AF$495="DV"), AF$13=""), "DV input required", "")), "") ->  | AG12: =IF(COUNTA($H$12:AF$12)<ROUNDUP(AG$5, 0), IF(AND(AG$446:AG$495=""), IF(AND(AF$13<>"", AG$13=""), "DV input required", AF$12), IF(AND(OR(AG$446:AG$495="DV"), AG$13=""), "DV input required", "")), "") ->  | AH12: =IF(COUNTA($H$12:AG$12)<ROUNDUP(AH$5, 0), IF(AND(AH$446:AH$495=""), IF(AND(AG$13<>"", AH$13=""), "DV input required", AG$12), IF(AND(OR(AH$446:AH$495="DV"), AH$13=""), "DV input required", "")), "") ->  | AI12: =IF(COUNTA($H$12:AH$12)<ROUNDUP(AI$5, 0), IF(AND(AI$446:AI$495=""), IF(AND(AH$13<>"", AI$13=""), "DV input required", AH$12), IF(AND(OR(AI$446:AI$495="DV"), AI$13=""), "DV input required", "")), "") ->  | AJ12: =IF(COUNTA($H$12:AI$12)<ROUNDUP(AJ$5, 0), IF(AND(AJ$446:AJ$495=""), IF(AND(AI$13<>"", AJ$13=""), "DV input required", AI$12), IF(AND(OR(AJ$446:AJ$495="DV"), AJ$13=""), "DV input required", "")), "") ->  | AK12: =IF(COUNTA($H$12:AJ$12)<ROUNDUP(AK$5, 0), IF(AND(AK$446:AK$495=""), IF(AND(AJ$13<>"", AK$13=""), "DV input required", AJ$12), IF(AND(OR(AK$446:AK$495="DV"), AK$13=""), "DV input required", "")), "") ->  | AL12: =IF(COUNTA($H$12:AK$12)<ROUNDUP(AL$5, 0), IF(AND(AL$446:AL$495=""), IF(AND(AK$13<>"", AL$13=""), "DV input required", AK$12), IF(AND(OR(AL$446:AL$495="DV"), AL$13=""), "DV input required", "")), "") ->  | AM12: =IF(COUNTA($H$12:AL$12)<ROUNDUP(AM$5, 0), IF(AND(AM$446:AM$495=""), IF(AND(AL$13<>"", AM$13=""), "DV input required", AL$12), IF(AND(OR(AM$446:AM$495="DV"), AM$13=""), "DV input required", "")), "") ->  | AN12: =IF(COUNTA($H$12:AM$12)<ROUNDUP(AN$5, 0), IF(AND(AN$446:AN$495=""), IF(AND(AM$13<>"", AN$13=""), "DV input required", AM$12), IF(AND(OR(AN$446:AN$495="DV"), AN$13=""), "DV input required", "")), "") ->  | AO12: =IF(COUNTA($H$12:AN$12)<ROUNDUP(AO$5, 0), IF(AND(AO$446:AO$495=""), IF(AND(AN$13<>"", AO$13=""), "DV input required", AN$12), IF(AND(OR(AO$446:AO$495="DV"), AO$13=""), "DV input required", "")), "") ->  | AP12: =IF(COUNTA($H$12:AO$12)<ROUNDUP(AP$5, 0), IF(AND(AP$446:AP$495=""), IF(AND(AO$13<>"", AP$13=""), "DV input required", AO$12), IF(AND(OR(AP$446:AP$495="DV"), AP$13=""), "DV input required", "")), "") ->  | AQ12: =IF(COUNTA($H$12:AP$12)<ROUNDUP(AQ$5, 0), IF(AND(AQ$446:AQ$495=""), IF(AND(AP$13<>"", AQ$13=""), "DV input required", AP$12), IF(AND(OR(AQ$446:AQ$495="DV"), AQ$13=""), "DV input required", "")), "") ->  | AR12: =IF(COUNTA($H$12:AQ$12)<ROUNDUP(AR$5, 0), IF(AND(AR$446:AR$495=""), IF(AND(AQ$13<>"", AR$13=""), "DV input required", AQ$12), IF(AND(OR(AR$446:AR$495="DV"), AR$13=""), "DV input required", "")), "") ->  | AS12: =IF(COUNTA($H$12:AR$12)<ROUNDUP(AS$5, 0), IF(AND(AS$446:AS$495=""), IF(AND(AR$13<>"", AS$13=""), "DV input required", AR$12), IF(AND(OR(AS$446:AS$495="DV"), AS$13=""), "DV input required", "")), "") ->  | AT12: =IF(COUNTA($H$12:AS$12)<ROUNDUP(AT$5, 0), IF(AND(AT$446:AT$495=""), IF(AND(AS$13<>"", AT$13=""), "DV input required", AS$12), IF(AND(OR(AT$446:AT$495="DV"), AT$13=""), "DV input required", "")), "") ->  | AU12: =IF(COUNTA($H$12:AT$12)<ROUNDUP(AU$5, 0), IF(AND(AU$446:AU$495=""), IF(AND(AT$13<>"", AU$13=""), "DV input required", AT$12), IF(AND(OR(AU$446:AU$495="DV"), AU$13=""), "DV input required", "")), "") ->  | AV12: =IF(COUNTA($H$12:AU$12)<ROUNDUP(AV$5, 0), IF(AND(AV$446:AV$495=""), IF(AND(AU$13<>"", AV$13=""), "DV input required", AU$12), IF(AND(OR(AV$446:AV$495="DV"), AV$13=""), "DV input required", "")), "") ->  | AW12: =IF(COUNTA($H$12:AV$12)<ROUNDUP(AW$5, 0), IF(AND(AW$446:AW$495=""), IF(AND(AV$13<>"", AW$13=""), "DV input required", AV$12), IF(AND(OR(AW$446:AW$495="DV"), AW$13=""), "DV input required", "")), "") ->  | AX12: =IF(COUNTA($H$12:AW$12)<ROUNDUP(AX$5, 0), IF(AND(AX$446:AX$495=""), IF(AND(AW$13<>"", AX$13=""), "DV input required", AW$12), IF(AND(OR(AX$446:AX$495="DV"), AX$13=""), "DV input required", "")), "") ->  | AY12: =IF(COUNTA($H$12:AX$12)<ROUNDUP(AY$5, 0), IF(AND(AY$446:AY$495=""), IF(AND(AX$13<>"", AY$13=""), "DV input required", AX$12), IF(AND(OR(AY$446:AY$495="DV"), AY$13=""), "DV input required", "")), "") ->  | AZ12: =IF(COUNTA($H$12:AY$12)<ROUNDUP(AZ$5, 0), IF(AND(AZ$446:AZ$495=""), IF(AND(AY$13<>"", AZ$13=""), "DV input required", AY$12), IF(AND(OR(AZ$446:AZ$495="DV"), AZ$13=""), "DV input required", "")), "") ->  | BA12: =IF(COUNTA($H$12:AZ$12)<ROUNDUP(BA$5, 0), IF(AND(BA$446:BA$495=""), IF(AND(AZ$13<>"", BA$13=""), "DV input required", AZ$12), IF(AND(OR(BA$446:BA$495="DV"), BA$13=""), "DV input required", "")), "") ->  | BB12: =IF(COUNTA($H$12:BA$12)<ROUNDUP(BB$5, 0), IF(AND(BB$446:BB$495=""), IF(AND(BA$13<>"", BB$13=""), "DV input required", BA$12), IF(AND(OR(BB$446:BB$495="DV"), BB$13=""), "DV input required", "")), "") ->  | BC12: =IF(COUNTA($H$12:BB$12)<ROUNDUP(BC$5, 0), IF(AND(BC$446:BC$495=""), IF(AND(BB$13<>"", BC$13=""), "DV input required", BB$12), IF(AND(OR(BC$446:BC$495="DV"), BC$13=""), "DV input required", "")), "") ->  | BD12: =IF(COUNTA($H$12:BC$12)<ROUNDUP(BD$5, 0), IF(AND(BD$446:BD$495=""), IF(AND(BC$13<>"", BD$13=""), "DV input required", BC$12), IF(AND(OR(BD$446:BD$495="DV"), BD$13=""), "DV input required", "")), "") ->  | BE12: =IF(COUNTA($H$12:BD$12)<ROUNDUP(BE$5, 0), IF(AND(BE$446:BE$495=""), IF(AND(BD$13<>"", BE$13=""), "DV input required", BD$12), IF(AND(OR(BE$446:BE$495="DV"), BE$13=""), "DV input required", "")), "") ->  | BF12: =IF(COUNTA($H$12:BE$12)<ROUNDUP(BF$5, 0), IF(AND(BF$446:BF$495=""), IF(AND(BE$13<>"", BF$13=""), "DV input required", BE$12), IF(AND(OR(BF$446:BF$495="DV"), BF$13=""), "DV input required", "")), "") ->  | BG12: =IF(COUNTA($H$12:BF$12)<ROUNDUP(BG$5, 0), IF(AND(BG$446:BG$495=""), IF(AND(BF$13<>"", BG$13=""), "DV input required", BF$12), IF(AND(OR(BG$446:BG$495="DV"), BG$13=""), "DV input required", "")), "") ->  | BH12: =IF(COUNTA($H$12:BG$12)<ROUNDUP(BH$5, 0), IF(AND(BH$446:BH$495=""), IF(AND(BG$13<>"", BH$13=""), "DV input required", BG$12), IF(AND(OR(BH$446:BH$495="DV"), BH$13=""), "DV input required", "")), "") ->  | BI12: =IF(COUNTA($H$12:BH$12)<ROUNDUP(BI$5, 0), IF(AND(BI$446:BI$495=""), IF(AND(BH$13<>"", BI$13=""), "DV input required", BH$12), IF(AND(OR(BI$446:BI$495="DV"), BI$13=""), "DV input required", "")), "") ->  | BJ12: =IF(COUNTA($H$12:BI$12)<ROUNDUP(BJ$5, 0), IF(AND(BJ$446:BJ$495=""), IF(AND(BI$13<>"", BJ$13=""), "DV input required", BI$12), IF(AND(OR(BJ$446:BJ$495="DV"), BJ$13=""), "DV input required", "")), "") ->  | BK12: =IF(COUNTA($H$12:BJ$12)<ROUNDUP(BK$5, 0), IF(AND(BK$446:BK$495=""), IF(AND(BJ$13<>"", BK$13=""), "DV input required", BJ$12), IF(AND(OR(BK$446:BK$495="DV"), BK$13=""), "DV input required", "")), "") ->  | BL12: =IF(COUNTA($H$12:BK$12)<ROUNDUP(BL$5, 0), IF(AND(BL$446:BL$495=""), IF(AND(BK$13<>"", BL$13=""), "DV input required", BK$12), IF(AND(OR(BL$446:BL$495="DV"), BL$13=""), "DV input required", "")), "") ->  | BM12: =IF(COUNTA($H$12:BL$12)<ROUNDUP(BM$5, 0), IF(AND(BM$446:BM$495=""), IF(AND(BL$13<>"", BM$13=""), "DV input required", BL$12), IF(AND(OR(BM$446:BM$495="DV"), BM$13=""), "DV input required", "")), "") ->  | BN12: =IF(COUNTA($H$12:BM$12)<ROUNDUP(BN$5, 0), IF(AND(BN$446:BN$495=""), IF(AND(BM$13<>"", BN$13=""), "DV input required", BM$12), IF(AND(OR(BN$446:BN$495="DV"), BN$13=""), "DV input required", "")), "") ->  | BO12: =IF(COUNTA($H$12:BN$12)<ROUNDUP(BO$5, 0), IF(AND(BO$446:BO$495=""), IF(AND(BN$13<>"", BO$13=""), "DV input required", BN$12), IF(AND(OR(BO$446:BO$495="DV"), BO$13=""), "DV input required", "")), "") ->  | BP12: =IF(COUNTA($H$12:BO$12)<ROUNDUP(BP$5, 0), IF(AND(BP$446:BP$495=""), IF(AND(BO$13<>"", BP$13=""), "DV input required", BO$12), IF(AND(OR(BP$446:BP$495="DV"), BP$13=""), "DV input required", "")), "") ->  | BQ12: =IF(COUNTA($H$12:BP$12)<ROUNDUP(BQ$5, 0), IF(AND(BQ$446:BQ$495=""), IF(AND(BP$13<>"", BQ$13=""), "DV input required", BP$12), IF(AND(OR(BQ$446:BQ$495="DV"), BQ$13=""), "DV input required", "")), "") ->  | BR12: =IF(COUNTA($H$12:BQ$12)<ROUNDUP(BR$5, 0), IF(AND(BR$446:BR$495=""), IF(AND(BQ$13<>"", BR$13=""), "DV input required", BQ$12), IF(AND(OR(BR$446:BR$495="DV"), BR$13=""), "DV input required", "")), "") ->  | BS12: =IF(COUNTA($H$12:BR$12)<ROUNDUP(BS$5, 0), IF(AND(BS$446:BS$495=""), IF(AND(BR$13<>"", BS$13=""), "DV input required", BR$12), IF(AND(OR(BS$446:BS$495="DV"), BS$13=""), "DV input required", "")), "") ->  | BT12: =IF(COUNTA($H$12:BS$12)<ROUNDUP(BT$5, 0), IF(AND(BT$446:BT$495=""), IF(AND(BS$13<>"", BT$13=""), "DV input required", BS$12), IF(AND(OR(BT$446:BT$495="DV"), BT$13=""), "DV input required", "")), "") ->  | BU12: =IF(COUNTA($H$12:BT$12)<ROUNDUP(BU$5, 0), IF(AND(BU$446:BU$495=""), IF(AND(BT$13<>"", BU$13=""), "DV input required", BT$12), IF(AND(OR(BU$446:BU$495="DV"), BU$13=""), "DV input required", "")), "") -> 
E13: Diminishing value multiplier | H13: 2 | I13: 2 | J13: 2 | K13: 2 | L13: 2
D15: Starting TAB and actual gross capex - As incurred ($m, nominal)
E16: Asset class | G16: ="TAB (opening as at "&$H$4&")" -> TAB (opening as at 2021-22) | H16: ="Actual gross capex ("&H$4&")" -> Actual gross capex (2021-22) | I16: =IF(COUNTA($H$16:H$16)<I$5, "Actual gross capex ("&I$4&")", "") -> Actual gross capex (2022-23) | J16: =IF(COUNTA($H$16:I$16)<J$5, "Actual gross capex ("&J$4&")", "") -> Actual gross capex (2023-24) | K16: =IF(COUNTA($H$16:J$16)<K$5, "Actual gross capex ("&K$4&")", "") -> Actual gross capex (2024-25) | L16: =IF(COUNTA($H$16:K$16)<L$5, "Actual gross capex ("&L$4&")", "") -> Actual gross capex (2025-26) | M16: =IF(COUNTA($H$16:L$16)<M$5, "Actual gross capex ("&M$4&")", "") ->  | N16: =IF(COUNTA($H$16:M$16)<N$5, "Actual gross capex ("&N$4&")", "") ->  | O16: =IF(COUNTA($H$16:N$16)<O$5, "Actual gross capex ("&O$4&")", "") ->  | P16: =IF(COUNTA($H$16:O$16)<P$5, "Actual gross capex ("&P$4&")", "") ->  | Q16: =IF(COUNTA($H$16:P$16)<Q$5, "Actual gross capex ("&Q$4&")", "") ->  | R16: =IF(COUNTA($H$16:Q$16)<R$5, "Actual gross capex ("&R$4&")", "") ->  | S16: =IF(COUNTA($H$16:R$16)<S$5, "Actual gross capex ("&S$4&")", "") ->  | T16: =IF(COUNTA($H$16:S$16)<T$5, "Actual gross capex ("&T$4&")", "") ->  | U16: =IF(COUNTA($H$16:T$16)<U$5, "Actual gross capex ("&U$4&")", "") ->  | V16: =IF(COUNTA($H$16:U$16)<V$5, "Actual gross capex ("&V$4&")", "") ->  | W16: =IF(COUNTA($H$16:V$16)<W$5, "Actual gross capex ("&W$4&")", "") ->  | X16: =IF(COUNTA($H$16:W$16)<X$5, "Actual gross capex ("&X$4&")", "") ->  | Y16: =IF(COUNTA($H$16:X$16)<Y$5, "Actual gross capex ("&Y$4&")", "") ->  | Z16: =IF(COUNTA($H$16:Y$16)<Z$5, "Actual gross capex ("&Z$4&")", "") ->  | AA16: =IF(COUNTA($H$16:Z$16)<AA$5, "Actual gross capex ("&AA$4&")", "") ->  | AB16: =IF(COUNTA($H$16:AA$16)<AB$5, "Actual gross capex ("&AB$4&")", "") ->  | AC16: =IF(COUNTA($H$16:AB$16)<AC$5, "Actual gross capex ("&AC$4&")", "") ->  | AD16: =IF(COUNTA($H$16:AC$16)<AD$5, "Actual gross capex ("&AD$4&")", "") ->  | AE16: =IF(COUNTA($H$16:AD$16)<AE$5, "Actual gross capex ("&AE$4&")", "") ->  | AF16: =IF(COUNTA($H$16:AE$16)<AF$5, "Actual gross capex ("&AF$4&")", "") ->  | AG16: =IF(COUNTA($H$16:AF$16)<AG$5, "Actual gross capex ("&AG$4&")", "") ->  | AH16: =IF(COUNTA($H$16:AG$16)<AH$5, "Actual gross capex ("&AH$4&")", "") ->  | AI16: =IF(COUNTA($H$16:AH$16)<AI$5, "Actual gross capex ("&AI$4&")", "") ->  | AJ16: =IF(COUNTA($H$16:AI$16)<AJ$5, "Actual gross capex ("&AJ$4&")", "") ->  | AK16: =IF(COUNTA($H$16:AJ$16)<AK$5, "Actual gross capex ("&AK$4&")", "") ->  | AL16: =IF(COUNTA($H$16:AK$16)<AL$5, "Actual gross capex ("&AL$4&")", "") ->  | AM16: =IF(COUNTA($H$16:AL$16)<AM$5, "Actual gross capex ("&AM$4&")", "") ->  | AN16: =IF(COUNTA($H$16:AM$16)<AN$5, "Actual gross capex ("&AN$4&")", "") ->  | AO16: =IF(COUNTA($H$16:AN$16)<AO$5, "Actual gross capex ("&AO$4&")", "") ->  | AP16: =IF(COUNTA($H$16:AO$16)<AP$5, "Actual gross capex ("&AP$4&")", "") ->  | AQ16: =IF(COUNTA($H$16:AP$16)<AQ$5, "Actual gross capex ("&AQ$4&")", "") ->  | AR16: =IF(COUNTA($H$16:AQ$16)<AR$5, "Actual gross capex ("&AR$4&")", "") ->  | AS16: =IF(COUNTA($H$16:AR$16)<AS$5, "Actual gross capex ("&AS$4&")", "") ->  | AT16: =IF(COUNTA($H$16:AS$16)<AT$5, "Actual gross capex ("&AT$4&")", "") ->  | AU16: =IF(COUNTA($H$16:AT$16)<AU$5, "Actual gross capex ("&AU$4&")", "") ->  | AV16: =IF(COUNTA($H$16:AU$16)<AV$5, "Actual gross capex ("&AV$4&")", "") ->  | AW16: =IF(COUNTA($H$16:AV$16)<AW$5, "Actual gross capex ("&AW$4&")", "") ->  | AX16: =IF(COUNTA($H$16:AW$16)<AX$5, "Actual gross capex ("&AX$4&")", "") ->  | AY16: =IF(COUNTA($H$16:AX$16)<AY$5, "Actual gross capex ("&AY$4&")", "") ->  | AZ16: =IF(COUNTA($H$16:AY$16)<AZ$5, "Actual gross capex ("&AZ$4&")", "") ->  | BA16: =IF(COUNTA($H$16:AZ$16)<BA$5, "Actual gross capex ("&BA$4&")", "") ->  | BB16: =IF(COUNTA($H$16:BA$16)<BB$5, "Actual gross capex ("&BB$4&")", "") ->  | BC16: =IF(COUNTA($H$16:BB$16)<BC$5, "Actual gross capex ("&BC$4&")", "") ->  | BD16: =IF(COUNTA($H$16:BC$16)<BD$5, "Actual gross capex ("&BD$4&")", "") ->  | BE16: =IF(COUNTA($H$16:BD$16)<BE$5, "Actual gross capex ("&BE$4&")", "") ->  | BF16: =IF(COUNTA($H$16:BE$16)<BF$5, "Actual gross capex ("&BF$4&")", "") ->  | BG16: =IF(COUNTA($H$16:BF$16)<BG$5, "Actual gross capex ("&BG$4&")", "") ->  | BH16: =IF(COUNTA($H$16:BG$16)<BH$5, "Actual gross capex ("&BH$4&")", "") ->  | BI16: =IF(COUNTA($H$16:BH$16)<BI$5, "Actual gross capex ("&BI$4&")", "") ->  | BJ16: =IF(COUNTA($H$16:BI$16)<BJ$5, "Actual gross capex ("&BJ$4&")", "") ->  | BK16: =IF(COUNTA($H$16:BJ$16)<BK$5, "Actual gross capex ("&BK$4&")", "") ->  | BL16: =IF(COUNTA($H$16:BK$16)<BL$5, "Actual gross capex ("&BL$4&")", "") ->  | BM16: =IF(COUNTA($H$16:BL$16)<BM$5, "Actual gross capex ("&BM$4&")", "") ->  | BN16: =IF(COUNTA($H$16:BM$16)<BN$5, "Actual gross capex ("&BN$4&")", "") ->  | BO16: =IF(COUNTA($H$16:BN$16)<BO$5, "Actual gross capex ("&BO$4&")", "") ->  | BP16: =IF(COUNTA($H$16:BO$16)<BP$5, "Actual gross capex ("&BP$4&")", "") ->  | BQ16: =IF(COUNTA($H$16:BP$16)<BQ$5, "Actual gross capex ("&BQ$4&")", "") ->  | BR16: =IF(COUNTA($H$16:BQ$16)<BR$5, "Actual gross capex ("&BR$4&")", "") ->  | BS16: =IF(COUNTA($H$16:BR$16)<BS$5, "Actual gross capex ("&BS$4&")", "") ->  | BT16: =IF(COUNTA($H$16:BS$16)<BT$5, "Actual gross capex ("&BT$4&")", "") ->  | BU16: =IF(COUNTA($H$16:BT$16)<BU$5, "Actual gross capex ("&BU$4&")", "") -> 
D18: 1 | E18: ='RAB input'!E27 -> Subtransmission | G18: =INDEX('[6]TAB roll forward'!$H$8:$H$57,MATCH(E18,'[6]TAB roll forward'!$C$8:$C$57,0),1) -> 486.8785564 | H18: =INDEX('RAB input'!$H$27:$XFD$76, MATCH($E18, 'RAB input'!$E$27:$E$76, 0), MATCH(H$4, RAB_years, 0)) -> 84.04094654 | I18: =INDEX('RAB input'!$H$27:$XFD$76, MATCH($E18, 'RAB input'!$E$27:$E$76, 0), MATCH(I$4, RAB_years, 0)) -> 86.72233883 | J18: =INDEX('RAB input'!$H$27:$XFD$76, MATCH($E18, 'RAB input'!$E$27:$E$76, 0), MATCH(J$4, RAB_years, 0)) -> 56.54142454 | K18: =INDEX('RAB input'!$H$27:$XFD$76, MATCH($E18, 'RAB input'!$E$27:$E$76, 0), MATCH(K$4, RAB_years, 0)) -> 74.62311529 | L18: =INDEX('RAB input'!$H$27:$XFD$76, MATCH($E18, 'RAB input'!$E$27:$E$76, 0), MATCH(L$4, RAB_years, 0)) -> 83.95114857 | M18: =INDEX('RAB input'!$H$27:$XFD$76, MATCH($E18, 'RAB input'!$E$27:$E$76, 0), MATCH(M$4, RAB_years, 0)) -> 0 | N18: =INDEX('RAB input'!$H$27:$XFD$76, MATCH($E18, 'RAB input'!$E$27:$E$76, 0), MATCH(N$4, RAB_years, 0)) -> 0 | O18: =INDEX('RAB input'!$H$27:$XFD$76, MATCH($E18, 'RAB input'!$E$27:$E$76, 0), MATCH(O$4, RAB_years, 0)) -> 0 | P18: =INDEX('RAB input'!$H$27:$XFD$76, MATCH($E18, 'RAB input'!$E$27:$E$76, 0), MATCH(P$4, RAB_years, 0)) -> 0 | Q18: =INDEX('RAB input'!$H$27:$XFD$76, MATCH($E18, 'RAB input'!$E$27:$E$76, 0), MATCH(Q$4, RAB_years, 0)) -> 0 | R18: =INDEX('RAB input'!$H$27:$XFD$76, MATCH($E18, 'RAB input'!$E$27:$E$76, 0), MATCH(R$4, RAB_years, 0)) -> 0 | S18: =INDEX('RAB input'!$H$27:$XFD$76, MATCH($E18, 'RAB input'!$E$27:$E$76, 0), MATCH(S$4, RAB_years, 0)) -> 0 | T18: =INDEX('RAB input'!$H$27:$XFD$76, MATCH($E18, 'RAB input'!$E$27:$E$76, 0), MATCH(T$4, RAB_years, 0)) -> 0 | U18: =INDEX('RAB input'!$H$27:$XFD$76, MATCH($E18, 'RAB input'!$E$27:$E$76, 0), MATCH(U$4, RAB_years, 0)) -> 0 | V18: =INDEX('RAB input'!$H$27:$XFD$76, MATCH($E18, 'RAB input'!$E$27:$E$76, 0), MATCH(V$4, RAB_years, 0)) -> 0 | W18: =INDEX('RAB input'!$H$27:$XFD$76, MATCH($E18, 'RAB input'!$E$27:$E$76, 0), MATCH(W$4, RAB_years, 0)) -> 0 | X18: =INDEX('RAB input'!$H$27:$XFD$76, MATCH($E18, 'RAB input'!$E$27:$E$76, 0), MATCH(X$4, RAB_years, 0)) -> 0 | Y18: =INDEX('RAB input'!$H$27:$XFD$76, MATCH($E18, 'RAB input'!$E$27:$E$76, 0), MATCH(Y$4, RAB_years, 0)) -> 0 | Z18: =INDEX('RAB input'!$H$27:$XFD$76, MATCH($E18, 'RAB input'!$E$27:$E$76, 0), MATCH(Z$4, RAB_years, 0)) -> 0 | AA18: =INDEX('RAB input'!$H$27:$XFD$76, MATCH($E18, 'RAB input'!$E$27:$E$76, 0), MATCH(AA$4, RAB_years, 0)) -> 0 | AB18: =INDEX('RAB input'!$H$27:$XFD$76, MATCH($E18, 'RAB input'!$E$27:$E$76, 0), MATCH(AB$4, RAB_years, 0)) -> 0 | AC18: =INDEX('RAB input'!$H$27:$XFD$76, MATCH($E18, 'RAB input'!$E$27:$E$76, 0), MATCH(AC$4, RAB_years, 0)) -> 0 | AD18: =INDEX('RAB input'!$H$27:$XFD$76, MATCH($E18, 'RAB input'!$E$27:$E$76, 0), MATCH(AD$4, RAB_years, 0)) -> 0 | AE18: =INDEX('RAB input'!$H$27:$XFD$76, MATCH($E18, 'RAB input'!$E$27:$E$76, 0), MATCH(AE$4, RAB_years, 0)) -> 0 | AF18: =INDEX('RAB input'!$H$27:$XFD$76, MATCH($E18, 'RAB input'!$E$27:$E$76, 0), MATCH(AF$4, RAB_years, 0)) -> 0 | AG18: =INDEX('RAB input'!$H$27:$XFD$76, MATCH($E18, 'RAB input'!$E$27:$E$76, 0), MATCH(AG$4, RAB_years, 0)) -> 0 | AH18: =INDEX('RAB input'!$H$27:$XFD$76, MATCH($E18, 'RAB input'!$E$27:$E$76, 0), MATCH(AH$4, RAB_years, 0)) -> 0 | AI18: =INDEX('RAB input'!$H$27:$XFD$76, MATCH($E18, 'RAB input'!$E$27:$E$76, 0), MATCH(AI$4, RAB_years, 0)) -> 0 | AJ18: =INDEX('RAB input'!$H$27:$XFD$76, MATCH($E18, 'RAB input'!$E$27:$E$76, 0), MATCH(AJ$4, RAB_years, 0)) -> 0 | AK18: =INDEX('RAB input'!$H$27:$XFD$76, MATCH($E18, 'RAB input'!$E$27:$E$76, 0), MATCH(AK$4, RAB_years, 0)) -> 0 | AL18: =INDEX('RAB input'!$H$27:$XFD$76, MATCH($E18, 'RAB input'!$E$27:$E$76, 0), MATCH(AL$4, RAB_years, 0)) -> 0 | AM18: =INDEX('RAB input'!$H$27:$XFD$76, MATCH($E18, 'RAB input'!$E$27:$E$76, 0), MATCH(AM$4, RAB_years, 0)) -> 0 | AN18: =INDEX('RAB input'!$H$27:$XFD$76, MATCH($E18, 'RAB input'!$E$27:$E$76, 0), MATCH(AN$4, RAB_years, 0)) -> 0 | AO18: =INDEX('RAB input'!$H$27:$XFD$76, MATCH($E18, 'RAB input'!$E$27:$E$76, 0), MATCH(AO$4, RAB_years, 0)) -> 0 | AP18: =INDEX('RAB input'!$H$27:$XFD$76, MATCH($E18, 'RAB input'!$E$27:$E$76, 0), MATCH(AP$4, RAB_years, 0)) -> 0 | AQ18: =INDEX('RAB input'!$H$27:$XFD$76, MATCH($E18, 'RAB input'!$E$27:$E$76, 0), MATCH(AQ$4, RAB_years, 0)) -> 0 | AR18: =INDEX('RAB input'!$H$27:$XFD$76, MATCH($E18, 'RAB input'!$E$27:$E$76, 0), MATCH(AR$4, RAB_years, 0)) -> 0 | AS18: =INDEX('RAB input'!$H$27:$XFD$76, MATCH($E18, 'RAB input'!$E$27:$E$76, 0), MATCH(AS$4, RAB_years, 0)) -> 0 | AT18: =INDEX('RAB input'!$H$27:$XFD$76, MATCH($E18, 'RAB input'!$E$27:$E$76, 0), MATCH(AT$4, RAB_years, 0)) -> 0 | AU18: =INDEX('RAB input'!$H$27:$XFD$76, MATCH($E18, 'RAB input'!$E$27:$E$76, 0), MATCH(AU$4, RAB_years, 0)) -> 0 | AV18: =INDEX('RAB input'!$H$27:$XFD$76, MATCH($E18, 'RAB input'!$E$27:$E$76, 0), MATCH(AV$4, RAB_years, 0)) -> 0 | AW18: =INDEX('RAB input'!$H$27:$XFD$76, MATCH($E18, 'RAB input'!$E$27:$E$76, 0), MATCH(AW$4, RAB_years, 0)) -> 0 | AX18: =INDEX('RAB input'!$H$27:$XFD$76, MATCH($E18, 'RAB input'!$E$27:$E$76, 0), MATCH(AX$4, RAB_years, 0)) -> 0 | AY18: =INDEX('RAB input'!$H$27:$XFD$76, MATCH($E18, 'RAB input'!$E$27:$E$76, 0), MATCH(AY$4, RAB_years, 0)) -> 0 | AZ18: =INDEX('RAB input'!$H$27:$XFD$76, MATCH($E18, 'RAB input'!$E$27:$E$76, 0), MATCH(AZ$4, RAB_years, 0)) -> 0 | BA18: =INDEX('RAB input'!$H$27:$XFD$76, MATCH($E18, 'RAB input'!$E$27:$E$76, 0), MATCH(BA$4, RAB_years, 0)) -> 0 | BB18: =INDEX('RAB input'!$H$27:$XFD$76, MATCH($E18, 'RAB input'!$E$27:$E$76, 0), MATCH(BB$4, RAB_years, 0)) -> 0 | BC18: =INDEX('RAB input'!$H$27:$XFD$76, MATCH($E18, 'RAB input'!$E$27:$E$76, 0), MATCH(BC$4, RAB_years, 0)) -> 0 | BD18: =INDEX('RAB input'!$H$27:$XFD$76, MATCH($E18, 'RAB input'!$E$27:$E$76, 0), MATCH(BD$4, RAB_years, 0)) -> 0 | BE18: =INDEX('RAB input'!$H$27:$XFD$76, MATCH($E18, 'RAB input'!$E$27:$E$76, 0), MATCH(BE$4, RAB_years, 0)) -> 0 | BF18: =INDEX('RAB input'!$H$27:$XFD$76, MATCH($E18, 'RAB input'!$E$27:$E$76, 0), MATCH(BF$4, RAB_years, 0)) -> 0 | BG18: =INDEX('RAB input'!$H$27:$XFD$76, MATCH($E18, 'RAB input'!$E$27:$E$76, 0), MATCH(BG$4, RAB_years, 0)) -> 0 | BH18: =INDEX('RAB input'!$H$27:$XFD$76, MATCH($E18, 'RAB input'!$E$27:$E$76, 0), MATCH(BH$4, RAB_years, 0)) -> 0 | BI18: =INDEX('RAB input'!$H$27:$XFD$76, MATCH($E18, 'RAB input'!$E$27:$E$76, 0), MATCH(BI$4, RAB_years, 0)) -> 0 | BJ18: =INDEX('RAB input'!$H$27:$XFD$76, MATCH($E18, 'RAB input'!$E$27:$E$76, 0), MATCH(BJ$4, RAB_years, 0)) -> 0
D19: 2 | E19: ='RAB input'!E28 -> Distribution system assets | G19: =INDEX('[6]TAB roll forward'!$H$8:$H$57,MATCH(E19,'[6]TAB roll forward'!$C$8:$C$57,0),1) -> 2732.22476 | H19: =INDEX('RAB input'!$H$27:$XFD$76, MATCH($E19, 'RAB input'!$E$27:$E$76, 0), MATCH(H$4, RAB_years, 0)) -> 165.7081229 | I19: =INDEX('RAB input'!$H$27:$XFD$76, MATCH($E19, 'RAB input'!$E$27:$E$76, 0), MATCH(I$4, RAB_years, 0)) -> 184.3472806 | J19: =INDEX('RAB input'!$H$27:$XFD$76, MATCH($E19, 'RAB input'!$E$27:$E$76, 0), MATCH(J$4, RAB_years, 0)) -> 240.0972294 | K19: =INDEX('RAB input'!$H$27:$XFD$76, MATCH($E19, 'RAB input'!$E$27:$E$76, 0), MATCH(K$4, RAB_years, 0)) -> 284.4481571 | L19: =INDEX('RAB input'!$H$27:$XFD$76, MATCH($E19, 'RAB input'!$E$27:$E$76, 0), MATCH(L$4, RAB_years, 0)) -> 289.0447234 | M19: =INDEX('RAB input'!$H$27:$XFD$76, MATCH($E19, 'RAB input'!$E$27:$E$76, 0), MATCH(M$4, RAB_years, 0)) -> 0 | N19: =INDEX('RAB input'!$H$27:$XFD$76, MATCH($E19, 'RAB input'!$E$27:$E$76, 0), MATCH(N$4, RAB_years, 0)) -> 0 | O19: =INDEX('RAB input'!$H$27:$XFD$76, MATCH($E19, 'RAB input'!$E$27:$E$76, 0), MATCH(O$4, RAB_years, 0)) -> 0 | P19: =INDEX('RAB input'!$H$27:$XFD$76, MATCH($E19, 'RAB input'!$E$27:$E$76, 0), MATCH(P$4, RAB_years, 0)) -> 0 | Q19: =INDEX('RAB input'!$H$27:$XFD$76, MATCH($E19, 'RAB input'!$E$27:$E$76, 0), MATCH(Q$4, RAB_years, 0)) -> 0 | R19: =INDEX('RAB input'!$H$27:$XFD$76, MATCH($E19, 'RAB input'!$E$27:$E$76, 0), MATCH(R$4, RAB_years, 0)) -> 0 | S19: =INDEX('RAB input'!$H$27:$XFD$76, MATCH($E19, 'RAB input'!$E$27:$E$76, 0), MATCH(S$4, RAB_years, 0)) -> 0 | T19: =INDEX('RAB input'!$H$27:$XFD$76, MATCH($E19, 'RAB input'!$E$27:$E$76, 0), MATCH(T$4, RAB_years, 0)) -> 0 | U19: =INDEX('RAB input'!$H$27:$XFD$76, MATCH($E19, 'RAB input'!$E$27:$E$76, 0), MATCH(U$4, RAB_years, 0)) -> 0 | V19: =INDEX('RAB input'!$H$27:$XFD$76, MATCH($E19, 'RAB input'!$E$27:$E$76, 0), MATCH(V$4, RAB_years, 0)) -> 0 | W19: =INDEX('RAB input'!$H$27:$XFD$76, MATCH($E19, 'RAB input'!$E$27:$E$76, 0), MATCH(W$4, RAB_years, 0)) -> 0 | X19: =INDEX('RAB input'!$H$27:$XFD$76, MATCH($E19, 'RAB input'!$E$27:$E$76, 0), MATCH(X$4, RAB_years, 0)) -> 0 | Y19: =INDEX('RAB input'!$H$27:$XFD$76, MATCH($E19, 'RAB input'!$E$27:$E$76, 0), MATCH(Y$4, RAB_years, 0)) -> 0 | Z19: =INDEX('RAB input'!$H$27:$XFD$76, MATCH($E19, 'RAB input'!$E$27:$E$76, 0), MATCH(Z$4, RAB_years, 0)) -> 0 | AA19: =INDEX('RAB input'!$H$27:$XFD$76, MATCH($E19, 'RAB input'!$E$27:$E$76, 0), MATCH(AA$4, RAB_years, 0)) -> 0 | AB19: =INDEX('RAB input'!$H$27:$XFD$76, MATCH($E19, 'RAB input'!$E$27:$E$76, 0), MATCH(AB$4, RAB_years, 0)) -> 0 | AC19: =INDEX('RAB input'!$H$27:$XFD$76, MATCH($E19, 'RAB input'!$E$27:$E$76, 0), MATCH(AC$4, RAB_years, 0)) -> 0 | AD19: =INDEX('RAB input'!$H$27:$XFD$76, MATCH($E19, 'RAB input'!$E$27:$E$76, 0), MATCH(AD$4, RAB_years, 0)) -> 0 | AE19: =INDEX('RAB input'!$H$27:$XFD$76, MATCH($E19, 'RAB input'!$E$27:$E$76, 0), MATCH(AE$4, RAB_years, 0)) -> 0 | AF19: =INDEX('RAB input'!$H$27:$XFD$76, MATCH($E19, 'RAB input'!$E$27:$E$76, 0), MATCH(AF$4, RAB_years, 0)) -> 0 | AG19: =INDEX('RAB input'!$H$27:$XFD$76, MATCH($E19, 'RAB input'!$E$27:$E$76, 0), MATCH(AG$4, RAB_years, 0)) -> 0 | AH19: =INDEX('RAB input'!$H$27:$XFD$76, MATCH($E19, 'RAB input'!$E$27:$E$76, 0), MATCH(AH$4, RAB_years, 0)) -> 0 | AI19: =INDEX('RAB input'!$H$27:$XFD$76, MATCH($E19, 'RAB input'!$E$27:$E$76, 0), MATCH(AI$4, RAB_years, 0)) -> 0 | AJ19: =INDEX('RAB input'!$H$27:$XFD$76, MATCH($E19, 'RAB input'!$E$27:$E$76, 0), MATCH(AJ$4, RAB_years, 0)) -> 0 | AK19: =INDEX('RAB input'!$H$27:$XFD$76, MATCH($E19, 'RAB input'!$E$27:$E$76, 0), MATCH(AK$4, RAB_years, 0)) -> 0 | AL19: =INDEX('RAB input'!$H$27:$XFD$76, MATCH($E19, 'RAB input'!$E$27:$E$76, 0), MATCH(AL$4, RAB_years, 0)) -> 0 | AM19: =INDEX('RAB input'!$H$27:$XFD$76, MATCH($E19, 'RAB input'!$E$27:$E$76, 0), MATCH(AM$4, RAB_years, 0)) -> 0 | AN19: =INDEX('RAB input'!$H$27:$XFD$76, MATCH($E19, 'RAB input'!$E$27:$E$76, 0), MATCH(AN$4, RAB_years, 0)) -> 0 | AO19: =INDEX('RAB input'!$H$27:$XFD$76, MATCH($E19, 'RAB input'!$E$27:$E$76, 0), MATCH(AO$4, RAB_years, 0)) -> 0 | AP19: =INDEX('RAB input'!$H$27:$XFD$76, MATCH($E19, 'RAB input'!$E$27:$E$76, 0), MATCH(AP$4, RAB_years, 0)) -> 0 | AQ19: =INDEX('RAB input'!$H$27:$XFD$76, MATCH($E19, 'RAB input'!$E$27:$E$76, 0), MATCH(AQ$4, RAB_years, 0)) -> 0 | AR19: =INDEX('RAB input'!$H$27:$XFD$76, MATCH($E19, 'RAB input'!$E$27:$E$76, 0), MATCH(AR$4, RAB_years, 0)) -> 0 | AS19: =INDEX('RAB input'!$H$27:$XFD$76, MATCH($E19, 'RAB input'!$E$27:$E$76, 0), MATCH(AS$4, RAB_years, 0)) -> 0 | AT19: =INDEX('RAB input'!$H$27:$XFD$76, MATCH($E19, 'RAB input'!$E$27:$E$76, 0), MATCH(AT$4, RAB_years, 0)) -> 0 | AU19: =INDEX('RAB input'!$H$27:$XFD$76, MATCH($E19, 'RAB input'!$E$27:$E$76, 0), MATCH(AU$4, RAB_years, 0)) -> 0 | AV19: =INDEX('RAB input'!$H$27:$XFD$76, MATCH($E19, 'RAB input'!$E$27:$E$76, 0), MATCH(AV$4, RAB_years, 0)) -> 0 | AW19: =INDEX('RAB input'!$H$27:$XFD$76, MATCH($E19, 'RAB input'!$E$27:$E$76, 0), MATCH(AW$4, RAB_years, 0)) -> 0 | AX19: =INDEX('RAB input'!$H$27:$XFD$76, MATCH($E19, 'RAB input'!$E$27:$E$76, 0), MATCH(AX$4, RAB_years, 0)) -> 0 | AY19: =INDEX('RAB input'!$H$27:$XFD$76, MATCH($E19, 'RAB input'!$E$27:$E$76, 0), MATCH(AY$4, RAB_years, 0)) -> 0 | AZ19: =INDEX('RAB input'!$H$27:$XFD$76, MATCH($E19, 'RAB input'!$E$27:$E$76, 0), MATCH(AZ$4, RAB_years, 0)) -> 0 | BA19: =INDEX('RAB input'!$H$27:$XFD$76, MATCH($E19, 'RAB input'!$E$27:$E$76, 0), MATCH(BA$4, RAB_years, 0)) -> 0 | BB19: =INDEX('RAB input'!$H$27:$XFD$76, MATCH($E19, 'RAB input'!$E$27:$E$76, 0), MATCH(BB$4, RAB_years, 0)) -> 0 | BC19: =INDEX('RAB input'!$H$27:$XFD$76, MATCH($E19, 'RAB input'!$E$27:$E$76, 0), MATCH(BC$4, RAB_years, 0)) -> 0 | BD19: =INDEX('RAB input'!$H$27:$XFD$76, MATCH($E19, 'RAB input'!$E$27:$E$76, 0), MATCH(BD$4, RAB_years, 0)) -> 0 | BE19: =INDEX('RAB input'!$H$27:$XFD$76, MATCH($E19, 'RAB input'!$E$27:$E$76, 0), MATCH(BE$4, RAB_years, 0)) -> 0 | BF19: =INDEX('RAB input'!$H$27:$XFD$76, MATCH($E19, 'RAB input'!$E$27:$E$76, 0), MATCH(BF$4, RAB_years, 0)) -> 0 | BG19: =INDEX('RAB input'!$H$27:$XFD$76, MATCH($E19, 'RAB input'!$E$27:$E$76, 0), MATCH(BG$4, RAB_years, 0)) -> 0 | BH19: =INDEX('RAB input'!$H$27:$XFD$76, MATCH($E19, 'RAB input'!$E$27:$E$76, 0), MATCH(BH$4, RAB_years, 0)) -> 0 | BI19: =INDEX('RAB input'!$H$27:$XFD$76, MATCH($E19, 'RAB input'!$E$27:$E$76, 0), MATCH(BI$4, RAB_years, 0)) -> 0 | BJ19: =INDEX('RAB input'!$H$27:$XFD$76, MATCH($E19, 'RAB input'!$E$27:$E$76, 0), MATCH(BJ$4, RAB_years, 0)) -> 0
D20: 3 | E20: ='RAB input'!E29 -> SCADA/Network control | G20: =INDEX('[6]TAB roll forward'!$H$8:$H$57,MATCH(E20,'[6]TAB roll forward'!$C$8:$C$57,0),1) -> 87.6909191 | H20: =INDEX('RAB input'!$H$27:$XFD$76, MATCH($E20, 'RAB input'!$E$27:$E$76, 0), MATCH(H$4, RAB_years, 0)) -> 16.61829471 | I20: =INDEX('RAB input'!$H$27:$XFD$76, MATCH($E20, 'RAB input'!$E$27:$E$76, 0), MATCH(I$4, RAB_years, 0)) -> 17.15070353 | J20: =INDEX('RAB input'!$H$27:$XFD$76, MATCH($E20, 'RAB input'!$E$27:$E$76, 0), MATCH(J$4, RAB_years, 0)) -> 26.12255491 | K20: =INDEX('RAB input'!$H$27:$XFD$76, MATCH($E20, 'RAB input'!$E$27:$E$76, 0), MATCH(K$4, RAB_years, 0)) -> 28.38630405 | L20: =INDEX('RAB input'!$H$27:$XFD$76, MATCH($E20, 'RAB input'!$E$27:$E$76, 0), MATCH(L$4, RAB_years, 0)) -> 27.41856053 | M20: =INDEX('RAB input'!$H$27:$XFD$76, MATCH($E20, 'RAB input'!$E$27:$E$76, 0), MATCH(M$4, RAB_years, 0)) -> 0 | N20: =INDEX('RAB input'!$H$27:$XFD$76, MATCH($E20, 'RAB input'!$E$27:$E$76, 0), MATCH(N$4, RAB_years, 0)) -> 0 | O20: =INDEX('RAB input'!$H$27:$XFD$76, MATCH($E20, 'RAB input'!$E$27:$E$76, 0), MATCH(O$4, RAB_years, 0)) -> 0 | P20: =INDEX('RAB input'!$H$27:$XFD$76, MATCH($E20, 'RAB input'!$E$27:$E$76, 0), MATCH(P$4, RAB_years, 0)) -> 0 | Q20: =INDEX('RAB input'!$H$27:$XFD$76, MATCH($E20, 'RAB input'!$E$27:$E$76, 0), MATCH(Q$4, RAB_years, 0)) -> 0 | R20: =INDEX('RAB input'!$H$27:$XFD$76, MATCH($E20, 'RAB input'!$E$27:$E$76, 0), MATCH(R$4, RAB_years, 0)) -> 0 | S20: =INDEX('RAB input'!$H$27:$XFD$76, MATCH($E20, 'RAB input'!$E$27:$E$76, 0), MATCH(S$4, RAB_years, 0)) -> 0 | T20: =INDEX('RAB input'!$H$27:$XFD$76, MATCH($E20, 'RAB input'!$E$27:$E$76, 0), MATCH(T$4, RAB_years, 0)) -> 0 | U20: =INDEX('RAB input'!$H$27:$XFD$76, MATCH($E20, 'RAB input'!$E$27:$E$76, 0), MATCH(U$4, RAB_years, 0)) -> 0 | V20: =INDEX('RAB input'!$H$27:$XFD$76, MATCH($E20, 'RAB input'!$E$27:$E$76, 0), MATCH(V$4, RAB_years, 0)) -> 0 | W20: =INDEX('RAB input'!$H$27:$XFD$76, MATCH($E20, 'RAB input'!$E$27:$E$76, 0), MATCH(W$4, RAB_years, 0)) -> 0 | X20: =INDEX('RAB input'!$H$27:$XFD$76, MATCH($E20, 'RAB input'!$E$27:$E$76, 0), MATCH(X$4, RAB_years, 0)) -> 0 | Y20: =INDEX('RAB input'!$H$27:$XFD$76, MATCH($E20, 'RAB input'!$E$27:$E$76, 0), MATCH(Y$4, RAB_years, 0)) -> 0 | Z20: =INDEX('RAB input'!$H$27:$XFD$76, MATCH($E20, 'RAB input'!$E$27:$E$76, 0), MATCH(Z$4, RAB_years, 0)) -> 0 | AA20: =INDEX('RAB input'!$H$27:$XFD$76, MATCH($E20, 'RAB input'!$E$27:$E$76, 0), MATCH(AA$4, RAB_years, 0)) -> 0 | AB20: =INDEX('RAB input'!$H$27:$XFD$76, MATCH($E20, 'RAB input'!$E$27:$E$76, 0), MATCH(AB$4, RAB_years, 0)) -> 0 | AC20: =INDEX('RAB input'!$H$27:$XFD$76, MATCH($E20, 'RAB input'!$E$27:$E$76, 0), MATCH(AC$4, RAB_years, 0)) -> 0 | AD20: =INDEX('RAB input'!$H$27:$XFD$76, MATCH($E20, 'RAB input'!$E$27:$E$76, 0), MATCH(AD$4, RAB_years, 0)) -> 0 | AE20: =INDEX('RAB input'!$H$27:$XFD$76, MATCH($E20, 'RAB input'!$E$27:$E$76, 0), MATCH(AE$4, RAB_years, 0)) -> 0 | AF20: =INDEX('RAB input'!$H$27:$XFD$76, MATCH($E20, 'RAB input'!$E$27:$E$76, 0), MATCH(AF$4, RAB_years, 0)) -> 0 | AG20: =INDEX('RAB input'!$H$27:$XFD$76, MATCH($E20, 'RAB input'!$E$27:$E$76, 0), MATCH(AG$4, RAB_years, 0)) -> 0 | AH20: =INDEX('RAB input'!$H$27:$XFD$76, MATCH($E20, 'RAB input'!$E$27:$E$76, 0), MATCH(AH$4, RAB_years, 0)) -> 0 | AI20: =INDEX('RAB input'!$H$27:$XFD$76, MATCH($E20, 'RAB input'!$E$27:$E$76, 0), MATCH(AI$4, RAB_years, 0)) -> 0 | AJ20: =INDEX('RAB input'!$H$27:$XFD$76, MATCH($E20, 'RAB input'!$E$27:$E$76, 0), MATCH(AJ$4, RAB_years, 0)) -> 0 | AK20: =INDEX('RAB input'!$H$27:$XFD$76, MATCH($E20, 'RAB input'!$E$27:$E$76, 0), MATCH(AK$4, RAB_years, 0)) -> 0 | AL20: =INDEX('RAB input'!$H$27:$XFD$76, MATCH($E20, 'RAB input'!$E$27:$E$76, 0), MATCH(AL$4, RAB_years, 0)) -> 0 | AM20: =INDEX('RAB input'!$H$27:$XFD$76, MATCH($E20, 'RAB input'!$E$27:$E$76, 0), MATCH(AM$4, RAB_years, 0)) -> 0 | AN20: =INDEX('RAB input'!$H$27:$XFD$76, MATCH($E20, 'RAB input'!$E$27:$E$76, 0), MATCH(AN$4, RAB_years, 0)) -> 0 | AO20: =INDEX('RAB input'!$H$27:$XFD$76, MATCH($E20, 'RAB input'!$E$27:$E$76, 0), MATCH(AO$4, RAB_years, 0)) -> 0 | AP20: =INDEX('RAB input'!$H$27:$XFD$76, MATCH($E20, 'RAB input'!$E$27:$E$76, 0), MATCH(AP$4, RAB_years, 0)) -> 0 | AQ20: =INDEX('RAB input'!$H$27:$XFD$76, MATCH($E20, 'RAB input'!$E$27:$E$76, 0), MATCH(AQ$4, RAB_years, 0)) -> 0 | AR20: =INDEX('RAB input'!$H$27:$XFD$76, MATCH($E20, 'RAB input'!$E$27:$E$76, 0), MATCH(AR$4, RAB_years, 0)) -> 0 | AS20: =INDEX('RAB input'!$H$27:$XFD$76, MATCH($E20, 'RAB input'!$E$27:$E$76, 0), MATCH(AS$4, RAB_years, 0)) -> 0 | AT20: =INDEX('RAB input'!$H$27:$XFD$76, MATCH($E20, 'RAB input'!$E$27:$E$76, 0), MATCH(AT$4, RAB_years, 0)) -> 0 | AU20: =INDEX('RAB input'!$H$27:$XFD$76, MATCH($E20, 'RAB input'!$E$27:$E$76, 0), MATCH(AU$4, RAB_years, 0)) -> 0 | AV20: =INDEX('RAB input'!$H$27:$XFD$76, MATCH($E20, 'RAB input'!$E$27:$E$76, 0), MATCH(AV$4, RAB_years, 0)) -> 0 | AW20: =INDEX('RAB input'!$H$27:$XFD$76, MATCH($E20, 'RAB input'!$E$27:$E$76, 0), MATCH(AW$4, RAB_years, 0)) -> 0 | AX20: =INDEX('RAB input'!$H$27:$XFD$76, MATCH($E20, 'RAB input'!$E$27:$E$76, 0), MATCH(AX$4, RAB_years, 0)) -> 0 | AY20: =INDEX('RAB input'!$H$27:$XFD$76, MATCH($E20, 'RAB input'!$E$27:$E$76, 0), MATCH(AY$4, RAB_years, 0)) -> 0 | AZ20: =INDEX('RAB input'!$H$27:$XFD$76, MATCH($E20, 'RAB input'!$E$27:$E$76, 0), MATCH(AZ$4, RAB_years, 0)) -> 0 | BA20: =INDEX('RAB input'!$H$27:$XFD$76, MATCH($E20, 'RAB input'!$E$27:$E$76, 0), MATCH(BA$4, RAB_years, 0)) -> 0 | BB20: =INDEX('RAB input'!$H$27:$XFD$76, MATCH($E20, 'RAB input'!$E$27:$E$76, 0), MATCH(BB$4, RAB_years, 0)) -> 0 | BC20: =INDEX('RAB input'!$H$27:$XFD$76, MATCH($E20, 'RAB input'!$E$27:$E$76, 0), MATCH(BC$4, RAB_years, 0)) -> 0 | BD20: =INDEX('RAB input'!$H$27:$XFD$76, MATCH($E20, 'RAB input'!$E$27:$E$76, 0), MATCH(BD$4, RAB_years, 0)) -> 0 | BE20: =INDEX('RAB input'!$H$27:$XFD$76, MATCH($E20, 'RAB input'!$E$27:$E$76, 0), MATCH(BE$4, RAB_years, 0)) -> 0 | BF20: =INDEX('RAB input'!$H$27:$XFD$76, MATCH($E20, 'RAB input'!$E$27:$E$76, 0), MATCH(BF$4, RAB_years, 0)) -> 0 | BG20: =INDEX('RAB input'!$H$27:$XFD$76, MATCH($E20, 'RAB input'!$E$27:$E$76, 0), MATCH(BG$4, RAB_years, 0)) -> 0 | BH20: =INDEX('RAB input'!$H$27:$XFD$76, MATCH($E20, 'RAB input'!$E$27:$E$76, 0), MATCH(BH$4, RAB_years, 0)) -> 0 | BI20: =INDEX('RAB input'!$H$27:$XFD$76, MATCH($E20, 'RAB input'!$E$27:$E$76, 0), MATCH(BI$4, RAB_years, 0)) -> 0 | BJ20: =INDEX('RAB input'!$H$27:$XFD$76, MATCH($E20, 'RAB input'!$E$27:$E$76, 0), MATCH(BJ$4, RAB_years, 0)) -> 0
D21: 4 | E21: ='RAB input'!E30 -> Non-network general assets - IT | G21: =INDEX('[6]TAB roll forward'!$H$8:$H$57,MATCH(E21,'[6]TAB roll forward'!$C$8:$C$57,0),1) -> 127.4988645 | H21: =INDEX('RAB input'!$H$27:$XFD$76, MATCH($E21, 'RAB input'!$E$27:$E$76, 0), MATCH(H$4, RAB_years, 0)) -> 4.030748168 | I21: =INDEX('RAB input'!$H$27:$XFD$76, MATCH($E21, 'RAB input'!$E$27:$E$76, 0), MATCH(I$4, RAB_years, 0)) -> 7.513717211 | J21: =INDEX('RAB input'!$H$27:$XFD$76, MATCH($E21, 'RAB input'!$E$27:$E$76, 0), MATCH(J$4, RAB_years, 0)) -> 15.11641645 | K21: =INDEX('RAB input'!$H$27:$XFD$76, MATCH($E21, 'RAB input'!$E$27:$E$76, 0), MATCH(K$4, RAB_years, 0)) -> 13.13719541 | L21: =INDEX('RAB input'!$H$27:$XFD$76, MATCH($E21, 'RAB input'!$E$27:$E$76, 0), MATCH(L$4, RAB_years, 0)) -> 13.12493488 | M21: =INDEX('RAB input'!$H$27:$XFD$76, MATCH($E21, 'RAB input'!$E$27:$E$76, 0), MATCH(M$4, RAB_years, 0)) -> 0 | N21: =INDEX('RAB input'!$H$27:$XFD$76, MATCH($E21, 'RAB input'!$E$27:$E$76, 0), MATCH(N$4, RAB_years, 0)) -> 0 | O21: =INDEX('RAB input'!$H$27:$XFD$76, MATCH($E21, 'RAB input'!$E$27:$E$76, 0), MATCH(O$4, RAB_years, 0)) -> 0 | P21: =INDEX('RAB input'!$H$27:$XFD$76, MATCH($E21, 'RAB input'!$E$27:$E$76, 0), MATCH(P$4, RAB_years, 0)) -> 0 | Q21: =INDEX('RAB input'!$H$27:$XFD$76, MATCH($E21, 'RAB input'!$E$27:$E$76, 0), MATCH(Q$4, RAB_years, 0)) -> 0 | R21: =INDEX('RAB input'!$H$27:$XFD$76, MATCH($E21, 'RAB input'!$E$27:$E$76, 0), MATCH(R$4, RAB_years, 0)) -> 0 | S21: =INDEX('RAB input'!$H$27:$XFD$76, MATCH($E21, 'RAB input'!$E$27:$E$76, 0), MATCH(S$4, RAB_years, 0)) -> 0 | T21: =INDEX('RAB input'!$H$27:$XFD$76, MATCH($E21, 'RAB input'!$E$27:$E$76, 0), MATCH(T$4, RAB_years, 0)) -> 0 | U21: =INDEX('RAB input'!$H$27:$XFD$76, MATCH($E21, 'RAB input'!$E$27:$E$76, 0), MATCH(U$4, RAB_years, 0)) -> 0 | V21: =INDEX('RAB input'!$H$27:$XFD$76, MATCH($E21, 'RAB input'!$E$27:$E$76, 0), MATCH(V$4, RAB_years, 0)) -> 0 | W21: =INDEX('RAB input'!$H$27:$XFD$76, MATCH($E21, 'RAB input'!$E$27:$E$76, 0), MATCH(W$4, RAB_years, 0)) -> 0 | X21: =INDEX('RAB input'!$H$27:$XFD$76, MATCH($E21, 'RAB input'!$E$27:$E$76, 0), MATCH(X$4, RAB_years, 0)) -> 0 | Y21: =INDEX('RAB input'!$H$27:$XFD$76, MATCH($E21, 'RAB input'!$E$27:$E$76, 0), MATCH(Y$4, RAB_years, 0)) -> 0 | Z21: =INDEX('RAB input'!$H$27:$XFD$76, MATCH($E21, 'RAB input'!$E$27:$E$76, 0), MATCH(Z$4, RAB_years, 0)) -> 0 | AA21: =INDEX('RAB input'!$H$27:$XFD$76, MATCH($E21, 'RAB input'!$E$27:$E$76, 0), MATCH(AA$4, RAB_years, 0)) -> 0 | AB21: =INDEX('RAB input'!$H$27:$XFD$76, MATCH($E21, 'RAB input'!$E$27:$E$76, 0), MATCH(AB$4, RAB_years, 0)) -> 0 | AC21: =INDEX('RAB input'!$H$27:$XFD$76, MATCH($E21, 'RAB input'!$E$27:$E$76, 0), MATCH(AC$4, RAB_years, 0)) -> 0 | AD21: =INDEX('RAB input'!$H$27:$XFD$76, MATCH($E21, 'RAB input'!$E$27:$E$76, 0), MATCH(AD$4, RAB_years, 0)) -> 0 | AE21: =INDEX('RAB input'!$H$27:$XFD$76, MATCH($E21, 'RAB input'!$E$27:$E$76, 0), MATCH(AE$4, RAB_years, 0)) -> 0 | AF21: =INDEX('RAB input'!$H$27:$XFD$76, MATCH($E21, 'RAB input'!$E$27:$E$76, 0), MATCH(AF$4, RAB_years, 0)) -> 0 | AG21: =INDEX('RAB input'!$H$27:$XFD$76, MATCH($E21, 'RAB input'!$E$27:$E$76, 0), MATCH(AG$4, RAB_years, 0)) -> 0 | AH21: =INDEX('RAB input'!$H$27:$XFD$76, MATCH($E21, 'RAB input'!$E$27:$E$76, 0), MATCH(AH$4, RAB_years, 0)) -> 0 | AI21: =INDEX('RAB input'!$H$27:$XFD$76, MATCH($E21, 'RAB input'!$E$27:$E$76, 0), MATCH(AI$4, RAB_years, 0)) -> 0 | AJ21: =INDEX('RAB input'!$H$27:$XFD$76, MATCH($E21, 'RAB input'!$E$27:$E$76, 0), MATCH(AJ$4, RAB_years, 0)) -> 0 | AK21: =INDEX('RAB input'!$H$27:$XFD$76, MATCH($E21, 'RAB input'!$E$27:$E$76, 0), MATCH(AK$4, RAB_years, 0)) -> 0 | AL21: =INDEX('RAB input'!$H$27:$XFD$76, MATCH($E21, 'RAB input'!$E$27:$E$76, 0), MATCH(AL$4, RAB_years, 0)) -> 0 | AM21: =INDEX('RAB input'!$H$27:$XFD$76, MATCH($E21, 'RAB input'!$E$27:$E$76, 0), MATCH(AM$4, RAB_years, 0)) -> 0 | AN21: =INDEX('RAB input'!$H$27:$XFD$76, MATCH($E21, 'RAB input'!$E$27:$E$76, 0), MATCH(AN$4, RAB_years, 0)) -> 0 | AO21: =INDEX('RAB input'!$H$27:$XFD$76, MATCH($E21, 'RAB input'!$E$27:$E$76, 0), MATCH(AO$4, RAB_years, 0)) -> 0 | AP21: =INDEX('RAB input'!$H$27:$XFD$76, MATCH($E21, 'RAB input'!$E$27:$E$76, 0), MATCH(AP$4, RAB_years, 0)) -> 0 | AQ21: =INDEX('RAB input'!$H$27:$XFD$76, MATCH($E21, 'RAB input'!$E$27:$E$76, 0), MATCH(AQ$4, RAB_years, 0)) -> 0 | AR21: =INDEX('RAB input'!$H$27:$XFD$76, MATCH($E21, 'RAB input'!$E$27:$E$76, 0), MATCH(AR$4, RAB_years, 0)) -> 0 | AS21: =INDEX('RAB input'!$H$27:$XFD$76, MATCH($E21, 'RAB input'!$E$27:$E$76, 0), MATCH(AS$4, RAB_years, 0)) -> 0 | AT21: =INDEX('RAB input'!$H$27:$XFD$76, MATCH($E21, 'RAB input'!$E$27:$E$76, 0), MATCH(AT$4, RAB_years, 0)) -> 0 | AU21: =INDEX('RAB input'!$H$27:$XFD$76, MATCH($E21, 'RAB input'!$E$27:$E$76, 0), MATCH(AU$4, RAB_years, 0)) -> 0 | AV21: =INDEX('RAB input'!$H$27:$XFD$76, MATCH($E21, 'RAB input'!$E$27:$E$76, 0), MATCH(AV$4, RAB_years, 0)) -> 0 | AW21: =INDEX('RAB input'!$H$27:$XFD$76, MATCH($E21, 'RAB input'!$E$27:$E$76, 0), MATCH(AW$4, RAB_years, 0)) -> 0 | AX21: =INDEX('RAB input'!$H$27:$XFD$76, MATCH($E21, 'RAB input'!$E$27:$E$76, 0), MATCH(AX$4, RAB_years, 0)) -> 0 | AY21: =INDEX('RAB input'!$H$27:$XFD$76, MATCH($E21, 'RAB input'!$E$27:$E$76, 0), MATCH(AY$4, RAB_years, 0)) -> 0 | AZ21: =INDEX('RAB input'!$H$27:$XFD$76, MATCH($E21, 'RAB input'!$E$27:$E$76, 0), MATCH(AZ$4, RAB_years, 0)) -> 0 | BA21: =INDEX('RAB input'!$H$27:$XFD$76, MATCH($E21, 'RAB input'!$E$27:$E$76, 0), MATCH(BA$4, RAB_years, 0)) -> 0 | BB21: =INDEX('RAB input'!$H$27:$XFD$76, MATCH($E21, 'RAB input'!$E$27:$E$76, 0), MATCH(BB$4, RAB_years, 0)) -> 0 | BC21: =INDEX('RAB input'!$H$27:$XFD$76, MATCH($E21, 'RAB input'!$E$27:$E$76, 0), MATCH(BC$4, RAB_years, 0)) -> 0 | BD21: =INDEX('RAB input'!$H$27:$XFD$76, MATCH($E21, 'RAB input'!$E$27:$E$76, 0), MATCH(BD$4, RAB_years, 0)) -> 0 | BE21: =INDEX('RAB input'!$H$27:$XFD$76, MATCH($E21, 'RAB input'!$E$27:$E$76, 0), MATCH(BE$4, RAB_years, 0)) -> 0 | BF21: =INDEX('RAB input'!$H$27:$XFD$76, MATCH($E21, 'RAB input'!$E$27:$E$76, 0), MATCH(BF$4, RAB_years, 0)) -> 0 | BG21: =INDEX('RAB input'!$H$27:$XFD$76, MATCH($E21, 'RAB input'!$E$27:$E$76, 0), MATCH(BG$4, RAB_years, 0)) -> 0 | BH21: =INDEX('RAB input'!$H$27:$XFD$76, MATCH($E21, 'RAB input'!$E$27:$E$76, 0), MATCH(BH$4, RAB_years, 0)) -> 0 | BI21: =INDEX('RAB input'!$H$27:$XFD$76, MATCH($E21, 'RAB input'!$E$27:$E$76, 0), MATCH(BI$4, RAB_years, 0)) -> 0 | BJ21: =INDEX('RAB input'!$H$27:$XFD$76, MATCH($E21, 'RAB input'!$E$27:$E$76, 0), MATCH(BJ$4, RAB_years, 0)) -> 0
D22: 5 | E22: ='RAB input'!E31 -> Non-network general assets - Other | G22: =INDEX('[6]TAB roll forward'!$H$8:$H$57,MATCH(E22,'[6]TAB roll forward'!$C$8:$C$57,0),1) -> 26.20829661 | H22: =INDEX('RAB input'!$H$27:$XFD$76, MATCH($E22, 'RAB input'!$E$27:$E$76, 0), MATCH(H$4, RAB_years, 0)) -> 0.5454286934 | I22: =INDEX('RAB input'!$H$27:$XFD$76, MATCH($E22, 'RAB input'!$E$27:$E$76, 0), MATCH(I$4, RAB_years, 0)) -> 2.215016195 | J22: =INDEX('RAB input'!$H$27:$XFD$76, MATCH($E22, 'RAB input'!$E$27:$E$76, 0), MATCH(J$4, RAB_years, 0)) -> 2.964332989 | K22: =INDEX('RAB input'!$H$27:$XFD$76, MATCH($E22, 'RAB input'!$E$27:$E$76, 0), MATCH(K$4, RAB_years, 0)) -> 2.52487077 | L22: =INDEX('RAB input'!$H$27:$XFD$76, MATCH($E22, 'RAB input'!$E$27:$E$76, 0), MATCH(L$4, RAB_years, 0)) -> 12.41164224 | M22: =INDEX('RAB input'!$H$27:$XFD$76, MATCH($E22, 'RAB input'!$E$27:$E$76, 0), MATCH(M$4, RAB_years, 0)) -> 0 | N22: =INDEX('RAB input'!$H$27:$XFD$76, MATCH($E22, 'RAB input'!$E$27:$E$76, 0), MATCH(N$4, RAB_years, 0)) -> 0 | O22: =INDEX('RAB input'!$H$27:$XFD$76, MATCH($E22, 'RAB input'!$E$27:$E$76, 0), MATCH(O$4, RAB_years, 0)) -> 0 | P22: =INDEX('RAB input'!$H$27:$XFD$76, MATCH($E22, 'RAB input'!$E$27:$E$76, 0), MATCH(P$4, RAB_years, 0)) -> 0 | Q22: =INDEX('RAB input'!$H$27:$XFD$76, MATCH($E22, 'RAB input'!$E$27:$E$76, 0), MATCH(Q$4, RAB_years, 0)) -> 0 | R22: =INDEX('RAB input'!$H$27:$XFD$76, MATCH($E22, 'RAB input'!$E$27:$E$76, 0), MATCH(R$4, RAB_years, 0)) -> 0 | S22: =INDEX('RAB input'!$H$27:$XFD$76, MATCH($E22, 'RAB input'!$E$27:$E$76, 0), MATCH(S$4, RAB_years, 0)) -> 0 | T22: =INDEX('RAB input'!$H$27:$XFD$76, MATCH($E22, 'RAB input'!$E$27:$E$76, 0), MATCH(T$4, RAB_years, 0)) -> 0 | U22: =INDEX('RAB input'!$H$27:$XFD$76, MATCH($E22, 'RAB input'!$E$27:$E$76, 0), MATCH(U$4, RAB_years, 0)) -> 0 | V22: =INDEX('RAB input'!$H$27:$XFD$76, MATCH($E22, 'RAB input'!$E$27:$E$76, 0), MATCH(V$4, RAB_years, 0)) -> 0 | W22: =INDEX('RAB input'!$H$27:$XFD$76, MATCH($E22, 'RAB input'!$E$27:$E$76, 0), MATCH(W$4, RAB_years, 0)) -> 0 | X22: =INDEX('RAB input'!$H$27:$XFD$76, MATCH($E22, 'RAB input'!$E$27:$E$76, 0), MATCH(X$4, RAB_years, 0)) -> 0 | Y22: =INDEX('RAB input'!$H$27:$XFD$76, MATCH($E22, 'RAB input'!$E$27:$E$76, 0), MATCH(Y$4, RAB_years, 0)) -> 0 | Z22: =INDEX('RAB input'!$H$27:$XFD$76, MATCH($E22, 'RAB input'!$E$27:$E$76, 0), MATCH(Z$4, RAB_years, 0)) -> 0 | AA22: =INDEX('RAB input'!$H$27:$XFD$76, MATCH($E22, 'RAB input'!$E$27:$E$76, 0), MATCH(AA$4, RAB_years, 0)) -> 0 | AB22: =INDEX('RAB input'!$H$27:$XFD$76, MATCH($E22, 'RAB input'!$E$27:$E$76, 0), MATCH(AB$4, RAB_years, 0)) -> 0 | AC22: =INDEX('RAB input'!$H$27:$XFD$76, MATCH($E22, 'RAB input'!$E$27:$E$76, 0), MATCH(AC$4, RAB_years, 0)) -> 0 | AD22: =INDEX('RAB input'!$H$27:$XFD$76, MATCH($E22, 'RAB input'!$E$27:$E$76, 0), MATCH(AD$4, RAB_years, 0)) -> 0 | AE22: =INDEX('RAB input'!$H$27:$XFD$76, MATCH($E22, 'RAB input'!$E$27:$E$76, 0), MATCH(AE$4, RAB_years, 0)) -> 0 | AF22: =INDEX('RAB input'!$H$27:$XFD$76, MATCH($E22, 'RAB input'!$E$27:$E$76, 0), MATCH(AF$4, RAB_years, 0)) -> 0 | AG22: =INDEX('RAB input'!$H$27:$XFD$76, MATCH($E22, 'RAB input'!$E$27:$E$76, 0), MATCH(AG$4, RAB_years, 0)) -> 0 | AH22: =INDEX('RAB input'!$H$27:$XFD$76, MATCH($E22, 'RAB input'!$E$27:$E$76, 0), MATCH(AH$4, RAB_years, 0)) -> 0 | AI22: =INDEX('RAB input'!$H$27:$XFD$76, MATCH($E22, 'RAB input'!$E$27:$E$76, 0), MATCH(AI$4, RAB_years, 0)) -> 0 | AJ22: =INDEX('RAB input'!$H$27:$XFD$76, MATCH($E22, 'RAB input'!$E$27:$E$76, 0), MATCH(AJ$4, RAB_years, 0)) -> 0 | AK22: =INDEX('RAB input'!$H$27:$XFD$76, MATCH($E22, 'RAB input'!$E$27:$E$76, 0), MATCH(AK$4, RAB_years, 0)) -> 0 | AL22: =INDEX('RAB input'!$H$27:$XFD$76, MATCH($E22, 'RAB input'!$E$27:$E$76, 0), MATCH(AL$4, RAB_years, 0)) -> 0 | AM22: =INDEX('RAB input'!$H$27:$XFD$76, MATCH($E22, 'RAB input'!$E$27:$E$76, 0), MATCH(AM$4, RAB_years, 0)) -> 0 | AN22: =INDEX('RAB input'!$H$27:$XFD$76, MATCH($E22, 'RAB input'!$E$27:$E$76, 0), MATCH(AN$4, RAB_years, 0)) -> 0 | AO22: =INDEX('RAB input'!$H$27:$XFD$76, MATCH($E22, 'RAB input'!$E$27:$E$76, 0), MATCH(AO$4, RAB_years, 0)) -> 0 | AP22: =INDEX('RAB input'!$H$27:$XFD$76, MATCH($E22, 'RAB input'!$E$27:$E$76, 0), MATCH(AP$4, RAB_years, 0)) -> 0 | AQ22: =INDEX('RAB input'!$H$27:$XFD$76, MATCH($E22, 'RAB input'!$E$27:$E$76, 0), MATCH(AQ$4, RAB_years, 0)) -> 0 | AR22: =INDEX('RAB input'!$H$27:$XFD$76, MATCH($E22, 'RAB input'!$E$27:$E$76, 0), MATCH(AR$4, RAB_years, 0)) -> 0 | AS22: =INDEX('RAB input'!$H$27:$XFD$76, MATCH($E22, 'RAB input'!$E$27:$E$76, 0), MATCH(AS$4, RAB_years, 0)) -> 0 | AT22: =INDEX('RAB input'!$H$27:$XFD$76, MATCH($E22, 'RAB input'!$E$27:$E$76, 0), MATCH(AT$4, RAB_years, 0)) -> 0 | AU22: =INDEX('RAB input'!$H$27:$XFD$76, MATCH($E22, 'RAB input'!$E$27:$E$76, 0), MATCH(AU$4, RAB_years, 0)) -> 0 | AV22: =INDEX('RAB input'!$H$27:$XFD$76, MATCH($E22, 'RAB input'!$E$27:$E$76, 0), MATCH(AV$4, RAB_years, 0)) -> 0 | AW22: =INDEX('RAB input'!$H$27:$XFD$76, MATCH($E22, 'RAB input'!$E$27:$E$76, 0), MATCH(AW$4, RAB_years, 0)) -> 0 | AX22: =INDEX('RAB input'!$H$27:$XFD$76, MATCH($E22, 'RAB input'!$E$27:$E$76, 0), MATCH(AX$4, RAB_years, 0)) -> 0 | AY22: =INDEX('RAB input'!$H$27:$XFD$76, MATCH($E22, 'RAB input'!$E$27:$E$76, 0), MATCH(AY$4, RAB_years, 0)) -> 0 | AZ22: =INDEX('RAB input'!$H$27:$XFD$76, MATCH($E22, 'RAB input'!$E$27:$E$76, 0), MATCH(AZ$4, RAB_years, 0)) -> 0 | BA22: =INDEX('RAB input'!$H$27:$XFD$76, MATCH($E22, 'RAB input'!$E$27:$E$76, 0), MATCH(BA$4, RAB_years, 0)) -> 0 | BB22: =INDEX('RAB input'!$H$27:$XFD$76, MATCH($E22, 'RAB input'!$E$27:$E$76, 0), MATCH(BB$4, RAB_years, 0)) -> 0 | BC22: =INDEX('RAB input'!$H$27:$XFD$76, MATCH($E22, 'RAB input'!$E$27:$E$76, 0), MATCH(BC$4, RAB_years, 0)) -> 0 | BD22: =INDEX('RAB input'!$H$27:$XFD$76, MATCH($E22, 'RAB input'!$E$27:$E$76, 0), MATCH(BD$4, RAB_years, 0)) -> 0 | BE22: =INDEX('RAB input'!$H$27:$XFD$76, MATCH($E22, 'RAB input'!$E$27:$E$76, 0), MATCH(BE$4, RAB_years, 0)) -> 0 | BF22: =INDEX('RAB input'!$H$27:$XFD$76, MATCH($E22, 'RAB input'!$E$27:$E$76, 0), MATCH(BF$4, RAB_years, 0)) -> 0 | BG22: =INDEX('RAB input'!$H$27:$XFD$76, MATCH($E22, 'RAB input'!$E$27:$E$76, 0), MATCH(BG$4, RAB_years, 0)) -> 0 | BH22: =INDEX('RAB input'!$H$27:$XFD$76, MATCH($E22, 'RAB input'!$E$27:$E$76, 0), MATCH(BH$4, RAB_years, 0)) -> 0 | BI22: =INDEX('RAB input'!$H$27:$XFD$76, MATCH($E22, 'RAB input'!$E$27:$E$76, 0), MATCH(BI$4, RAB_years, 0)) -> 0 | BJ22: =INDEX('RAB input'!$H$27:$XFD$76, MATCH($E22, 'RAB input'!$E$27:$E$76, 0), MATCH(BJ$4, RAB_years, 0)) -> 0
D23: 6 | E23: ='RAB input'!E32 -> Land | G23: =INDEX('[6]TAB roll forward'!$H$8:$H$57,MATCH(E23,'[6]TAB roll forward'!$C$8:$C$57,0),1) -> 11.36939258 | H23: =INDEX('RAB input'!$H$27:$XFD$76, MATCH($E23, 'RAB input'!$E$27:$E$76, 0), MATCH(H$4, RAB_years, 0)) -> 15.86627141 | I23: =INDEX('RAB input'!$H$27:$XFD$76, MATCH($E23, 'RAB input'!$E$27:$E$76, 0), MATCH(I$4, RAB_years, 0)) -> 3.02404255 | J23: =INDEX('RAB input'!$H$27:$XFD$76, MATCH($E23, 'RAB input'!$E$27:$E$76, 0), MATCH(J$4, RAB_years, 0)) -> 0.11191513 | K23: =INDEX('RAB input'!$H$27:$XFD$76, MATCH($E23, 'RAB input'!$E$27:$E$76, 0), MATCH(K$4, RAB_years, 0)) -> 8.352048155 | L23: =INDEX('RAB input'!$H$27:$XFD$76, MATCH($E23, 'RAB input'!$E$27:$E$76, 0), MATCH(L$4, RAB_years, 0)) -> 3 | M23: =INDEX('RAB input'!$H$27:$XFD$76, MATCH($E23, 'RAB input'!$E$27:$E$76, 0), MATCH(M$4, RAB_years, 0)) -> 0 | N23: =INDEX('RAB input'!$H$27:$XFD$76, MATCH($E23, 'RAB input'!$E$27:$E$76, 0), MATCH(N$4, RAB_years, 0)) -> 0 | O23: =INDEX('RAB input'!$H$27:$XFD$76, MATCH($E23, 'RAB input'!$E$27:$E$76, 0), MATCH(O$4, RAB_years, 0)) -> 0 | P23: =INDEX('RAB input'!$H$27:$XFD$76, MATCH($E23, 'RAB input'!$E$27:$E$76, 0), MATCH(P$4, RAB_years, 0)) -> 0 | Q23: =INDEX('RAB input'!$H$27:$XFD$76, MATCH($E23, 'RAB input'!$E$27:$E$76, 0), MATCH(Q$4, RAB_years, 0)) -> 0 | R23: =INDEX('RAB input'!$H$27:$XFD$76, MATCH($E23, 'RAB input'!$E$27:$E$76, 0), MATCH(R$4, RAB_years, 0)) -> 0 | S23: =INDEX('RAB input'!$H$27:$XFD$76, MATCH($E23, 'RAB input'!$E$27:$E$76, 0), MATCH(S$4, RAB_years, 0)) -> 0 | T23: =INDEX('RAB input'!$H$27:$XFD$76, MATCH($E23, 'RAB input'!$E$27:$E$76, 0), MATCH(T$4, RAB_years, 0)) -> 0 | U23: =INDEX('RAB input'!$H$27:$XFD$76, MATCH($E23, 'RAB input'!$E$27:$E$76, 0), MATCH(U$4, RAB_years, 0)) -> 0 | V23: =INDEX('RAB input'!$H$27:$XFD$76, MATCH($E23, 'RAB input'!$E$27:$E$76, 0), MATCH(V$4, RAB_years, 0)) -> 0 | W23: =INDEX('RAB input'!$H$27:$XFD$76, MATCH($E23, 'RAB input'!$E$27:$E$76, 0), MATCH(W$4, RAB_years, 0)) -> 0 | X23: =INDEX('RAB input'!$H$27:$XFD$76, MATCH($E23, 'RAB input'!$E$27:$E$76, 0), MATCH(X$4, RAB_years, 0)) -> 0 | Y23: =INDEX('RAB input'!$H$27:$XFD$76, MATCH($E23, 'RAB input'!$E$27:$E$76, 0), MATCH(Y$4, RAB_years, 0)) -> 0 | Z23: =INDEX('RAB input'!$H$27:$XFD$76, MATCH($E23, 'RAB input'!$E$27:$E$76, 0), MATCH(Z$4, RAB_years, 0)) -> 0 | AA23: =INDEX('RAB input'!$H$27:$XFD$76, MATCH($E23, 'RAB input'!$E$27:$E$76, 0), MATCH(AA$4, RAB_years, 0)) -> 0 | AB23: =INDEX('RAB input'!$H$27:$XFD$76, MATCH($E23, 'RAB input'!$E$27:$E$76, 0), MATCH(AB$4, RAB_years, 0)) -> 0 | AC23: =INDEX('RAB input'!$H$27:$XFD$76, MATCH($E23, 'RAB input'!$E$27:$E$76, 0), MATCH(AC$4, RAB_years, 0)) -> 0 | AD23: =INDEX('RAB input'!$H$27:$XFD$76, MATCH($E23, 'RAB input'!$E$27:$E$76, 0), MATCH(AD$4, RAB_years, 0)) -> 0 | AE23: =INDEX('RAB input'!$H$27:$XFD$76, MATCH($E23, 'RAB input'!$E$27:$E$76, 0), MATCH(AE$4, RAB_years, 0)) -> 0 | AF23: =INDEX('RAB input'!$H$27:$XFD$76, MATCH($E23, 'RAB input'!$E$27:$E$76, 0), MATCH(AF$4, RAB_years, 0)) -> 0 | AG23: =INDEX('RAB input'!$H$27:$XFD$76, MATCH($E23, 'RAB input'!$E$27:$E$76, 0), MATCH(AG$4, RAB_years, 0)) -> 0 | AH23: =INDEX('RAB input'!$H$27:$XFD$76, MATCH($E23, 'RAB input'!$E$27:$E$76, 0), MATCH(AH$4, RAB_years, 0)) -> 0 | AI23: =INDEX('RAB input'!$H$27:$XFD$76, MATCH($E23, 'RAB input'!$E$27:$E$76, 0), MATCH(AI$4, RAB_years, 0)) -> 0 | AJ23: =INDEX('RAB input'!$H$27:$XFD$76, MATCH($E23, 'RAB input'!$E$27:$E$76, 0), MATCH(AJ$4, RAB_years, 0)) -> 0 | AK23: =INDEX('RAB input'!$H$27:$XFD$76, MATCH($E23, 'RAB input'!$E$27:$E$76, 0), MATCH(AK$4, RAB_years, 0)) -> 0 | AL23: =INDEX('RAB input'!$H$27:$XFD$76, MATCH($E23, 'RAB input'!$E$27:$E$76, 0), MATCH(AL$4, RAB_years, 0)) -> 0 | AM23: =INDEX('RAB input'!$H$27:$XFD$76, MATCH($E23, 'RAB input'!$E$27:$E$76, 0), MATCH(AM$4, RAB_years, 0)) -> 0 | AN23: =INDEX('RAB input'!$H$27:$XFD$76, MATCH($E23, 'RAB input'!$E$27:$E$76, 0), MATCH(AN$4, RAB_years, 0)) -> 0 | AO23: =INDEX('RAB input'!$H$27:$XFD$76, MATCH($E23, 'RAB input'!$E$27:$E$76, 0), MATCH(AO$4, RAB_years, 0)) -> 0 | AP23: =INDEX('RAB input'!$H$27:$XFD$76, MATCH($E23, 'RAB input'!$E$27:$E$76, 0), MATCH(AP$4, RAB_years, 0)) -> 0 | AQ23: =INDEX('RAB input'!$H$27:$XFD$76, MATCH($E23, 'RAB input'!$E$27:$E$76, 0), MATCH(AQ$4, RAB_years, 0)) -> 0 | AR23: =INDEX('RAB input'!$H$27:$XFD$76, MATCH($E23, 'RAB input'!$E$27:$E$76, 0), MATCH(AR$4, RAB_years, 0)) -> 0 | AS23: =INDEX('RAB input'!$H$27:$XFD$76, MATCH($E23, 'RAB input'!$E$27:$E$76, 0), MATCH(AS$4, RAB_years, 0)) -> 0 | AT23: =INDEX('RAB input'!$H$27:$XFD$76, MATCH($E23, 'RAB input'!$E$27:$E$76, 0), MATCH(AT$4, RAB_years, 0)) -> 0 | AU23: =INDEX('RAB input'!$H$27:$XFD$76, MATCH($E23, 'RAB input'!$E$27:$E$76, 0), MATCH(AU$4, RAB_years, 0)) -> 0 | AV23: =INDEX('RAB input'!$H$27:$XFD$76, MATCH($E23, 'RAB input'!$E$27:$E$76, 0), MATCH(AV$4, RAB_years, 0)) -> 0 | AW23: =INDEX('RAB input'!$H$27:$XFD$76, MATCH($E23, 'RAB input'!$E$27:$E$76, 0), MATCH(AW$4, RAB_years, 0)) -> 0 | AX23: =INDEX('RAB input'!$H$27:$XFD$76, MATCH($E23, 'RAB input'!$E$27:$E$76, 0), MATCH(AX$4, RAB_years, 0)) -> 0 | AY23: =INDEX('RAB input'!$H$27:$XFD$76, MATCH($E23, 'RAB input'!$E$27:$E$76, 0), MATCH(AY$4, RAB_years, 0)) -> 0 | AZ23: =INDEX('RAB input'!$H$27:$XFD$76, MATCH($E23, 'RAB input'!$E$27:$E$76, 0), MATCH(AZ$4, RAB_years, 0)) -> 0 | BA23: =INDEX('RAB input'!$H$27:$XFD$76, MATCH($E23, 'RAB input'!$E$27:$E$76, 0), MATCH(BA$4, RAB_years, 0)) -> 0 | BB23: =INDEX('RAB input'!$H$27:$XFD$76, MATCH($E23, 'RAB input'!$E$27:$E$76, 0), MATCH(BB$4, RAB_years, 0)) -> 0 | BC23: =INDEX('RAB input'!$H$27:$XFD$76, MATCH($E23, 'RAB input'!$E$27:$E$76, 0), MATCH(BC$4, RAB_years, 0)) -> 0 | BD23: =INDEX('RAB input'!$H$27:$XFD$76, MATCH($E23, 'RAB input'!$E$27:$E$76, 0), MATCH(BD$4, RAB_years, 0)) -> 0 | BE23: =INDEX('RAB input'!$H$27:$XFD$76, MATCH($E23, 'RAB input'!$E$27:$E$76, 0), MATCH(BE$4, RAB_years, 0)) -> 0 | BF23: =INDEX('RAB input'!$H$27:$XFD$76, MATCH($E23, 'RAB input'!$E$27:$E$76, 0), MATCH(BF$4, RAB_years, 0)) -> 0 | BG23: =INDEX('RAB input'!$H$27:$XFD$76, MATCH($E23, 'RAB input'!$E$27:$E$76, 0), MATCH(BG$4, RAB_years, 0)) -> 0 | BH23: =INDEX('RAB input'!$H$27:$XFD$76, MATCH($E23, 'RAB input'!$E$27:$E$76, 0), MATCH(BH$4, RAB_years, 0)) -> 0 | BI23: =INDEX('RAB input'!$H$27:$XFD$76, MATCH($E23, 'RAB input'!$E$27:$E$76, 0), MATCH(BI$4, RAB_years, 0)) -> 0 | BJ23: =INDEX('RAB input'!$H$27:$XFD$76, MATCH($E23, 'RAB input'!$E$27:$E$76, 0), MATCH(BJ$4, RAB_years, 0)) -> 0
D24: 7 | E24: ='RAB input'!E33 -> Secondary systems (pre 2016) | G24: =INDEX('[6]TAB roll forward'!$H$8:$H$57,MATCH(E24,'[6]TAB roll forward'!$C$8:$C$57,0),1) -> 114.7418478 | H24: =INDEX('RAB input'!$H$27:$XFD$76, MATCH($E24, 'RAB input'!$E$27:$E$76, 0), MATCH(H$4, RAB_years, 0)) -> 0 | I24: =INDEX('RAB input'!$H$27:$XFD$76, MATCH($E24, 'RAB input'!$E$27:$E$76, 0), MATCH(I$4, RAB_years, 0)) -> 0 | J24: =INDEX('RAB input'!$H$27:$XFD$76, MATCH($E24, 'RAB input'!$E$27:$E$76, 0), MATCH(J$4, RAB_years, 0)) -> 0 | K24: =INDEX('RAB input'!$H$27:$XFD$76, MATCH($E24, 'RAB input'!$E$27:$E$76, 0), MATCH(K$4, RAB_years, 0)) -> 0 | L24: =INDEX('RAB input'!$H$27:$XFD$76, MATCH($E24, 'RAB input'!$E$27:$E$76, 0), MATCH(L$4, RAB_years, 0)) -> 0 | M24: =INDEX('RAB input'!$H$27:$XFD$76, MATCH($E24, 'RAB input'!$E$27:$E$76, 0), MATCH(M$4, RAB_years, 0)) -> 0 | N24: =INDEX('RAB input'!$H$27:$XFD$76, MATCH($E24, 'RAB input'!$E$27:$E$76, 0), MATCH(N$4, RAB_years, 0)) -> 0 | O24: =INDEX('RAB input'!$H$27:$XFD$76, MATCH($E24, 'RAB input'!$E$27:$E$76, 0), MATCH(O$4, RAB_years, 0)) -> 0 | P24: =INDEX('RAB input'!$H$27:$XFD$76, MATCH($E24, 'RAB input'!$E$27:$E$76, 0), MATCH(P$4, RAB_years, 0)) -> 0 | Q24: =INDEX('RAB input'!$H$27:$XFD$76, MATCH($E24, 'RAB input'!$E$27:$E$76, 0), MATCH(Q$4, RAB_years, 0)) -> 0 | R24: =INDEX('RAB input'!$H$27:$XFD$76, MATCH($E24, 'RAB input'!$E$27:$E$76, 0), MATCH(R$4, RAB_years, 0)) -> 0 | S24: =INDEX('RAB input'!$H$27:$XFD$76, MATCH($E24, 'RAB input'!$E$27:$E$76, 0), MATCH(S$4, RAB_years, 0)) -> 0 | T24: =INDEX('RAB input'!$H$27:$XFD$76, MATCH($E24, 'RAB input'!$E$27:$E$76, 0), MATCH(T$4, RAB_years, 0)) -> 0 | U24: =INDEX('RAB input'!$H$27:$XFD$76, MATCH($E24, 'RAB input'!$E$27:$E$76, 0), MATCH(U$4, RAB_years, 0)) -> 0 | V24: =INDEX('RAB input'!$H$27:$XFD$76, MATCH($E24, 'RAB input'!$E$27:$E$76, 0), MATCH(V$4, RAB_years, 0)) -> 0 | W24: =INDEX('RAB input'!$H$27:$XFD$76, MATCH($E24, 'RAB input'!$E$27:$E$76, 0), MATCH(W$4, RAB_years, 0)) -> 0 | X24: =INDEX('RAB input'!$H$27:$XFD$76, MATCH($E24, 'RAB input'!$E$27:$E$76, 0), MATCH(X$4, RAB_years, 0)) -> 0 | Y24: =INDEX('RAB input'!$H$27:$XFD$76, MATCH($E24, 'RAB input'!$E$27:$E$76, 0), MATCH(Y$4, RAB_years, 0)) -> 0 | Z24: =INDEX('RAB input'!$H$27:$XFD$76, MATCH($E24, 'RAB input'!$E$27:$E$76, 0), MATCH(Z$4, RAB_years, 0)) -> 0 | AA24: =INDEX('RAB input'!$H$27:$XFD$76, MATCH($E24, 'RAB input'!$E$27:$E$76, 0), MATCH(AA$4, RAB_years, 0)) -> 0 | AB24: =INDEX('RAB input'!$H$27:$XFD$76, MATCH($E24, 'RAB input'!$E$27:$E$76, 0), MATCH(AB$4, RAB_years, 0)) -> 0 | AC24: =INDEX('RAB input'!$H$27:$XFD$76, MATCH($E24, 'RAB input'!$E$27:$E$76, 0), MATCH(AC$4, RAB_years, 0)) -> 0 | AD24: =INDEX('RAB input'!$H$27:$XFD$76, MATCH($E24, 'RAB input'!$E$27:$E$76, 0), MATCH(AD$4, RAB_years, 0)) -> 0 | AE24: =INDEX('RAB input'!$H$27:$XFD$76, MATCH($E24, 'RAB input'!$E$27:$E$76, 0), MATCH(AE$4, RAB_years, 0)) -> 0 | AF24: =INDEX('RAB input'!$H$27:$XFD$76, MATCH($E24, 'RAB input'!$E$27:$E$76, 0), MATCH(AF$4, RAB_years, 0)) -> 0 | AG24: =INDEX('RAB input'!$H$27:$XFD$76, MATCH($E24, 'RAB input'!$E$27:$E$76, 0), MATCH(AG$4, RAB_years, 0)) -> 0 | AH24: =INDEX('RAB input'!$H$27:$XFD$76, MATCH($E24, 'RAB input'!$E$27:$E$76, 0), MATCH(AH$4, RAB_years, 0)) -> 0 | AI24: =INDEX('RAB input'!$H$27:$XFD$76, MATCH($E24, 'RAB input'!$E$27:$E$76, 0), MATCH(AI$4, RAB_years, 0)) -> 0 | AJ24: =INDEX('RAB input'!$H$27:$XFD$76, MATCH($E24, 'RAB input'!$E$27:$E$76, 0), MATCH(AJ$4, RAB_years, 0)) -> 0 | AK24: =INDEX('RAB input'!$H$27:$XFD$76, MATCH($E24, 'RAB input'!$E$27:$E$76, 0), MATCH(AK$4, RAB_years, 0)) -> 0 | AL24: =INDEX('RAB input'!$H$27:$XFD$76, MATCH($E24, 'RAB input'!$E$27:$E$76, 0), MATCH(AL$4, RAB_years, 0)) -> 0 | AM24: =INDEX('RAB input'!$H$27:$XFD$76, MATCH($E24, 'RAB input'!$E$27:$E$76, 0), MATCH(AM$4, RAB_years, 0)) -> 0 | AN24: =INDEX('RAB input'!$H$27:$XFD$76, MATCH($E24, 'RAB input'!$E$27:$E$76, 0), MATCH(AN$4, RAB_years, 0)) -> 0 | AO24: =INDEX('RAB input'!$H$27:$XFD$76, MATCH($E24, 'RAB input'!$E$27:$E$76, 0), MATCH(AO$4, RAB_years, 0)) -> 0 | AP24: =INDEX('RAB input'!$H$27:$XFD$76, MATCH($E24, 'RAB input'!$E$27:$E$76, 0), MATCH(AP$4, RAB_years, 0)) -> 0 | AQ24: =INDEX('RAB input'!$H$27:$XFD$76, MATCH($E24, 'RAB input'!$E$27:$E$76, 0), MATCH(AQ$4, RAB_years, 0)) -> 0 | AR24: =INDEX('RAB input'!$H$27:$XFD$76, MATCH($E24, 'RAB input'!$E$27:$E$76, 0), MATCH(AR$4, RAB_years, 0)) -> 0 | AS24: =INDEX('RAB input'!$H$27:$XFD$76, MATCH($E24, 'RAB input'!$E$27:$E$76, 0), MATCH(AS$4, RAB_years, 0)) -> 0 | AT24: =INDEX('RAB input'!$H$27:$XFD$76, MATCH($E24, 'RAB input'!$E$27:$E$76, 0), MATCH(AT$4, RAB_years, 0)) -> 0 | AU24: =INDEX('RAB input'!$H$27:$XFD$76, MATCH($E24, 'RAB input'!$E$27:$E$76, 0), MATCH(AU$4, RAB_years, 0)) -> 0 | AV24: =INDEX('RAB input'!$H$27:$XFD$76, MATCH($E24, 'RAB input'!$E$27:$E$76, 0), MATCH(AV$4, RAB_years, 0)) -> 0 | AW24: =INDEX('RAB input'!$H$27:$XFD$76, MATCH($E24, 'RAB input'!$E$27:$E$76, 0), MATCH(AW$4, RAB_years, 0)) -> 0 | AX24: =INDEX('RAB input'!$H$27:$XFD$76, MATCH($E24, 'RAB input'!$E$27:$E$76, 0), MATCH(AX$4, RAB_years, 0)) -> 0 | AY24: =INDEX('RAB input'!$H$27:$XFD$76, MATCH($E24, 'RAB input'!$E$27:$E$76, 0), MATCH(AY$4, RAB_years, 0)) -> 0 | AZ24: =INDEX('RAB input'!$H$27:$XFD$76, MATCH($E24, 'RAB input'!$E$27:$E$76, 0), MATCH(AZ$4, RAB_years, 0)) -> 0 | BA24: =INDEX('RAB input'!$H$27:$XFD$76, MATCH($E24, 'RAB input'!$E$27:$E$76, 0), MATCH(BA$4, RAB_years, 0)) -> 0 | BB24: =INDEX('RAB input'!$H$27:$XFD$76, MATCH($E24, 'RAB input'!$E$27:$E$76, 0), MATCH(BB$4, RAB_years, 0)) -> 0 | BC24: =INDEX('RAB input'!$H$27:$XFD$76, MATCH($E24, 'RAB input'!$E$27:$E$76, 0), MATCH(BC$4, RAB_years, 0)) -> 0 | BD24: =INDEX('RAB input'!$H$27:$XFD$76, MATCH($E24, 'RAB input'!$E$27:$E$76, 0), MATCH(BD$4, RAB_years, 0)) -> 0 | BE24: =INDEX('RAB input'!$H$27:$XFD$76, MATCH($E24, 'RAB input'!$E$27:$E$76, 0), MATCH(BE$4, RAB_years, 0)) -> 0 | BF24: =INDEX('RAB input'!$H$27:$XFD$76, MATCH($E24, 'RAB input'!$E$27:$E$76, 0), MATCH(BF$4, RAB_years, 0)) -> 0 | BG24: =INDEX('RAB input'!$H$27:$XFD$76, MATCH($E24, 'RAB input'!$E$27:$E$76, 0), MATCH(BG$4, RAB_years, 0)) -> 0 | BH24: =INDEX('RAB input'!$H$27:$XFD$76, MATCH($E24, 'RAB input'!$E$27:$E$76, 0), MATCH(BH$4, RAB_years, 0)) -> 0 | BI24: =INDEX('RAB input'!$H$27:$XFD$76, MATCH($E24, 'RAB input'!$E$27:$E$76, 0), MATCH(BI$4, RAB_years, 0)) -> 0 | BJ24: =INDEX('RAB input'!$H$27:$XFD$76, MATCH($E24, 'RAB input'!$E$27:$E$76, 0), MATCH(BJ$4, RAB_years, 0)) -> 0
D25: 8 | E25: ='RAB input'!E34 -> Accelerated Depr - Distr assets (Contingent Project 1) | G25: =INDEX('[6]TAB roll forward'!$H$8:$H$57,MATCH(E25,'[6]TAB roll forward'!$C$8:$C$57,0),1) -> 0 | H25: =INDEX('RAB input'!$H$27:$XFD$76, MATCH($E25, 'RAB input'!$E$27:$E$76, 0), MATCH(H$4, RAB_years, 0)) -> 0 | I25: =INDEX('RAB input'!$H$27:$XFD$76, MATCH($E25, 'RAB input'!$E$27:$E$76, 0), MATCH(I$4, RAB_years, 0)) -> 0 | J25: =INDEX('RAB input'!$H$27:$XFD$76, MATCH($E25, 'RAB input'!$E$27:$E$76, 0), MATCH(J$4, RAB_years, 0)) -> 0 | K25: =INDEX('RAB input'!$H$27:$XFD$76, MATCH($E25, 'RAB input'!$E$27:$E$76, 0), MATCH(K$4, RAB_years, 0)) -> 0 | L25: =INDEX('RAB input'!$H$27:$XFD$76, MATCH($E25, 'RAB input'!$E$27:$E$76, 0), MATCH(L$4, RAB_years, 0)) -> 0 | M25: =INDEX('RAB input'!$H$27:$XFD$76, MATCH($E25, 'RAB input'!$E$27:$E$76, 0), MATCH(M$4, RAB_years, 0)) -> 0 | N25: =INDEX('RAB input'!$H$27:$XFD$76, MATCH($E25, 'RAB input'!$E$27:$E$76, 0), MATCH(N$4, RAB_years, 0)) -> 0 | O25: =INDEX('RAB input'!$H$27:$XFD$76, MATCH($E25, 'RAB input'!$E$27:$E$76, 0), MATCH(O$4, RAB_years, 0)) -> 0 | P25: =INDEX('RAB input'!$H$27:$XFD$76, MATCH($E25, 'RAB input'!$E$27:$E$76, 0), MATCH(P$4, RAB_years, 0)) -> 0 | Q25: =INDEX('RAB input'!$H$27:$XFD$76, MATCH($E25, 'RAB input'!$E$27:$E$76, 0), MATCH(Q$4, RAB_years, 0)) -> 0 | R25: =INDEX('RAB input'!$H$27:$XFD$76, MATCH($E25, 'RAB input'!$E$27:$E$76, 0), MATCH(R$4, RAB_years, 0)) -> 0 | S25: =INDEX('RAB input'!$H$27:$XFD$76, MATCH($E25, 'RAB input'!$E$27:$E$76, 0), MATCH(S$4, RAB_years, 0)) -> 0 | T25: =INDEX('RAB input'!$H$27:$XFD$76, MATCH($E25, 'RAB input'!$E$27:$E$76, 0), MATCH(T$4, RAB_years, 0)) -> 0 | U25: =INDEX('RAB input'!$H$27:$XFD$76, MATCH($E25, 'RAB input'!$E$27:$E$76, 0), MATCH(U$4, RAB_years, 0)) -> 0 | V25: =INDEX('RAB input'!$H$27:$XFD$76, MATCH($E25, 'RAB input'!$E$27:$E$76, 0), MATCH(V$4, RAB_years, 0)) -> 0 | W25: =INDEX('RAB input'!$H$27:$XFD$76, MATCH($E25, 'RAB input'!$E$27:$E$76, 0), MATCH(W$4, RAB_years, 0)) -> 0 | X25: =INDEX('RAB input'!$H$27:$XFD$76, MATCH($E25, 'RAB input'!$E$27:$E$76, 0), MATCH(X$4, RAB_years, 0)) -> 0 | Y25: =INDEX('RAB input'!$H$27:$XFD$76, MATCH($E25, 'RAB input'!$E$27:$E$76, 0), MATCH(Y$4, RAB_years, 0)) -> 0 | Z25: =INDEX('RAB input'!$H$27:$XFD$76, MATCH($E25, 'RAB input'!$E$27:$E$76, 0), MATCH(Z$4, RAB_years, 0)) -> 0 | AA25: =INDEX('RAB input'!$H$27:$XFD$76, MATCH($E25, 'RAB input'!$E$27:$E$76, 0), MATCH(AA$4, RAB_years, 0)) -> 0 | AB25: =INDEX('RAB input'!$H$27:$XFD$76, MATCH($E25, 'RAB input'!$E$27:$E$76, 0), MATCH(AB$4, RAB_years, 0)) -> 0 | AC25: =INDEX('RAB input'!$H$27:$XFD$76, MATCH($E25, 'RAB input'!$E$27:$E$76, 0), MATCH(AC$4, RAB_years, 0)) -> 0 | AD25: =INDEX('RAB input'!$H$27:$XFD$76, MATCH($E25, 'RAB input'!$E$27:$E$76, 0), MATCH(AD$4, RAB_years, 0)) -> 0 | AE25: =INDEX('RAB input'!$H$27:$XFD$76, MATCH($E25, 'RAB input'!$E$27:$E$76, 0), MATCH(AE$4, RAB_years, 0)) -> 0 | AF25: =INDEX('RAB input'!$H$27:$XFD$76, MATCH($E25, 'RAB input'!$E$27:$E$76, 0), MATCH(AF$4, RAB_years, 0)) -> 0 | AG25: =INDEX('RAB input'!$H$27:$XFD$76, MATCH($E25, 'RAB input'!$E$27:$E$76, 0), MATCH(AG$4, RAB_years, 0)) -> 0 | AH25: =INDEX('RAB input'!$H$27:$XFD$76, MATCH($E25, 'RAB input'!$E$27:$E$76, 0), MATCH(AH$4, RAB_years, 0)) -> 0 | AI25: =INDEX('RAB input'!$H$27:$XFD$76, MATCH($E25, 'RAB input'!$E$27:$E$76, 0), MATCH(AI$4, RAB_years, 0)) -> 0 | AJ25: =INDEX('RAB input'!$H$27:$XFD$76, MATCH($E25, 'RAB input'!$E$27:$E$76, 0), MATCH(AJ$4, RAB_years, 0)) -> 0 | AK25: =INDEX('RAB input'!$H$27:$XFD$76, MATCH($E25, 'RAB input'!$E$27:$E$76, 0), MATCH(AK$4, RAB_years, 0)) -> 0 | AL25: =INDEX('RAB input'!$H$27:$XFD$76, MATCH($E25, 'RAB input'!$E$27:$E$76, 0), MATCH(AL$4, RAB_years, 0)) -> 0 | AM25: =INDEX('RAB input'!$H$27:$XFD$76, MATCH($E25, 'RAB input'!$E$27:$E$76, 0), MATCH(AM$4, RAB_years, 0)) -> 0 | AN25: =INDEX('RAB input'!$H$27:$XFD$76, MATCH($E25, 'RAB input'!$E$27:$E$76, 0), MATCH(AN$4, RAB_years, 0)) -> 0 | AO25: =INDEX('RAB input'!$H$27:$XFD$76, MATCH($E25, 'RAB input'!$E$27:$E$76, 0), MATCH(AO$4, RAB_years, 0)) -> 0 | AP25: =INDEX('RAB input'!$H$27:$XFD$76, MATCH($E25, 'RAB input'!$E$27:$E$76, 0), MATCH(AP$4, RAB_years, 0)) -> 0 | AQ25: =INDEX('RAB input'!$H$27:$XFD$76, MATCH($E25, 'RAB input'!$E$27:$E$76, 0), MATCH(AQ$4, RAB_years, 0)) -> 0 | AR25: =INDEX('RAB input'!$H$27:$XFD$76, MATCH($E25, 'RAB input'!$E$27:$E$76, 0), MATCH(AR$4, RAB_years, 0)) -> 0 | AS25: =INDEX('RAB input'!$H$27:$XFD$76, MATCH($E25, 'RAB input'!$E$27:$E$76, 0), MATCH(AS$4, RAB_years, 0)) -> 0 | AT25: =INDEX('RAB input'!$H$27:$XFD$76, MATCH($E25, 'RAB input'!$E$27:$E$76, 0), MATCH(AT$4, RAB_years, 0)) -> 0 | AU25: =INDEX('RAB input'!$H$27:$XFD$76, MATCH($E25, 'RAB input'!$E$27:$E$76, 0), MATCH(AU$4, RAB_years, 0)) -> 0 | AV25: =INDEX('RAB input'!$H$27:$XFD$76, MATCH($E25, 'RAB input'!$E$27:$E$76, 0), MATCH(AV$4, RAB_years, 0)) -> 0 | AW25: =INDEX('RAB input'!$H$27:$XFD$76, MATCH($E25, 'RAB input'!$E$27:$E$76, 0), MATCH(AW$4, RAB_years, 0)) -> 0 | AX25: =INDEX('RAB input'!$H$27:$XFD$76, MATCH($E25, 'RAB input'!$E$27:$E$76, 0), MATCH(AX$4, RAB_years, 0)) -> 0 | AY25: =INDEX('RAB input'!$H$27:$XFD$76, MATCH($E25, 'RAB input'!$E$27:$E$76, 0), MATCH(AY$4, RAB_years, 0)) -> 0 | AZ25: =INDEX('RAB input'!$H$27:$XFD$76, MATCH($E25, 'RAB input'!$E$27:$E$76, 0), MATCH(AZ$4, RAB_years, 0)) -> 0 | BA25: =INDEX('RAB input'!$H$27:$XFD$76, MATCH($E25, 'RAB input'!$E$27:$E$76, 0), MATCH(BA$4, RAB_years, 0)) -> 0 | BB25: =INDEX('RAB input'!$H$27:$XFD$76, MATCH($E25, 'RAB input'!$E$27:$E$76, 0), MATCH(BB$4, RAB_years, 0)) -> 0 | BC25: =INDEX('RAB input'!$H$27:$XFD$76, MATCH($E25, 'RAB input'!$E$27:$E$76, 0), MATCH(BC$4, RAB_years, 0)) -> 0 | BD25: =INDEX('RAB input'!$H$27:$XFD$76, MATCH($E25, 'RAB input'!$E$27:$E$76, 0), MATCH(BD$4, RAB_years, 0)) -> 0 | BE25: =INDEX('RAB input'!$H$27:$XFD$76, MATCH($E25, 'RAB input'!$E$27:$E$76, 0), MATCH(BE$4, RAB_years, 0)) -> 0 | BF25: =INDEX('RAB input'!$H$27:$XFD$76, MATCH($E25, 'RAB input'!$E$27:$E$76, 0), MATCH(BF$4, RAB_years, 0)) -> 0 | BG25: =INDEX('RAB input'!$H$27:$XFD$76, MATCH($E25, 'RAB input'!$E$27:$E$76, 0), MATCH(BG$4, RAB_years, 0)) -> 0 | BH25: =INDEX('RAB input'!$H$27:$XFD$76, MATCH($E25, 'RAB input'!$E$27:$E$76, 0), MATCH(BH$4, RAB_years, 0)) -> 0 | BI25: =INDEX('RAB input'!$H$27:$XFD$76, MATCH($E25, 'RAB input'!$E$27:$E$76, 0), MATCH(BI$4, RAB_years, 0)) -> 0 | BJ25: =INDEX('RAB input'!$H$27:$XFD$76, MATCH($E25, 'RAB input'!$E$27:$E$76, 0), MATCH(BJ$4, RAB_years, 0)) -> 0
D26: 9 | E26: ='RAB input'!E35 -> Accelerated Depr - Distr assets (Contingent Project 2) | G26: =INDEX('[6]TAB roll forward'!$H$8:$H$57,MATCH(E26,'[6]TAB roll forward'!$C$8:$C$57,0),1) -> 0 | H26: =INDEX('RAB input'!$H$27:$XFD$76, MATCH($E26, 'RAB input'!$E$27:$E$76, 0), MATCH(H$4, RAB_years, 0)) -> 0 | I26: =INDEX('RAB input'!$H$27:$XFD$76, MATCH($E26, 'RAB input'!$E$27:$E$76, 0), MATCH(I$4, RAB_years, 0)) -> 0 | J26: =INDEX('RAB input'!$H$27:$XFD$76, MATCH($E26, 'RAB input'!$E$27:$E$76, 0), MATCH(J$4, RAB_years, 0)) -> 0 | K26: =INDEX('RAB input'!$H$27:$XFD$76, MATCH($E26, 'RAB input'!$E$27:$E$76, 0), MATCH(K$4, RAB_years, 0)) -> 0 | L26: =INDEX('RAB input'!$H$27:$XFD$76, MATCH($E26, 'RAB input'!$E$27:$E$76, 0), MATCH(L$4, RAB_years, 0)) -> 0 | M26: =INDEX('RAB input'!$H$27:$XFD$76, MATCH($E26, 'RAB input'!$E$27:$E$76, 0), MATCH(M$4, RAB_years, 0)) -> 0 | N26: =INDEX('RAB input'!$H$27:$XFD$76, MATCH($E26, 'RAB input'!$E$27:$E$76, 0), MATCH(N$4, RAB_years, 0)) -> 0 | O26: =INDEX('RAB input'!$H$27:$XFD$76, MATCH($E26, 'RAB input'!$E$27:$E$76, 0), MATCH(O$4, RAB_years, 0)) -> 0 | P26: =INDEX('RAB input'!$H$27:$XFD$76, MATCH($E26, 'RAB input'!$E$27:$E$76, 0), MATCH(P$4, RAB_years, 0)) -> 0 | Q26: =INDEX('RAB input'!$H$27:$XFD$76, MATCH($E26, 'RAB input'!$E$27:$E$76, 0), MATCH(Q$4, RAB_years, 0)) -> 0 | R26: =INDEX('RAB input'!$H$27:$XFD$76, MATCH($E26, 'RAB input'!$E$27:$E$76, 0), MATCH(R$4, RAB_years, 0)) -> 0 | S26: =INDEX('RAB input'!$H$27:$XFD$76, MATCH($E26, 'RAB input'!$E$27:$E$76, 0), MATCH(S$4, RAB_years, 0)) -> 0 | T26: =INDEX('RAB input'!$H$27:$XFD$76, MATCH($E26, 'RAB input'!$E$27:$E$76, 0), MATCH(T$4, RAB_years, 0)) -> 0 | U26: =INDEX('RAB input'!$H$27:$XFD$76, MATCH($E26, 'RAB input'!$E$27:$E$76, 0), MATCH(U$4, RAB_years, 0)) -> 0 | V26: =INDEX('RAB input'!$H$27:$XFD$76, MATCH($E26, 'RAB input'!$E$27:$E$76, 0), MATCH(V$4, RAB_years, 0)) -> 0 | W26: =INDEX('RAB input'!$H$27:$XFD$76, MATCH($E26, 'RAB input'!$E$27:$E$76, 0), MATCH(W$4, RAB_years, 0)) -> 0 | X26: =INDEX('RAB input'!$H$27:$XFD$76, MATCH($E26, 'RAB input'!$E$27:$E$76, 0), MATCH(X$4, RAB_years, 0)) -> 0 | Y26: =INDEX('RAB input'!$H$27:$XFD$76, MATCH($E26, 'RAB input'!$E$27:$E$76, 0), MATCH(Y$4, RAB_years, 0)) -> 0 | Z26: =INDEX('RAB input'!$H$27:$XFD$76, MATCH($E26, 'RAB input'!$E$27:$E$76, 0), MATCH(Z$4, RAB_years, 0)) -> 0 | AA26: =INDEX('RAB input'!$H$27:$XFD$76, MATCH($E26, 'RAB input'!$E$27:$E$76, 0), MATCH(AA$4, RAB_years, 0)) -> 0 | AB26: =INDEX('RAB input'!$H$27:$XFD$76, MATCH($E26, 'RAB input'!$E$27:$E$76, 0), MATCH(AB$4, RAB_years, 0)) -> 0 | AC26: =INDEX('RAB input'!$H$27:$XFD$76, MATCH($E26, 'RAB input'!$E$27:$E$76, 0), MATCH(AC$4, RAB_years, 0)) -> 0 | AD26: =INDEX('RAB input'!$H$27:$XFD$76, MATCH($E26, 'RAB input'!$E$27:$E$76, 0), MATCH(AD$4, RAB_years, 0)) -> 0 | AE26: =INDEX('RAB input'!$H$27:$XFD$76, MATCH($E26, 'RAB input'!$E$27:$E$76, 0), MATCH(AE$4, RAB_years, 0)) -> 0 | AF26: =INDEX('RAB input'!$H$27:$XFD$76, MATCH($E26, 'RAB input'!$E$27:$E$76, 0), MATCH(AF$4, RAB_years, 0)) -> 0 | AG26: =INDEX('RAB input'!$H$27:$XFD$76, MATCH($E26, 'RAB input'!$E$27:$E$76, 0), MATCH(AG$4, RAB_years, 0)) -> 0 | AH26: =INDEX('RAB input'!$H$27:$XFD$76, MATCH($E26, 'RAB input'!$E$27:$E$76, 0), MATCH(AH$4, RAB_years, 0)) -> 0 | AI26: =INDEX('RAB input'!$H$27:$XFD$76, MATCH($E26, 'RAB input'!$E$27:$E$76, 0), MATCH(AI$4, RAB_years, 0)) -> 0 | AJ26: =INDEX('RAB input'!$H$27:$XFD$76, MATCH($E26, 'RAB input'!$E$27:$E$76, 0), MATCH(AJ$4, RAB_years, 0)) -> 0 | AK26: =INDEX('RAB input'!$H$27:$XFD$76, MATCH($E26, 'RAB input'!$E$27:$E$76, 0), MATCH(AK$4, RAB_years, 0)) -> 0 | AL26: =INDEX('RAB input'!$H$27:$XFD$76, MATCH($E26, 'RAB input'!$E$27:$E$76, 0), MATCH(AL$4, RAB_years, 0)) -> 0 | AM26: =INDEX('RAB input'!$H$27:$XFD$76, MATCH($E26, 'RAB input'!$E$27:$E$76, 0), MATCH(AM$4, RAB_years, 0)) -> 0 | AN26: =INDEX('RAB input'!$H$27:$XFD$76, MATCH($E26, 'RAB input'!$E$27:$E$76, 0), MATCH(AN$4, RAB_years, 0)) -> 0 | AO26: =INDEX('RAB input'!$H$27:$XFD$76, MATCH($E26, 'RAB input'!$E$27:$E$76, 0), MATCH(AO$4, RAB_years, 0)) -> 0 | AP26: =INDEX('RAB input'!$H$27:$XFD$76, MATCH($E26, 'RAB input'!$E$27:$E$76, 0), MATCH(AP$4, RAB_years, 0)) -> 0 | AQ26: =INDEX('RAB input'!$H$27:$XFD$76, MATCH($E26, 'RAB input'!$E$27:$E$76, 0), MATCH(AQ$4, RAB_years, 0)) -> 0 | AR26: =INDEX('RAB input'!$H$27:$XFD$76, MATCH($E26, 'RAB input'!$E$27:$E$76, 0), MATCH(AR$4, RAB_years, 0)) -> 0 | AS26: =INDEX('RAB input'!$H$27:$XFD$76, MATCH($E26, 'RAB input'!$E$27:$E$76, 0), MATCH(AS$4, RAB_years, 0)) -> 0 | AT26: =INDEX('RAB input'!$H$27:$XFD$76, MATCH($E26, 'RAB input'!$E$27:$E$76, 0), MATCH(AT$4, RAB_years, 0)) -> 0 | AU26: =INDEX('RAB input'!$H$27:$XFD$76, MATCH($E26, 'RAB input'!$E$27:$E$76, 0), MATCH(AU$4, RAB_years, 0)) -> 0 | AV26: =INDEX('RAB input'!$H$27:$XFD$76, MATCH($E26, 'RAB input'!$E$27:$E$76, 0), MATCH(AV$4, RAB_years, 0)) -> 0 | AW26: =INDEX('RAB input'!$H$27:$XFD$76, MATCH($E26, 'RAB input'!$E$27:$E$76, 0), MATCH(AW$4, RAB_years, 0)) -> 0 | AX26: =INDEX('RAB input'!$H$27:$XFD$76, MATCH($E26, 'RAB input'!$E$27:$E$76, 0), MATCH(AX$4, RAB_years, 0)) -> 0 | AY26: =INDEX('RAB input'!$H$27:$XFD$76, MATCH($E26, 'RAB input'!$E$27:$E$76, 0), MATCH(AY$4, RAB_years, 0)) -> 0 | AZ26: =INDEX('RAB input'!$H$27:$XFD$76, MATCH($E26, 'RAB input'!$E$27:$E$76, 0), MATCH(AZ$4, RAB_years, 0)) -> 0 | BA26: =INDEX('RAB input'!$H$27:$XFD$76, MATCH($E26, 'RAB input'!$E$27:$E$76, 0), MATCH(BA$4, RAB_years, 0)) -> 0 | BB26: =INDEX('RAB input'!$H$27:$XFD$76, MATCH($E26, 'RAB input'!$E$27:$E$76, 0), MATCH(BB$4, RAB_years, 0)) -> 0 | BC26: =INDEX('RAB input'!$H$27:$XFD$76, MATCH($E26, 'RAB input'!$E$27:$E$76, 0), MATCH(BC$4, RAB_years, 0)) -> 0 | BD26: =INDEX('RAB input'!$H$27:$XFD$76, MATCH($E26, 'RAB input'!$E$27:$E$76, 0), MATCH(BD$4, RAB_years, 0)) -> 0 | BE26: =INDEX('RAB input'!$H$27:$XFD$76, MATCH($E26, 'RAB input'!$E$27:$E$76, 0), MATCH(BE$4, RAB_years, 0)) -> 0 | BF26: =INDEX('RAB input'!$H$27:$XFD$76, MATCH($E26, 'RAB input'!$E$27:$E$76, 0), MATCH(BF$4, RAB_years, 0)) -> 0 | BG26: =INDEX('RAB input'!$H$27:$XFD$76, MATCH($E26, 'RAB input'!$E$27:$E$76, 0), MATCH(BG$4, RAB_years, 0)) -> 0 | BH26: =INDEX('RAB input'!$H$27:$XFD$76, MATCH($E26, 'RAB input'!$E$27:$E$76, 0), MATCH(BH$4, RAB_years, 0)) -> 0 | BI26: =INDEX('RAB input'!$H$27:$XFD$76, MATCH($E26, 'RAB input'!$E$27:$E$76, 0), MATCH(BI$4, RAB_years, 0)) -> 0 | BJ26: =INDEX('RAB input'!$H$27:$XFD$76, MATCH($E26, 'RAB input'!$E$27:$E$76, 0), MATCH(BJ$4, RAB_years, 0)) -> 0
D27: 10 | E27: ='RAB input'!E36 -> Accelerated Depr - Distr assets (Contingent Project 3) | G27: =INDEX('[6]TAB roll forward'!$H$8:$H$57,MATCH(E27,'[6]TAB roll forward'!$C$8:$C$57,0),1) -> 2.248971933 | H27: =INDEX('RAB input'!$H$27:$XFD$76, MATCH($E27, 'RAB input'!$E$27:$E$76, 0), MATCH(H$4, RAB_years, 0)) -> 0 | I27: =INDEX('RAB input'!$H$27:$XFD$76, MATCH($E27, 'RAB input'!$E$27:$E$76, 0), MATCH(I$4, RAB_years, 0)) -> 0 | J27: =INDEX('RAB input'!$H$27:$XFD$76, MATCH($E27, 'RAB input'!$E$27:$E$76, 0), MATCH(J$4, RAB_years, 0)) -> 0 | K27: =INDEX('RAB input'!$H$27:$XFD$76, MATCH($E27, 'RAB input'!$E$27:$E$76, 0), MATCH(K$4, RAB_years, 0)) -> 0 | L27: =INDEX('RAB input'!$H$27:$XFD$76, MATCH($E27, 'RAB input'!$E$27:$E$76, 0), MATCH(L$4, RAB_years, 0)) -> 0 | M27: =INDEX('RAB input'!$H$27:$XFD$76, MATCH($E27, 'RAB input'!$E$27:$E$76, 0), MATCH(M$4, RAB_years, 0)) -> 0 | N27: =INDEX('RAB input'!$H$27:$XFD$76, MATCH($E27, 'RAB input'!$E$27:$E$76, 0), MATCH(N$4, RAB_years, 0)) -> 0 | O27: =INDEX('RAB input'!$H$27:$XFD$76, MATCH($E27, 'RAB input'!$E$27:$E$76, 0), MATCH(O$4, RAB_years, 0)) -> 0 | P27: =INDEX('RAB input'!$H$27:$XFD$76, MATCH($E27, 'RAB input'!$E$27:$E$76, 0), MATCH(P$4, RAB_years, 0)) -> 0 | Q27: =INDEX('RAB input'!$H$27:$XFD$76, MATCH($E27, 'RAB input'!$E$27:$E$76, 0), MATCH(Q$4, RAB_years, 0)) -> 0 | R27: =INDEX('RAB input'!$H$27:$XFD$76, MATCH($E27, 'RAB input'!$E$27:$E$76, 0), MATCH(R$4, RAB_years, 0)) -> 0 | S27: =INDEX('RAB input'!$H$27:$XFD$76, MATCH($E27, 'RAB input'!$E$27:$E$76, 0), MATCH(S$4, RAB_years, 0)) -> 0 | T27: =INDEX('RAB input'!$H$27:$XFD$76, MATCH($E27, 'RAB input'!$E$27:$E$76, 0), MATCH(T$4, RAB_years, 0)) -> 0 | U27: =INDEX('RAB input'!$H$27:$XFD$76, MATCH($E27, 'RAB input'!$E$27:$E$76, 0), MATCH(U$4, RAB_years, 0)) -> 0 | V27: =INDEX('RAB input'!$H$27:$XFD$76, MATCH($E27, 'RAB input'!$E$27:$E$76, 0), MATCH(V$4, RAB_years, 0)) -> 0 | W27: =INDEX('RAB input'!$H$27:$XFD$76, MATCH($E27, 'RAB input'!$E$27:$E$76, 0), MATCH(W$4, RAB_years, 0)) -> 0 | X27: =INDEX('RAB input'!$H$27:$XFD$76, MATCH($E27, 'RAB input'!$E$27:$E$76, 0), MATCH(X$4, RAB_years, 0)) -> 0 | Y27: =INDEX('RAB input'!$H$27:$XFD$76, MATCH($E27, 'RAB input'!$E$27:$E$76, 0), MATCH(Y$4, RAB_years, 0)) -> 0 | Z27: =INDEX('RAB input'!$H$27:$XFD$76, MATCH($E27, 'RAB input'!$E$27:$E$76, 0), MATCH(Z$4, RAB_years, 0)) -> 0 | AA27: =INDEX('RAB input'!$H$27:$XFD$76, MATCH($E27, 'RAB input'!$E$27:$E$76, 0), MATCH(AA$4, RAB_years, 0)) -> 0 | AB27: =INDEX('RAB input'!$H$27:$XFD$76, MATCH($E27, 'RAB input'!$E$27:$E$76, 0), MATCH(AB$4, RAB_years, 0)) -> 0 | AC27: =INDEX('RAB input'!$H$27:$XFD$76, MATCH($E27, 'RAB input'!$E$27:$E$76, 0), MATCH(AC$4, RAB_years, 0)) -> 0 | AD27: =INDEX('RAB input'!$H$27:$XFD$76, MATCH($E27, 'RAB input'!$E$27:$E$76, 0), MATCH(AD$4, RAB_years, 0)) -> 0 | AE27: =INDEX('RAB input'!$H$27:$XFD$76, MATCH($E27, 'RAB input'!$E$27:$E$76, 0), MATCH(AE$4, RAB_years, 0)) -> 0 | AF27: =INDEX('RAB input'!$H$27:$XFD$76, MATCH($E27, 'RAB input'!$E$27:$E$76, 0), MATCH(AF$4, RAB_years, 0)) -> 0 | AG27: =INDEX('RAB input'!$H$27:$XFD$76, MATCH($E27, 'RAB input'!$E$27:$E$76, 0), MATCH(AG$4, RAB_years, 0)) -> 0 | AH27: =INDEX('RAB input'!$H$27:$XFD$76, MATCH($E27, 'RAB input'!$E$27:$E$76, 0), MATCH(AH$4, RAB_years, 0)) -> 0 | AI27: =INDEX('RAB input'!$H$27:$XFD$76, MATCH($E27, 'RAB input'!$E$27:$E$76, 0), MATCH(AI$4, RAB_years, 0)) -> 0 | AJ27: =INDEX('RAB input'!$H$27:$XFD$76, MATCH($E27, 'RAB input'!$E$27:$E$76, 0), MATCH(AJ$4, RAB_years, 0)) -> 0 | AK27: =INDEX('RAB input'!$H$27:$XFD$76, MATCH($E27, 'RAB input'!$E$27:$E$76, 0), MATCH(AK$4, RAB_years, 0)) -> 0 | AL27: =INDEX('RAB input'!$H$27:$XFD$76, MATCH($E27, 'RAB input'!$E$27:$E$76, 0), MATCH(AL$4, RAB_years, 0)) -> 0 | AM27: =INDEX('RAB input'!$H$27:$XFD$76, MATCH($E27, 'RAB input'!$E$27:$E$76, 0), MATCH(AM$4, RAB_years, 0)) -> 0 | AN27: =INDEX('RAB input'!$H$27:$XFD$76, MATCH($E27, 'RAB input'!$E$27:$E$76, 0), MATCH(AN$4, RAB_years, 0)) -> 0 | AO27: =INDEX('RAB input'!$H$27:$XFD$76, MATCH($E27, 'RAB input'!$E$27:$E$76, 0), MATCH(AO$4, RAB_years, 0)) -> 0 | AP27: =INDEX('RAB input'!$H$27:$XFD$76, MATCH($E27, 'RAB input'!$E$27:$E$76, 0), MATCH(AP$4, RAB_years, 0)) -> 0 | AQ27: =INDEX('RAB input'!$H$27:$XFD$76, MATCH($E27, 'RAB input'!$E$27:$E$76, 0), MATCH(AQ$4, RAB_years, 0)) -> 0 | AR27: =INDEX('RAB input'!$H$27:$XFD$76, MATCH($E27, 'RAB input'!$E$27:$E$76, 0), MATCH(AR$4, RAB_years, 0)) -> 0 | AS27: =INDEX('RAB input'!$H$27:$XFD$76, MATCH($E27, 'RAB input'!$E$27:$E$76, 0), MATCH(AS$4, RAB_years, 0)) -> 0 | AT27: =INDEX('RAB input'!$H$27:$XFD$76, MATCH($E27, 'RAB input'!$E$27:$E$76, 0), MATCH(AT$4, RAB_years, 0)) -> 0 | AU27: =INDEX('RAB input'!$H$27:$XFD$76, MATCH($E27, 'RAB input'!$E$27:$E$76, 0), MATCH(AU$4, RAB_years, 0)) -> 0 | AV27: =INDEX('RAB input'!$H$27:$XFD$76, MATCH($E27, 'RAB input'!$E$27:$E$76, 0), MATCH(AV$4, RAB_years, 0)) -> 0 | AW27: =INDEX('RAB input'!$H$27:$XFD$76, MATCH($E27, 'RAB input'!$E$27:$E$76, 0), MATCH(AW$4, RAB_years, 0)) -> 0 | AX27: =INDEX('RAB input'!$H$27:$XFD$76, MATCH($E27, 'RAB input'!$E$27:$E$76, 0), MATCH(AX$4, RAB_years, 0)) -> 0 | AY27: =INDEX('RAB input'!$H$27:$XFD$76, MATCH($E27, 'RAB input'!$E$27:$E$76, 0), MATCH(AY$4, RAB_years, 0)) -> 0 | AZ27: =INDEX('RAB input'!$H$27:$XFD$76, MATCH($E27, 'RAB input'!$E$27:$E$76, 0), MATCH(AZ$4, RAB_years, 0)) -> 0 | BA27: =INDEX('RAB input'!$H$27:$XFD$76, MATCH($E27, 'RAB input'!$E$27:$E$76, 0), MATCH(BA$4, RAB_years, 0)) -> 0 | BB27: =INDEX('RAB input'!$H$27:$XFD$76, MATCH($E27, 'RAB input'!$E$27:$E$76, 0), MATCH(BB$4, RAB_years, 0)) -> 0 | BC27: =INDEX('RAB input'!$H$27:$XFD$76, MATCH($E27, 'RAB input'!$E$27:$E$76, 0), MATCH(BC$4, RAB_years, 0)) -> 0 | BD27: =INDEX('RAB input'!$H$27:$XFD$76, MATCH($E27, 'RAB input'!$E$27:$E$76, 0), MATCH(BD$4, RAB_years, 0)) -> 0 | BE27: =INDEX('RAB input'!$H$27:$XFD$76, MATCH($E27, 'RAB input'!$E$27:$E$76, 0), MATCH(BE$4, RAB_years, 0)) -> 0 | BF27: =INDEX('RAB input'!$H$27:$XFD$76, MATCH($E27, 'RAB input'!$E$27:$E$76, 0), MATCH(BF$4, RAB_years, 0)) -> 0 | BG27: =INDEX('RAB input'!$H$27:$XFD$76, MATCH($E27, 'RAB input'!$E$27:$E$76, 0), MATCH(BG$4, RAB_years, 0)) -> 0 | BH27: =INDEX('RAB input'!$H$27:$XFD$76, MATCH($E27, 'RAB input'!$E$27:$E$76, 0), MATCH(BH$4, RAB_years, 0)) -> 0 | BI27: =INDEX('RAB input'!$H$27:$XFD$76, MATCH($E27, 'RAB input'!$E$27:$E$76, 0), MATCH(BI$4, RAB_years, 0)) -> 0 | BJ27: =INDEX('RAB input'!$H$27:$XFD$76, MATCH($E27, 'RAB input'!$E$27:$E$76, 0), MATCH(BJ$4, RAB_years, 0)) -> 0
D28: 11 | E28: ='RAB input'!E37 -> Accelerated Depr - Distr assets (Other) | G28: =INDEX('[6]TAB roll forward'!$H$8:$H$57,MATCH(E28,'[6]TAB roll forward'!$C$8:$C$57,0),1) -> 1.225392075 | H28: =INDEX('RAB input'!$H$27:$XFD$76, MATCH($E28, 'RAB input'!$E$27:$E$76, 0), MATCH(H$4, RAB_years, 0)) -> 0 | I28: =INDEX('RAB input'!$H$27:$XFD$76, MATCH($E28, 'RAB input'!$E$27:$E$76, 0), MATCH(I$4, RAB_years, 0)) -> 0 | J28: =INDEX('RAB input'!$H$27:$XFD$76, MATCH($E28, 'RAB input'!$E$27:$E$76, 0), MATCH(J$4, RAB_years, 0)) -> 0 | K28: =INDEX('RAB input'!$H$27:$XFD$76, MATCH($E28, 'RAB input'!$E$27:$E$76, 0), MATCH(K$4, RAB_years, 0)) -> 0 | L28: =INDEX('RAB input'!$H$27:$XFD$76, MATCH($E28, 'RAB input'!$E$27:$E$76, 0), MATCH(L$4, RAB_years, 0)) -> 0 | M28: =INDEX('RAB input'!$H$27:$XFD$76, MATCH($E28, 'RAB input'!$E$27:$E$76, 0), MATCH(M$4, RAB_years, 0)) -> 0 | N28: =INDEX('RAB input'!$H$27:$XFD$76, MATCH($E28, 'RAB input'!$E$27:$E$76, 0), MATCH(N$4, RAB_years, 0)) -> 0 | O28: =INDEX('RAB input'!$H$27:$XFD$76, MATCH($E28, 'RAB input'!$E$27:$E$76, 0), MATCH(O$4, RAB_years, 0)) -> 0 | P28: =INDEX('RAB input'!$H$27:$XFD$76, MATCH($E28, 'RAB input'!$E$27:$E$76, 0), MATCH(P$4, RAB_years, 0)) -> 0 | Q28: =INDEX('RAB input'!$H$27:$XFD$76, MATCH($E28, 'RAB input'!$E$27:$E$76, 0), MATCH(Q$4, RAB_years, 0)) -> 0 | R28: =INDEX('RAB input'!$H$27:$XFD$76, MATCH($E28, 'RAB input'!$E$27:$E$76, 0), MATCH(R$4, RAB_years, 0)) -> 0 | S28: =INDEX('RAB input'!$H$27:$XFD$76, MATCH($E28, 'RAB input'!$E$27:$E$76, 0), MATCH(S$4, RAB_years, 0)) -> 0 | T28: =INDEX('RAB input'!$H$27:$XFD$76, MATCH($E28, 'RAB input'!$E$27:$E$76, 0), MATCH(T$4, RAB_years, 0)) -> 0 | U28: =INDEX('RAB input'!$H$27:$XFD$76, MATCH($E28, 'RAB input'!$E$27:$E$76, 0), MATCH(U$4, RAB_years, 0)) -> 0 | V28: =INDEX('RAB input'!$H$27:$XFD$76, MATCH($E28, 'RAB input'!$E$27:$E$76, 0), MATCH(V$4, RAB_years, 0)) -> 0 | W28: =INDEX('RAB input'!$H$27:$XFD$76, MATCH($E28, 'RAB input'!$E$27:$E$76, 0), MATCH(W$4, RAB_years, 0)) -> 0 | X28: =INDEX('RAB input'!$H$27:$XFD$76, MATCH($E28, 'RAB input'!$E$27:$E$76, 0), MATCH(X$4, RAB_years, 0)) -> 0 | Y28: =INDEX('RAB input'!$H$27:$XFD$76, MATCH($E28, 'RAB input'!$E$27:$E$76, 0), MATCH(Y$4, RAB_years, 0)) -> 0 | Z28: =INDEX('RAB input'!$H$27:$XFD$76, MATCH($E28, 'RAB input'!$E$27:$E$76, 0), MATCH(Z$4, RAB_years, 0)) -> 0 | AA28: =INDEX('RAB input'!$H$27:$XFD$76, MATCH($E28, 'RAB input'!$E$27:$E$76, 0), MATCH(AA$4, RAB_years, 0)) -> 0 | AB28: =INDEX('RAB input'!$H$27:$XFD$76, MATCH($E28, 'RAB input'!$E$27:$E$76, 0), MATCH(AB$4, RAB_years, 0)) -> 0 | AC28: =INDEX('RAB input'!$H$27:$XFD$76, MATCH($E28, 'RAB input'!$E$27:$E$76, 0), MATCH(AC$4, RAB_years, 0)) -> 0 | AD28: =INDEX('RAB input'!$H$27:$XFD$76, MATCH($E28, 'RAB input'!$E$27:$E$76, 0), MATCH(AD$4, RAB_years, 0)) -> 0 | AE28: =INDEX('RAB input'!$H$27:$XFD$76, MATCH($E28, 'RAB input'!$E$27:$E$76, 0), MATCH(AE$4, RAB_years, 0)) -> 0 | AF28: =INDEX('RAB input'!$H$27:$XFD$76, MATCH($E28, 'RAB input'!$E$27:$E$76, 0), MATCH(AF$4, RAB_years, 0)) -> 0 | AG28: =INDEX('RAB input'!$H$27:$XFD$76, MATCH($E28, 'RAB input'!$E$27:$E$76, 0), MATCH(AG$4, RAB_years, 0)) -> 0 | AH28: =INDEX('RAB input'!$H$27:$XFD$76, MATCH($E28, 'RAB input'!$E$27:$E$76, 0), MATCH(AH$4, RAB_years, 0)) -> 0 | AI28: =INDEX('RAB input'!$H$27:$XFD$76, MATCH($E28, 'RAB input'!$E$27:$E$76, 0), MATCH(AI$4, RAB_years, 0)) -> 0 | AJ28: =INDEX('RAB input'!$H$27:$XFD$76, MATCH($E28, 'RAB input'!$E$27:$E$76, 0), MATCH(AJ$4, RAB_years, 0)) -> 0 | AK28: =INDEX('RAB input'!$H$27:$XFD$76, MATCH($E28, 'RAB input'!$E$27:$E$76, 0), MATCH(AK$4, RAB_years, 0)) -> 0 | AL28: =INDEX('RAB input'!$H$27:$XFD$76, MATCH($E28, 'RAB input'!$E$27:$E$76, 0), MATCH(AL$4, RAB_years, 0)) -> 0 | AM28: =INDEX('RAB input'!$H$27:$XFD$76, MATCH($E28, 'RAB input'!$E$27:$E$76, 0), MATCH(AM$4, RAB_years, 0)) -> 0 | AN28: =INDEX('RAB input'!$H$27:$XFD$76, MATCH($E28, 'RAB input'!$E$27:$E$76, 0), MATCH(AN$4, RAB_years, 0)) -> 0 | AO28: =INDEX('RAB input'!$H$27:$XFD$76, MATCH($E28, 'RAB input'!$E$27:$E$76, 0), MATCH(AO$4, RAB_years, 0)) -> 0 | AP28: =INDEX('RAB input'!$H$27:$XFD$76, MATCH($E28, 'RAB input'!$E$27:$E$76, 0), MATCH(AP$4, RAB_years, 0)) -> 0 | AQ28: =INDEX('RAB input'!$H$27:$XFD$76, MATCH($E28, 'RAB input'!$E$27:$E$76, 0), MATCH(AQ$4, RAB_years, 0)) -> 0 | AR28: =INDEX('RAB input'!$H$27:$XFD$76, MATCH($E28, 'RAB input'!$E$27:$E$76, 0), MATCH(AR$4, RAB_years, 0)) -> 0 | AS28: =INDEX('RAB input'!$H$27:$XFD$76, MATCH($E28, 'RAB input'!$E$27:$E$76, 0), MATCH(AS$4, RAB_years, 0)) -> 0 | AT28: =INDEX('RAB input'!$H$27:$XFD$76, MATCH($E28, 'RAB input'!$E$27:$E$76, 0), MATCH(AT$4, RAB_years, 0)) -> 0 | AU28: =INDEX('RAB input'!$H$27:$XFD$76, MATCH($E28, 'RAB input'!$E$27:$E$76, 0), MATCH(AU$4, RAB_years, 0)) -> 0 | AV28: =INDEX('RAB input'!$H$27:$XFD$76, MATCH($E28, 'RAB input'!$E$27:$E$76, 0), MATCH(AV$4, RAB_years, 0)) -> 0 | AW28: =INDEX('RAB input'!$H$27:$XFD$76, MATCH($E28, 'RAB input'!$E$27:$E$76, 0), MATCH(AW$4, RAB_years, 0)) -> 0 | AX28: =INDEX('RAB input'!$H$27:$XFD$76, MATCH($E28, 'RAB input'!$E$27:$E$76, 0), MATCH(AX$4, RAB_years, 0)) -> 0 | AY28: =INDEX('RAB input'!$H$27:$XFD$76, MATCH($E28, 'RAB input'!$E$27:$E$76, 0), MATCH(AY$4, RAB_years, 0)) -> 0 | AZ28: =INDEX('RAB input'!$H$27:$XFD$76, MATCH($E28, 'RAB input'!$E$27:$E$76, 0), MATCH(AZ$4, RAB_years, 0)) -> 0 | BA28: =INDEX('RAB input'!$H$27:$XFD$76, MATCH($E28, 'RAB input'!$E$27:$E$76, 0), MATCH(BA$4, RAB_years, 0)) -> 0 | BB28: =INDEX('RAB input'!$H$27:$XFD$76, MATCH($E28, 'RAB input'!$E$27:$E$76, 0), MATCH(BB$4, RAB_years, 0)) -> 0 | BC28: =INDEX('RAB input'!$H$27:$XFD$76, MATCH($E28, 'RAB input'!$E$27:$E$76, 0), MATCH(BC$4, RAB_years, 0)) -> 0 | BD28: =INDEX('RAB input'!$H$27:$XFD$76, MATCH($E28, 'RAB input'!$E$27:$E$76, 0), MATCH(BD$4, RAB_years, 0)) -> 0 | BE28: =INDEX('RAB input'!$H$27:$XFD$76, MATCH($E28, 'RAB input'!$E$27:$E$76, 0), MATCH(BE$4, RAB_years, 0)) -> 0 | BF28: =INDEX('RAB input'!$H$27:$XFD$76, MATCH($E28, 'RAB input'!$E$27:$E$76, 0), MATCH(BF$4, RAB_years, 0)) -> 0 | BG28: =INDEX('RAB input'!$H$27:$XFD$76, MATCH($E28, 'RAB input'!$E$27:$E$76, 0), MATCH(BG$4, RAB_years, 0)) -> 0 | BH28: =INDEX('RAB input'!$H$27:$XFD$76, MATCH($E28, 'RAB input'!$E$27:$E$76, 0), MATCH(BH$4, RAB_years, 0)) -> 0 | BI28: =INDEX('RAB input'!$H$27:$XFD$76, MATCH($E28, 'RAB input'!$E$27:$E$76, 0), MATCH(BI$4, RAB_years, 0)) -> 0 | BJ28: =INDEX('RAB input'!$H$27:$XFD$76, MATCH($E28, 'RAB input'!$E$27:$E$76, 0), MATCH(BJ$4, RAB_years, 0)) -> 0
D29: 12 | E29: ='RAB input'!E38 -> Non-network leasehold land & buildings - 1 July 2021 | G29: =INDEX('[6]TAB roll forward'!$H$8:$H$57,MATCH(E29,'[6]TAB roll forward'!$C$8:$C$57,0),1) -> 27.7558581 | H29: =INDEX('RAB input'!$H$27:$XFD$76, MATCH($E29, 'RAB input'!$E$27:$E$76, 0), MATCH(H$4, RAB_years, 0)) -> 0 | I29: =INDEX('RAB input'!$H$27:$XFD$76, MATCH($E29, 'RAB input'!$E$27:$E$76, 0), MATCH(I$4, RAB_years, 0)) -> 0 | J29: =INDEX('RAB input'!$H$27:$XFD$76, MATCH($E29, 'RAB input'!$E$27:$E$76, 0), MATCH(J$4, RAB_years, 0)) -> 0 | K29: =INDEX('RAB input'!$H$27:$XFD$76, MATCH($E29, 'RAB input'!$E$27:$E$76, 0), MATCH(K$4, RAB_years, 0)) -> 0 | L29: =INDEX('RAB input'!$H$27:$XFD$76, MATCH($E29, 'RAB input'!$E$27:$E$76, 0), MATCH(L$4, RAB_years, 0)) -> 0 | M29: =INDEX('RAB input'!$H$27:$XFD$76, MATCH($E29, 'RAB input'!$E$27:$E$76, 0), MATCH(M$4, RAB_years, 0)) -> 0 | N29: =INDEX('RAB input'!$H$27:$XFD$76, MATCH($E29, 'RAB input'!$E$27:$E$76, 0), MATCH(N$4, RAB_years, 0)) -> 0 | O29: =INDEX('RAB input'!$H$27:$XFD$76, MATCH($E29, 'RAB input'!$E$27:$E$76, 0), MATCH(O$4, RAB_years, 0)) -> 0 | P29: =INDEX('RAB input'!$H$27:$XFD$76, MATCH($E29, 'RAB input'!$E$27:$E$76, 0), MATCH(P$4, RAB_years, 0)) -> 0 | Q29: =INDEX('RAB input'!$H$27:$XFD$76, MATCH($E29, 'RAB input'!$E$27:$E$76, 0), MATCH(Q$4, RAB_years, 0)) -> 0 | R29: =INDEX('RAB input'!$H$27:$XFD$76, MATCH($E29, 'RAB input'!$E$27:$E$76, 0), MATCH(R$4, RAB_years, 0)) -> 0 | S29: =INDEX('RAB input'!$H$27:$XFD$76, MATCH($E29, 'RAB input'!$E$27:$E$76, 0), MATCH(S$4, RAB_years, 0)) -> 0 | T29: =INDEX('RAB input'!$H$27:$XFD$76, MATCH($E29, 'RAB input'!$E$27:$E$76, 0), MATCH(T$4, RAB_years, 0)) -> 0 | U29: =INDEX('RAB input'!$H$27:$XFD$76, MATCH($E29, 'RAB input'!$E$27:$E$76, 0), MATCH(U$4, RAB_years, 0)) -> 0 | V29: =INDEX('RAB input'!$H$27:$XFD$76, MATCH($E29, 'RAB input'!$E$27:$E$76, 0), MATCH(V$4, RAB_years, 0)) -> 0 | W29: =INDEX('RAB input'!$H$27:$XFD$76, MATCH($E29, 'RAB input'!$E$27:$E$76, 0), MATCH(W$4, RAB_years, 0)) -> 0 | X29: =INDEX('RAB input'!$H$27:$XFD$76, MATCH($E29, 'RAB input'!$E$27:$E$76, 0), MATCH(X$4, RAB_years, 0)) -> 0 | Y29: =INDEX('RAB input'!$H$27:$XFD$76, MATCH($E29, 'RAB input'!$E$27:$E$76, 0), MATCH(Y$4, RAB_years, 0)) -> 0 | Z29: =INDEX('RAB input'!$H$27:$XFD$76, MATCH($E29, 'RAB input'!$E$27:$E$76, 0), MATCH(Z$4, RAB_years, 0)) -> 0 | AA29: =INDEX('RAB input'!$H$27:$XFD$76, MATCH($E29, 'RAB input'!$E$27:$E$76, 0), MATCH(AA$4, RAB_years, 0)) -> 0 | AB29: =INDEX('RAB input'!$H$27:$XFD$76, MATCH($E29, 'RAB input'!$E$27:$E$76, 0), MATCH(AB$4, RAB_years, 0)) -> 0 | AC29: =INDEX('RAB input'!$H$27:$XFD$76, MATCH($E29, 'RAB input'!$E$27:$E$76, 0), MATCH(AC$4, RAB_years, 0)) -> 0 | AD29: =INDEX('RAB input'!$H$27:$XFD$76, MATCH($E29, 'RAB input'!$E$27:$E$76, 0), MATCH(AD$4, RAB_years, 0)) -> 0 | AE29: =INDEX('RAB input'!$H$27:$XFD$76, MATCH($E29, 'RAB input'!$E$27:$E$76, 0), MATCH(AE$4, RAB_years, 0)) -> 0 | AF29: =INDEX('RAB input'!$H$27:$XFD$76, MATCH($E29, 'RAB input'!$E$27:$E$76, 0), MATCH(AF$4, RAB_years, 0)) -> 0 | AG29: =INDEX('RAB input'!$H$27:$XFD$76, MATCH($E29, 'RAB input'!$E$27:$E$76, 0), MATCH(AG$4, RAB_years, 0)) -> 0 | AH29: =INDEX('RAB input'!$H$27:$XFD$76, MATCH($E29, 'RAB input'!$E$27:$E$76, 0), MATCH(AH$4, RAB_years, 0)) -> 0 | AI29: =INDEX('RAB input'!$H$27:$XFD$76, MATCH($E29, 'RAB input'!$E$27:$E$76, 0), MATCH(AI$4, RAB_years, 0)) -> 0 | AJ29: =INDEX('RAB input'!$H$27:$XFD$76, MATCH($E29, 'RAB input'!$E$27:$E$76, 0), MATCH(AJ$4, RAB_years, 0)) -> 0 | AK29: =INDEX('RAB input'!$H$27:$XFD$76, MATCH($E29, 'RAB input'!$E$27:$E$76, 0), MATCH(AK$4, RAB_years, 0)) -> 0 | AL29: =INDEX('RAB input'!$H$27:$XFD$76, MATCH($E29, 'RAB input'!$E$27:$E$76, 0), MATCH(AL$4, RAB_years, 0)) -> 0 | AM29: =INDEX('RAB input'!$H$27:$XFD$76, MATCH($E29, 'RAB input'!$E$27:$E$76, 0), MATCH(AM$4, RAB_years, 0)) -> 0 | AN29: =INDEX('RAB input'!$H$27:$XFD$76, MATCH($E29, 'RAB input'!$E$27:$E$76, 0), MATCH(AN$4, RAB_years, 0)) -> 0 | AO29: =INDEX('RAB input'!$H$27:$XFD$76, MATCH($E29, 'RAB input'!$E$27:$E$76, 0), MATCH(AO$4, RAB_years, 0)) -> 0 | AP29: =INDEX('RAB input'!$H$27:$XFD$76, MATCH($E29, 'RAB input'!$E$27:$E$76, 0), MATCH(AP$4, RAB_years, 0)) -> 0 | AQ29: =INDEX('RAB input'!$H$27:$XFD$76, MATCH($E29, 'RAB input'!$E$27:$E$76, 0), MATCH(AQ$4, RAB_years, 0)) -> 0 | AR29: =INDEX('RAB input'!$H$27:$XFD$76, MATCH($E29, 'RAB input'!$E$27:$E$76, 0), MATCH(AR$4, RAB_years, 0)) -> 0 | AS29: =INDEX('RAB input'!$H$27:$XFD$76, MATCH($E29, 'RAB input'!$E$27:$E$76, 0), MATCH(AS$4, RAB_years, 0)) -> 0 | AT29: =INDEX('RAB input'!$H$27:$XFD$76, MATCH($E29, 'RAB input'!$E$27:$E$76, 0), MATCH(AT$4, RAB_years, 0)) -> 0 | AU29: =INDEX('RAB input'!$H$27:$XFD$76, MATCH($E29, 'RAB input'!$E$27:$E$76, 0), MATCH(AU$4, RAB_years, 0)) -> 0 | AV29: =INDEX('RAB input'!$H$27:$XFD$76, MATCH($E29, 'RAB input'!$E$27:$E$76, 0), MATCH(AV$4, RAB_years, 0)) -> 0 | AW29: =INDEX('RAB input'!$H$27:$XFD$76, MATCH($E29, 'RAB input'!$E$27:$E$76, 0), MATCH(AW$4, RAB_years, 0)) -> 0 | AX29: =INDEX('RAB input'!$H$27:$XFD$76, MATCH($E29, 'RAB input'!$E$27:$E$76, 0), MATCH(AX$4, RAB_years, 0)) -> 0 | AY29: =INDEX('RAB input'!$H$27:$XFD$76, MATCH($E29, 'RAB input'!$E$27:$E$76, 0), MATCH(AY$4, RAB_years, 0)) -> 0 | AZ29: =INDEX('RAB input'!$H$27:$XFD$76, MATCH($E29, 'RAB input'!$E$27:$E$76, 0), MATCH(AZ$4, RAB_years, 0)) -> 0 | BA29: =INDEX('RAB input'!$H$27:$XFD$76, MATCH($E29, 'RAB input'!$E$27:$E$76, 0), MATCH(BA$4, RAB_years, 0)) -> 0 | BB29: =INDEX('RAB input'!$H$27:$XFD$76, MATCH($E29, 'RAB input'!$E$27:$E$76, 0), MATCH(BB$4, RAB_years, 0)) -> 0 | BC29: =INDEX('RAB input'!$H$27:$XFD$76, MATCH($E29, 'RAB input'!$E$27:$E$76, 0), MATCH(BC$4, RAB_years, 0)) -> 0 | BD29: =INDEX('RAB input'!$H$27:$XFD$76, MATCH($E29, 'RAB input'!$E$27:$E$76, 0), MATCH(BD$4, RAB_years, 0)) -> 0 | BE29: =INDEX('RAB input'!$H$27:$XFD$76, MATCH($E29, 'RAB input'!$E$27:$E$76, 0), MATCH(BE$4, RAB_years, 0)) -> 0 | BF29: =INDEX('RAB input'!$H$27:$XFD$76, MATCH($E29, 'RAB input'!$E$27:$E$76, 0), MATCH(BF$4, RAB_years, 0)) -> 0 | BG29: =INDEX('RAB input'!$H$27:$XFD$76, MATCH($E29, 'RAB input'!$E$27:$E$76, 0), MATCH(BG$4, RAB_years, 0)) -> 0 | BH29: =INDEX('RAB input'!$H$27:$XFD$76, MATCH($E29, 'RAB input'!$E$27:$E$76, 0), MATCH(BH$4, RAB_years, 0)) -> 0 | BI29: =INDEX('RAB input'!$H$27:$XFD$76, MATCH($E29, 'RAB input'!$E$27:$E$76, 0), MATCH(BI$4, RAB_years, 0)) -> 0 | BJ29: =INDEX('RAB input'!$H$27:$XFD$76, MATCH($E29, 'RAB input'!$E$27:$E$76, 0), MATCH(BJ$4, RAB_years, 0)) -> 0
D30: 13 | E30: ='RAB input'!E39 -> Non- Network Leasehold Land & Buildings - 2021-22 | G30: =INDEX('[6]TAB roll forward'!$H$8:$H$57,MATCH(E30,'[6]TAB roll forward'!$C$8:$C$57,0),1) -> 0 | H30: =INDEX('RAB input'!$H$27:$XFD$76, MATCH($E30, 'RAB input'!$E$27:$E$76, 0), MATCH(H$4, RAB_years, 0)) -> 0 | I30: =INDEX('RAB input'!$H$27:$XFD$76, MATCH($E30, 'RAB input'!$E$27:$E$76, 0), MATCH(I$4, RAB_years, 0)) -> 0 | J30: =INDEX('RAB input'!$H$27:$XFD$76, MATCH($E30, 'RAB input'!$E$27:$E$76, 0), MATCH(J$4, RAB_years, 0)) -> 0.2429223966 | K30: =INDEX('RAB input'!$H$27:$XFD$76, MATCH($E30, 'RAB input'!$E$27:$E$76, 0), MATCH(K$4, RAB_years, 0)) -> 0 | L30: =INDEX('RAB input'!$H$27:$XFD$76, MATCH($E30, 'RAB input'!$E$27:$E$76, 0), MATCH(L$4, RAB_years, 0)) -> 0 | M30: =INDEX('RAB input'!$H$27:$XFD$76, MATCH($E30, 'RAB input'!$E$27:$E$76, 0), MATCH(M$4, RAB_years, 0)) -> 0 | N30: =INDEX('RAB input'!$H$27:$XFD$76, MATCH($E30, 'RAB input'!$E$27:$E$76, 0), MATCH(N$4, RAB_years, 0)) -> 0 | O30: =INDEX('RAB input'!$H$27:$XFD$76, MATCH($E30, 'RAB input'!$E$27:$E$76, 0), MATCH(O$4, RAB_years, 0)) -> 0 | P30: =INDEX('RAB input'!$H$27:$XFD$76, MATCH($E30, 'RAB input'!$E$27:$E$76, 0), MATCH(P$4, RAB_years, 0)) -> 0 | Q30: =INDEX('RAB input'!$H$27:$XFD$76, MATCH($E30, 'RAB input'!$E$27:$E$76, 0), MATCH(Q$4, RAB_years, 0)) -> 0 | R30: =INDEX('RAB input'!$H$27:$XFD$76, MATCH($E30, 'RAB input'!$E$27:$E$76, 0), MATCH(R$4, RAB_years, 0)) -> 0 | S30: =INDEX('RAB input'!$H$27:$XFD$76, MATCH($E30, 'RAB input'!$E$27:$E$76, 0), MATCH(S$4, RAB_years, 0)) -> 0 | T30: =INDEX('RAB input'!$H$27:$XFD$76, MATCH($E30, 'RAB input'!$E$27:$E$76, 0), MATCH(T$4, RAB_years, 0)) -> 0 | U30: =INDEX('RAB input'!$H$27:$XFD$76, MATCH($E30, 'RAB input'!$E$27:$E$76, 0), MATCH(U$4, RAB_years, 0)) -> 0 | V30: =INDEX('RAB input'!$H$27:$XFD$76, MATCH($E30, 'RAB input'!$E$27:$E$76, 0), MATCH(V$4, RAB_years, 0)) -> 0 | W30: =INDEX('RAB input'!$H$27:$XFD$76, MATCH($E30, 'RAB input'!$E$27:$E$76, 0), MATCH(W$4, RAB_years, 0)) -> 0 | X30: =INDEX('RAB input'!$H$27:$XFD$76, MATCH($E30, 'RAB input'!$E$27:$E$76, 0), MATCH(X$4, RAB_years, 0)) -> 0 | Y30: =INDEX('RAB input'!$H$27:$XFD$76, MATCH($E30, 'RAB input'!$E$27:$E$76, 0), MATCH(Y$4, RAB_years, 0)) -> 0 | Z30: =INDEX('RAB input'!$H$27:$XFD$76, MATCH($E30, 'RAB input'!$E$27:$E$76, 0), MATCH(Z$4, RAB_years, 0)) -> 0 | AA30: =INDEX('RAB input'!$H$27:$XFD$76, MATCH($E30, 'RAB input'!$E$27:$E$76, 0), MATCH(AA$4, RAB_years, 0)) -> 0 | AB30: =INDEX('RAB input'!$H$27:$XFD$76, MATCH($E30, 'RAB input'!$E$27:$E$76, 0), MATCH(AB$4, RAB_years, 0)) -> 0 | AC30: =INDEX('RAB input'!$H$27:$XFD$76, MATCH($E30, 'RAB input'!$E$27:$E$76, 0), MATCH(AC$4, RAB_years, 0)) -> 0 | AD30: =INDEX('RAB input'!$H$27:$XFD$76, MATCH($E30, 'RAB input'!$E$27:$E$76, 0), MATCH(AD$4, RAB_years, 0)) -> 0 | AE30: =INDEX('RAB input'!$H$27:$XFD$76, MATCH($E30, 'RAB input'!$E$27:$E$76, 0), MATCH(AE$4, RAB_years, 0)) -> 0 | AF30: =INDEX('RAB input'!$H$27:$XFD$76, MATCH($E30, 'RAB input'!$E$27:$E$76, 0), MATCH(AF$4, RAB_years, 0)) -> 0 | AG30: =INDEX('RAB input'!$H$27:$XFD$76, MATCH($E30, 'RAB input'!$E$27:$E$76, 0), MATCH(AG$4, RAB_years, 0)) -> 0 | AH30: =INDEX('RAB input'!$H$27:$XFD$76, MATCH($E30, 'RAB input'!$E$27:$E$76, 0), MATCH(AH$4, RAB_years, 0)) -> 0 | AI30: =INDEX('RAB input'!$H$27:$XFD$76, MATCH($E30, 'RAB input'!$E$27:$E$76, 0), MATCH(AI$4, RAB_years, 0)) -> 0 | AJ30: =INDEX('RAB input'!$H$27:$XFD$76, MATCH($E30, 'RAB input'!$E$27:$E$76, 0), MATCH(AJ$4, RAB_years, 0)) -> 0 | AK30: =INDEX('RAB input'!$H$27:$XFD$76, MATCH($E30, 'RAB input'!$E$27:$E$76, 0), MATCH(AK$4, RAB_years, 0)) -> 0 | AL30: =INDEX('RAB input'!$H$27:$XFD$76, MATCH($E30, 'RAB input'!$E$27:$E$76, 0), MATCH(AL$4, RAB_years, 0)) -> 0 | AM30: =INDEX('RAB input'!$H$27:$XFD$76, MATCH($E30, 'RAB input'!$E$27:$E$76, 0), MATCH(AM$4, RAB_years, 0)) -> 0 | AN30: =INDEX('RAB input'!$H$27:$XFD$76, MATCH($E30, 'RAB input'!$E$27:$E$76, 0), MATCH(AN$4, RAB_years, 0)) -> 0 | AO30: =INDEX('RAB input'!$H$27:$XFD$76, MATCH($E30, 'RAB input'!$E$27:$E$76, 0), MATCH(AO$4, RAB_years, 0)) -> 0 | AP30: =INDEX('RAB input'!$H$27:$XFD$76, MATCH($E30, 'RAB input'!$E$27:$E$76, 0), MATCH(AP$4, RAB_years, 0)) -> 0 | AQ30: =INDEX('RAB input'!$H$27:$XFD$76, MATCH($E30, 'RAB input'!$E$27:$E$76, 0), MATCH(AQ$4, RAB_years, 0)) -> 0 | AR30: =INDEX('RAB input'!$H$27:$XFD$76, MATCH($E30, 'RAB input'!$E$27:$E$76, 0), MATCH(AR$4, RAB_years, 0)) -> 0 | AS30: =INDEX('RAB input'!$H$27:$XFD$76, MATCH($E30, 'RAB input'!$E$27:$E$76, 0), MATCH(AS$4, RAB_years, 0)) -> 0 | AT30: =INDEX('RAB input'!$H$27:$XFD$76, MATCH($E30, 'RAB input'!$E$27:$E$76, 0), MATCH(AT$4, RAB_years, 0)) -> 0 | AU30: =INDEX('RAB input'!$H$27:$XFD$76, MATCH($E30, 'RAB input'!$E$27:$E$76, 0), MATCH(AU$4, RAB_years, 0)) -> 0 | AV30: =INDEX('RAB input'!$H$27:$XFD$76, MATCH($E30, 'RAB input'!$E$27:$E$76, 0), MATCH(AV$4, RAB_years, 0)) -> 0 | AW30: =INDEX('RAB input'!$H$27:$XFD$76, MATCH($E30, 'RAB input'!$E$27:$E$76, 0), MATCH(AW$4, RAB_years, 0)) -> 0 | AX30: =INDEX('RAB input'!$H$27:$XFD$76, MATCH($E30, 'RAB input'!$E$27:$E$76, 0), MATCH(AX$4, RAB_years, 0)) -> 0 | AY30: =INDEX('RAB input'!$H$27:$XFD$76, MATCH($E30, 'RAB input'!$E$27:$E$76, 0), MATCH(AY$4, RAB_years, 0)) -> 0 | AZ30: =INDEX('RAB input'!$H$27:$XFD$76, MATCH($E30, 'RAB input'!$E$27:$E$76, 0), MATCH(AZ$4, RAB_years, 0)) -> 0 | BA30: =INDEX('RAB input'!$H$27:$XFD$76, MATCH($E30, 'RAB input'!$E$27:$E$76, 0), MATCH(BA$4, RAB_years, 0)) -> 0 | BB30: =INDEX('RAB input'!$H$27:$XFD$76, MATCH($E30, 'RAB input'!$E$27:$E$76, 0), MATCH(BB$4, RAB_years, 0)) -> 0 | BC30: =INDEX('RAB input'!$H$27:$XFD$76, MATCH($E30, 'RAB input'!$E$27:$E$76, 0), MATCH(BC$4, RAB_years, 0)) -> 0 | BD30: =INDEX('RAB input'!$H$27:$XFD$76, MATCH($E30, 'RAB input'!$E$27:$E$76, 0), MATCH(BD$4, RAB_years, 0)) -> 0 | BE30: =INDEX('RAB input'!$H$27:$XFD$76, MATCH($E30, 'RAB input'!$E$27:$E$76, 0), MATCH(BE$4, RAB_years, 0)) -> 0 | BF30: =INDEX('RAB input'!$H$27:$XFD$76, MATCH($E30, 'RAB input'!$E$27:$E$76, 0), MATCH(BF$4, RAB_years, 0)) -> 0 | BG30: =INDEX('RAB input'!$H$27:$XFD$76, MATCH($E30, 'RAB input'!$E$27:$E$76, 0), MATCH(BG$4, RAB_years, 0)) -> 0 | BH30: =INDEX('RAB input'!$H$27:$XFD$76, MATCH($E30, 'RAB input'!$E$27:$E$76, 0), MATCH(BH$4, RAB_years, 0)) -> 0 | BI30: =INDEX('RAB input'!$H$27:$XFD$76, MATCH($E30, 'RAB input'!$E$27:$E$76, 0), MATCH(BI$4, RAB_years, 0)) -> 0 | BJ30: =INDEX('RAB input'!$H$27:$XFD$76, MATCH($E30, 'RAB input'!$E$27:$E$76, 0), MATCH(BJ$4, RAB_years, 0)) -> 0
D31: 14 | E31: ='RAB input'!E40 -> Non- Network Leasehold Land & Buildings - 2025-26 | G31: =INDEX('[6]TAB roll forward'!$H$8:$H$57,MATCH(E31,'[6]TAB roll forward'!$C$8:$C$57,0),1) -> 0 | H31: =INDEX('RAB input'!$H$27:$XFD$76, MATCH($E31, 'RAB input'!$E$27:$E$76, 0), MATCH(H$4, RAB_years, 0)) -> 0 | I31: =INDEX('RAB input'!$H$27:$XFD$76, MATCH($E31, 'RAB input'!$E$27:$E$76, 0), MATCH(I$4, RAB_years, 0)) -> 0.170220025 | J31: =INDEX('RAB input'!$H$27:$XFD$76, MATCH($E31, 'RAB input'!$E$27:$E$76, 0), MATCH(J$4, RAB_years, 0)) -> 0 | K31: =INDEX('RAB input'!$H$27:$XFD$76, MATCH($E31, 'RAB input'!$E$27:$E$76, 0), MATCH(K$4, RAB_years, 0)) -> 0.9464742137 | L31: =INDEX('RAB input'!$H$27:$XFD$76, MATCH($E31, 'RAB input'!$E$27:$E$76, 0), MATCH(L$4, RAB_years, 0)) -> 0.07445985859 | M31: =INDEX('RAB input'!$H$27:$XFD$76, MATCH($E31, 'RAB input'!$E$27:$E$76, 0), MATCH(M$4, RAB_years, 0)) -> 0 | N31: =INDEX('RAB input'!$H$27:$XFD$76, MATCH($E31, 'RAB input'!$E$27:$E$76, 0), MATCH(N$4, RAB_years, 0)) -> 0 | O31: =INDEX('RAB input'!$H$27:$XFD$76, MATCH($E31, 'RAB input'!$E$27:$E$76, 0), MATCH(O$4, RAB_years, 0)) -> 0 | P31: =INDEX('RAB input'!$H$27:$XFD$76, MATCH($E31, 'RAB input'!$E$27:$E$76, 0), MATCH(P$4, RAB_years, 0)) -> 0 | Q31: =INDEX('RAB input'!$H$27:$XFD$76, MATCH($E31, 'RAB input'!$E$27:$E$76, 0), MATCH(Q$4, RAB_years, 0)) -> 0 | R31: =INDEX('RAB input'!$H$27:$XFD$76, MATCH($E31, 'RAB input'!$E$27:$E$76, 0), MATCH(R$4, RAB_years, 0)) -> 0 | S31: =INDEX('RAB input'!$H$27:$XFD$76, MATCH($E31, 'RAB input'!$E$27:$E$76, 0), MATCH(S$4, RAB_years, 0)) -> 0 | T31: =INDEX('RAB input'!$H$27:$XFD$76, MATCH($E31, 'RAB input'!$E$27:$E$76, 0), MATCH(T$4, RAB_years, 0)) -> 0 | U31: =INDEX('RAB input'!$H$27:$XFD$76, MATCH($E31, 'RAB input'!$E$27:$E$76, 0), MATCH(U$4, RAB_years, 0)) -> 0 | V31: =INDEX('RAB input'!$H$27:$XFD$76, MATCH($E31, 'RAB input'!$E$27:$E$76, 0), MATCH(V$4, RAB_years, 0)) -> 0 | W31: =INDEX('RAB input'!$H$27:$XFD$76, MATCH($E31, 'RAB input'!$E$27:$E$76, 0), MATCH(W$4, RAB_years, 0)) -> 0 | X31: =INDEX('RAB input'!$H$27:$XFD$76, MATCH($E31, 'RAB input'!$E$27:$E$76, 0), MATCH(X$4, RAB_years, 0)) -> 0 | Y31: =INDEX('RAB input'!$H$27:$XFD$76, MATCH($E31, 'RAB input'!$E$27:$E$76, 0), MATCH(Y$4, RAB_years, 0)) -> 0 | Z31: =INDEX('RAB input'!$H$27:$XFD$76, MATCH($E31, 'RAB input'!$E$27:$E$76, 0), MATCH(Z$4, RAB_years, 0)) -> 0 | AA31: =INDEX('RAB input'!$H$27:$XFD$76, MATCH($E31, 'RAB input'!$E$27:$E$76, 0), MATCH(AA$4, RAB_years, 0)) -> 0 | AB31: =INDEX('RAB input'!$H$27:$XFD$76, MATCH($E31, 'RAB input'!$E$27:$E$76, 0), MATCH(AB$4, RAB_years, 0)) -> 0 | AC31: =INDEX('RAB input'!$H$27:$XFD$76, MATCH($E31, 'RAB input'!$E$27:$E$76, 0), MATCH(AC$4, RAB_years, 0)) -> 0 | AD31: =INDEX('RAB input'!$H$27:$XFD$76, MATCH($E31, 'RAB input'!$E$27:$E$76, 0), MATCH(AD$4, RAB_years, 0)) -> 0 | AE31: =INDEX('RAB input'!$H$27:$XFD$76, MATCH($E31, 'RAB input'!$E$27:$E$76, 0), MATCH(AE$4, RAB_years, 0)) -> 0 | AF31: =INDEX('RAB input'!$H$27:$XFD$76, MATCH($E31, 'RAB input'!$E$27:$E$76, 0), MATCH(AF$4, RAB_years, 0)) -> 0 | AG31: =INDEX('RAB input'!$H$27:$XFD$76, MATCH($E31, 'RAB input'!$E$27:$E$76, 0), MATCH(AG$4, RAB_years, 0)) -> 0 | AH31: =INDEX('RAB input'!$H$27:$XFD$76, MATCH($E31, 'RAB input'!$E$27:$E$76, 0), MATCH(AH$4, RAB_years, 0)) -> 0 | AI31: =INDEX('RAB input'!$H$27:$XFD$76, MATCH($E31, 'RAB input'!$E$27:$E$76, 0), MATCH(AI$4, RAB_years, 0)) -> 0 | AJ31: =INDEX('RAB input'!$H$27:$XFD$76, MATCH($E31, 'RAB input'!$E$27:$E$76, 0), MATCH(AJ$4, RAB_years, 0)) -> 0 | AK31: =INDEX('RAB input'!$H$27:$XFD$76, MATCH($E31, 'RAB input'!$E$27:$E$76, 0), MATCH(AK$4, RAB_years, 0)) -> 0 | AL31: =INDEX('RAB input'!$H$27:$XFD$76, MATCH($E31, 'RAB input'!$E$27:$E$76, 0), MATCH(AL$4, RAB_years, 0)) -> 0 | AM31: =INDEX('RAB input'!$H$27:$XFD$76, MATCH($E31, 'RAB input'!$E$27:$E$76, 0), MATCH(AM$4, RAB_years, 0)) -> 0 | AN31: =INDEX('RAB input'!$H$27:$XFD$76, MATCH($E31, 'RAB input'!$E$27:$E$76, 0), MATCH(AN$4, RAB_years, 0)) -> 0 | AO31: =INDEX('RAB input'!$H$27:$XFD$76, MATCH($E31, 'RAB input'!$E$27:$E$76, 0), MATCH(AO$4, RAB_years, 0)) -> 0 | AP31: =INDEX('RAB input'!$H$27:$XFD$76, MATCH($E31, 'RAB input'!$E$27:$E$76, 0), MATCH(AP$4, RAB_years, 0)) -> 0 | AQ31: =INDEX('RAB input'!$H$27:$XFD$76, MATCH($E31, 'RAB input'!$E$27:$E$76, 0), MATCH(AQ$4, RAB_years, 0)) -> 0 | AR31: =INDEX('RAB input'!$H$27:$XFD$76, MATCH($E31, 'RAB input'!$E$27:$E$76, 0), MATCH(AR$4, RAB_years, 0)) -> 0 | AS31: =INDEX('RAB input'!$H$27:$XFD$76, MATCH($E31, 'RAB input'!$E$27:$E$76, 0), MATCH(AS$4, RAB_years, 0)) -> 0 | AT31: =INDEX('RAB input'!$H$27:$XFD$76, MATCH($E31, 'RAB input'!$E$27:$E$76, 0), MATCH(AT$4, RAB_years, 0)) -> 0 | AU31: =INDEX('RAB input'!$H$27:$XFD$76, MATCH($E31, 'RAB input'!$E$27:$E$76, 0), MATCH(AU$4, RAB_years, 0)) -> 0 | AV31: =INDEX('RAB input'!$H$27:$XFD$76, MATCH($E31, 'RAB input'!$E$27:$E$76, 0), MATCH(AV$4, RAB_years, 0)) -> 0 | AW31: =INDEX('RAB input'!$H$27:$XFD$76, MATCH($E31, 'RAB input'!$E$27:$E$76, 0), MATCH(AW$4, RAB_years, 0)) -> 0 | AX31: =INDEX('RAB input'!$H$27:$XFD$76, MATCH($E31, 'RAB input'!$E$27:$E$76, 0), MATCH(AX$4, RAB_years, 0)) -> 0 | AY31: =INDEX('RAB input'!$H$27:$XFD$76, MATCH($E31, 'RAB input'!$E$27:$E$76, 0), MATCH(AY$4, RAB_years, 0)) -> 0 | AZ31: =INDEX('RAB input'!$H$27:$XFD$76, MATCH($E31, 'RAB input'!$E$27:$E$76, 0), MATCH(AZ$4, RAB_years, 0)) -> 0 | BA31: =INDEX('RAB input'!$H$27:$XFD$76, MATCH($E31, 'RAB input'!$E$27:$E$76, 0), MATCH(BA$4, RAB_years, 0)) -> 0 | BB31: =INDEX('RAB input'!$H$27:$XFD$76, MATCH($E31, 'RAB input'!$E$27:$E$76, 0), MATCH(BB$4, RAB_years, 0)) -> 0 | BC31: =INDEX('RAB input'!$H$27:$XFD$76, MATCH($E31, 'RAB input'!$E$27:$E$76, 0), MATCH(BC$4, RAB_years, 0)) -> 0 | BD31: =INDEX('RAB input'!$H$27:$XFD$76, MATCH($E31, 'RAB input'!$E$27:$E$76, 0), MATCH(BD$4, RAB_years, 0)) -> 0 | BE31: =INDEX('RAB input'!$H$27:$XFD$76, MATCH($E31, 'RAB input'!$E$27:$E$76, 0), MATCH(BE$4, RAB_years, 0)) -> 0 | BF31: =INDEX('RAB input'!$H$27:$XFD$76, MATCH($E31, 'RAB input'!$E$27:$E$76, 0), MATCH(BF$4, RAB_years, 0)) -> 0 | BG31: =INDEX('RAB input'!$H$27:$XFD$76, MATCH($E31, 'RAB input'!$E$27:$E$76, 0), MATCH(BG$4, RAB_years, 0)) -> 0 | BH31: =INDEX('RAB input'!$H$27:$XFD$76, MATCH($E31, 'RAB input'!$E$27:$E$76, 0), MATCH(BH$4, RAB_years, 0)) -> 0 | BI31: =INDEX('RAB input'!$H$27:$XFD$76, MATCH($E31, 'RAB input'!$E$27:$E$76, 0), MATCH(BI$4, RAB_years, 0)) -> 0 | BJ31: =INDEX('RAB input'!$H$27:$XFD$76, MATCH($E31, 'RAB input'!$E$27:$E$76, 0), MATCH(BJ$4, RAB_years, 0)) -> 0
D32: 15
D33: 16 | E33: Critical spares - network assets
D34: 17
D35: 18
D36: 19
D37: 20
D38: 21
D39: 22
D40: 23
D41: 24
D42: 25
D43: 26
D44: 27
D45: 28
D46: 29
D47: 30
D48: 31
D49: 32
D50: 33
D51: 34
D52: 35
D53: 36
D54: 37
D55: 38
D56: 39
D57: 40
D58: 41
D59: 42
D60: 43
D61: 44
D62: 45
D63: 46
D64: 47
D65: 48 | E65: Buildings - capital works | G65: =INDEX('[6]TAB roll forward'!$H$8:$H$57,MATCH(E65,'[6]TAB roll forward'!$C$8:$C$57,0),1) -> 0 | H65: =INDEX('RAB input'!$H$27:$XFD$76, MATCH($E65, 'RAB input'!$E$27:$E$76, 0), MATCH(H$4, RAB_years, 0)) -> 15.91732257 | I65: =INDEX('RAB input'!$H$27:$XFD$76, MATCH($E65, 'RAB input'!$E$27:$E$76, 0), MATCH(I$4, RAB_years, 0)) -> 1.655039853 | J65: =INDEX('RAB input'!$H$27:$XFD$76, MATCH($E65, 'RAB input'!$E$27:$E$76, 0), MATCH(J$4, RAB_years, 0)) -> 0.008900863102 | K65: =INDEX('RAB input'!$H$27:$XFD$76, MATCH($E65, 'RAB input'!$E$27:$E$76, 0), MATCH(K$4, RAB_years, 0)) -> 0 | L65: =INDEX('RAB input'!$H$27:$XFD$76, MATCH($E65, 'RAB input'!$E$27:$E$76, 0), MATCH(L$4, RAB_years, 0)) -> 0
D66: 49 | E66: ='RAB input'!E75 -> in-house software | G66: =INDEX('[6]TAB roll forward'!$H$8:$H$57,MATCH(E66,'[6]TAB roll forward'!$C$8:$C$57,0),1) -> 0 | H66: =INDEX('RAB input'!$H$27:$XFD$76, MATCH($E66, 'RAB input'!$E$27:$E$76, 0), MATCH(H$4, RAB_years, 0)) -> 57.09158779 | I66: =INDEX('RAB input'!$H$27:$XFD$76, MATCH($E66, 'RAB input'!$E$27:$E$76, 0), MATCH(I$4, RAB_years, 0)) -> 45.12378867 | J66: =INDEX('RAB input'!$H$27:$XFD$76, MATCH($E66, 'RAB input'!$E$27:$E$76, 0), MATCH(J$4, RAB_years, 0)) -> 50.26062435 | K66: =INDEX('RAB input'!$H$27:$XFD$76, MATCH($E66, 'RAB input'!$E$27:$E$76, 0), MATCH(K$4, RAB_years, 0)) -> 72.03462431 | L66: =INDEX('RAB input'!$H$27:$XFD$76, MATCH($E66, 'RAB input'!$E$27:$E$76, 0), MATCH(L$4, RAB_years, 0)) -> 60.59275277 | M66: =INDEX('RAB input'!$H$27:$XFD$76, MATCH($E66, 'RAB input'!$E$27:$E$76, 0), MATCH(M$4, RAB_years, 0)) -> 0 | N66: =INDEX('RAB input'!$H$27:$XFD$76, MATCH($E66, 'RAB input'!$E$27:$E$76, 0), MATCH(N$4, RAB_years, 0)) -> 0 | O66: =INDEX('RAB input'!$H$27:$XFD$76, MATCH($E66, 'RAB input'!$E$27:$E$76, 0), MATCH(O$4, RAB_years, 0)) -> 0 | P66: =INDEX('RAB input'!$H$27:$XFD$76, MATCH($E66, 'RAB input'!$E$27:$E$76, 0), MATCH(P$4, RAB_years, 0)) -> 0 | Q66: =INDEX('RAB input'!$H$27:$XFD$76, MATCH($E66, 'RAB input'!$E$27:$E$76, 0), MATCH(Q$4, RAB_years, 0)) -> 0 | R66: =INDEX('RAB input'!$H$27:$XFD$76, MATCH($E66, 'RAB input'!$E$27:$E$76, 0), MATCH(R$4, RAB_years, 0)) -> 0 | S66: =INDEX('RAB input'!$H$27:$XFD$76, MATCH($E66, 'RAB input'!$E$27:$E$76, 0), MATCH(S$4, RAB_years, 0)) -> 0 | T66: =INDEX('RAB input'!$H$27:$XFD$76, MATCH($E66, 'RAB input'!$E$27:$E$76, 0), MATCH(T$4, RAB_years, 0)) -> 0 | U66: =INDEX('RAB input'!$H$27:$XFD$76, MATCH($E66, 'RAB input'!$E$27:$E$76, 0), MATCH(U$4, RAB_years, 0)) -> 0 | V66: =INDEX('RAB input'!$H$27:$XFD$76, MATCH($E66, 'RAB input'!$E$27:$E$76, 0), MATCH(V$4, RAB_years, 0)) -> 0 | W66: =INDEX('RAB input'!$H$27:$XFD$76, MATCH($E66, 'RAB input'!$E$27:$E$76, 0), MATCH(W$4, RAB_years, 0)) -> 0 | X66: =INDEX('RAB input'!$H$27:$XFD$76, MATCH($E66, 'RAB input'!$E$27:$E$76, 0), MATCH(X$4, RAB_years, 0)) -> 0 | Y66: =INDEX('RAB input'!$H$27:$XFD$76, MATCH($E66, 'RAB input'!$E$27:$E$76, 0), MATCH(Y$4, RAB_years, 0)) -> 0 | Z66: =INDEX('RAB input'!$H$27:$XFD$76, MATCH($E66, 'RAB input'!$E$27:$E$76, 0), MATCH(Z$4, RAB_years, 0)) -> 0 | AA66: =INDEX('RAB input'!$H$27:$XFD$76, MATCH($E66, 'RAB input'!$E$27:$E$76, 0), MATCH(AA$4, RAB_years, 0)) -> 0 | AB66: =INDEX('RAB input'!$H$27:$XFD$76, MATCH($E66, 'RAB input'!$E$27:$E$76, 0), MATCH(AB$4, RAB_years, 0)) -> 0 | AC66: =INDEX('RAB input'!$H$27:$XFD$76, MATCH($E66, 'RAB input'!$E$27:$E$76, 0), MATCH(AC$4, RAB_years, 0)) -> 0 | AD66: =INDEX('RAB input'!$H$27:$XFD$76, MATCH($E66, 'RAB input'!$E$27:$E$76, 0), MATCH(AD$4, RAB_years, 0)) -> 0 | AE66: =INDEX('RAB input'!$H$27:$XFD$76, MATCH($E66, 'RAB input'!$E$27:$E$76, 0), MATCH(AE$4, RAB_years, 0)) -> 0 | AF66: =INDEX('RAB input'!$H$27:$XFD$76, MATCH($E66, 'RAB input'!$E$27:$E$76, 0), MATCH(AF$4, RAB_years, 0)) -> 0 | AG66: =INDEX('RAB input'!$H$27:$XFD$76, MATCH($E66, 'RAB input'!$E$27:$E$76, 0), MATCH(AG$4, RAB_years, 0)) -> 0 | AH66: =INDEX('RAB input'!$H$27:$XFD$76, MATCH($E66, 'RAB input'!$E$27:$E$76, 0), MATCH(AH$4, RAB_years, 0)) -> 0 | AI66: =INDEX('RAB input'!$H$27:$XFD$76, MATCH($E66, 'RAB input'!$E$27:$E$76, 0), MATCH(AI$4, RAB_years, 0)) -> 0 | AJ66: =INDEX('RAB input'!$H$27:$XFD$76, MATCH($E66, 'RAB input'!$E$27:$E$76, 0), MATCH(AJ$4, RAB_years, 0)) -> 0 | AK66: =INDEX('RAB input'!$H$27:$XFD$76, MATCH($E66, 'RAB input'!$E$27:$E$76, 0), MATCH(AK$4, RAB_years, 0)) -> 0 | AL66: =INDEX('RAB input'!$H$27:$XFD$76, MATCH($E66, 'RAB input'!$E$27:$E$76, 0), MATCH(AL$4, RAB_years, 0)) -> 0 | AM66: =INDEX('RAB input'!$H$27:$XFD$76, MATCH($E66, 'RAB input'!$E$27:$E$76, 0), MATCH(AM$4, RAB_years, 0)) -> 0 | AN66: =INDEX('RAB input'!$H$27:$XFD$76, MATCH($E66, 'RAB input'!$E$27:$E$76, 0), MATCH(AN$4, RAB_years, 0)) -> 0 | AO66: =INDEX('RAB input'!$H$27:$XFD$76, MATCH($E66, 'RAB input'!$E$27:$E$76, 0), MATCH(AO$4, RAB_years, 0)) -> 0 | AP66: =INDEX('RAB input'!$H$27:$XFD$76, MATCH($E66, 'RAB input'!$E$27:$E$76, 0), MATCH(AP$4, RAB_years, 0)) -> 0 | AQ66: =INDEX('RAB input'!$H$27:$XFD$76, MATCH($E66, 'RAB input'!$E$27:$E$76, 0), MATCH(AQ$4, RAB_years, 0)) -> 0 | AR66: =INDEX('RAB input'!$H$27:$XFD$76, MATCH($E66, 'RAB input'!$E$27:$E$76, 0), MATCH(AR$4, RAB_years, 0)) -> 0 | AS66: =INDEX('RAB input'!$H$27:$XFD$76, MATCH($E66, 'RAB input'!$E$27:$E$76, 0), MATCH(AS$4, RAB_years, 0)) -> 0 | AT66: =INDEX('RAB input'!$H$27:$XFD$76, MATCH($E66, 'RAB input'!$E$27:$E$76, 0), MATCH(AT$4, RAB_years, 0)) -> 0 | AU66: =INDEX('RAB input'!$H$27:$XFD$76, MATCH($E66, 'RAB input'!$E$27:$E$76, 0), MATCH(AU$4, RAB_years, 0)) -> 0 | AV66: =INDEX('RAB input'!$H$27:$XFD$76, MATCH($E66, 'RAB input'!$E$27:$E$76, 0), MATCH(AV$4, RAB_years, 0)) -> 0 | AW66: =INDEX('RAB input'!$H$27:$XFD$76, MATCH($E66, 'RAB input'!$E$27:$E$76, 0), MATCH(AW$4, RAB_years, 0)) -> 0 | AX66: =INDEX('RAB input'!$H$27:$XFD$76, MATCH($E66, 'RAB input'!$E$27:$E$76, 0), MATCH(AX$4, RAB_years, 0)) -> 0 | AY66: =INDEX('RAB input'!$H$27:$XFD$76, MATCH($E66, 'RAB input'!$E$27:$E$76, 0), MATCH(AY$4, RAB_years, 0)) -> 0 | AZ66: =INDEX('RAB input'!$H$27:$XFD$76, MATCH($E66, 'RAB input'!$E$27:$E$76, 0), MATCH(AZ$4, RAB_years, 0)) -> 0 | BA66: =INDEX('RAB input'!$H$27:$XFD$76, MATCH($E66, 'RAB input'!$E$27:$E$76, 0), MATCH(BA$4, RAB_years, 0)) -> 0 | BB66: =INDEX('RAB input'!$H$27:$XFD$76, MATCH($E66, 'RAB input'!$E$27:$E$76, 0), MATCH(BB$4, RAB_years, 0)) -> 0 | BC66: =INDEX('RAB input'!$H$27:$XFD$76, MATCH($E66, 'RAB input'!$E$27:$E$76, 0), MATCH(BC$4, RAB_years, 0)) -> 0 | BD66: =INDEX('RAB input'!$H$27:$XFD$76, MATCH($E66, 'RAB input'!$E$27:$E$76, 0), MATCH(BD$4, RAB_years, 0)) -> 0 | BE66: =INDEX('RAB input'!$H$27:$XFD$76, MATCH($E66, 'RAB input'!$E$27:$E$76, 0), MATCH(BE$4, RAB_years, 0)) -> 0 | BF66: =INDEX('RAB input'!$H$27:$XFD$76, MATCH($E66, 'RAB input'!$E$27:$E$76, 0), MATCH(BF$4, RAB_years, 0)) -> 0 | BG66: =INDEX('RAB input'!$H$27:$XFD$76, MATCH($E66, 'RAB input'!$E$27:$E$76, 0), MATCH(BG$4, RAB_years, 0)) -> 0 | BH66: =INDEX('RAB input'!$H$27:$XFD$76, MATCH($E66, 'RAB input'!$E$27:$E$76, 0), MATCH(BH$4, RAB_years, 0)) -> 0 | BI66: =INDEX('RAB input'!$H$27:$XFD$76, MATCH($E66, 'RAB input'!$E$27:$E$76, 0), MATCH(BI$4, RAB_years, 0)) -> 0 | BJ66: =INDEX('RAB input'!$H$27:$XFD$76, MATCH($E66, 'RAB input'!$E$27:$E$76, 0), MATCH(BJ$4, RAB_years, 0)) -> 0
D67: 50 | E67: ='RAB input'!E76 -> Equity raising costs | G67: =INDEX('[6]TAB roll forward'!$H$8:$H$57,MATCH(E67,'[6]TAB roll forward'!$C$8:$C$57,0),1) -> 2.515467002 | H67: =INDEX('RAB input'!$H$27:$XFD$76, MATCH($E67, 'RAB input'!$E$27:$E$76, 0), MATCH(H$4, RAB_years, 0)) -> 0 | I67: =INDEX('RAB input'!$H$27:$XFD$76, MATCH($E67, 'RAB input'!$E$27:$E$76, 0), MATCH(I$4, RAB_years, 0)) -> 0 | J67: =INDEX('RAB input'!$H$27:$XFD$76, MATCH($E67, 'RAB input'!$E$27:$E$76, 0), MATCH(J$4, RAB_years, 0)) -> 0 | K67: =INDEX('RAB input'!$H$27:$XFD$76, MATCH($E67, 'RAB input'!$E$27:$E$76, 0), MATCH(K$4, RAB_years, 0)) -> 0 | L67: =INDEX('RAB input'!$H$27:$XFD$76, MATCH($E67, 'RAB input'!$E$27:$E$76, 0), MATCH(L$4, RAB_years, 0)) -> 0 | M67: =INDEX('RAB input'!$H$27:$XFD$76, MATCH($E67, 'RAB input'!$E$27:$E$76, 0), MATCH(M$4, RAB_years, 0)) -> 0 | N67: =INDEX('RAB input'!$H$27:$XFD$76, MATCH($E67, 'RAB input'!$E$27:$E$76, 0), MATCH(N$4, RAB_years, 0)) -> 0 | O67: =INDEX('RAB input'!$H$27:$XFD$76, MATCH($E67, 'RAB input'!$E$27:$E$76, 0), MATCH(O$4, RAB_years, 0)) -> 0 | P67: =INDEX('RAB input'!$H$27:$XFD$76, MATCH($E67, 'RAB input'!$E$27:$E$76, 0), MATCH(P$4, RAB_years, 0)) -> 0 | Q67: =INDEX('RAB input'!$H$27:$XFD$76, MATCH($E67, 'RAB input'!$E$27:$E$76, 0), MATCH(Q$4, RAB_years, 0)) -> 0 | R67: =INDEX('RAB input'!$H$27:$XFD$76, MATCH($E67, 'RAB input'!$E$27:$E$76, 0), MATCH(R$4, RAB_years, 0)) -> 0 | S67: =INDEX('RAB input'!$H$27:$XFD$76, MATCH($E67, 'RAB input'!$E$27:$E$76, 0), MATCH(S$4, RAB_years, 0)) -> 0 | T67: =INDEX('RAB input'!$H$27:$XFD$76, MATCH($E67, 'RAB input'!$E$27:$E$76, 0), MATCH(T$4, RAB_years, 0)) -> 0 | U67: =INDEX('RAB input'!$H$27:$XFD$76, MATCH($E67, 'RAB input'!$E$27:$E$76, 0), MATCH(U$4, RAB_years, 0)) -> 0 | V67: =INDEX('RAB input'!$H$27:$XFD$76, MATCH($E67, 'RAB input'!$E$27:$E$76, 0), MATCH(V$4, RAB_years, 0)) -> 0 | W67: =INDEX('RAB input'!$H$27:$XFD$76, MATCH($E67, 'RAB input'!$E$27:$E$76, 0), MATCH(W$4, RAB_years, 0)) -> 0 | X67: =INDEX('RAB input'!$H$27:$XFD$76, MATCH($E67, 'RAB input'!$E$27:$E$76, 0), MATCH(X$4, RAB_years, 0)) -> 0 | Y67: =INDEX('RAB input'!$H$27:$XFD$76, MATCH($E67, 'RAB input'!$E$27:$E$76, 0), MATCH(Y$4, RAB_years, 0)) -> 0 | Z67: =INDEX('RAB input'!$H$27:$XFD$76, MATCH($E67, 'RAB input'!$E$27:$E$76, 0), MATCH(Z$4, RAB_years, 0)) -> 0 | AA67: =INDEX('RAB input'!$H$27:$XFD$76, MATCH($E67, 'RAB input'!$E$27:$E$76, 0), MATCH(AA$4, RAB_years, 0)) -> 0 | AB67: =INDEX('RAB input'!$H$27:$XFD$76, MATCH($E67, 'RAB input'!$E$27:$E$76, 0), MATCH(AB$4, RAB_years, 0)) -> 0 | AC67: =INDEX('RAB input'!$H$27:$XFD$76, MATCH($E67, 'RAB input'!$E$27:$E$76, 0), MATCH(AC$4, RAB_years, 0)) -> 0 | AD67: =INDEX('RAB input'!$H$27:$XFD$76, MATCH($E67, 'RAB input'!$E$27:$E$76, 0), MATCH(AD$4, RAB_years, 0)) -> 0 | AE67: =INDEX('RAB input'!$H$27:$XFD$76, MATCH($E67, 'RAB input'!$E$27:$E$76, 0), MATCH(AE$4, RAB_years, 0)) -> 0 | AF67: =INDEX('RAB input'!$H$27:$XFD$76, MATCH($E67, 'RAB input'!$E$27:$E$76, 0), MATCH(AF$4, RAB_years, 0)) -> 0 | AG67: =INDEX('RAB input'!$H$27:$XFD$76, MATCH($E67, 'RAB input'!$E$27:$E$76, 0), MATCH(AG$4, RAB_years, 0)) -> 0 | AH67: =INDEX('RAB input'!$H$27:$XFD$76, MATCH($E67, 'RAB input'!$E$27:$E$76, 0), MATCH(AH$4, RAB_years, 0)) -> 0 | AI67: =INDEX('RAB input'!$H$27:$XFD$76, MATCH($E67, 'RAB input'!$E$27:$E$76, 0), MATCH(AI$4, RAB_years, 0)) -> 0 | AJ67: =INDEX('RAB input'!$H$27:$XFD$76, MATCH($E67, 'RAB input'!$E$27:$E$76, 0), MATCH(AJ$4, RAB_years, 0)) -> 0 | AK67: =INDEX('RAB input'!$H$27:$XFD$76, MATCH($E67, 'RAB input'!$E$27:$E$76, 0), MATCH(AK$4, RAB_years, 0)) -> 0 | AL67: =INDEX('RAB input'!$H$27:$XFD$76, MATCH($E67, 'RAB input'!$E$27:$E$76, 0), MATCH(AL$4, RAB_years, 0)) -> 0 | AM67: =INDEX('RAB input'!$H$27:$XFD$76, MATCH($E67, 'RAB input'!$E$27:$E$76, 0), MATCH(AM$4, RAB_years, 0)) -> 0 | AN67: =INDEX('RAB input'!$H$27:$XFD$76, MATCH($E67, 'RAB input'!$E$27:$E$76, 0), MATCH(AN$4, RAB_years, 0)) -> 0 | AO67: =INDEX('RAB input'!$H$27:$XFD$76, MATCH($E67, 'RAB input'!$E$27:$E$76, 0), MATCH(AO$4, RAB_years, 0)) -> 0 | AP67: =INDEX('RAB input'!$H$27:$XFD$76, MATCH($E67, 'RAB input'!$E$27:$E$76, 0), MATCH(AP$4, RAB_years, 0)) -> 0 | AQ67: =INDEX('RAB input'!$H$27:$XFD$76, MATCH($E67, 'RAB input'!$E$27:$E$76, 0), MATCH(AQ$4, RAB_years, 0)) -> 0 | AR67: =INDEX('RAB input'!$H$27:$XFD$76, MATCH($E67, 'RAB input'!$E$27:$E$76, 0), MATCH(AR$4, RAB_years, 0)) -> 0 | AS67: =INDEX('RAB input'!$H$27:$XFD$76, MATCH($E67, 'RAB input'!$E$27:$E$76, 0), MATCH(AS$4, RAB_years, 0)) -> 0 | AT67: =INDEX('RAB input'!$H$27:$XFD$76, MATCH($E67, 'RAB input'!$E$27:$E$76, 0), MATCH(AT$4, RAB_years, 0)) -> 0 | AU67: =INDEX('RAB input'!$H$27:$XFD$76, MATCH($E67, 'RAB input'!$E$27:$E$76, 0), MATCH(AU$4, RAB_years, 0)) -> 0 | AV67: =INDEX('RAB input'!$H$27:$XFD$76, MATCH($E67, 'RAB input'!$E$27:$E$76, 0), MATCH(AV$4, RAB_years, 0)) -> 0 | AW67: =INDEX('RAB input'!$H$27:$XFD$76, MATCH($E67, 'RAB input'!$E$27:$E$76, 0), MATCH(AW$4, RAB_years, 0)) -> 0 | AX67: =INDEX('RAB input'!$H$27:$XFD$76, MATCH($E67, 'RAB input'!$E$27:$E$76, 0), MATCH(AX$4, RAB_years, 0)) -> 0 | AY67: =INDEX('RAB input'!$H$27:$XFD$76, MATCH($E67, 'RAB input'!$E$27:$E$76, 0), MATCH(AY$4, RAB_years, 0)) -> 0 | AZ67: =INDEX('RAB input'!$H$27:$XFD$76, MATCH($E67, 'RAB input'!$E$27:$E$76, 0), MATCH(AZ$4, RAB_years, 0)) -> 0 | BA67: =INDEX('RAB input'!$H$27:$XFD$76, MATCH($E67, 'RAB input'!$E$27:$E$76, 0), MATCH(BA$4, RAB_years, 0)) -> 0 | BB67: =INDEX('RAB input'!$H$27:$XFD$76, MATCH($E67, 'RAB input'!$E$27:$E$76, 0), MATCH(BB$4, RAB_years, 0)) -> 0 | BC67: =INDEX('RAB input'!$H$27:$XFD$76, MATCH($E67, 'RAB input'!$E$27:$E$76, 0), MATCH(BC$4, RAB_years, 0)) -> 0 | BD67: =INDEX('RAB input'!$H$27:$XFD$76, MATCH($E67, 'RAB input'!$E$27:$E$76, 0), MATCH(BD$4, RAB_years, 0)) -> 0 | BE67: =INDEX('RAB input'!$H$27:$XFD$76, MATCH($E67, 'RAB input'!$E$27:$E$76, 0), MATCH(BE$4, RAB_years, 0)) -> 0 | BF67: =INDEX('RAB input'!$H$27:$XFD$76, MATCH($E67, 'RAB input'!$E$27:$E$76, 0), MATCH(BF$4, RAB_years, 0)) -> 0 | BG67: =INDEX('RAB input'!$H$27:$XFD$76, MATCH($E67, 'RAB input'!$E$27:$E$76, 0), MATCH(BG$4, RAB_years, 0)) -> 0 | BH67: =INDEX('RAB input'!$H$27:$XFD$76, MATCH($E67, 'RAB input'!$E$27:$E$76, 0), MATCH(BH$4, RAB_years, 0)) -> 0 | BI67: =INDEX('RAB input'!$H$27:$XFD$76, MATCH($E67, 'RAB input'!$E$27:$E$76, 0), MATCH(BI$4, RAB_years, 0)) -> 0 | BJ67: =INDEX('RAB input'!$H$27:$XFD$76, MATCH($E67, 'RAB input'!$E$27:$E$76, 0), MATCH(BJ$4, RAB_years, 0)) -> 0
E68: Total | G68: =SUM(G18:G67) -> 3620.358327 | H68: =SUM(H18:H67) -> 359.8187228 | I68: 347.9221474 | J68: 391.4663211 | K68: 484.4527893 | L68: 489.6182223 | M68: 0 | N68: 0 | O68: 0 | P68: 0 | Q68: 0 | R68: 0 | S68: 0 | T68: 0 | U68: 0 | V68: 0 | W68: 0 | X68: 0 | Y68: 0 | Z68: 0 | AA68: 0 | AB68: 0 | AC68: 0 | AD68: 0 | AE68: 0 | AF68: 0 | AG68: 0 | AH68: 0 | AI68: 0 | AJ68: 0 | AK68: 0 | AL68: 0 | AM68: 0 | AN68: 0 | AO68: 0 | AP68: 0 | AQ68: 0 | AR68: 0 | AS68: 0 | AT68: 0 | AU68: 0 | AV68: 0 | AW68: 0 | AX68: 0 | AY68: 0 | AZ68: 0 | BA68: 0 | BB68: 0 | BC68: 0 | BD68: 0 | BE68: 0 | BF68: 0 | BG68: 0 | BH68: 0 | BI68: 0 | BJ68: 0 | BK68: 0 | BL68: 0 | BM68: 0 | BN68: 0 | BO68: 0 | BP68: 0 | BQ68: 0 | BR68: 0 | BS68: 0 | BT68: =SUM(BT18:BT67) -> 0 | BU68: =SUM(BU18:BU67) -> 0
D70: Actual immediately expensed capex - As incurred ($m, nominal)
E71: =$E$16 -> Asset class | H71: =IF(H$16="", "", "Actual immediately expensed capex (" & H$4 & ")") -> Actual immediately expensed capex (2021-22) | I71: =IF(I$16="", "", "Actual immediately expensed capex (" & I$4 & ")") -> Actual immediately expensed capex (2022-23) | J71: Actual immediately expensed capex (2023-24) | K71: Actual immediately expensed capex (2024-25) | L71: Actual immediately expensed capex (2025-26) | BU71: =IF(BU$16="", "", "Actual immediately expensed capex (" & BU$4 & ")") -> 
E72: =E18 -> Subtransmission | H72: ='[8]8.2 Capex'!$D285/10^6 -> 29.2130089 | I72: ='[7]8.2 Capex'!$D285/10^6 -> 25.97560766 | J72: ='[5]8.2 Capex'!$D285/10^6 -> 35.98677906 | K72: ='[4]PTRM input'!J115*'[6]RFM input'!K$283 -> 22.91312343 | L72: ='[4]PTRM input'!K115*'[6]RFM input'!L$283 -> 7.813745226
E73: Distribution system assets | H73: ='[8]8.2 Capex'!$D286/10^6 -> 103.2255845 | I73: ='[7]8.2 Capex'!$D286/10^6 -> 85.11216756 | J73: ='[5]8.2 Capex'!$D286/10^6 -> 123.7373599 | K73: ='[4]PTRM input'!J116*'[6]RFM input'!K$283 -> 133.2577221 | L73: ='[4]PTRM input'!K116*'[6]RFM input'!L$283 -> 147.799632
E74: SCADA/Network control | H74: ='[8]8.2 Capex'!$D287/10^6 -> 1.529456683 | I74: ='[7]8.2 Capex'!$D287/10^6 -> 1.915688416 | J74: ='[5]8.2 Capex'!$D287/10^6 -> 3.127895319 | K74: ='[4]PTRM input'!J117*'[6]RFM input'!K$283 -> 14.33887333 | L74: ='[4]PTRM input'!K117*'[6]RFM input'!L$283 -> 9.381175549
E75: Non-network general assets - IT | H75: ='[8]8.2 Capex'!$D288/10^6 -> 0.3709679501 | I75: ='[7]8.2 Capex'!$D288/10^6 -> 0.8392624246 | J75: ='[5]8.2 Capex'!$D288/10^6 -> 1.810028477 | K75: ='[4]PTRM input'!J118*'[6]RFM input'!K$283 -> 0.4053400767 | L75: ='[4]PTRM input'!K118*'[6]RFM input'!L$283 -> 0.4162758439
E76: Non-network general assets - Other | H76: ='[8]8.2 Capex'!$D289/10^6 -> 0 | I76: ='[7]8.2 Capex'!$D289/10^6 -> 0 | J76: ='[5]8.2 Capex'!$D289/10^6 -> 0 | K76: ='[4]PTRM input'!J119*'[6]RFM input'!K$283 -> 0 | L76: ='[4]PTRM input'!K119*'[6]RFM input'!L$283 -> 0
E77: Land | H77: ='[8]8.2 Capex'!$D296/10^6 -> 0 | I77: ='[7]8.2 Capex'!$D296/10^6 -> 0 | J77: ='[5]8.2 Capex'!$D297/10^6 -> 0 | K77: 0 | L77: 0
E78: Secondary systems (pre 2016) | H78: 0 | I78: 0 | J78: 0 | K78: 0 | L78: 0
E79: Accelerated Depr - Distr assets (Contingent Project 1) | H79: 0 | I79: 0 | J79: 0 | K79: 0 | L79: 0
E80: Accelerated Depr - Distr assets (Contingent Project 2) | H80: 0 | I80: 0 | J80: 0 | K80: 0 | L80: 0
E81: Accelerated Depr - Distr assets (Contingent Project 3) | H81: 0 | I81: 0 | J81: 0 | K81: 0 | L81: 0
E82: Accelerated Depr - Distr assets (Other) | H82: 0 | I82: 0 | J82: 0 | K82: 0 | L82: 0
E83: Non-network leasehold land & buildings - 1 July 2021 | H83: 0 | I83: 0 | J83: 0 | K83: 0 | L83: 0
E84: Non- Network Leasehold Land & Buildings - 2021-22 | H84: 0 | I84: 0 | J84: 0 | K84: 0 | L84: 0
E85: Non- Network Leasehold Land & Buildings - 2025-26 | H85: 0 | I85: 0 | J85: 0 | K85: 0 | L85: 0
E86: 0 | H86: 0 | I86: 0 | J86: 0 | K86: 0 | L86: 0
E87: Critical spares - network assets | H87: 0 | I87: 0 | J87: 0 | K87: 0 | L87: 0
E88: 0 | H88: 0 | I88: 0 | J88: 0 | K88: 0 | L88: 0
E89: 0
E90: 0
E91: 0
E92: 0
E93: 0
E94: 0
E95: 0
E96: 0
E97: 0
E98: 0
E99: 0
E100: 0
E101: 0
E102: 0
E103: 0
E104: =E50 -> 0
E105: 0
E106: 0
E107: 0
E108: 0
E109: 0
E110: 0
E111: 0
E112: 0
E113: 0
E114: 0
E115: 0
E116: 0
E117: 0
E118: 0
E119: Buildings - capital works | H119: ='[8]8.2 Capex'!$D290/10^6 -> 0 | I119: ='[7]8.2 Capex'!$D290/10^6 -> 0 | J119: ='[5]8.2 Capex'!$D290/10^6 -> 0 | K119: ='[4]PTRM input'!J162*'[6]RFM input'!K$283 -> 0 | L119: ='[4]PTRM input'!K162*'[6]RFM input'!L$283 -> 0
E120: in-house software | H120: ='[8]8.2 Capex'!$D291/10^6 -> 5.254396555 | I120: ='[7]8.2 Capex'!$D291/10^6 -> 5.040208358 | J120: ='[5]8.2 Capex'!$D291/10^6 -> 6.018169822 | K120: ='[4]PTRM input'!J163*'[6]RFM input'!K$283 -> 2.732987289 | L120: ='[4]PTRM input'!K163*'[6]RFM input'!L$283 -> 2.747095713
E121: Equity raising costs | H121: 0 | I121: 0 | J121: 0 | K121: ='[4]PTRM input'!J164*'[6]RFM input'!K$283 -> 0 | L121: ='[4]PTRM input'!K164*'[6]RFM input'!L$283 -> 0
E122: Total | H122: =SUM(H72:H121) -> 139.5934146 | I122: 118.8829344 | J122: 170.6802325 | K122: 173.6480462 | L122: 168.1579244 | M122: 0 | N122: 0 | O122: 0 | P122: 0 | Q122: 0 | R122: 0 | S122: 0 | T122: 0 | U122: 0 | V122: 0 | W122: 0 | X122: 0 | Y122: 0 | Z122: 0 | AA122: 0 | AB122: 0 | AC122: 0 | AD122: 0 | AE122: 0 | AF122: 0 | AG122: 0 | AH122: 0 | AI122: 0 | AJ122: 0 | AK122: 0 | AL122: 0 | AM122: 0 | AN122: 0 | AO122: 0 | AP122: 0 | AQ122: 0 | AR122: 0 | AS122: 0 | AT122: 0 | AU122: 0 | AV122: 0 | AW122: 0 | AX122: 0 | AY122: 0 | AZ122: 0 | BA122: 0 | BB122: 0 | BC122: 0 | BD122: 0 | BE122: 0 | BF122: 0 | BG122: 0 | BH122: 0 | BI122: 0 | BJ122: 0 | BK122: 0 | BL122: 0 | BM122: 0 | BN122: 0 | BO122: 0 | BP122: 0 | BQ122: 0 | BR122: 0 | BS122: =SUM(BS72:BS121) -> 0 | BT122: =SUM(BT72:BT121) -> 0 | BU122: =SUM(BU72:BU121) -> 0
D124: Actual asset disposals - As incurred ($m, nominal)
E125: =$E$16 -> Asset class | H125: =IF(H$16="", "", "Actual asset disposals (" & H$4 & ")") -> Actual asset disposals (2021-22) | I125: =IF(I$16="", "", "Actual asset disposals (" & I$4 & ")") -> Actual asset disposals (2022-23) | J125: Actual asset disposals (2023-24) | K125: Actual asset disposals (2024-25) | L125: Actual asset disposals (2025-26) | BU125: =IF(BU$16="", "", "Actual asset disposals (" & BU$4 & ")") -> 
... 153 more rows

Sheet RAB tracking
F2: =IF('RAB input'!$F$8='TAB input'!$F$8, 'RAB input'!$F$8, 'TAB input'!$F$8) & " - RAB tracking - Elec DNSP "&Intro!$I$3&" - version "&Intro!$M$4 -> AusNet - RAB tracking - Elec DNSP RFM - Depreciation tracking module - version 1
F4: ="Year ($m, real "&'RAB input'!$G$4&")" -> Year ($m, real 2010) | G4: ='RAB input'!G$4 -> 2010 | H4: ='RAB input'!H$4 -> 2011 | I4: ='RAB input'!I$4 -> 2012 | J4: ='RAB input'!J$4 -> 2013 | K4: ='RAB input'!K$4 -> 2014 | L4: ='RAB input'!L$4 -> 2015 | M4: ='RAB input'!M$4 -> 2016 | N4: ='RAB input'!N$4 -> 2017 | O4: ='RAB input'!O$4 -> 2018 | P4: ='RAB input'!P$4 -> 2019 | Q4: ='RAB input'!Q$4 -> 2020 | R4: ='RAB input'!R$4 -> 2021 | S4: ='RAB input'!S$4 -> 2021-22 | T4: ='RAB input'!T$4 -> 2022-23 | U4: ='RAB input'!U$4 -> 2023-24 | V4: ='RAB input'!V$4 -> 2024-25 | W4: ='RAB input'!W$4 -> 2025-26 | X4: ='RAB input'!X$4 -> 2026-27 | Y4: ='RAB input'!Y$4 -> 2027-28 | Z4: ='RAB input'!Z$4 -> 2028-29 | AA4: ='RAB input'!AA$4 -> 2029-30 | AB4: ='RAB input'!AB$4 -> 2030-31 | AC4: ='RAB input'!AC$4 -> 2031-32 | AD4: ='RAB input'!AD$4 -> 2032-33 | AE4: ='RAB input'!AE$4 -> 2033-34 | AF4: ='RAB input'!AF$4 -> 2034-35 | AG4: ='RAB input'!AG$4 -> 2035-36 | AH4: ='RAB input'!AH$4 -> 2036-37 | AI4: ='RAB input'!AI$4 -> 2037-38 | AJ4: ='RAB input'!AJ$4 -> 2038-39 | AK4: ='RAB input'!AK$4 -> 2039-40 | AL4: ='RAB input'!AL$4 -> 2040-41 | AM4: ='RAB input'!AM$4 -> 2041-42 | AN4: ='RAB input'!AN$4 -> 2042-43 | AO4: ='RAB input'!AO$4 -> 2043-44 | AP4: ='RAB input'!AP$4 -> 2044-45 | AQ4: ='RAB input'!AQ$4 -> 2045-46 | AR4: ='RAB input'!AR$4 -> 2046-47 | AS4: ='RAB input'!AS$4 -> 2047-48 | AT4: ='RAB input'!AT$4 -> 2048-49 | AU4: ='RAB input'!AU$4 -> 2049-50 | AV4: ='RAB input'!AV$4 -> 2050-51 | AW4: ='RAB input'!AW$4 -> 2051-52 | AX4: ='RAB input'!AX$4 -> 2052-53 | AY4: ='RAB input'!AY$4 -> 2053-54 | AZ4: ='RAB input'!AZ$4 -> 2054-55 | BA4: ='RAB input'!BA$4 -> 2055-56 | BB4: ='RAB input'!BB$4 -> 2056-57 | BC4: ='RAB input'!BC$4 -> 2057-58 | BD4: ='RAB input'!BD$4 -> 2058-59 | BE4: ='RAB input'!BE$4 -> 2059-60 | BF4: ='RAB input'!BF$4 -> 2060-61 | BG4: ='RAB input'!BG$4 -> 2061-62 | BH4: ='RAB input'!BH$4 -> 2062-63 | BI4: ='RAB input'!BI$4 -> 2063-64 | BJ4: ='RAB input'!BJ$4 -> 2064-65 | BK4: ='RAB input'!BK$4 -> 2065-66 | BL4: ='RAB input'!BL$4 -> 2066-67 | BM4: ='RAB input'!BM$4 -> 2067-68 | BN4: ='RAB input'!BN$4 -> 2068-69 | BO4: ='RAB input'!BO$4 -> 2069-70 | BP4: ='RAB input'!BP$4 -> 2070-71 | BQ4: ='RAB input'!BQ$4 -> 2071-72 | BR4: ='RAB input'!BR$4 -> 2072-73 | BS4: ='RAB input'!BS$4 -> 2073-74 | BT4: ='RAB input'!BT$4 -> 2074-75 | BU4: ='RAB input'!BU$4 -> 2075-76
G5: 0 | H5: =G5+IF(AND(COUNTA($H$4:H$4)=ROUNDUP('RAB input'!H$5, 0), 'RAB input'!H$5<>INT('RAB input'!H$5)), 'RAB input'!H$5-INT('RAB input'!H$5), 1) -> 1 | I5: =H5+IF(AND(COUNTA($H$4:I$4)=ROUNDUP('RAB input'!I$5, 0), 'RAB input'!I$5<>INT('RAB input'!I$5)), 'RAB input'!I$5-INT('RAB input'!I$5), 1) -> 2 | J5: =I5+IF(AND(COUNTA($H$4:J$4)=ROUNDUP('RAB input'!J$5, 0), 'RAB input'!J$5<>INT('RAB input'!J$5)), 'RAB input'!J$5-INT('RAB input'!J$5), 1) -> 3 | K5: =J5+IF(AND(COUNTA($H$4:K$4)=ROUNDUP('RAB input'!K$5, 0), 'RAB input'!K$5<>INT('RAB input'!K$5)), 'RAB input'!K$5-INT('RAB input'!K$5), 1) -> 4 | L5: =K5+IF(AND(COUNTA($H$4:L$4)=ROUNDUP('RAB input'!L$5, 0), 'RAB input'!L$5<>INT('RAB input'!L$5)), 'RAB input'!L$5-INT('RAB input'!L$5), 1) -> 5 | M5: =L5+IF(AND(COUNTA($H$4:M$4)=ROUNDUP('RAB input'!M$5, 0), 'RAB input'!M$5<>INT('RAB input'!M$5)), 'RAB input'!M$5-INT('RAB input'!M$5), 1) -> 6 | N5: =M5+IF(AND(COUNTA($H$4:N$4)=ROUNDUP('RAB input'!N$5, 0), 'RAB input'!N$5<>INT('RAB input'!N$5)), 'RAB input'!N$5-INT('RAB input'!N$5), 1) -> 7 | O5: =N5+IF(AND(COUNTA($H$4:O$4)=ROUNDUP('RAB input'!O$5, 0), 'RAB input'!O$5<>INT('RAB input'!O$5)), 'RAB input'!O$5-INT('RAB input'!O$5), 1) -> 8 | P5: =O5+IF(AND(COUNTA($H$4:P$4)=ROUNDUP('RAB input'!P$5, 0), 'RAB input'!P$5<>INT('RAB input'!P$5)), 'RAB input'!P$5-INT('RAB input'!P$5), 1) -> 9 | Q5: =P5+IF(AND(COUNTA($H$4:Q$4)=ROUNDUP('RAB input'!Q$5, 0), 'RAB input'!Q$5<>INT('RAB input'!Q$5)), 'RAB input'!Q$5-INT('RAB input'!Q$5), 1) -> 10 | R5: =Q5+IF(AND(COUNTA($H$4:R$4)=ROUNDUP('RAB input'!R$5, 0), 'RAB input'!R$5<>INT('RAB input'!R$5)), 'RAB input'!R$5-INT('RAB input'!R$5), 1) -> 10.5 | S5: =R5+IF(AND(COUNTA($H$4:S$4)=ROUNDUP('RAB input'!S$5, 0), 'RAB input'!S$5<>INT('RAB input'!S$5)), 'RAB input'!S$5-INT('RAB input'!S$5), 1) -> 11.5 | T5: =S5+IF(AND(COUNTA($H$4:T$4)=ROUNDUP('RAB input'!T$5, 0), 'RAB input'!T$5<>INT('RAB input'!T$5)), 'RAB input'!T$5-INT('RAB input'!T$5), 1) -> 12.5 | U5: =T5+IF(AND(COUNTA($H$4:U$4)=ROUNDUP('RAB input'!U$5, 0), 'RAB input'!U$5<>INT('RAB input'!U$5)), 'RAB input'!U$5-INT('RAB input'!U$5), 1) -> 13.5 | V5: =U5+IF(AND(COUNTA($H$4:V$4)=ROUNDUP('RAB input'!V$5, 0), 'RAB input'!V$5<>INT('RAB input'!V$5)), 'RAB input'!V$5-INT('RAB input'!V$5), 1) -> 14.5 | W5: =V5+IF(AND(COUNTA($H$4:W$4)=ROUNDUP('RAB input'!W$5, 0), 'RAB input'!W$5<>INT('RAB input'!W$5)), 'RAB input'!W$5-INT('RAB input'!W$5), 1) -> 15.5 | X5: =W5+IF(AND(COUNTA($H$4:X$4)=ROUNDUP('RAB input'!X$5, 0), 'RAB input'!X$5<>INT('RAB input'!X$5)), 'RAB input'!X$5-INT('RAB input'!X$5), 1) -> 16.5 | Y5: =X5+IF(AND(COUNTA($H$4:Y$4)=ROUNDUP('RAB input'!Y$5, 0), 'RAB input'!Y$5<>INT('RAB input'!Y$5)), 'RAB input'!Y$5-INT('RAB input'!Y$5), 1) -> 17.5 | Z5: =Y5+IF(AND(COUNTA($H$4:Z$4)=ROUNDUP('RAB input'!Z$5, 0), 'RAB input'!Z$5<>INT('RAB input'!Z$5)), 'RAB input'!Z$5-INT('RAB input'!Z$5), 1) -> 18.5 | AA5: =Z5+IF(AND(COUNTA($H$4:AA$4)=ROUNDUP('RAB input'!AA$5, 0), 'RAB input'!AA$5<>INT('RAB input'!AA$5)), 'RAB input'!AA$5-INT('RAB input'!AA$5), 1) -> 19.5 | AB5: =AA5+IF(AND(COUNTA($H$4:AB$4)=ROUNDUP('RAB input'!AB$5, 0), 'RAB input'!AB$5<>INT('RAB input'!AB$5)), 'RAB input'!AB$5-INT('RAB input'!AB$5), 1) -> 20.5 | AC5: =AB5+IF(AND(COUNTA($H$4:AC$4)=ROUNDUP('RAB input'!AC$5, 0), 'RAB input'!AC$5<>INT('RAB input'!AC$5)), 'RAB input'!AC$5-INT('RAB input'!AC$5), 1) -> 21.5 | AD5: =AC5+IF(AND(COUNTA($H$4:AD$4)=ROUNDUP('RAB input'!AD$5, 0), 'RAB input'!AD$5<>INT('RAB input'!AD$5)), 'RAB input'!AD$5-INT('RAB input'!AD$5), 1) -> 22.5 | AE5: =AD5+IF(AND(COUNTA($H$4:AE$4)=ROUNDUP('RAB input'!AE$5, 0), 'RAB input'!AE$5<>INT('RAB input'!AE$5)), 'RAB input'!AE$5-INT('RAB input'!AE$5), 1) -> 23.5 | AF5: =AE5+IF(AND(COUNTA($H$4:AF$4)=ROUNDUP('RAB input'!AF$5, 0), 'RAB input'!AF$5<>INT('RAB input'!AF$5)), 'RAB input'!AF$5-INT('RAB input'!AF$5), 1) -> 24.5 | AG5: =AF5+IF(AND(COUNTA($H$4:AG$4)=ROUNDUP('RAB input'!AG$5, 0), 'RAB input'!AG$5<>INT('RAB input'!AG$5)), 'RAB input'!AG$5-INT('RAB input'!AG$5), 1) -> 25.5 | AH5: =AG5+IF(AND(COUNTA($H$4:AH$4)=ROUNDUP('RAB input'!AH$5, 0), 'RAB input'!AH$5<>INT('RAB input'!AH$5)), 'RAB input'!AH$5-INT('RAB input'!AH$5), 1) -> 26.5 | AI5: =AH5+IF(AND(COUNTA($H$4:AI$4)=ROUNDUP('RAB input'!AI$5, 0), 'RAB input'!AI$5<>INT('RAB input'!AI$5)), 'RAB input'!AI$5-INT('RAB input'!AI$5), 1) -> 27.5 | AJ5: =AI5+IF(AND(COUNTA($H$4:AJ$4)=ROUNDUP('RAB input'!AJ$5, 0), 'RAB input'!AJ$5<>INT('RAB input'!AJ$5)), 'RAB input'!AJ$5-INT('RAB input'!AJ$5), 1) -> 28.5 | AK5: =AJ5+IF(AND(COUNTA($H$4:AK$4)=ROUNDUP('RAB input'!AK$5, 0), 'RAB input'!AK$5<>INT('RAB input'!AK$5)), 'RAB input'!AK$5-INT('RAB input'!AK$5), 1) -> 29.5 | AL5: =AK5+IF(AND(COUNTA($H$4:AL$4)=ROUNDUP('RAB input'!AL$5, 0), 'RAB input'!AL$5<>INT('RAB input'!AL$5)), 'RAB input'!AL$5-INT('RAB input'!AL$5), 1) -> 30.5 | AM5: =AL5+IF(AND(COUNTA($H$4:AM$4)=ROUNDUP('RAB input'!AM$5, 0), 'RAB input'!AM$5<>INT('RAB input'!AM$5)), 'RAB input'!AM$5-INT('RAB input'!AM$5), 1) -> 31.5 | AN5: =AM5+IF(AND(COUNTA($H$4:AN$4)=ROUNDUP('RAB input'!AN$5, 0), 'RAB input'!AN$5<>INT('RAB input'!AN$5)), 'RAB input'!AN$5-INT('RAB input'!AN$5), 1) -> 32.5 | AO5: =AN5+IF(AND(COUNTA($H$4:AO$4)=ROUNDUP('RAB input'!AO$5, 0), 'RAB input'!AO$5<>INT('RAB input'!AO$5)), 'RAB input'!AO$5-INT('RAB input'!AO$5), 1) -> 33.5 | AP5: =AO5+IF(AND(COUNTA($H$4:AP$4)=ROUNDUP('RAB input'!AP$5, 0), 'RAB input'!AP$5<>INT('RAB input'!AP$5)), 'RAB input'!AP$5-INT('RAB input'!AP$5), 1) -> 34.5 | AQ5: =AP5+IF(AND(COUNTA($H$4:AQ$4)=ROUNDUP('RAB input'!AQ$5, 0), 'RAB input'!AQ$5<>INT('RAB input'!AQ$5)), 'RAB input'!AQ$5-INT('RAB input'!AQ$5), 1) -> 35.5 | AR5: =AQ5+IF(AND(COUNTA($H$4:AR$4)=ROUNDUP('RAB input'!AR$5, 0), 'RAB input'!AR$5<>INT('RAB input'!AR$5)), 'RAB input'!AR$5-INT('RAB input'!AR$5), 1) -> 36.5 | AS5: =AR5+IF(AND(COUNTA($H$4:AS$4)=ROUNDUP('RAB input'!AS$5, 0), 'RAB input'!AS$5<>INT('RAB input'!AS$5)), 'RAB input'!AS$5-INT('RAB input'!AS$5), 1) -> 37.5 | AT5: =AS5+IF(AND(COUNTA($H$4:AT$4)=ROUNDUP('RAB input'!AT$5, 0), 'RAB input'!AT$5<>INT('RAB input'!AT$5)), 'RAB input'!AT$5-INT('RAB input'!AT$5), 1) -> 38.5 | AU5: =AT5+IF(AND(COUNTA($H$4:AU$4)=ROUNDUP('RAB input'!AU$5, 0), 'RAB input'!AU$5<>INT('RAB input'!AU$5)), 'RAB input'!AU$5-INT('RAB input'!AU$5), 1) -> 39.5 | AV5: =AU5+IF(AND(COUNTA($H$4:AV$4)=ROUNDUP('RAB input'!AV$5, 0), 'RAB input'!AV$5<>INT('RAB input'!AV$5)), 'RAB input'!AV$5-INT('RAB input'!AV$5), 1) -> 40.5 | AW5: =AV5+IF(AND(COUNTA($H$4:AW$4)=ROUNDUP('RAB input'!AW$5, 0), 'RAB input'!AW$5<>INT('RAB input'!AW$5)), 'RAB input'!AW$5-INT('RAB input'!AW$5), 1) -> 41.5 | AX5: =AW5+IF(AND(COUNTA($H$4:AX$4)=ROUNDUP('RAB input'!AX$5, 0), 'RAB input'!AX$5<>INT('RAB input'!AX$5)), 'RAB input'!AX$5-INT('RAB input'!AX$5), 1) -> 42.5 | AY5: =AX5+IF(AND(COUNTA($H$4:AY$4)=ROUNDUP('RAB input'!AY$5, 0), 'RAB input'!AY$5<>INT('RAB input'!AY$5)), 'RAB input'!AY$5-INT('RAB input'!AY$5), 1) -> 43.5 | AZ5: =AY5+IF(AND(COUNTA($H$4:AZ$4)=ROUNDUP('RAB input'!AZ$5, 0), 'RAB input'!AZ$5<>INT('RAB input'!AZ$5)), 'RAB input'!AZ$5-INT('RAB input'!AZ$5), 1) -> 44.5 | BA5: =AZ5+IF(AND(COUNTA($H$4:BA$4)=ROUNDUP('RAB input'!BA$5, 0), 'RAB input'!BA$5<>INT('RAB input'!BA$5)), 'RAB input'!BA$5-INT('RAB input'!BA$5), 1) -> 45.5 | BB5: =BA5+IF(AND(COUNTA($H$4:BB$4)=ROUNDUP('RAB input'!BB$5, 0), 'RAB input'!BB$5<>INT('RAB input'!BB$5)), 'RAB input'!BB$5-INT('RAB input'!BB$5), 1) -> 46.5 | BC5: =BB5+IF(AND(COUNTA($H$4:BC$4)=ROUNDUP('RAB input'!BC$5, 0), 'RAB input'!BC$5<>INT('RAB input'!BC$5)), 'RAB input'!BC$5-INT('RAB input'!BC$5), 1) -> 47.5 | BD5: =BC5+IF(AND(COUNTA($H$4:BD$4)=ROUNDUP('RAB input'!BD$5, 0), 'RAB input'!BD$5<>INT('RAB input'!BD$5)), 'RAB input'!BD$5-INT('RAB input'!BD$5), 1) -> 48.5 | BE5: =BD5+IF(AND(COUNTA($H$4:BE$4)=ROUNDUP('RAB input'!BE$5, 0), 'RAB input'!BE$5<>INT('RAB input'!BE$5)), 'RAB input'!BE$5-INT('RAB input'!BE$5), 1) -> 49.5 | BF5: =BE5+IF(AND(COUNTA($H$4:BF$4)=ROUNDUP('RAB input'!BF$5, 0), 'RAB input'!BF$5<>INT('RAB input'!BF$5)), 'RAB input'!BF$5-INT('RAB input'!BF$5), 1) -> 50.5 | BG5: =BF5+IF(AND(COUNTA($H$4:BG$4)=ROUNDUP('RAB input'!BG$5, 0), 'RAB input'!BG$5<>INT('RAB input'!BG$5)), 'RAB input'!BG$5-INT('RAB input'!BG$5), 1) -> 51.5 | BH5: =BG5+IF(AND(COUNTA($H$4:BH$4)=ROUNDUP('RAB input'!BH$5, 0), 'RAB input'!BH$5<>INT('RAB input'!BH$5)), 'RAB input'!BH$5-INT('RAB input'!BH$5), 1) -> 52.5 | BI5: =BH5+IF(AND(COUNTA($H$4:BI$4)=ROUNDUP('RAB input'!BI$5, 0), 'RAB input'!BI$5<>INT('RAB input'!BI$5)), 'RAB input'!BI$5-INT('RAB input'!BI$5), 1) -> 53.5 | BJ5: =BI5+IF(AND(COUNTA($H$4:BJ$4)=ROUNDUP('RAB input'!BJ$5, 0), 'RAB input'!BJ$5<>INT('RAB input'!BJ$5)), 'RAB input'!BJ$5-INT('RAB input'!BJ$5), 1) -> 54.5 | BK5: =BJ5+IF(AND(COUNTA($H$4:BK$4)=ROUNDUP('RAB input'!BK$5, 0), 'RAB input'!BK$5<>INT('RAB input'!BK$5)), 'RAB input'!BK$5-INT('RAB input'!BK$5), 1) -> 55.5 | BL5: =BK5+IF(AND(COUNTA($H$4:BL$4)=ROUNDUP('RAB input'!BL$5, 0), 'RAB input'!BL$5<>INT('RAB input'!BL$5)), 'RAB input'!BL$5-INT('RAB input'!BL$5), 1) -> 56.5 | BM5: =BL5+IF(AND(COUNTA($H$4:BM$4)=ROUNDUP('RAB input'!BM$5, 0), 'RAB input'!BM$5<>INT('RAB input'!BM$5)), 'RAB input'!BM$5-INT('RAB input'!BM$5), 1) -> 57.5 | BN5: =BM5+IF(AND(COUNTA($H$4:BN$4)=ROUNDUP('RAB input'!BN$5, 0), 'RAB input'!BN$5<>INT('RAB input'!BN$5)), 'RAB input'!BN$5-INT('RAB input'!BN$5), 1) -> 58.5 | BO5: =BN5+IF(AND(COUNTA($H$4:BO$4)=ROUNDUP('RAB input'!BO$5, 0), 'RAB input'!BO$5<>INT('RAB input'!BO$5)), 'RAB input'!BO$5-INT('RAB input'!BO$5), 1) -> 59.5 | BP5: =BO5+IF(AND(COUNTA($H$4:BP$4)=ROUNDUP('RAB input'!BP$5, 0), 'RAB input'!BP$5<>INT('RAB input'!BP$5)), 'RAB input'!BP$5-INT('RAB input'!BP$5), 1) -> 60.5 | BQ5: =BP5+IF(AND(COUNTA($H$4:BQ$4)=ROUNDUP('RAB input'!BQ$5, 0), 'RAB input'!BQ$5<>INT('RAB input'!BQ$5)), 'RAB input'!BQ$5-INT('RAB input'!BQ$5), 1) -> 61.5 | BR5: =BQ5+IF(AND(COUNTA($H$4:BR$4)=ROUNDUP('RAB input'!BR$5, 0), 'RAB input'!BR$5<>INT('RAB input'!BR$5)), 'RAB input'!BR$5-INT('RAB input'!BR$5), 1) -> 62.5 | BS5: =BR5+IF(AND(COUNTA($H$4:BS$4)=ROUNDUP('RAB input'!BS$5, 0), 'RAB input'!BS$5<>INT('RAB input'!BS$5)), 'RAB input'!BS$5-INT('RAB input'!BS$5), 1) -> 63.5 | BT5: =BS5+IF(AND(COUNTA($H$4:BT$4)=ROUNDUP('RAB input'!BT$5, 0), 'RAB input'!BT$5<>INT('RAB input'!BT$5)), 'RAB input'!BT$5-INT('RAB input'!BT$5), 1) -> 64.5 | BU5: =BT5+IF(AND(COUNTA($H$4:BU$4)=ROUNDUP('RAB input'!BU$5, 0), 'RAB input'!BU$5<>INT('RAB input'!BU$5)), 'RAB input'!BU$5-INT('RAB input'!BU$5), 1) -> 65.5
E6: ="Asset class "&E7 -> Asset class 1 | F6: =INDEX('RAB input'!$E$27:$E$76, MATCH($E7, 'RAB input'!$D$27:$D$76, 0)) -> Subtransmission
